Workbook

Sheet db (hidden)
A1: Order | B1: Sascode | C1: Swedish | D1: Danish | E1: English | F1: Expl | G1: Unit | H1: Decimals and formatting values | I1: Decimals and formatting heading | J1: Column width | K1: Posetive with high value =1 | R1: Språkkod: | S1: 3
A2: 5 | B2: plh50 | C2: Plant nr | D2: Planter | E2: Plant no | F2: 0.5 | G2: 1000/ha | H2: 1 | I2: 1 | J2: 8 | K2: 1
A3: 6 | B3: plh100 | C3: Plant nr | D3: Planter | E3: Plant no | F3: 1 | G3: 1000/ha | H3: 1 | I3: 1 | J3: 8 | K3: 1 | R3: Svenska | S3: 3
A4: 7 | B4: weirot | C4: Rot | D4: Rod | E4: Root | G4: t/ha | H4: 1 | I4: 1 | J4: 5 | K4: 1 | R4: Danska | S4: 4
A5: 8 | B5: pol | C5: Socker | D5: Sukker | E5: Sugar | G5: % | H5: 1 | I5: 1 | J5: 7 | K5: 1 | R5: Engelska | S5: 5
A6: 9 | B6: sug | C6: Socker | D6: Sukker | E6: Sugar | G6: t/ha | H6: 1 | I6: 1 | J6: 7 | K6: 1
A7: 10 | B7: sugrel | C7: Socker | D7: Sukker | E7: Sugar | G7: relativ | H7: 1 | I7: 1 | J7: 7 | K7: 1
A8: 11 | B8: econ | C8: Ekonomi | D8: Økonomi (kr/ha) | E8: Economy | F8: Total income | G8: SEK/ha | H8: 1 | I8: 1 | J8: 12 | K8: 1
A9: 12 | B9: diffecon | C9: Ekonomi | D9: Økonomi (kr/ha) | E9: Economy | F9: Diff till gns. | G9: SEK/ha | H9: 1 | I9: 1 | J9: 12 | K9: 1
A10: 13 | B10: renpct | C10: Renhet | D10: Renhed | E10: Cleaness | G10: % | H10: 1 | I10: 100 | J10: 7 | K10: 1
A11: 14 | B11: rodfure | C11: Rotfåra | D11: Rodfure | E11: Groove | G11: Sc. 1-9 | H11: 1 | I11: 1 | J11: 8 | K11: 1
A12: 17 | B12: k100r | C12: K | D12: Na | E12: Na | G12: pr 100 g sukker | H12: 1 | I12: 1 | J12: 5 | K12: 0
A13: 18 | B13: na100r | C13: N | D13: K | E13: K | H13: 1 | I13: 1 | J13: 5 | K13: 0
A14: 19 | B14: kna | C14: K/N | H14: 1 | I14: 1 | J14: 5 | K14: 0
A15: 20 | B15: blaa | C15: Blåtal | D15: Amino-N | E15: Amino-N | H15: 1 | I15: 1 | J15: 8 | K15: 0
A16: 32 | B16: aph | C16: Aphanomyces | E16: Aphanomyces | F16: At factory | G16: Sc. 1-9 | H16: 1 | I16: 1 | J16: 13 | K16: 0
A17: 22 | B17: x | C17: IV-tal | D17: IV-tal | E17: IV-tal | H17: 1 | I17: 1 | J17: 8 | K17: 0
A18: 23 | B18: erlbolt | C18: Fröstockar | D18: Stok | E18: Bolters | F18: Early | G18: ‰ | H18: 1 | I18: 1 | J18: 8 | K18: 0
A19: 24 | B19: erlside | C19: Sidoskott | D19: Stok | E19: Lateral | F19: Early | G19: ‰ | H19: 1 | I19: 1 | J19: 8 | K19: 0
A20: 25 | B20: latebolt | C20: Fröstockar | D20: Stok | E20: Bolters | F20: Late | G20: ‰ | H20: 1 | I20: 1 | J20: 10 | K20: 0
A21: 26 | B21: lateside | C21: Sidoskott | D21: Stok | E21: Lateral | F21: Late | G21: ‰ | H21: 1 | I21: 1 | J21: 8 | K21: 0
A22: 27 | B22: bolters | C22: Fröstockar | D22: stock | E22: Bolters | F22: Sum | G22: ‰ | H22: 1 | I22: 1 | J22: 10 | K22: 0
A23: 28 | B23: hojde_gns | C23: Nackhöjd | D23: Højde | E23: Height | G23: mm | H23: 1 | I23: 1 | J23: 8 | K23: 1
A24: 29 | B24: hojde_s15 | C24: Nackhöjd sd | D24: Højde std | E24: Height std | G24: mm | H24: 1 | I24: 1 | J24: 11 | K24: 1
A25: 30 | B25: x | C25: Bladtäckning | D25: Bladdække | E25: Leafcover | G25: Sc. 1-100 | H25: 1 | I25: 1 | J25: 8 | K25: 1
A26: 31 | B26: x | C26: Friskhet | D26: Topfriskhed | E26: Leaf vigour | G26: Sc. 1-10 | H26: 1 | I26: 1 | J26: 8 | K26: 1
A27: 21 | B27: vaskbarhed | C27: Tvättbarhet | D27: Vaskbar | E27: Washability | G27: Sc. 1-9 | H27: 1 | I27: 1 | J27: 8 | K27: 1
A28: 33 | B28: grenethed | C28: Grenighet | D28: Grene | E28: Branching | G28: Sc. 1-9 | H28: 1 | I28: 1 | J28: 8 | K28: 0
A29: 34 | B29: glathed | C29: Ytans jämnhet | D29: Glathed | E29: Smoothness | G29: Sc. 1-4 | H29: 1 | I29: 1 | J29: 11 | K29: 1
A30: 35 | B30: x | J30: 8
A31: 36 | B31: mildew1 | C31: Mjöldagg | E31: Mildew | F31: Early | G31: Sc. 1-100 | H31: 1 | I31: 1 | J31: 8 | K31: 0
A32: 37 | B32: rust1 | C32: Rost | E32: Rust | F32: Early | G32: Sc. 1-100 | H32: 1 | I32: 1 | J32: 8 | K32: 0
A33: 38 | B33: ramularia1 | C33: Ramularia | E33: Ramularia | F33: Early | G33: Sc. 1-100 | H33: 1 | I33: 1 | J33: 9 | K33: 0
A34: 39 | B34: cercospora1 | C34: Cercospora | E34: Cercospora | F34: Early | G34: Sc. 1-100 | H34: 1 | I34: 1 | J34: 11 | K34: 0
A35: 40 | B35: mildew2 | C35: Mjöldagg | E35: Mildew | F35: Late | G35: Sc. 1-100 | H35: 1 | I35: 1 | J35: 8 | K35: 0
A36: 41 | B36: rust2 | C36: Rost | E36: Rust | F36: Late | G36: Sc. 1-100 | H36: 1 | I36: 1 | J36: 8 | K36: 0
A37: 42 | B37: ramularia2 | C37: Ramularia | E37: Ramularia | F37: Late | G37: Sc. 1-100 | H37: 1 | I37: 1 | J37: 9 | K37: 0
A38: 43 | B38: cercospora2 | C38: Cercospora | E38: Cercospora | F38: Late | G38: Sc. 1-100 | H38: 1 | I38: 1 | J38: 11 | K38: 0
A39: 44 | B39: dubl | C39: Dubletter | E39: Duplets | G39: 1000/ha | H39: 1 | I39: 1 | J39: 8 | K39: 0
A40: 45 | B40: pellar | C40: Pellar | E40: Sec.gen | G40: 1000/ha | H40: 1 | I40: 1 | J40: 8 | K40: 0
A41: 48 | B41: seedqual | C41: Luckor | E41: Nr of gaps | F41: per plot | G41: >50 cm | H41: 1 | I41: 1 | J41: 12 | K41: 0
A42: 46 | B42: Svampresistens | C42: Svampresistens | E42: untreated/treated | F42: Leaf diseases | G42: % | H42: 1 | J42: 14 | K42: 1
A43: 100 | B43: Type | J43: 8

Sheet Front page
AD2: 518-2009
B5: 102/2016
B6: Report
A17: Variety trials 2016, Sweden
A20: Aim: Testing of marketed and new varieties
A26: Rapport med försöksdata och resultattabeller från 2016.
A27: Report with trial data and tables of result from 2016.
A32: Denna publikation innehåller försöksdata och resultat i tabeller och figurer. Det kan förekomma
A33: mindre fel och inkonsekvenser i språk och layout. Alla sidor är inte alltid utskriftsvänliga.
A34: Vid frågor eller kommentarer är du alltid välkommen att kontakta författaren nedan.
A36: The appendix comprises documentations from the research project. Minor mistakes in language
A37: and lack of adjustments in layout may occur. Questions may be addressed to the project manager.
A41: Desirée Börjesdotter
A42: db@nbrf.nu
A43: (+46) 705 427 026
A45: NBR Nordic Beet Research Foundation (Fond)
A46: DK: Højbygårdvej 14, DK-4960 Holeby
A47: SE: Borgeby Slottsväg 11, SE-237 91 Bjärred
A48: Phone: +45 54 60 14 40 | B48: www.nordicbeet.nu

Sheet Information

Sheet Plan
A1: Variety trials SE | H1: 102-2016
A2: Syfte/aim:
A3: Att prova nya lovande betsorter vad gäller betkvalitet, renhet, sjukdomsresistens, avkastning och odlingssäkerhet.
A5: Compare new promising varieties for their beet quality and yield, level of resistance to diseases and growing characteristics
A8: Entry | B8: Variety-code | C8: Name | D8: Marketed | E8: Observation | F8: Breeders Reference | G8: Resistance | H8: Owner | I8: Years in SE -test
A9: 1 | B9: 21325 | C9: Orlena KWS | D9: * | F9: KWS3K408 | G9: RZAT | H9: KWS SAAT SE | I9: 4
A10: 2 | B10: 21201 | C10: Cartoon | D10: * | F10: HI1203 | G10: RZAT | H10: Syngenta | I10: 5
A11: 3 | B11: 21229 | C11: Pascalina KWS | D11: * | F11: KWS2K305 | G11: RZ | H11: KWS SAAT SE | I11: 5
A12: 5 | B12: 21323 | C12: Cantona KWS | D12: * | F12: KWS3K394 | G12: RZNT | H12: KWS SAAT SE | I12: 4
A13: 6 | B13: 20904 | C13: SY Muse | D13: * | F13: HI 0944 | G13: RZAT | H13: Syngenta | I13: 8
A14: 7 | B14: 21335 | C14: Kudu | D14: * | F14: SR-847 | G14: RZ | H14: SESvdH | I14: 4
A15: 8 | B15: 21326 | C15: Darnella KWS | D15: * | F15: KWS3K409 | G15: RZ | H15: KWS SAAT SE | I15: 4
A16: 9 | B16: 21347 | C16: Diesel | D16: * | F16: ST12303 | G16: RZ | H16: Strube | I16: 4
A17: 10 | B17: 21134 | C17: Lombok | D17: * | F17: SN-515 | G17: RZNT | H17: SESvdH | I17: 6
A18: 11 | B18: 21419 | C18: Dexter | F18: HI1412 | G18: RZNTAT | H18: Syngenta | I18: 3
A19: 12 | B19: 21401 | C19: Ragna KWS | E19: o | F19: KWS3K392 | G19: RZNT | H19: KWS SAAT SE | I19: 3
A20: 13 | B20: 21402 | C20: Daphna | E20: o | F20: KWS3K393 | G20: RZNT | H20: KWS SAAT SE | I20: 3
A21: 14 | B21: 21403 | C21: Smilla KWS | E21: o | F21: KWS4K444 | G21: RZ | H21: KWS SAAT SE | I21: 3
A22: 15 | B22: 21426 | C22: Kashmir | E22: o | F22: MA2179 | G22: RZAT | H22: Maribo Seed | I22: 3
A23: 16 | B23: 21432 | C23: Degas | F23: ST 12404 | G23: RZ | H23: Strube | I23: 3
A24: 17 | B24: 21434 | C24: Klimt | E24: o | F24: ST 12422 | G24: RZ | H24: Strube | I24: 3
A25: 18 | B25: 21435 | C25: Landon | F25: ST 12423 | G25: RZ | H25: Strube | I25: 3
A26: 19 | B26: 21451 | C26: Piculet | F26: SV1457 | G26: RZ | H26: SESvdH | I26: 3
A27: 20 | B27: 21515 | C27: Mustang | F27: HI1438 | G27: RZAT | H27: Syngenta | I27: 2
A28: 21 | B28: 21517 | C28: Maxine | F28: HI1443 | G28: RZNT | H28: Syngenta | I28: 2
A29: 22 | B29: 21519 | C29: Illusion | F29: HI1461 | G29: RZ | H29: Syngenta | I29: 2
A30: 23 | B30: 21532 | C30: Thyra KWS | F30: 5K550 | G30: RZ | H30: KWS SAAT SE | I30: 2
A31: 24 | B31: 21533 | C31: Farina KWS | F31: 5K562 | G31: RZ | H31: KWS SAAT SE | I31: 2
A32: 25 | B32: 21535 | C32: Fuga KWS | F32: 4K514 | G32: RZNT | H32: KWS SAAT SE | I32: 2
A33: 26 | B33: 21539 | C33: Selma KWS | F33: 5K576 | G33: RZAT | H33: KWS SAAT SE | I33: 2
A34: 27 | B34: 21543 | C34: Caporal | F34: MA2186 | G34: RZ | H34: Maribo Seed | I34: 2
A35: 28 | B35: 21544 | C35: Davinci | F35: MA2194 | G35: RZ | H35: Maribo Seed | I35: 2
A36: 29 | B36: 21547 | C36: Joker | F36: MA4059 | G36: RZNT | H36: Maribo Seed | I36: 2
A37: 30 | B37: 21520 | C37: Kahn | F37: ST12503 | G37: RZ | H37: STRUBE | I37: 2
A38: 31 | B38: 21521 | C38: Einar | F38: ST12522 | G38: RZ | H38: STRUBE | I38: 2
A39: 32 | B39: 21525 | C39: Curie | F39: ST12566 | G39: RZ | H39: STRUBE | I39: 2
A40: 33 | B40: 21527 | C40: Bazin | F40: ST15507 | G40: RZNT | H40: STRUBE | I40: 2
A41: 34 | B41: 21509 | C41: Bonola | F41: SV1627 | G41: RT | H41: SESvdH | I41: 2
A42: 35 | B42: 21508 | C42: Whisky | F42: SV1656 | G42: RT | H42: SESvdH | I42: 2
A43: 36 | B43: 21601 | C43: HI1427 | F43: HI 1427 | G43: RZAT | H43: Syngenta | I43: 1
A44: 37 | B44: 21602 | C44: HI1469 | F44: HI 1469 | G44: RZ | H44: Syngenta | I44: 1
A45: 38 | B45: 21603 | C45: HI1470 | F45: HI 1470 | G45: RZ | H45: Syngenta | I45: 1
A46: 39 | B46: 21604 | C46: HI1473 | F46: HI 1473 | G46: RZNT | H46: Syngenta | I46: 1
A47: 40 | B47: 21605 | C47: HI1474 | F47: HI 1474 | G47: RZNT | H47: Syngenta | I47: 1
A48: 41 | B48: 21606 | C48: HI1475 | F48: HI 1475 | G48: RZNT | H48: Syngenta | I48: 1
A49: 42 | B49: 21607 | C49: HI1476 | F49: HI 1476 | G49: RZNT | H49: Syngenta | I49: 1
A50: 43 | B50: 21608 | C50: HI1478 | F50: HI 1478 | G50: RZ | H50: Syngenta | I50: 1
A51: 44 | B51: 21609 | C51: HI1479 | F51: HI 1479 | G51: RZAT | H51: Syngenta | I51: 1
A52: 45 | B52: 21610 | C52: HI1482 | F52: HI 1482 | G52: RZATNT | H52: Syngenta | I52: 1
A53: 46 | B53: 21611 | C53: HI1483 | F53: HI 1483 | G53: RZ | H53: Syngenta | I53: 1
A54: 47 | B54: 21636 | C54: 6K649 | F54: 6K649 | G54: RZ | H54: KWS SAAT SE | I54: 1
A55: 48 | B55: 21637 | C55: 6K657 | F55: 6K657 | G55: RZ | H55: KWS SAAT SE | I55: 1
A56: 49 | B56: 21638 | C56: 6K659 | F56: 6K659 | G56: RZAT | H56: KWS SAAT SE | I56: 1
A57: 50 | B57: 21639 | C57: 6K660 | F57: 6K660 | G57: RZ | H57: KWS SAAT SE | I57: 1
A58: 51 | B58: 21640 | C58: 6K664 | F58: 6K664 | G58: RZNT | H58: KWS SAAT SE | I58: 1
A59: 52 | B59: 21641 | C59: 6K665 | F59: 6K665 | G59: RZNT | H59: KWS SAAT SE | I59: 1
A60: 53 | B60: 21647 | C60: 6K697 | F60: 6K697 | G60: RZNT | H60: KWS SAAT SE | I60: 1
A61: 54 | B61: 21644 | C61: 6K683 | F61: 6K683 | G61: RZNTAT | H61: KWS SAAT SE | I61: 1
A62: 55 | B62: 21645 | C62: 6K685 | F62: 6K685 | G62: RZAT | H62: KWS SAAT SE | I62: 1
A63: 56 | B63: 21646 | C63: 6K688 | F63: 6K688 | G63: RZ | H63: KWS SAAT SE | I63: 1
A64: 57 | B64: 21642 | C64: 6K670 | F64: 6K670 | G64: RZH | H64: KWS SAAT SE | I64: 1
A65: 58 | B65: 21630 | C65: MA2206 | F65: MA2206 | G65: RZ | H65: Maribo Seed | I65: 1
A66: 59 | B66: 21631 | C66: MA2209 | F66: MA2209 | G66: RZ | H66: Maribo Seed | I66: 1
A67: 60 | B67: 21632 | C67: MA2213 | F67: MA2213 | G67: RZ | H67: Maribo Seed | I67: 1
A68: 61 | B68: 21633 | C68: MA4073 | F68: MA4073 | G68: RZNT | H68: Maribo Seed | I68: 1
A69: 62 | B69: 21634 | C69: MA4074 | F69: MA4074 | G69: RZNT | H69: Maribo Seed | I69: 1
A70: 63 | B70: 21635 | C70: MA4079 | F70: MA4079 | G70: RZNT | H70: Maribo Seed | I70: 1
A71: 64 | B71: 21612 | C71: ST 12604 | F71: ST 12604 | G71: RZAT | H71: STRUBE | I71: 1
A72: 65 | B72: 21613 | C72: ST 12615 | F72: ST 12615 | G72: RZAT | H72: STRUBE | I72: 1
A73: 66 | B73: 21614 | C73: ST 12651 | F73: ST 12651 | G73: RZAT | H73: STRUBE | I73: 1
A74: 67 | B74: 21615 | C74: ST 12658 | F74: ST 12658 | G74: RZAT | H74: STRUBE | I74: 1
A75: 68 | B75: 21616 | C75: ST 12664 | F75: ST 12664 | G75: RZAT | H75: STRUBE | I75: 1
A76: 69 | B76: 21617 | C76: ST 12668 | F76: ST 12668 | G76: RZAT | H76: STRUBE | I76: 1
A77: 70 | B77: 21618 | C77: ST 12680 | F77: ST 12680 | G77: RZAT | H77: STRUBE | I77: 1
A78: 71 | B78: 21619 | C78: ST 12682 | F78: ST 12682 | G78: RZAT | H78: STRUBE | I78: 1
A79: 72 | B79: 21620 | C79: ST 15616 | F79: ST 15616 | G79: RZNTAT | H79: STRUBE | I79: 1
A80: 73 | B80: 21621 | C80: ST 15672 | F80: ST 15672 | G80: RZNTAT | H80: STRUBE | I80: 1
A81: 74 | B81: 21622 | C81: ST 15678 | F81: ST 15678 | G81: RZNTAT | H81: STRUBE | I81: 1
A82: 75 | B82: 21643 | C82: 6K674 | F82: 6K674 | G82: RZNTH | H82: KWS SAAT SE | I82: 1
A83: 76 | B83: 21623 | C83: SV1724 | F83: SV1724 | G83: RZNT | H83: SESvdH | I83: 1
A84: 77 | B84: 21624 | C84: SV1731 | F84: SV1731 | G84: RZNT | H84: SESvdH | I84: 1
A85: 78 | B85: 21625 | C85: SV1747 | F85: SV1747 | G85: RZ | H85: SESvdH | I85: 1
A86: 79 | B86: 21626 | C86: SV1757 | F86: SV1757 | G86: RZ | H86: SESvdH | I86: 1
A87: 80 | B87: 21627 | C87: SV1765 | F87: SV1765 | G87: RZ | H87: SESvdH | I87: 1
A88: 81 | B88: 21628 | C88: SV1771 | F88: SV1771 | G88: RZ | H88: SESvdH | I88: 1
A89: 82 | B89: 21629 | C89: SV1779 | F89: SV1779 | G89: RZ | H89: SESvdH | I89: 1
A90: 83 | B90: 21455 | C90: Nemata | F90: HI0817 | G90: NR RZ | H90: Syngenta

Sheet 3-year average all
A1: 1 | B1: 2 | C1: 3 | D1: 4 | E1: 5 | F1: 6 | G1: 7 | H1: 8 | I1: 9 | J1: 10 | M1: 13 | N1: 14 | O1: 19 | P1: 20 | Q1: 27 | R1: 28 | S1: 44 | ALN1: 1
E2: 1 | F2: 1 | G2: 1 | H2: 1 | I2: 1 | J2: 1 | M2: 1 | N2: 1 | O2: 1 | P2: 1 | Q2: 1 | R2: 1 | S2: 1
A3: Serial average 4 blocksqq | E3: Plant nr | F3: Plant nr | G3: Rot | H3: Socker | I3: Socker | J3: Socker | K3: Ekonomi | L3: Ekonomi | M3: Renhet | N3: Rotfåra | O3: K/N | P3: Blåtal | Q3: Fröstockar | R3: Nackhöjd | S3: Dubletter
A4: three year average | E4: Plant no | F4: Plant no | G4: Root | H4: Sugar | I4: Sugar | J4: Sugar | K4: Economy | L4: Economy | M4: Cleaness | N4: Groove | P4: Amino-N | Q4: Bolters | R4: Height | S4: Duplets
A5: Expl. | E5: 0.5 | F5: 1 | K5: Total income | L5: Diff till gns | Q5: Sum
A6: no trials
A7: Unit | E7: 1000/ha | F7: 1000/ha | G7: t/ha | H7: % | I7: t/ha | J7: relativ | K7: kr/ha | L7: kr/ha | M7: % | N7: Sc. 1-9 | Q7: ‰ | R7: mm | S7: 1000/ha
A8: Avg for * | E8: 54.59210379 | F8: 103.7934671 | G8: 85.89786551 | H8: 18.23787151 | I8: 15.67305973 | J8: 100 | K8: 24969.73357 | M8: 90.79630049 | N8: 5.809452963 | O8: 3.490223757 | P8: 10.5331131 | Q8: 0.3695301626 | R8: 6.2 | S8: 0.6331457201
A9: 1 | B9: * | D9: Orlena KWS | E9: 56.12503043 | F9: 104.5161087 | G9: 90.61536384 | H9: 18.07656885 | I9: 16.39164898 | J9: 104.5848689 | K9: 26040.61655 | L9: 1070.88298 | M9: 90.93376556 | N9: 5.580596649 | O9: 3.796286562 | P9: 11.08004969 | Q9: 0.8096356177 | R9: 5.696852729 | S9: 0.3496334877
A10: 2 | B10: * | D10: Cartoon | E10: 58.34532714 | F10: 105.5289485 | G10: 85.13076154 | H10: 17.99319672 | I10: 15.36894095 | J10: 98.05960811 | K10: 24436.2532 | L10: -533.4803758 | M10: 91.25360935 | N10: 5.838817584 | O10: 3.409676987 | P10: 10.85418827 | Q10: 3.955389754e-17 | R10: 6.698903109 | S10: 1.020769033
A11: 3 | B11: * | D11: Pascalina KWS | E11: 49.28579542 | F11: 102.8197556 | G11: 84.19690545 | H11: 18.61988448 | I11: 15.64715682 | J11: 99.83472972 | K11: 24952.97594 | L11: -16.75763011 | M11: 89.94116663 | N11: 5.466277135 | O11: 3.495548114 | P11: 9.828190311 | Q11: 0.1702069717 | R11: 5.702909958 | S11: 0.4782343107
A12: 5 | B12: * | D12: Cantona KWS | E12: 46.16292504 | F12: 104.0404813 | G12: 87.59360728 | H12: 18.4652458 | I12: 16.17588814 | J12: 103.2082338 | K12: 25901.55646 | L12: 931.8228844 | M12: 90.80025212 | N12: 5.674765697 | O12: 3.436359957 | P12: 10.27365467 | Q12: 0.2555879689 | R12: 5.803987509 | S12: 1.221707819
A13: 6 | B13: * | D13: SY Muse | E13: 41.39852191 | F13: 101.1661878 | G13: 85.05089869 | H13: 17.77352553 | I13: 15.12597092 | J13: 96.50936817 | K13: 23931.67917 | L13: -1038.054399 | M13: 91.15904217 | N13: 5.79822726 | O13: 3.427763127 | P13: 10.97214986 | Q13: 0.08510348584 | R13: 6.648897901 | S13: 0.9846000514
A14: 7 | B14: * | D14: Kudu | E14: 57.90874014 | F14: 102.7330449 | G14: 82.8474986 | H14: 18.67331292 | I14: 15.47634301 | J14: 98.74487354 | K14: 25215.83961 | L14: 246.1060391 | M14: 91.54222979 | N14: 6.01309262 | O14: 3.361347675 | P14: 10.37233285 | Q14: 0.9574142157 | R14: 7.04152296 | S14: 0.1085069444
A15: 8 | B15: * | D15: Darnella KWS | E15: 66.66611841 | F15: 104.182409 | G15: 89.90826075 | H15: 17.86725943 | I15: 16.06942483 | J15: 102.528958 | K15: 25373.20922 | L15: 403.4756442 | M15: 90.79147936 | N15: 5.635689261 | O15: 3.834071245 | P15: 11.1725441 | Q15: 0.2872242647 | R15: 5.955705692 | S15: 0.4300090021
A16: 9 | B16: * | D16: Diesel | E16: 59.06960857 | F16: 103.9974489 | G16: 84.41409674 | H16: 18.55088362 | I16: 15.67205612 | J16: 99.99359658 | K16: 24736.11487 | L16: -233.6187001 | M16: 89.81267012 | N16: 6.049543463 | O16: 3.190191719 | P16: 9.306159167 | Q16: 0.7605989389 | R16: 5.816101923 | S16: 0.5545910494
A17: 10 | B17: * | D17: Lombok | E17: 56.36686707 | F17: 105.1568187 | G17: 83.32339669 | H17: 18.12096628 | I17: 15.13010782 | J17: 96.53576315 | K17: 24139.35713 | L17: -830.3764427 | M17: 90.93248927 | N17: 6.228066997 | O17: 3.460768427 | P17: 10.93874896 | Q17: -6.196410233e-16 | R17: 6.477650041 | S17: 0.550259783
A18: 11 | D18: Dexter | E18: 77.61114212 | F18: 104.8485094 | G18: 85.98205538 | H18: 17.85038032 | I18: 15.36172882 | J18: 98.01359197 | K18: 24308.17714 | L18: -661.5564332 | M18: 91.0235201 | N18: 5.962567295 | O18: 3.361329343 | P18: 10.93523775 | Q18: -1.755518135e-16 | R18: 7.036802138 | S18: 0.6510416667
A19: 12 | C19: o | D19: Ragna KWS | E19: 52.59832889 | F19: 97.48544419 | G19: 90.211651 | H19: 17.89105598 | I19: 16.1138073 | J19: 102.8121348 | K19: 26045.20538 | L19: 1075.471809 | M19: 92.10085248 | N19: 5.936148726 | O19: 3.391151309 | P19: 10.99411378 | Q19: 0.2659483932 | R19: 7.454176098 | S19: 0.6269290123
A20: 13 | C20: o | D20: Daphna | E20: 62.23934692 | F20: 101.5599209 | G20: 94.06621133 | H20: 17.77635026 | I20: 16.72961943 | J20: 106.7412472 | K20: 26844.67876 | L20: 1874.945192 | M20: 91.94586971 | N20: 5.698499287 | O20: 3.710365945 | P20: 11.68107785 | Q20: 2.390627991 | R20: 6.58901603 | S20: 0.904224537
A21: 14 | C21: o | D21: Smilla KWS | E21: 54.53235024 | F21: 103.1263358 | G21: 89.22176215 | H21: 18.13088869 | I21: 16.19930143 | J21: 103.3576194 | K21: 26115.81917 | L21: 1146.085604 | M21: 91.64465891 | N21: 5.793656473 | O21: 3.974699976 | P21: 11.1293741 | Q21: 0.5744485294 | R21: 6.428573551 | S21: 0.4661779835
A22: 15 | C22: o | D22: Kashmir | E22: 72.37264299 | F22: 105.5022661 | G22: 87.9272862 | H22: 17.96110242 | I22: 15.81666138 | J22: 100.9162324 | K22: 25282.94177 | L22: 313.2081973 | M22: 91.41502242 | N22: 5.369755742 | O22: 3.347874094 | P22: 10.70814043 | Q22: 0.2659483932 | R22: 7.202296173 | S22: 2.081725823
A23: 16 | D23: Degas | E23: 68.03065761 | F23: 104.1332826 | G23: 85.07084168 | H23: 18.32090836 | I23: 15.62683531 | J23: 99.70507084 | K23: 25084.83128 | L23: 115.0977134 | M23: 91.11348544 | N23: 6.156404934 | O23: 3.406840498 | P23: 9.92241099 | Q23: 0.4680691721 | R23: 7.135999626 | S23: 1.373847185
A24: 17 | C24: o | D24: Klimt | E24: 59.96968909 | F24: 103.1998263 | G24: 87.27047369 | H24: 18.55310485 | I24: 16.23858764 | J24: 103.6082802 | K24: 26184.02086 | L24: 1214.287284 | M24: 91.08052806 | N24: 6.577634479 | O24: 3.094947717 | P24: 8.822320152 | Q24: 0.8510348584 | R24: 5.86402186 | S24: 0.8077739198
A25: 18 | D25: Landon | E25: 62.62177646 | F25: 105.1704241 | G25: 83.94600295 | H25: 18.69748895 | I25: 15.71550837 | J25: 100.2708382 | K25: 25508.21236 | L25: 538.478793 | M25: 91.2850627 | N25: 6.322189142 | O25: 3.118908217 | P25: 9.497059585 | Q25: 0.09574142157 | R25: 7.314788689 | S25: 0.4902906379
A26: 19 | D26: Piculet | E26: 57.52766331 | F26: 98.70854034 | G26: 82.97515828 | H26: 18.44390159 | I26: 15.33383784 | J26: 97.83563706 | K26: 24784.79988 | L26: -184.9336933 | M26: 91.25306544 | N26: 6.163925797 | O26: 3.193998484 | P26: 10.17819398 | Q26: 6.085431977e-16 | R26: 7.480018443 | S26: 0.1808449074
A27: LSD | E27: 7.822631338 | F27: 2.397645283 | G27: 2.097068107 | H27: 0.1877050507 | I27: 0.3814800595 | J27: 2.433985871 | M27: 0.5763583957 | N27: 0.2609790193 | O27: 0.1035229144 | P27: 0.8373337738 | Q27: 1.238880794 | R27: 0.5067342232 | S27: 0.6181153804
A28: CV | E28: 16.36971027 | F28: 2.859457664 | G28: 2.979012497 | H28: 1.268900095 | I28: 2.974220899 | J28: 3.036650559 | M28: 0.7786755939 | N28: 5.4416079 | O28: 3.698922659 | P28: 9.833780171 | Q28: 333.2304975 | R28: 5.176922717 | S28: 74.8761063
A29: PROB | E29: <0.001 | F29: <0.001 | G29: <0.001 | H29: <0.001 | I29: <0.001 | J29: <0.001 | M29: <0.001 | N29: <0.001 | O29: <0.001 | P29: <0.001 | Q29: <0.001 | R29: <0.001 | S29: <0.001

Sheet 3-year average treated
A1: 1 | B1: 2 | C1: 3 | D1: 4 | E1: 6 | F1: 7 | G1: 8 | H1: 9 | I1: 10 | J1: 11 | K1: 12 | L1: 13 | M1: 19 | N1: 20 | O1: 46 | P1: 36 | Q1: 37 | R1: 38 | S1: 39 | T1: 40 | U1: 41 | V1: 42 | W1: 43 | ALL1: 1 | ALN1: 1
O2: 1
A3: Serial average | E3: Plant nr | F3: Rot | G3: Socker | H3: Socker | I3: Socker | J3: Ekonomi | K3: Ekonomi | L3: Renhet | M3: K/N | N3: Blåtal | O3: Svampresistens | P3: Mjöldagg | Q3: Rost | R3: Ramularia | S3: Cercospora | T3: Mjöldagg | U3: Rost | V3: Ramularia | W3: Cercospora
A4: Three year avg. (treated) | E4: Plant no | F4: Root | G4: Sugar | H4: Sugar | I4: Sugar | J4: Economy | K4: Economy | L4: Cleaness | N4: Amino-N | O4: untreated/treated | P4: Mildew | Q4: Rust | R4: Ramularia | S4: Cercospora | T4: Mildew | U4: Rust | V4: Ramularia | W4: Cercospora
A5: Expl. | E5: 1 | J5: Total income | K5: Diff till gns. | O5: Leaf diseases | P5: Early | Q5: Early | R5: Early | S5: Early | T5: Late | U5: Late | V5: Late | W5: Late
A6: no trials
A7: Unit | E7: 1000/ha | F7: t/ha | G7: % | H7: t/ha | I7: relativ | J7: SEK/ha | K7: SEK/ha | L7: % | O7: % | P7: Sc. 1-100 | Q7: Sc. 1-100 | R7: Sc. 1-100 | S7: Sc. 1-100 | T7: Sc. 1-100 | U7: Sc. 1-100 | V7: Sc. 1-100 | W7: Sc. 1-100
A8: Avg for * | E8: 107.0145685 | F8: 89.59664299 | G8: 18.27800202 | H8: 16.39613856 | I8: 100 | J8: 26276.64817 | K8: 0 | L8: 91.16306308 | M8: 3.89839169 | N8: 9.268498291 | O8: 92.25865074 | P8: 0.4833333333 | Q8: 4.422222222 | R8: 0.2722222222 | S8: 0.25 | T8: 2.111111111 | U8: 8.777777778 | V8: 0.6740740741 | W8: 0.5592592593
A9: 1 | B9: * | D9: Orlena KWS | E9: 107.5397108 | F9: 93.79659903 | G9: 18.05456664 | H9: 16.95424141 | I9: =H9/$H$8*100 -> 103.4038676 | J9: 27048.62154 | K9: 771.9733691 | L9: 91.21098983 | M9: 4.319188012 | N9: 9.703175841 | O9: 94.17506104 | P9: 0.1 | Q9: 4.25 | R9: 0.5 | S9: 0.4 | T9: 0.7666666667 | U9: 8.666666667 | V9: 0.7333333333 | W9: 0.6666666667
A10: 2 | B10: * | D10: Cartoon | E10: 107.5289378 | F10: 89.42541689 | G10: 18.14091276 | H10: 16.23724524 | I10: 99.03091008 | J10: 26130.7176 | K10: -145.9305727 | L10: 91.59339377 | M10: 3.841616847 | N10: 9.041481796 | O10: 90.33329411 | P10: 0.8 | Q10: 5.55 | R10: 0.25 | S10: 0.25 | T10: 3.566666667 | U10: 10.3 | V10: 0.7666666667 | W10: 0.5666666667
A11: 3 | B11: * | D11: Pascalina KWS | E11: 105.658549 | F11: 88.75644208 | G11: 18.54791598 | H11: 16.44826548 | I11: 100.3179219 | J11: 26274.83462 | K11: -1.813551075 | L11: 90.44491269 | M11: 3.91219737 | N11: 9.047156597 | O11: 92.09122902 | P11: 0.45 | Q11: 5.15 | R11: 0.15 | S11: 0.45 | T11: 1.4 | U11: 10.53333333 | V11: 0.5666666667 | W11: 0.6333333333
A12: 5 | B12: * | D12: Cantona KWS | E12: 107.3762382 | F12: 91.68666215 | G12: 18.44482622 | H12: 16.92672662 | I12: 103.236055 | J12: 27249.4087 | K12: 972.7605259 | L12: 91.1897852 | M12: 3.782794288 | N12: 9.349770661 | O12: 92.80013382 | P12: 0.3 | Q12: 4.45 | R12: 0.2 | S12: 0.1 | T12: 0.9333333333 | U12: 8.766666667 | V12: 0.4666666667 | W12: 0.7
A13: 6 | B13: * | D13: SY Muse | E13: 105.394363 | F13: 88.14003286 | G13: 17.91092546 | H13: 15.90453063 | I13: 97.00168468 | J13: 25388.18576 | K13: -888.4624147 | L13: 91.62378637 | M13: 3.792030725 | N13: 9.090488653 | O13: 91.1687368 | P13: 0.6 | Q13: 6.5 | R13: 0.3 | S13: 0.3 | T13: 4.2 | U13: 10.4 | V13: 0.5 | W13: 0.4
A14: 7 | B14: * | D14: Kudu | E14: 106.3340978 | F14: 86.38176496 | G14: 18.78525236 | H14: 16.23912056 | I14: 99.04234767 | J14: 26579.32914 | K14: 302.6809691 | L14: 91.81697035 | M14: 3.786309075 | N14: 9.29397766 | O14: 91.00491748 | P14: 0.3 | Q14: 4.55 | R14: 0.15 | S14: 0.2 | T14: 1.9 | U14: 9.633333333 | V14: 0.7333333333 | W14: 1.033333333
A15: 8 | B15: * | D15: Darnella KWS | E15: 106.9867583 | F15: 93.24553161 | G15: 17.91544691 | H15: 16.80417796 | I15: 102.4886311 | J15: 26672.30171 | K15: 395.6535395 | L15: 91.21274018 | M15: 4.306245053 | N15: 9.921313725 | O15: 91.06646219 | P15: 0.3 | Q15: 4.85 | R15: 0.35 | S15: 0.35 | T15: 0.9333333333 | U15: 9 | V15: 0.8 | W15: 0.3666666667
A16: 9 | B16: * | D16: Diesel | E16: 107.8975171 | F16: 87.47356958 | G16: 18.57758247 | H16: 16.23803465 | I16: 99.03572472 | J16: 25763.85169 | K16: -512.7964819 | L16: 90.19175137 | M16: 3.492134388 | N16: 8.315608319 | O16: 95.03146278 | P16: 0.4 | Q16: 1.3 | R16: 0.4 | S16: 0.15 | T16: 1.6 | U16: 4.933333333 | V16: 0.7 | W16: 0.2333333333
A17: 10 | B17: * | D17: Lombok | E17: 108.4149442 | F17: 87.46376775 | G17: 18.12458939 | H17: 15.81290451 | I17: 96.44285727 | J17: 25382.58279 | K17: -894.0653834 | L17: 91.18323793 | M17: 3.853009449 | N17: 9.653511371 | O17: 92.6565594 | P17: 1.1 | Q17: 3.2 | R17: 0.15 | S17: 0.05 | T17: 3.7 | U17: 6.766666667 | V17: 0.8 | W17: 0.4333333333
A18: 11 | D18: Dexter | E18: 106.5373555 | F18: 89.36176091 | G18: 18.09164903 | H18: 16.12247231 | I18: 98.33091036 | J18: 25635.68117 | K18: -640.9670045 | L18: 90.97921923 | M18: 3.879031216 | N18: 9.487488997 | O18: 90.70517739 | P18: 0.4 | Q18: 7.1 | R18: 0.3 | S18: 1.6 | T18: 1.833333333 | U18: 11.76666667 | V18: 0.7 | W18: 2.133333333
A19: 12 | C19: o | D19: Ragna KWS | E19: 100.2061664 | F19: 93.24775011 | G19: 17.77556424 | H19: 16.57967541 | I19: 101.1193907 | J19: 26844.22512 | K19: 567.5769506 | L19: 92.57799978 | M19: 3.853137043 | N19: 10.14266366 | O19: 95.29170554 | P19: 0.2 | Q19: 4.9 | R19: 0.1 | S19: 0.2 | T19: 0.9 | U19: 9.733333333 | V19: 0.7 | W19: 1.233333333
A20: 13 | C20: o | D20: Daphna | E20: 106.0237189 | F20: 98.29968302 | G20: 17.77328384 | H20: 17.5526813 | I20: 107.0537507 | J20: 28200.27929 | K20: 1923.631119 | L20: 92.39094141 | M20: 4.021233561 | N20: 10.45166387 | O20: 92.10163428 | P20: 0.3 | Q20: 4 | R20: 0.3 | S20: 0.05 | T20: 1.433333333 | U20: 9.4 | V20: 0.7 | W20: 0.7666666667
A21: 14 | C21: o | D21: Smilla KWS | E21: 105.2831278 | F21: 92.50449125 | G21: 18.09469003 | H21: 16.71985787 | I21: 101.9743631 | J21: 26999.7753 | K21: 723.1271314 | L21: 91.97801915 | M21: 4.345856545 | N21: 9.99702876 | O21: 94.11480284 | P21: 0.2 | Q21: 6.15 | R21: 0.35 | S21: 2 | T21: 0.6 | U21: 8.433333333 | V21: 1.2 | W21: 3.733333333
A22: 15 | C22: o | D22: Kashmir | E22: 107.6858828 | F22: 91.28166825 | G22: 18.0108917 | H22: 16.42776968 | I22: 100.1929181 | J22: 26505.94098 | K22: 229.2928113 | L22: 91.69866289 | M22: 3.760942355 | N22: 9.586638764 | O22: 93.64804556 | P22: 0.4 | Q22: 3.9 | R22: 0.4 | S22: 0.35 | T22: 3.933333333 | U22: 8.366666667 | V22: 0.6 | W22: 0.3
A23: 16 | D23: Degas | E23: 106.0736517 | F23: 89.35200724 | G23: 18.33582252 | H23: 16.34798067 | I23: 99.70628513 | J23: 26391.89418 | K23: 115.2460127 | L23: 91.27669835 | M23: 3.674535839 | N23: 8.815956082 | O23: 91.45635165 | P23: 0.6 | Q23: 4.75 | R23: 0.25 | S23: 0.15 | T23: 4.1 | U23: 8.4 | V23: 0.7666666667 | W23: 0.5
A24: 17 | C24: o | D24: Klimt | E24: 105.7255052 | F24: 91.11351262 | G24: 18.56629292 | H24: 16.92756424 | I24: 103.2411636 | J24: 27473.72957 | K24: 1197.081399 | L24: 91.56204961 | M24: 3.628580511 | N24: 8.564159061 | O24: 93.1833451 | P24: 0.2 | Q24: 3.2 | R24: 0.3 | S24: 2.935985602e-16 | T24: 0.9 | U24: 6.566666667 | V24: 0.8 | W24: 0.1333333333
A25: 18 | D25: Landon | E25: 106.4972249 | F25: 87.76572636 | G25: 18.70142664 | H25: 16.41553195 | I25: 100.1182802 | J25: 26917.40289 | K25: 640.7547199 | L25: 91.64836449 | M25: 3.572972005 | N25: 8.438034776 | O25: 92.22679797 | P25: 0.3 | Q25: 1.8 | R25: 0.25 | S25: 2.935985602e-16 | T25: 1.466666667 | U25: 5.2 | V25: 0.4333333333 | W25: 0.4
A26: 19 | D26: Piculet | E26: 100.3620199 | F26: 86.87556864 | G26: 18.4548513 | H26: 16.00447934 | I26: 97.61127157 | J26: 25906.42031 | K26: -370.2278586 | L26: 91.3871033 | M26: 3.572719548 | N26: 9.033459936 | O26: 91.12424986 | P26: 0.3 | Q26: 4.15 | R26: 0.4 | S26: 0.2 | T26: 1.366666667 | U26: 9.133333333 | V26: 0.8 | W26: 0.2666666667
A27: LSD | E27: 3.715195392 | F27: 2.635631676 | G27: 0.2439694147 | H27: 0.5196012687 | L27: 0.8159325535 | M27: 0.2535567606 | N27: 0.9736596384 | O27: - | P27: 0.6162909358 | Q27: 3.442959025 | R27: - | S27: - | T27: 2.84605012 | U27: 2.938039553 | V27: - | W27: 1.828669971
A28: CV | E28: 3.467019702 | F28: 3.4834438 | G28: 1.59715282 | H28: 3.764410664 | L28: 1.023254546 | M28: 7.853088448 | N28: 12.46120905 | O28: 5.133590983 | P28: 144.2236029 | Q28: 73.24698105 | R28: 119.9128224 | S28: 420.4744928 | T28: 166.6532644 | U28: 39.18684246 | V28: 77.11836252 | W28: 262.406484
A29: PROB | E29: <0.001 | F29: <0.001 | G29: <0.001 | H29: <0.001 | L29: <0.001 | M29: <0.001 | N29: <0.001 | O29: ns | P29: <0.05 | Q29: <0.05 | R29: ns | S29: ns | T29: <0.05 | U29: <0.001 | V29: ns | W29: <0.05

Sheet 3-year average untreated
A1: 1 | B1: 2 | C1: 3 | D1: 4 | E1: 6 | F1: 7 | G1: 8 | H1: 9 | I1: 10 | J1: 13 | K1: 19 | L1: 20 | M1: 36 | N1: 37 | O1: 38 | P1: 39 | Q1: 40 | R1: 41 | S1: 42 | T1: 43 | ALL1: 1
E2: 1 | F2: 1 | G2: 1 | H2: 1 | I2: 1 | J2: 1 | K2: 1 | L2: 1 | M2: 1 | N2: 1 | O2: 1 | P2: 1 | Q2: 1 | R2: 1 | S2: 1 | T2: 1
A3: Serial average | E3: Plant nr | F3: Rot | G3: Socker | H3: Socker | I3: Socker | J3: Renhet | K3: K/N | L3: Blåtal | M3: Mjöldagg | N3: Rost | O3: Ramularia | P3: Cercospora | Q3: Mjöldagg | R3: Rost | S3: Ramularia | T3: Cercospora
A4: Three year avg. (untreated) | E4: Plant no | F4: Root | G4: Sugar | H4: Sugar | I4: Sugar | J4: Cleaness | L4: Amino-N | M4: Mildew | N4: Rust | O4: Ramularia | P4: Cercospora | Q4: Mildew | R4: Rust | S4: Ramularia | T4: Cercospora
A5: Expl. | E5: 1 | M5: Early | N5: Early | O5: Early | P5: Early | Q5: Late | R5: Late | S5: Late | T5: Late
A6: no trials
A7: Unit | E7: 1000/ha | F7: t/ha | G7: % | H7: t/ha | I7: relativ | J7: % | M7: Sc. 1-100 | N7: Sc. 1-100 | O7: Sc. 1-100 | P7: Sc. 1-100 | Q7: Sc. 1-100 | R7: Sc. 1-100 | S7: Sc. 1-100 | T7: Sc. 1-100
A8: Avg for * | E8: 106.2121717 | F8: 83.00584721 | G8: 18.19400902 | H8: 15.04569873 | I8: 100 | J8: 90.55267832 | K8: 3.484229998 | L8: 11.86283187 | M8: 31.99444444 | N8: 12.85 | O8: 0.6833333333 | P8: 0.3 | Q8: 40.87777778 | R8: 21.28518519 | S8: 6.288888889 | T8: 1.43224918
A9: 1 | B9: * | D9: Orlena KWS | E9: 106.080088 | F9: 88.2832812 | G9: 18.05836045 | H9: 15.91033161 | I9: =H9/$H$8*100 -> 105.7467114 | J9: 90.73411461 | K9: 3.807047288 | L9: 12.4282595 | M9: 23.85 | N9: 12.35 | O9: 1.5 | P9: 0.65 | Q9: 32.13333333 | R9: 19.63333333 | S9: 9.3 | T9: 1.766666667
A10: 2 | B10: * | D10: Cartoon | E10: 108.2837251 | F10: 82.15441586 | G10: 17.85574541 | H10: 14.58337526 | I10: 96.92720507 | J10: 91.31222934 | K10: 3.360678911 | L10: 12.69597136 | M10: 37.35 | N10: 13.9 | O10: 0.55 | P10: 0.15 | Q10: 46.3 | R10: 24.66666667 | S10: 5.3 | T10: 0.8333333333
A11: 3 | B11: * | D11: Pascalina KWS | E11: 105.7023301 | F11: 80.90576617 | G11: 18.69916948 | H11: 15.02401558 | I11: 99.85588474 | J11: 89.5532287 | K11: 3.455721013 | L11: 10.60934411 | M11: 24.45 | N11: 13.2 | O11: 0.25 | P11: 0.55 | Q11: 30 | R11: 19.83333333 | S11: 5 | T11: 2.433333333
A12: 5 | B12: * | D12: Cantona KWS | E12: 108.0963725 | F12: 84.55577531 | G12: 18.47804703 | H12: 15.58914623 | I12: 103.6119792 | J12: 90.17065907 | K12: 3.465537654 | L12: 10.96784885 | M12: 23 | N12: 10.85 | O12: 0.3 | P12: 0.25 | Q12: 33.7 | R12: 18.73333333 | S12: 2 | T12: 1.133333333
A13: 6 | B13: * | D13: SY Muse | E13: 103.7087602 | F13: 82.17674349 | G13: 17.62986409 | H13: 14.44833931 | I13: 96.02969976 | J13: 90.9478601 | K13: 3.398460118 | L13: 12.86606336 | M13: 32.25 | N13: 14.75 | O13: 0.55 | P13: 0.3 | Q13: 44.1 | R13: 22.46666667 | S13: 6.4 | T13: 0.9666666667
A14: 7 | B14: * | D14: Kudu | E14: 103.8527308 | F14: 79.56951794 | G14: 18.54904577 | H14: 14.73538666 | I14: 97.93753638 | J14: 91.38717104 | K14: 3.353114362 | L14: 11.76433632 | M14: 31.6 | N14: 15.4 | O14: 0.5 | P14: 0.1 | Q14: 43.46666667 | R14: 23.96666667 | S14: 7.066666667 | T14: 1.65690929
A15: 8 | B15: * | D15: Darnella KWS | E15: 107.6169659 | F15: 85.89063444 | G15: 17.80663637 | H15: 15.25177925 | I15: 101.3696973 | J15: 90.6595187 | K15: 3.832242443 | L15: 12.50481184 | M15: 24.8 | N15: 15.25 | O15: 0.8 | P15: 0.35 | Q15: 35.13333333 | R15: 26.16666667 | S15: 7.7 | T15: 1.6
A16: 9 | B16: * | D16: Diesel | E16: 107.0179468 | F16: 82.88200161 | G16: 18.50654278 | H16: 15.32094088 | I16: 101.8293743 | J16: 89.36005492 | K16: 3.184796231 | L16: 10.28632705 | M16: 40.4 | N16: 8.8 | O16: 0.75 | P16: -5.461736207e-16 | Q16: 50.1 | R16: 15 | S16: 6.6 | T16: 1.066666667
A17: 10 | B17: * | D17: Lombok | E17: 105.550626 | F17: 80.63448886 | G17: 18.16266983 | H17: 14.54797376 | I17: 96.69191188 | J17: 90.84926842 | K17: 3.500471958 | L17: 12.64252443 | M17: 50.25 | N17: 11.15 | O17: 0.95 | P17: 0.35 | Q17: 52.96666667 | R17: 21.1 | S17: 7.233333333 | T17: 1.433333333
A18: 11 | D18: Dexter | E18: 108.983057 | F18: 82.89198006 | G18: 17.62094081 | H18: 14.57623372 | I18: 96.87973941 | J18: 90.97468435 | K18: 3.332520923 | L18: 12.58003907 | M18: 31.95 | N18: 16.85 | O18: 0.95 | P18: 0.05 | Q18: 43.2 | R18: 28.03333333 | S18: 7 | T18: 3.766666667
A19: 12 | C19: o | D19: Ragna KWS | E19: 101.4435981 | F19: 87.1335291 | G19: 17.94710223 | H19: 15.6393211 | I19: 103.9454623 | J19: 91.8822846 | K19: 3.393923907 | L19: 11.9136971 | M19: 18.3 | N19: 11.3 | O19: 0.6 | P19: 0.3 | Q19: 35.86666667 | R19: 20.53333333 | S19: 4.166666667 | T19: 1.933333333
A20: 13 | C20: o | D20: Daphna | E20: 105.980043 | F20: 90.74266513 | G20: 17.72626686 | H20: 16.05592166 | I20: 106.7143637 | J20: 91.48042038 | K20: 3.732702451 | L20: 13.0816748 | M20: 30.75 | N20: 10.05 | O20: 0.6 | P20: 0.45 | Q20: 36.3 | R20: 18.8 | S20: 5.966666667 | T20: 1.933333333
A21: 14 | C21: o | D21: Smilla KWS | E21: 106.833605 | F21: 86.87123147 | G21: 18.17722432 | H21: 15.72139001 | I21: 104.4909266 | J21: 91.31714446 | K21: 3.955443067 | L21: 12.37934408 | M21: 22.3 | N21: 11.4 | O21: 0.7 | P21: 0.7 | Q21: 34.96666667 | R21: 18.13333333 | S21: 4.7 | T21: 1.8
A22: 15 | C22: o | D22: Kashmir | E22: 109.6908472 | F22: 85.77866965 | G22: 17.95396726 | H22: 15.33461327 | I22: 101.9202468 | J22: 91.19694949 | K22: 3.329285685 | L22: 11.82488042 | M22: 35.9 | N22: 11.1 | O22: 0.95 | P22: 0.3 | Q22: 48.36666667 | R22: 22.06666667 | S22: 6.166666667 | T22: 1.233333333
A23: 16 | D23: Degas | E23: 110.081792 | F23: 81.68760722 | G23: 18.32101484 | H23: 14.86291895 | I23: 98.78516924 | J23: 90.99758964 | K23: 3.425516749 | L23: 11.14842567 | M23: 48.3 | N23: 11.85 | O23: 0.75 | P23: 0.3 | Q23: 51.6 | R23: 20.36666667 | S23: 4.066666667 | T23: 0.9666666667
A24: 17 | C24: o | D24: Klimt | E24: 106.0251991 | F24: 85.30043792 | G24: 18.52538719 | H24: 15.71137457 | I24: 104.4243598 | J24: 90.7511126 | K24: 3.033668464 | L24: 9.050328837 | M24: 35.9 | N24: 10.2 | O24: 0.8 | P24: 0.05 | Q24: 48.03333333 | R24: 18.66666667 | S24: 5.866666667 | T24: 1.333333333
A25: 18 | D25: Landon | E25: 108.443067 | F25: 80.89596273 | G25: 18.6178714 | H25: 15.0290662 | I25: 99.88945327 | J25: 91.13407126 | K25: 3.094990579 | L25: 10.58319104 | M25: 44.6 | N25: 9 | O25: 0.55 | P25: 0.3 | Q25: 49.5 | R25: 18 | S25: 5.366666667 | T25: 1.966666667
A26: 19 | D26: Piculet | E26: 101.7722988 | F26: 79.43554757 | G26: 18.38032814 | H26: 14.54855085 | I26: 96.6957475 | J26: 91.41490992 | K26: 3.151380417 | L26: 11.398646 | M26: 32.45 | N26: 10.95 | O26: 0.55 | P26: 0.05 | Q26: 42.96666667 | R26: 22.2 | S26: 6.966666667 | T26: 1.233333333
A27: LSD | E27: 4.174362274 | F27: 2.769735395 | G27: 0.2640170498 | H27: 0.5293689823 | J27: 0.752221931 | K27: 0.1428690221 | L27: 1.37352488 | M27: 14.23362878 | N27: 3.873908108 | O27: 0.5948545131 | P27: - | Q27: 8.538660835 | R27: 4.760396422 | S27: 3.490997914 | T27: -
A28: CV | E28: 3.879979634 | F28: 3.94809783 | G28: 1.735214963 | H28: 4.169273121 | J28: 0.986371578 | K28: 4.968066905 | L28: 14.00907801 | M28: 41.04228557 | N28: 30.10126072 | O28: 80.09931144 | P28: 174.2918645 | Q28: 23.41676569 | R28: 26.17806142 | S28: 67.96957543 | T28: 173.3110454
A29: PROB | E29: <0.001 | F29: <0.001 | G29: <0.001 | H29: <0.001 | J29: <0.001 | K29: <0.001 | L29: <0.001 | M29: <0.001 | N29: <0.001 | O29: <0.05 | P29: ns | Q29: <0.001 | R29: <0.001 | S29: <0.05 | T29: ns

Sheet 2-year average all
A1: 1 | B1: 2 | C1: 3 | D1: 4 | E1: 5 | F1: 6 | G1: 7 | H1: 8 | I1: 9 | J1: 10 | K1: 11 | L1: 12 | M1: 13 | N1: 14 | O1: 19 | P1: 20 | Q1: 27 | R1: 28 | S1: 44 | ALL1: 1
E2: 1 | F2: 1 | G2: 1 | H2: 1 | I2: 1 | J2: 1 | M2: 1 | N2: 1 | O2: 1 | P2: 1 | Q2: 1 | R2: 1 | S2: 1
A3: Serial average 4 blocks | E3: Plant nr | F3: Plant nr | G3: Rot | H3: Socker | I3: Socker | J3: Socker | K3: Ekonomi | L3: Ekonomi | M3: Renhet | N3: Rotfåra | O3: K/N | P3: Blåtal | Q3: Fröstockar | R3: Nackhöjd | S3: Dubletter
A4: Two year average | E4: Plant no | F4: Plant no | G4: Root | H4: Sugar | I4: Sugar | J4: Sugar | K4: Economy | L4: Economy | M4: Cleaness | N4: Groove | P4: Amino-N | Q4: Bolters | R4: Height | S4: Duplets
A5: Expl. | E5: 0.5 | F5: 1 | K5: Total income | L5: Diff till gns. | Q5: Sum
A6: no trials
A7: Unit | E7: 1000/ha | F7: 1000/ha | G7: t/ha | H7: % | I7: t/ha | J7: relativ | K7: SEK/ha | L7: SEK/ha | M7: % | N7: Sc. 1-9 | Q7: ‰ | R7: mm | S7: 1000/ha
A8: Avg for * | E8: 53.08711774 | F8: 107.8487522 | G8: 85.69366355 | H8: 18.56891698 | I8: 15.88156985 | J8: 100 | K8: 25577.59253 | L8: 3.637978807e-12 | M8: 90.89734707 | N8: 5.810752847 | O8: 3.368578636 | P8: 11.09304467 | Q8: 0.4833133065 | R8: 5.9 | S8: 0.6764418311
A9: 1 | B9: * | D9: Orlena KWS | E9: 53.43092845 | F9: 108.2819472 | G9: 90.78328377 | H9: 18.45951216 | I9: 16.73200927 | J9: 105.3548826 | K9: 27026.31498 | L9: 1448.722448 | M9: 91.21550916 | N9: 5.599587617 | O9: 3.654302968 | P9: 11.7628614 | Q9: 1.146983792 | R9: 5.525957165 | S9: 0.3797743056
A10: 2 | B10: * | D10: Cartoon | E10: 56.22324014 | F10: 109.2781191 | G10: 85.64431648 | H10: 18.20246747 | I10: 15.58474151 | J10: 98.13098865 | K10: 25054.24868 | L10: -523.3438565 | M10: 91.14870052 | N10: 5.868149392 | O10: 3.267820672 | P10: 11.47896587 | Q10: -2.040104264e-16 | R10: 6.082396952 | S10: 1.193576389
A11: 3 | B11: * | D11: Pascalina KWS | E11: 48.19275548 | F11: 106.4884685 | G11: 83.63488192 | H11: 18.98378614 | I11: 15.81913563 | J11: 99.60687623 | K11: 25455.04098 | L11: -122.551554 | M11: 90.22186973 | N11: 5.431490086 | O11: 3.391584481 | P11: 10.39889176 | Q11: -2.040104264e-16 | R11: 5.437626237 | S11: 0.3797743056
A12: 5 | B12: * | D12: Cantona KWS | E12: 43.88821524 | F12: 109.2590353 | G12: 86.64755012 | H12: 18.81521023 | I12: 16.28137144 | J12: 102.5173933 | K12: 26386.57081 | L12: 808.9782811 | M12: 90.76553269 | N12: 5.610013961 | O12: 3.285500056 | P12: 10.76174768 | Q12: 0.3620829559 | R12: 5.469296215 | S12: 1.302083333
A13: 6 | B13: * | D13: SY Muse | E13: 36.47830384 | F13: 105.2862068 | G13: 84.73219475 | H13: 18.08893063 | I13: 15.30997553 | J13: 96.40089532 | K13: 24392.30522 | L13: -1185.28731 | M13: 91.15116953 | N13: 5.865758591 | O13: 3.318491282 | P13: 11.48168124 | Q13: 1.803417848e-17 | R13: 6.263352704 | S13: 1.139322917
A14: 7 | B14: * | D14: Kudu | E14: 57.29811295 | F14: 106.3533659 | G14: 82.45061496 | H14: 18.98773208 | I14: 15.6410904 | J14: 98.48579543 | K14: 25589.30219 | L14: 11.7096579 | M14: 91.43323641 | N14: 5.927534372 | O14: 3.239707542 | P14: 10.84009646 | Q14: 1.356336806 | R14: 6.513489757 | S14: 0.1627604167
A15: 8 | B15: * | D15: Darnella KWS | E15: 70.50157937 | F15: 108.9816133 | G15: 90.17661734 | H15: 18.25619129 | I15: 16.41354871 | J15: 103.3496616 | K15: 26289.94396 | L15: 712.3514268 | M15: 90.94522205 | N15: 5.586839963 | O15: 3.676914686 | P15: 11.66220945 | Q15: 0.4069010417 | R15: 5.608002642 | S15: 0.5967881944
A16: 9 | B16: * | D16: Diesel | E16: 57.49363241 | F16: 108.1359151 | G16: 83.79200424 | H16: 18.8598906 | I16: 15.79187522 | J16: 99.43522814 | K16: 25181.81025 | L16: -395.7822792 | M16: 89.95396357 | N16: 6.099140067 | O16: 3.12724589 | P16: 9.873503012 | Q16: 1.077515164 | R16: 5.570134409 | S16: 0.5425347222
A17: 10 | B17: * | D17: Lombok | E17: 54.27729174 | F17: 108.5740989 | G17: 83.38150833 | H17: 18.4665322 | I17: 15.36038098 | J17: 96.71827865 | K17: 24822.79572 | L17: -754.7968143 | M17: 91.24091994 | N17: 6.308261572 | O17: 3.355640143 | P17: 11.57744513 | Q17: -9.811665437e-16 | R17: 6.252654106 | S17: 0.3913618967
A18: 11 | D18: Dexter | E18: 82.52197897 | F18: 109.2639892 | G18: 85.44118948 | H18: 18.24834175 | I18: 15.58927564 | J18: 98.15953825 | K18: 24952.10564 | L18: -625.4868923 | M18: 91.07245918 | N18: 5.999577597 | O18: 3.261958445 | P18: 11.47605599 | Q18: -2.040104264e-16 | R18: 6.690177512 | S18: 0.5425347222
A19: 12 | C19: o | D19: Ragna KWS | E19: 54.83915132 | F19: 102.0540022 | G19: 90.56451583 | H19: 18.28919302 | I19: 16.52230271 | J19: 104.0344428 | K19: 27036.98286 | L19: 1459.390332 | M19: 92.39731731 | N19: 5.928133293 | O19: 3.220377189 | P19: 11.39076767 | Q19: 0.1356336806 | R19: 7.107551472 | S19: 0.6510416667
A20: 13 | C20: o | D20: Daphna | E20: 65.22187607 | F20: 106.966229 | G20: 94.17501546 | H20: 18.17538371 | I20: 17.08869799 | J20: 107.6008112 | K20: 27801.10779 | L20: 2223.515257 | M20: 92.11164285 | N20: 5.657446077 | O20: 3.575010909 | P20: 12.28275003 | Q20: 3.386722987 | R20: 6.242391404 | S20: 0.9223090278
A21: 14 | C21: o | D21: Smilla KWS | E21: 52.40670402 | F21: 107.5024383 | G21: 89.0548874 | H21: 18.56570301 | I21: 16.49308325 | J21: 103.8504594 | K21: 26897.5136 | L21: 1319.921071 | M21: 91.67313589 | N21: 5.714329112 | O21: 3.810610925 | P21: 11.40202941 | Q21: 0.8138020833 | R21: 6.081948925 | S21: 0.2170138889
A22: 15 | C22: o | D22: Kashmir | E22: 74.80126819 | F22: 109.5100424 | G22: 88.59657432 | H22: 18.21524474 | I22: 16.10908111 | J22: 101.4325489 | K22: 26095.09052 | L22: 517.4979848 | M22: 91.54002067 | N22: 5.374512221 | O22: 3.255598778 | P22: 11.48326579 | Q22: 0.1356336806 | R22: 6.855671546 | S22: 2.061631944
A23: 16 | D23: Degas | E23: 69.50358933 | F23: 108.8433789 | G23: 85.39981251 | H23: 18.63457464 | I23: 15.87876886 | J23: 99.98236326 | K23: 25907.27361 | L23: 329.681077 | M23: 91.40875675 | N23: 6.222153764 | O23: 3.262424934 | P23: 10.277653 | Q23: 0.5425347222 | R23: 6.789375 | S23: 0.9515886795
A24: 17 | C24: o | D24: Klimt | E24: 60.15540735 | F24: 107.2467028 | G24: 87.54692263 | H24: 18.83442655 | I24: 16.47142146 | J24: 103.7140636 | K24: 26835.54842 | L24: 1257.955884 | M24: 91.14104734 | N24: 6.605599868 | O24: 3.043084537 | P24: 9.471454386 | Q24: -3.150327289e-16 | R24: 5.517397234 | S24: 0.9223090278
A25: 18 | D25: Landon | E25: 61.16287632 | F25: 109.2062699 | G25: 83.92596483 | H25: 19.01220787 | I25: 15.93682085 | J25: 100.3478938 | K25: 26284.83016 | L25: 707.2376304 | M25: 91.52276081 | N25: 6.400686504 | O25: 3.072794524 | P25: 10.08821085 | Q25: 0.1356336806 | R25: 6.968164062 | S25: 0.5425347222
A26: 19 | D26: Piculet | E26: 55.47009304 | F26: 101.8553331 | G26: 82.75505934 | H26: 18.80675733 | I26: 15.54071521 | J26: 97.85377232 | K26: 25408.08757 | L26: -169.50496 | M26: 91.27833711 | N26: 6.144428459 | O26: 3.131905792 | P26: 10.5570747 | Q26: -2.040104264e-16 | R26: 7.133393817 | S26: 0.2712673611
A27: 20 | D27: Mustang | E27: 73.53817781 | F27: 109.0979313 | G27: 84.78879391 | H27: 18.65966519 | I27: 15.80605731 | J27: 99.5245272 | K27: 25806.70103 | L27: 229.1085019 | M27: 91.61320284 | N27: 5.637921138 | O27: 3.252940813 | P27: 10.75366779 | Q27: 0.2777777778 | R27: 6.142339231 | S27: 1.168994999
A28: 21 | D28: Maxine | E28: 71.30434893 | F28: 110.3570444 | G28: 83.83639719 | H28: 18.68357135 | I28: 15.63053261 | J28: 98.4193172 | K28: 25349.15246 | L28: -228.4400681 | M28: 91.29762271 | N28: 5.862345265 | O28: 3.354161468 | P28: 11.15109203 | Q28: 0.6739950588 | R28: 6.404839231 | S28: 0.3797743056
A29: 22 | D29: Illusion | E29: 74.01855688 | F29: 110.814913 | G29: 90.83025207 | H29: 18.44114827 | I29: 16.70973943 | J29: 105.2146581 | K29: 26722.39163 | L29: 1144.799094 | M29: 90.54542235 | N29: 5.426157054 | O29: 3.610228367 | P29: 11.65129862 | Q29: 0.5425347222 | R29: 5.692339231 | S29: 1.030815972
A30: 23 | D30: Thyra KWS | E30: 41.99647713 | F30: 93.86953694 | G30: 80.27981825 | H30: 19.80074951 | I30: 15.88677136 | J30: 100.0327518 | K30: 26921.27467 | L30: 1343.682143 | M30: 92.20438211 | N30: 5.834909374 | O30: 3.654316537 | P30: 12.33943532 | Q30: 0.1356336806 | R30: 6.617339231 | S30: 0.6510416667
A31: 24 | D31: Farina KWS | E31: 58.38927367 | F31: 108.6726679 | G31: 89.24377454 | H31: 18.58703391 | I31: 16.56593861 | J31: 104.309201 | K31: 26776.0762 | L31: 1198.48367 | M31: 91.20951038 | N31: 5.419557326 | O31: 3.645000562 | P31: 12.43776598 | Q31: -1.203211149e-15 | R31: 5.779839231 | S31: 0.2712673611
A32: 25 | D32: Fuga KWS | E32: 65.52110566 | F32: 108.4738996 | G32: 83.09404427 | H32: 19.32089274 | I32: 16.01749845 | J32: 100.8558889 | K32: 25608.3629 | L32: 30.7703733 | M32: 89.14908467 | N32: 5.323140826 | O32: 3.172498489 | P32: 10.51841611 | Q32: 1.071003729 | R32: 5.454839231 | S32: 1.139322917
A33: 26 | D33: Selma KWS | E33: 49.67592756 | F33: 101.4408187 | G33: 87.50956874 | H33: 19.00038947 | I33: 16.56450041 | J33: 104.3001452 | K33: 27319.67195 | L33: 1742.079415 | M33: 91.37164453 | N33: 5.525907594 | O33: 3.207770936 | P33: 11.08618873 | Q33: 0.248015873 | R33: 7.029839231 | S33: 0.7052951389
A34: 27 | D34: Caporal | E34: 64.86016584 | F34: 105.1913578 | G34: 85.69826214 | H34: 18.4245315 | I34: 15.74484028 | J34: 99.13906767 | K34: 26155.23365 | L34: 577.6411141 | M34: 92.76908247 | N34: 6.0220856 | O34: 3.270193845 | P34: 10.49540536 | Q34: 0.1356336806 | R34: 7.167339231 | S34: 1.030815972
A35: 28 | D35: Davinci | E35: 73.55357717 | F35: 107.1578873 | G35: 84.85812304 | H35: 18.77096183 | I35: 15.93871408 | J35: 100.3598147 | K35: 25940.79427 | L35: 363.2017401 | M35: 91.42514823 | N35: 6.017720495 | O35: 3.417490377 | P35: 11.19726155 | Q35: -1.092188846e-15 | R35: 6.279839231 | S35: 1.193576389
A36: 29 | D36: Joker | E36: 51.25988228 | F36: 107.5952998 | G36: 84.18248578 | H36: 18.57566345 | I36: 15.61587121 | J36: 98.32700015 | K36: 25678.43505 | L36: 100.842516 | M36: 92.2170618 | N36: 5.666544995 | O36: 3.240722924 | P36: 9.839161452 | Q36: 0.2712673611 | R36: 6.742339231 | S36: 1.193576389
A37: 30 | D37: Kahn | E37: 70.58434147 | F37: 108.9620697 | G37: 83.81668837 | H37: 18.74801778 | I37: 15.63741863 | J37: 98.46267578 | K37: 25370.98173 | L37: -206.6108059 | M37: 90.88771319 | N37: 6.219006913 | O37: 3.404157097 | P37: 10.72303922 | Q37: 1.052517361 | R37: 6.404839231 | S37: 0.6510416667
A38: 31 | D38: Einar | E38: 41.56709459 | F38: 103.7045273 | G38: 84.15134032 | H38: 19.01265762 | I38: 15.9415639 | J38: 100.3777589 | K38: 26271.26432 | L38: 693.6717934 | M38: 91.36619128 | N38: 6.703511757 | O38: 3.070707905 | P38: 9.647827374 | Q38: 0.5349804413 | R38: 5.779839231 | S38: 1.20516398
A39: 32 | D39: Curie | E39: 67.04784732 | F39: 104.5672705 | G39: 84.2078792 | H39: 18.57429118 | I39: 15.59234206 | J39: 98.17884629 | K39: 25770.38876 | L39: 192.7962274 | M39: 92.41137881 | N39: 6.64680798 | O39: 3.111427779 | P39: 10.12693778 | Q39: 0.5967881944 | R39: 6.142339231 | S39: 1.085069444
A40: 33 | D40: Bazin | E40: 71.50552422 | F40: 103.9877258 | G40: 86.34696461 | H40: 18.13557232 | I40: 15.6436005 | J40: 98.50160058 | K40: 24842.61148 | L40: -734.9810549 | M40: 90.60087733 | N40: 6.073839596 | O40: 3.732219106 | P40: 11.22299952 | Q40: 1.731727488 | R40: 5.542339231 | S40: 2.387152778
A41: 34 | D41: Bonola | E41: 57.22441734 | F41: 103.9669832 | G41: 84.2778607 | H41: 18.49858475 | I41: 15.54047736 | J41: 97.85227468 | K41: 25384.61363 | L41: -192.9789047 | M41: 91.96004574 | N41: 6.4173861 | O41: 3.325459428 | P41: 11.18903691 | Q41: 0.8138020833 | R41: 7.117339231 | S41: 0.8138020833
A42: 35 | D42: Whisky | E42: 57.87311609 | F42: 106.3439526 | G42: 84.39985387 | H42: 18.99046314 | I42: 16.0139391 | J42: 100.8334771 | K42: 26405.26594 | L42: 827.6734108 | M42: 91.94096765 | N42: 6.003745964 | O42: 3.273050243 | P42: 11.32955787 | Q42: 4.458926277e-15 | R42: 6.679839231 | S42: 0.5967881944
A43: LSD | E43: 10.97278292 | F43: 3.185256502 | G43: 2.336600711 | H43: 0.2164245138 | I43: 0.4347485476 | M43: 0.9058061596 | N43: 0.3701925162 | O43: 0.1022806849 | P43: 1.072874885 | Q43: 1.504794099 | R43: 0.5417863225 | S43: 0.9507252049
A44: CV | E44: 18.88845858 | F44: 3.089422722 | G44: 2.815033164 | H44: 1.200731842 | I44: 2.814638117 | M44: 0.9810305859 | N44: 6.474934561 | O44: 3.165002147 | P44: 10.09301595 | Q44: 301.0500637 | R44: 4.282031773 | S44: 82.33002087
A45: PROB | E45: <0.001 | F45: <0.001 | G45: <0.001 | H45: <0.001 | I45: <0.001 | M45: <0.001 | N45: <0.001 | O45: <0.001 | P45: <0.001 | Q45: <0.001 | R45: <0.001 | S45: <0.001

Sheet 2-year average treated
A1: 1 | B1: 2 | C1: 3 | D1: 4 | E1: 6 | F1: 7 | G1: 8 | H1: 9 | I1: 10 | J1: 11 | K1: 12 | L1: 13 | M1: 19 | N1: 20 | O1: 28 | P1: 36 | Q1: 37 | R1: 38 | S1: 39 | T1: 40 | U1: 41 | V1: 42 | W1: 43 | ALL1: 1
E2: 1 | F2: 1 | G2: 1 | H2: 1 | I2: 1 | L2: 1 | M2: 1 | N2: 1 | O2: 1 | P2: 1 | Q2: 1 | R2: 1 | S2: 1 | T2: 1 | U2: 1 | V2: 1 | W2: 1
A3: Serial average | E3: Plant nr | F3: Rot | G3: Socker | H3: Socker | I3: Socker | J3: Ekonomi | K3: Ekonomi | L3: Renhet | M3: K/N | N3: Blåtal | O3: Nackhöjd | P3: Mjöldagg | Q3: Rost | R3: Ramularia | S3: Cercospora | T3: Mjöldagg | U3: Rost | V3: Ramularia | W3: Cercospora
A4: Two year avg. (treated) | E4: Plant no | F4: Root | G4: Sugar | H4: Sugar | I4: Sugar | J4: Economy | K4: Economy | L4: Cleaness | N4: Amino-N | O4: Height | P4: Mildew | Q4: Rust | R4: Ramularia | S4: Cercospora | T4: Mildew | U4: Rust | V4: Ramularia | W4: Cercospora
A5: Expl. | E5: 1 | J5: Total income | K5: Diff till gns. | P5: Early | Q5: Early | R5: Early | S5: Early | T5: Late | U5: Late | V5: Late | W5: Late
A6: no trials
A7: Unit | E7: 1000/ha | F7: t/ha | G7: % | H7: t/ha | I7: relativ | J7: SEK/ha | K7: SEK/ha | L7: % | O7: mm | P7: Sc. 1-100 | Q7: Sc. 1-100 | R7: Sc. 1-100 | S7: Sc. 1-100 | T7: Sc. 1-100 | U7: Sc. 1-100 | V7: Sc. 1-100 | W7: Sc. 1-100
A8: Avg for * | E8: 107.0145685 | F8: 89.83247971 | G8: 18.64965648 | H8: 16.76856768 | I8: 100 | J8: 27122.46888 | K8: 0 | L8: 91.19194884 | M8: 3.942405768 | N8: 9.744869925 | O8: 31.42060113 | P8: 0.04444444444 | Q8: 0.4888888889 | R8: 0.3222222222 | S8: 0.1555555556 | T8: 1.467592593 | U8: 7.351851852 | V8: 0.6712962963 | W8: 0.5972222222
A9: 1 | B9: * | D9: Orlena KWS | E9: 107.5397108 | F9: 94.31837448 | G9: 18.49371873 | H9: 17.43903853 | I9: 103.9983787 | J9: 28078.7166 | K9: 956.247718 | L9: 91.28264003 | M9: 4.377128703 | N9: 10.2520868 | O9: 29.43220716 | P9: -5.267330685e-16 | Q9: 0.2 | R9: 0.7 | S9: 0.4 | T9: 0.625 | U9: 7.208333333 | V9: 0.7083333333 | W9: 0.625
A10: 2 | B10: * | D10: Cartoon | E10: 107.5289378 | F10: 90.32389612 | G10: 18.40957479 | H10: 16.63704241 | I10: 99.21564399 | J10: 26889.55461 | K10: -232.9142715 | L10: 91.29994792 | M10: 3.879611169 | N10: 9.387001468 | O10: 32.68864695 | P10: -5.406108563e-16 | Q10: 0.6 | R10: 0.3 | S10: 0.1 | T10: 1.791666667 | U10: 8.791666667 | V10: 0.7916666667 | W10: 0.5833333333
A11: 3 | B11: * | D11: Pascalina KWS | E11: 105.658549 | F11: 88.98680523 | G11: 18.95547149 | H11: 16.83191282 | I11: 100.3777612 | J11: 27395.40159 | K11: 272.9327049 | L11: 90.91562628 | M11: 3.941871331 | N11: 9.681368813 | O11: 30.18762624 | P11: -5.267330685e-16 | Q11: 0.7 | R11: 0.1 | S11: 0.3 | T11: 1.125 | U11: 9.291666667 | V11: 0.5416666667 | W11: 0.625
A12: 5 | B12: * | D12: Cantona KWS | E12: 107.3762382 | F12: 91.00215383 | G12: 18.85362423 | H12: 17.17091989 | I12: 102.3994429 | J12: 27849.17108 | K12: 726.7021964 | L12: 91.07601005 | M12: 3.824531632 | N12: 9.833546718 | O12: 30.61304621 | P12: -5.267330685e-16 | Q12: 0.2 | R12: 0.3 | S12: 0.1 | T12: 0.8333333333 | U12: 8.041666667 | V12: 0.5416666667 | W12: 0.8333333333
A13: 6 | B13: * | D13: SY Muse | E13: 105.394363 | F13: 88.08646134 | G13: 18.25047744 | H13: 16.23627689 | I13: 96.82566335 | J13: 25988.8859 | K13: -1133.582979 | L13: 91.69554028 | M13: 3.822587018 | N13: 9.60014526 | O13: 32.7008527 | P13: 0.2 | Q13: 0.4 | R13: 0.5 | S13: -1.066041786e-16 | T13: 3.166666667 | U13: 8.166666667 | V13: 0.5416666667 | W13: 0.3333333333
A14: 7 | B14: * | D14: Kudu | E14: 106.3340978 | F14: 86.35423309 | G14: 19.13775222 | H14: 16.52863305 | I14: 98.56914057 | J14: 27246.67943 | K14: 124.2105457 | L14: 91.50929182 | M14: 3.826838107 | N14: 9.659317798 | O14: 34.52598976 | P14: -5.267330685e-16 | Q14: 0.6 | R14: 0.1 | S14: -1.066041786e-16 | T14: 1.25 | U14: 7.5 | V14: 0.7083333333 | W14: 1.166666667
A15: 8 | B15: * | D15: Darnella KWS | E15: 106.9867583 | F15: 93.7373367 | G15: 18.33724743 | H15: 17.29647817 | I15: 103.1482146 | J15: 27593.45121 | K15: 470.9823279 | L15: 91.07354733 | M15: 4.35701474 | N15: 10.28695504 | O15: 29.62675264 | P15: -5.406108563e-16 | Q15: 1 | R15: 0.3 | S15: 0.4 | T15: 0.6666666667 | U15: 7.75 | V15: 0.7083333333 | W15: 0.4583333333
A16: 9 | B16: * | D16: Diesel | E16: 107.8975171 | F16: 87.62131309 | G16: 18.92461887 | H16: 16.55199644 | I16: 98.70846905 | J16: 26712.15841 | K16: -410.3104717 | L16: 90.36462495 | M16: 3.561603511 | N16: 8.804869172 | O16: 29.64513441 | P16: -5.267330685e-16 | Q16: 0.3 | R16: 0.4 | S16: 0.1 | T16: 0.9583333333 | U16: 4 | V16: 0.7083333333 | W16: 0.25
A17: 10 | B17: * | D17: Lombok | E17: 108.4149442 | F17: 88.06174348 | G17: 18.48442313 | H17: 16.22481094 | I17: 96.75728569 | J17: 26348.20111 | K17: -774.2677709 | L17: 91.51031088 | M17: 3.890465704 | N17: 10.19853826 | O17: 33.36515411 | P17: 0.2 | Q17: 0.4 | R17: 0.2 | S17: -4.415413347e-17 | T17: 2.791666667 | U17: 5.416666667 | V17: 0.7916666667 | W17: 0.5
A18: 11 | D18: Dexter | E18: 106.5373555 | F18: 89.31940616 | G18: 18.49184374 | H18: 16.44094761 | I18: 98.04622507 | J18: 26501.19709 | K18: -621.2717926 | L18: 91.04148416 | M18: 3.983858062 | N18: 10.11690999 | O18: 35.43392751 | P18: -5.267330685e-16 | Q18: 0.4 | R18: 0.5 | S18: -7.884860299e-17 | T18: 1.041666667 | U18: 9.583333333 | V18: 0.7916666667 | W18: 0.875
A19: 12 | C19: o | D19: Ragna KWS | E19: 100.2061664 | F19: 94.62138977 | G19: 18.20504032 | H19: 17.17804744 | I19: 102.4419483 | J19: 28390.04748 | K19: 1267.578596 | L19: 92.62657115 | M19: 3.886289996 | N19: 10.51561762 | O19: 38.02864522 | P19: -5.336719624e-16 | Q19: 0.2 | R19: 0.2 | S19: 0.1 | T19: 0.625 | U19: 8.666666667 | V19: 0.7083333333 | W19: 1.541666667
A20: 13 | C20: o | D20: Daphna | E20: 106.0237189 | F20: 99.10104471 | G20: 18.14401467 | H20: 18.06497299 | I20: 107.7311631 | J20: 29403.95684 | K20: 2281.487956 | L20: 92.40828474 | M20: 4.038564179 | N20: 10.99578399 | O20: 32.68223515 | P20: -5.336719624e-16 | Q20: 0.4 | R20: 0.4 | S20: -7.190970909e-17 | T20: 1.166666667 | U20: 8.583333333 | V20: 0.7083333333 | W20: 0.9166666667
A21: 14 | C21: o | D21: Smilla KWS | E21: 105.2831278 | F21: 91.70948227 | G21: 18.59856222 | H21: 17.02251794 | I21: 101.5144422 | J21: 27745.14356 | K21: 622.6746801 | L21: 91.78376904 | M21: 4.328380439 | N21: 10.14868453 | O21: 34.31944892 | P21: 0.1 | Q21: 0.5 | R21: 0.4 | S21: 0.4 | T21: 0.3333333333 | U21: 6.916666667 | V21: 1.208333333 | W21: 2.833333333
A22: 15 | C22: o | D22: Kashmir | E22: 107.6858828 | F22: 92.14018558 | G22: 18.34702784 | H22: 16.85787381 | I22: 100.5325805 | J22: 27445.78863 | K22: 323.3197491 | L22: 91.70629726 | M22: 3.850176791 | N22: 10.24442104 | O22: 35.26192155 | P22: -5.197941746e-16 | Q22: 0.3 | R22: 0.5 | S22: -5.803192128e-17 | T22: 3.25 | U22: 7 | V22: 0.5833333333 | W22: 0.2083333333
A23: 16 | D23: Degas | E23: 106.0736517 | F23: 89.30625628 | G23: 18.71385253 | H23: 16.64001909 | I23: 99.23339554 | J23: 27345.22423 | K23: 222.7553461 | L23: 91.5318091 | M23: 3.653814681 | N23: 9.029179248 | O23: 35.758125 | P23: 0.3 | Q23: 0.3 | R23: 0.3 | S23: -4.415413347e-17 | T23: 3.458333333 | U23: 7.5 | V23: 0.75 | W23: 0.25
A24: 17 | C24: o | D24: Klimt | E24: 105.7255052 | F24: 91.50811905 | G24: 18.92560913 | H24: 17.32818119 | I24: 103.3372767 | J24: 28446.13546 | K24: 1323.666574 | L24: 91.50780774 | M24: 3.792319135 | N24: 9.207857771 | O24: 29.81739723 | P24: -5.336719624e-16 | Q24: 0.2 | R24: 0.5 | S24: -5.803192128e-17 | T24: 0.625 | U24: 5.208333333 | V24: 0.7916666667 | W24: 0.1666666667
A25: 18 | D25: Landon | E25: 106.4972249 | F25: 88.35392532 | G25: 19.06227884 | H25: 16.81290242 | I25: 100.2643919 | J25: 27627.44916 | K25: 504.9802835 | L25: 91.48182713 | M25: 3.75517695 | N25: 9.191454459 | O25: 37.39941406 | P25: -5.128552807e-16 | Q25: 0.3 | R25: 0.2 | S25: -4.415413347e-17 | T25: 0.7916666667 | U25: 4.666666667 | V25: 0.4166666667 | W25: 0.4583333333
A26: 19 | D26: Piculet | E26: 100.3620199 | F26: 86.29116901 | G26: 18.80193276 | H26: 16.1823237 | I26: 96.50391143 | J26: 26580.06202 | K26: -542.4068635 | L26: 91.43519224 | M26: 3.641417676 | N26: 9.28641205 | O26: 38.52089382 | P26: 0.2 | Q26: 0.3 | R26: 0.5 | S26: -7.190970909e-17 | T26: 0.875 | U26: 7.416666667 | V26: 0.7916666667 | W26: 0.3333333333
A27: 20 | D27: Mustang | E27: 107.6370437 | F27: 89.21825019 | G27: 18.7215927 | H27: 16.67001774 | I27: 99.41229364 | J27: 27541.32273 | K27: 418.8538514 | L27: 92.07193168 | M27: 3.710839928 | N27: 9.585745421 | O27: 32.47437048 | P27: 0.2 | Q27: 0.2 | R27: 0.2 | S27: 0.1 | T27: 1.166666667 | U27: 6.416666667 | V27: 0.5416666667 | W27: 0.4583333333
A28: 21 | D28: Maxine | E28: 109.8562015 | F28: 89.04511633 | G28: 18.87645931 | H28: 16.75911833 | I28: 99.94364845 | J28: 27383.83125 | K28: 261.3623729 | L28: 91.30016929 | M28: 3.865532757 | N28: 10.15506165 | O28: 35.09937048 | P28: -5.197941746e-16 | Q28: 0.3 | R28: 0.5 | S28: -8.57874969e-17 | T28: 0.9583333333 | U28: 7.75 | V28: 0.9166666667 | W28: 0.4583333333
A29: 22 | D29: Illusion | E29: 108.0623688 | F29: 93.69039448 | G29: 18.56869567 | H29: 17.45446632 | I29: 104.090383 | J29: 27969.67327 | K29: 847.2043893 | L29: 90.91501247 | M29: 4.047704711 | N29: 10.30136756 | O29: 27.97437048 | P29: -5.197941746e-16 | Q29: 0.5 | R29: 0.2 | S29: 0.5 | T29: 0.5416666667 | U29: 8.458333333 | V29: 0.875 | W29: 0.8333333333
A30: 23 | D30: Thyra KWS | E30: 92.14110209 | F30: 84.61963916 | G30: 19.79398171 | H30: 16.77144944 | I30: 100.0171855 | J30: 28263.92886 | K30: 1141.459975 | L30: 92.42829945 | M30: 4.353523434 | N30: 11.22323212 | O30: 37.22437048 | P30: -5.197941746e-16 | Q30: 0.2 | R30: 0.1 | S30: 0.2 | T30: 2.375 | U30: 3.75 | V30: 0.5416666667 | W30: 0.6666666667
A31: 24 | D31: Farina KWS | E31: 107.119694 | F31: 93.61143064 | G31: 18.63253261 | H31: 17.42316306 | I31: 103.9037048 | J31: 28445.19296 | K31: 1322.724081 | L31: 91.57618194 | M31: 4.35824088 | N31: 11.08794926 | O31: 28.84937048 | P31: -5.197941746e-16 | Q31: 0.3 | R31: 0.7 | S31: 0.3 | T31: 0.6666666667 | U31: 8.458333333 | V31: 0.9166666667 | W31: 0.875
A32: 25 | D32: Fuga KWS | E32: 109.2687547 | F32: 89.8210492 | G32: 19.33382219 | H32: 17.29923495 | I32: 103.1646547 | J32: 27771.34798 | K32: 648.8790992 | L32: 89.31052098 | M32: 3.929065122 | N32: 9.625608438 | O32: 25.59937048 | P32: -5.197941746e-16 | Q32: 0.5 | R32: 0.6 | S32: -7.884860299e-17 | T32: 0.4166666667 | U32: 7.291666667 | V32: 0.75 | W32: 0.5
A33: 26 | D33: Selma KWS | E33: 99.88317825 | F33: 91.85695274 | G33: 19.2250468 | H33: 17.62517191 | I33: 105.1083923 | J33: 29243.0063 | K33: 2120.537423 | L33: 91.65392438 | M33: 4.013968157 | N33: 9.997683751 | O33: 41.34937048 | P33: -5.197941746e-16 | Q33: 0.4 | R33: 0.1 | S33: 0.1 | T33: 0.7916666667 | U33: 9.541666667 | V33: 0.4583333333 | W33: 0.5
A34: 27 | D34: Caporal | E34: 104.43503 | F34: 90.35887583 | G34: 18.46405421 | H34: 16.63216411 | I34: 99.18655206 | J34: 27668.01856 | K34: 545.5496822 | L34: 92.99361585 | M34: 3.738798008 | N34: 9.11284805 | O34: 42.72437048 | P34: -5.336719624e-16 | Q34: 0.2 | R34: 0.4 | S34: -9.27263908e-17 | T34: 1.208333333 | U34: 6.583333333 | V34: 0.7916666667 | W34: 0.375
A35: 28 | D35: Davinci | E35: 105.5727087 | F35: 88.80168739 | G35: 19.00955839 | H35: 16.88668112 | I35: 100.704374 | J35: 28033.86526 | K35: 911.3963742 | L35: 92.04282168 | M35: 3.859555293 | N35: 10.06426903 | O35: 33.84937048 | P35: -5.267330685e-16 | Q35: 0.2 | R35: 0.4 | S35: -7.884860299e-17 | T35: 3 | U35: 6 | V35: 0.75 | W35: 3.166666667
A36: 29 | D36: Joker | E36: 104.8549648 | F36: 89.22916039 | G36: 18.67393189 | H36: 16.64361847 | I36: 99.25486056 | J36: 27604.33687 | K36: 481.8679935 | L36: 92.60443786 | M36: 3.796440749 | N36: 8.773929344 | O36: 38.47437048 | P36: -3.532607209e-16 | Q36: 0.3 | R36: 0.3 | S36: 1.154404263e-16 | T36: 1 | U36: 7.125 | V36: 0.625 | W36: 2.333333333
A37: 30 | D37: Kahn | E37: 107.7454523 | F37: 86.94051638 | G37: 18.69696944 | H37: 16.28040212 | I37: 97.08880582 | J37: 26244.25773 | K37: -878.2111492 | L37: 91.14469026 | M37: 3.988015037 | N37: 10.09662728 | O37: 35.09937048 | P37: -5.197941746e-16 | Q37: 0.4 | R37: 0.5 | S37: -1.066041786e-16 | T37: 1.833333333 | U37: 7.166666667 | V37: 0.9583333333 | W37: 0.875
A38: 31 | D38: Einar | E38: 100.7002873 | F38: 86.37280025 | G38: 19.06591685 | H38: 16.36860068 | I38: 97.61478137 | J38: 27051.15622 | K38: -71.31266453 | L38: 91.50384213 | M38: 3.566307034 | N38: 8.780847733 | O38: 28.84937048 | P38: 0.2 | Q38: 8.391047189e-17 | R38: 7.951267682e-17 | S38: -7.884860299e-17 | T38: 0.6666666667 | U38: 6.875 | V38: 0.4583333333 | W38: 0.9166666667
A39: 32 | D39: Curie | E39: 104.9274125 | F39: 88.16062545 | G39: 18.60308475 | H39: 16.39655031 | I39: 97.78146008 | J39: 26788.88663 | K39: -333.5822537 | L39: 91.5755089 | M39: 3.632006015 | N39: 8.843766662 | O39: 32.47437048 | P39: -5.281188144e-16 | Q39: 0.2 | R39: 0.2 | S39: 0.1 | T39: 1.541666667 | U39: 5.5 | V39: 0.8333333333 | W39: 0.7083333333
A40: 33 | D40: Bazin | E40: 104.4332164 | F40: 89.15845019 | G40: 18.03672799 | H40: 16.04698201 | I40: 95.696796 | J40: 25443.61867 | K40: -1678.850213 | L40: 90.64673657 | M40: 4.336156154 | N40: 9.902849511 | O40: 26.47437048 | P40: -5.281188144e-16 | Q40: 0.2 | R40: 0.3 | S40: 0.1 | T40: 0.6666666667 | U40: 5.458333333 | V40: 0.6666666667 | W40: 0.3333333333
A41: 34 | D41: Bonola | E41: 102.6295089 | F41: 87.5452358 | G41: 18.76389546 | H41: 16.45231448 | I41: 98.11401186 | J41: 26893.55192 | K41: -228.9169595 | L41: 91.76878035 | M41: 3.639215016 | N41: 9.111715181 | O41: 42.22437048 | P41: -5.281188144e-16 | Q41: 1.3 | R41: 0.1 | S41: -8.164042359e-17 | T41: 0.7916666667 | U41: 12.25 | V41: 0.5 | W41: 0.6666666667
A42: 35 | D42: Whisky | E42: 104.724639 | F42: 87.72460714 | G42: 19.19664594 | H42: 16.77425768 | I42: 100.0339325 | J42: 28029.96132 | K42: 907.4924368 | L42: 92.33852392 | M42: 3.780757062 | N42: 9.768014771 | O42: 37.84937048 | P42: -3.282800252e-16 | Q42: 0.4 | R42: 0.6 | S42: -1.32508479e-15 | T42: 0.6666666667 | U42: 7.333333333 | V42: 0.625 | W42: 0.4166666667
A43: LSD | E43: 4.171970414 | F43: 3.250858773 | G43: 0.2985411391 | H43: 0.6496472176 | L43: 0.8101466457 | M43: 0.4050004787 | N43: 1.345035483 | O43: 5.68830852 | P43: - | Q43: 0.6122682607 | R43: - | S43: 0.3901393974 | T43: - | U43: 2.782282376 | V43: - | W43: 1.796959933
A44: CV | E44: 3.923080374 | F44: 3.575169431 | G44: 1.575176084 | H44: 3.815040269 | L44: 0.8290406042 | M44: 10.23838586 | N44: 13.60169103 | O44: 6.647966357 | P44: 474.4638611 | Q44: 107.4923824 | R44: 116.3086592 | S44: 267.7512588 | T44: 207.0878537 | U44: 39.52291555 | V44: 81.11251052 | W44: 233.7869512
A45: PROB | E45: <0.001 | F45: <0.001 | G45: <0.001 | H45: <0.001 | L45: <0.001 | M45: <0.001 | N45: <0.001 | O45: <0.001 | P45: ns | Q45: <0.05 | R45: ns | S45: <0.05 | T45: ns | U45: <0.001 | V45: ns | W45: <0.05

Sheet 2-year avarage untreated
A1: 1 | B1: 2 | C1: 3 | D1: 4 | E1: 6 | F1: 7 | G1: 8 | H1: 9 | I1: 10 | J1: 13 | K1: 19 | L1: 20 | M1: 46 | N1: 36 | O1: 37 | P1: 38 | Q1: 39 | R1: 40 | S1: 41 | T1: 42 | U1: 43 | ALL1: 1
E2: 1 | F2: 1 | G2: 1 | H2: 1 | I2: 1 | J2: 1 | K2: 1 | L2: 1 | M2: 1 | N2: 1 | O2: 1 | P2: 1 | Q2: 1 | R2: 1 | S2: 1 | T2: 1 | U2: 1
A3: Serial average | E3: Plant nr | F3: Rot | G3: Socker | H3: Socker | I3: Socker | J3: Renhet | K3: K/N | L3: Blåtal | M3: Svampresistens | N3: Mjöldagg | O3: Rost | P3: Ramularia | Q3: Cercospora | R3: Mjöldagg | S3: Rost | T3: Ramularia | U3: Cercospora
A4: Two year avg. (untreated) | E4: Plant no | F4: Root | G4: Sugar | H4: Sugar | I4: Sugar | J4: Cleaness | L4: Amino-N | M4: untreated/treated | N4: Mildew | O4: Rust | P4: Ramularia | Q4: Cercospora | R4: Mildew | S4: Rust | T4: Ramularia | U4: Cercospora
A5: Expl. | E5: 1 | M5: Leaf diseases | N5: Early | O5: Early | P5: Early | Q5: Early | R5: Late | S5: Late | T5: Late | U5: Late
A6: no trials
A7: Unit | E7: 1000/ha | F7: t/ha | G7: % | H7: t/ha | I7: relativ | J7: % | M7: % | N7: Sc. 1-100 | O7: Sc. 1-100 | P7: Sc. 1-100 | Q7: Sc. 1-100 | R7: Sc. 1-100 | S7: Sc. 1-100 | T7: Sc. 1-100 | U7: Sc. 1-100
A8: Avg for * | E8: 106.2121717 | F8: 82.02048651 | G8: 18.54593862 | H8: 15.17361469 | I8: 100 | J8: 90.59747719 | K8: 3.352101513 | L8: 12.65821173 | M8: 90.80403897 | N8: 45.98888889 | O8: 5.1 | P8: 1.022222222 | Q8: 0.2555555556 | R8: 37.69444444 | S8: 19.73611111 | T8: 7.069444444 | U8: 1.625
A9: 1 | B9: * | D9: Orlena KWS | E9: 106.080088 | F9: 87.97931417 | G9: 18.45948629 | H9: 16.19308886 | I9: 106.7187298 | J9: 91.00867114 | K9: 3.669810203 | L9: 13.37531757 | M9: 92.92784843 | N9: 31.2 | O9: 4.7 | P9: 1.8 | Q9: 0.3 | R9: 28.29166667 | S9: 17.875 | T9: 10.29166667 | U9: 2.083333333
A10: 2 | B10: * | D10: Cartoon | E10: 108.2837251 | F10: 81.4553191 | G10: 18.03951287 | H10: 14.6622197 | I10: 96.6297089 | J10: 90.89139311 | K10: 3.178246037 | L10: 13.68878216 | M10: 88.56773874 | N10: 48.8 | O10: 4.8 | P10: 0.9 | Q10: -4.431134279e-16 | R10: 40.58333333 | S10: 22.5 | T10: 6.375 | U10: 0.9583333333
A11: 3 | B11: * | D11: Pascalina KWS | E11: 105.7023301 | F11: 79.54287129 | G11: 19.09267763 | H11: 15.05542242 | I11: 99.22106717 | J11: 89.74612641 | K11: 3.357250026 | L11: 11.26631375 | M11: 89.99068695 | N11: 34 | O11: 5.7 | P11: 0.5 | Q11: 0.5 | R11: 27.5 | S11: 18.625 | T11: 4.416666667 | U11: 2.833333333
A12: 5 | B12: * | D12: Cantona KWS | E12: 108.0963725 | F12: 83.18511957 | G12: 18.84313845 | H12: 15.66062371 | I12: 103.2095781 | J12: 90.44359697 | K12: 3.28362451 | L12: 11.51653234 | M12: 91.5951983 | N12: 36 | O12: 5.1 | P12: 0.5 | Q12: 0.4 | R12: 30.66666667 | S12: 18.375 | T12: 2.25 | U12: 1.166666667
A13: 6 | B13: * | D13: SY Muse | E13: 103.7087602 | F13: 81.18159342 | G13: 17.98072457 | H13: 14.57466578 | I13: 96.05269462 | J13: 90.67507673 | K13: 3.274813694 | L13: 13.48151078 | M13: 89.96018429 | N13: 46 | O13: 5.1 | P13: 0.9 | Q13: 0.3 | R13: 40.125 | S13: 20 | T13: 7.458333333 | U13: 1.041666667
A14: 7 | B14: * | D14: Kudu | E14: 103.8527308 | F14: 78.45916905 | G14: 18.87597766 | H14: 14.81133604 | I14: 97.61244331 | J14: 91.18229927 | K14: 3.232760726 | L14: 12.55202127 | M14: 89.80408988 | N14: 46 | O14: 6.4 | P14: 0.8 | Q14: 0.1 | R14: 41.625 | S14: 21.66666667 | T14: 7.875 | U14: 1.833333333
A15: 8 | B15: * | D15: Darnella KWS | E15: 107.6169659 | F15: 85.23483868 | G15: 18.23688485 | H15: 15.51816288 | I15: 102.2707061 | J15: 90.79186717 | K15: 3.646375504 | L15: 13.3055598 | M15: 89.91150574 | N15: 33.4 | O15: 6.3 | P15: 1.4 | Q15: 0.3 | R15: 31.625 | S15: 24.625 | T15: 9.333333333 | U15: 1.875
A16: 9 | B16: * | D16: Diesel | E16: 107.0179468 | F16: 81.63290525 | G16: 18.82080327 | H16: 15.36843705 | I16: 101.2839548 | J16: 89.60964273 | K16: 3.116631707 | L16: 11.05282496 | M16: 93.28275832 | N16: 65 | O16: 3.5 | P16: 1 | Q16: -4.431134279e-16 | R16: 48.45833333 | S16: 14.29166667 | T16: 7.541666667 | U16: 1.166666667
A17: 10 | B17: * | D17: Lombok | E17: 105.550626 | F17: 79.51324803 | G17: 18.564242 | H17: 14.71857576 | I17: 97.00111716 | J17: 91.02862119 | K17: 3.409401209 | L17: 13.68504297 | M17: 91.19634005 | N17: 73.5 | O17: 4.3 | P17: 1.4 | Q17: 0.4 | R17: 50.375 | S17: 19.66666667 | T17: 8.083333333 | U17: 1.666666667
A18: 11 | D18: Dexter | E18: 108.983057 | F18: 81.29987319 | G18: 18.09107932 | H18: 14.72209623 | I18: 97.02431843 | J18: 90.93081786 | K18: 3.229915783 | L18: 13.30736598 | M18: 89.64810876 | N18: 47 | O18: 6.1 | P18: 1.7 | Q18: -3.320911254e-16 | R18: 39.20833333 | S18: 25.375 | T18: 8.416666667 | U18: 4.458333333
A19: 12 | C19: o | D19: Ragna KWS | E19: 101.4435981 | F19: 86.96248133 | G19: 18.35253963 | H19: 15.93471572 | I19: 105.0159507 | J19: 92.14907887 | K19: 3.194218084 | L19: 12.61760343 | M19: 93.31385944 | N19: 25.6 | O19: 5.7 | P19: 1.1 | Q19: 0.6 | R19: 34.08333333 | S19: 20.20833333 | T19: 5.083333333 | U19: 2.291666667
A20: 13 | C20: o | D20: Daphna | E20: 105.980043 | F20: 89.99228125 | G20: 18.2010222 | H20: 16.36101767 | I20: 107.8254457 | J20: 91.72214199 | K20: 3.563053454 | L20: 13.84688849 | M20: 90.62359626 | N20: 41.5 | O20: 3.8 | P20: 1 | Q20: 0.7 | R20: 30.79166667 | S20: 19.54166667 | T20: 7.208333333 | U20: 2.333333333
A21: 14 | C21: o | D21: Smilla KWS | E21: 106.833605 | F21: 86.25401847 | G21: 18.64900673 | H21: 16.06335791 | I21: 105.8637525 | J21: 91.46226704 | K21: 3.777179096 | L21: 12.88133058 | M21: 94.60924795 | N21: 32.1 | O21: 5 | P21: 0.8 | Q21: 1.1 | R21: 31.83333333 | S21: 17.125 | T21: 5.083333333 | U21: 1.833333333
A22: 15 | C22: o | D22: Kashmir | E22: 109.6908472 | F22: 85.92666282 | G22: 18.1831479 | H22: 15.58918141 | I22: 102.7387457 | J22: 91.22947029 | K22: 3.21796614 | L22: 12.78584858 | M22: 92.57589504 | N22: 53.7 | O22: 4.2 | P22: 1.1 | Q22: 0.1 | R22: 44.20833333 | S22: 21.33333333 | T22: 6.208333333 | U22: 1.25
A23: 16 | D23: Degas | E23: 110.081792 | F23: 81.29266639 | G23: 18.63656304 | H23: 15.08826223 | I23: 99.43749422 | J23: 91.22972295 | K23: 3.261093642 | L23: 11.78210541 | M23: 91.10962302 | N23: 71.5 | O23: 3.3 | P23: 0.9 | Q23: 0.2 | R23: 46.58333333 | S23: 18.79166667 | T23: 4.791666667 | U23: 1.041666667
A24: 17 | C24: o | D24: Klimt | E24: 106.0251991 | F24: 85.00074374 | G24: 18.78829435 | H24: 15.9433776 | I24: 105.0730358 | J24: 90.6743774 | K24: 2.964579837 | L24: 9.734961426 | M24: 92.37096559 | N24: 56 | O24: 2.8 | P24: 1.1 | Q24: -3.59846701e-16 | R24: 45.875 | S24: 16.66666667 | T24: 6.625 | U24: 1.583333333
A25: 18 | D25: Landon | E25: 108.443067 | F25: 80.1415513 | G25: 18.90187385 | H25: 15.14510101 | I25: 99.81208379 | J25: 91.46380953 | K25: 3.011246416 | L25: 11.20144898 | M25: 90.50649578 | N25: 68.5 | O25: 3.1 | P25: 0.9 | Q25: 0.5 | R25: 45 | S25: 16.625 | T25: 6.416666667 | U25: 2.291666667
A26: 19 | D26: Piculet | E26: 101.7722988 | F26: 78.49996505 | G26: 18.79648021 | H26: 14.75503706 | I26: 97.24141127 | J26: 91.09491533 | K26: 3.100986681 | L26: 11.92388435 | M26: 91.30581922 | N26: 50.4 | O26: 3.6 | P26: 1 | Q26: 0.1 | R26: 39.75 | S26: 20.25 | T26: 8.041666667 | U26: 1.5
A27: 20 | D27: Mustang | E27: 107.9700146 | F27: 81.04630458 | G27: 18.68296992 | H27: 15.12259872 | I27: 99.66378498 | J27: 91.22871569 | K27: 3.279650006 | L27: 12.10280105 | M27: 90.87087254 | N27: 54.7 | O27: 5.9 | P27: 1.2 | Q27: 0.2 | R27: 44.83333333 | S27: 22 | T27: 7.958333333 | U27: 1.041666667
A28: 21 | D28: Maxine | E28: 109.223093 | F28: 79.52113318 | G28: 18.60564596 | H28: 14.75339168 | I28: 97.23056758 | J28: 91.13960605 | K28: 3.318020655 | L28: 12.15290108 | M28: 88.28030697 | N28: 60 | O28: 8 | P28: 0.7 | Q28: -3.59846701e-16 | R28: 45.08333333 | S28: 26 | T28: 8.875 | U28: 1.041666667
A29: 22 | D29: Illusion | E29: 109.8092181 | F29: 88.34141386 | G29: 18.35966346 | H29: 16.17452112 | I29: 106.5963612 | J29: 90.23988262 | K29: 3.634968455 | L29: 13.15635055 | M29: 92.8065234 | N29: 39.9 | O29: 5.5 | P29: 1.5 | Q29: 0.5 | R29: 33.375 | S29: 23.70833333 | T29: 7.375 | U29: 1.5
A30: 23 | D30: Thyra KWS | E30: 93.71052225 | F30: 76.88375758 | G30: 19.87606843 | H30: 15.28313162 | I30: 100.721759 | J30: 91.93315506 | K30: 3.580929891 | L30: 13.84989683 | M30: 91.64553811 | N30: 57 | O30: 4.8 | P30: 0.6 | Q30: 0.5 | R30: 44.625 | S30: 13.5 | T30: 4.791666667 | U30: 1.666666667
A31: 24 | D31: Farina KWS | E31: 108.16817 | F31: 85.47099438 | G31: 18.57353692 | H31: 15.86132568 | I31: 104.5322819 | J31: 90.76777059 | K31: 3.657220429 | L31: 14.13452574 | M31: 91.43430978 | N31: 17.1 | O31: 5.2 | P31: 0.9 | Q31: 0.8 | R31: 26.04166667 | S31: 20.95833333 | T31: 7.041666667 | U31: 1.666666667
A32: 25 | D32: Fuga KWS | E32: 107.7721384 | F32: 78.22004703 | G32: 19.35716618 | H32: 15.11586482 | I32: 99.61940601 | J32: 89.08930823 | K32: 3.201242336 | L32: 11.54069955 | M32: 88.12382807 | N32: 20 | O32: 4.1 | P32: 1.2 | Q32: 0.7 | R32: 26.70833333 | S32: 20.79166667 | T32: 6 | U32: 1.666666667
A33: 26 | D33: Selma KWS | E33: 102.3729075 | F33: 84.21826705 | G33: 18.83934612 | H33: 15.78799462 | I33: 104.0490018 | J33: 91.25754243 | K33: 3.190130375 | L33: 12.48281182 | M33: 90.37215671 | N33: 54 | O33: 5.4 | P33: 0.2 | Q33: -3.59846701e-16 | R33: 41.5 | S33: 27.625 | T33: 1.875 | U33: 1.166666667
A34: 27 | D34: Caporal | E34: 105.014178 | F34: 82.64418392 | G34: 18.37896428 | H34: 15.11965996 | I34: 99.64441745 | J34: 92.60311797 | K34: 3.210917719 | L34: 12.30785703 | M34: 91.21784668 | N34: 54 | O34: 3.9 | P34: 1.7 | Q34: 0.1 | R34: 38.75 | S34: 20.29166667 | T34: 6.791666667 | U34: 1.041666667
A35: 28 | D35: Davinci | E35: 106.7746628 | F35: 81.25982149 | G35: 18.66315849 | H35: 15.16319833 | I35: 99.93135216 | J35: 90.8096236 | K35: 3.411405843 | L35: 12.27829074 | M35: 90.18889054 | N35: 73.5 | O35: 4.3 | P35: 1.2 | Q35: 0.2 | R35: 48.79166667 | S35: 14.29166667 | T35: 11.70833333 | U35: 2.791666667
A36: 29 | D36: Joker | E36: 107.6078232 | F36: 79.12521804 | G36: 18.5741365 | H36: 14.70024698 | I36: 96.88032338 | J36: 91.771647 | K36: 3.14885968 | L36: 10.37543074 | M36: 88.62198758 | N36: 70 | O36: 5.1 | P36: 0.4 | Q36: -2.488243986e-16 | R36: 47.54166667 | S36: 21.66666667 | T36: 6.083333333 | U36: 0.8333333333
A37: 30 | D37: Kahn | E37: 108.128587 | F37: 80.43020317 | G37: 18.77102318 | H37: 15.04215687 | I37: 99.13364202 | J37: 90.57451223 | K37: 3.414111648 | L37: 11.79854988 | M37: 92.9695293 | N37: 73 | O37: 4.3 | P37: 0.8 | Q37: -3.59846701e-16 | R37: 48.45833333 | S37: 19.20833333 | T37: 5.625 | U37: 1.291666667
A38: 31 | D38: Einar | E38: 104.5262676 | F38: 82.25626044 | G38: 19.0221365 | H38: 15.62017469 | I38: 102.9430034 | J38: 91.23701154 | K38: 2.9919137 | L38: 10.76655145 | M38: 95.52927087 | N38: 49 | O38: 4 | P38: 0.7 | Q38: -4.153578523e-16 | R38: 44.45833333 | S38: 19.83333333 | T38: 3.916666667 | U38: 1.166666667
A39: 32 | D39: Curie | E39: 103.476096 | F39: 80.50517202 | G39: 18.63327023 | H39: 14.98286064 | I39: 98.7428569 | J39: 93.23726936 | K39: 3.099087666 | L39: 11.34764902 | M39: 91.60114372 | N39: 68.5 | O39: 4.6 | P39: 0.7 | Q39: 0.1 | R39: 41.91666667 | S39: 17.20833333 | T39: 6.416666667 | U39: 1.458333333
A40: 33 | D40: Bazin | E40: 103.835923 | F40: 84.04259832 | G40: 18.2460238 | H40: 15.33080094 | I40: 101.0359183 | J40: 90.50401022 | K40: 3.706388025 | L40: 12.74622463 | M40: 95.67151219 | N40: 38.5 | O40: 3.5 | P40: 0.8 | Q40: 0.3 | R40: 33.75 | S40: 18.95833333 | T40: 5.958333333 | U40: 1
A41: 34 | D41: Bonola | E41: 104.2454432 | F41: 80.2370362 | G41: 18.34725324 | H41: 14.58136392 | I41: 96.09683797 | J41: 91.92037235 | K41: 3.29179071 | L41: 13.51838382 | M41: 88.87216417 | N41: 45.3 | O41: 6.1 | P41: 1.4 | Q41: -4.431134279e-16 | R41: 41.375 | S41: 29.25 | T41: 8.291666667 | U41: 2.541666667
A42: 35 | D42: Whisky | E42: 105.880823 | F42: 81.763768 | G42: 18.88207193 | H42: 15.39772304 | I42: 101.4769608 | J42: 91.3425418 | K42: 3.252962129 | L42: 12.99471088 | M42: 92.1232505 | N42: 46.7 | O42: 4.6 | P42: 0.9 | Q42: 0.2 | R42: 44.54166667 | S42: 19.08333333 | T42: 7 | U42: 1.958333333
A43: LSD | E43: 4.415527241 | F43: 3.572906518 | G43: 0.3107579723 | H43: 0.6677506485 | J43: 1.494964915 | K43: 0.1464419823 | L43: 1.744479523 | M43: 5.270170951 | N43: 23.79272296 | O43: 2.762994762 | P43: 0.9799264891 | Q43: - | R43: 9.500559918 | S43: 5.186761396 | T43: 4.772477502 | U43: -
A44: CV | E44: 4.126572903 | F44: 4.298243327 | G44: 1.652525158 | H44: 4.323103175 | J44: 1.623399687 | K44: 4.369245453 | L44: 13.93672005 | M44: 5.701470256 | N44: 32.0478395 | O44: 38.43716192 | P44: 65.85507504 | Q44: 191.4238046 | R44: 24.78947098 | S44: 26.52624442 | T44: 73.8983876 | U44: 156.5697608
A45: PROB | E45: <0.001 | F45: <0.001 | G45: <0.001 | H45: <0.001 | J45: <0.001 | K45: <0.001 | L45: <0.001 | M45: <0.05 | N45: <0.001 | O45: <0.05 | P45: <0.05 | Q45: ns | R45: <0.001 | S45: <0.001 | T45: <0.05 | U45: ns

Sheet Average 2016 all
A1: 1 | B1: 2 | C1: 3 | D1: 4 | E1: 5 | F1: 6 | G1: 7 | H1: 8 | I1: 9 | J1: 10 | K1: 11 | L1: 12 | M1: 13 | N1: 14 | O1: 19 | P1: 20 | Q1: 27 | R1: 28 | S1: 32 | T1: 44 | ALG1: 1
E2: 1 | F2: 1 | G2: 1 | H2: 1 | I2: 1 | J2: 1 | M2: 1 | N2: 1 | O2: 1 | P2: 1 | Q2: 1 | R2: 1 | S2: 1 | T2: 1
A3: Average 2016 | E3: Plant nr | F3: Plant nr | G3: Rot | H3: Socker | I3: Socker | J3: Socker | K3: Ekonomi | L3: Ekonomi | M3: Renhet | N3: Rotfåra | O3: K/N | P3: Blåtal | Q3: Fröstockar | R3: Nackhöjd | S3: Aphanomyces | T3: Dubletter
A4: Treated + untreated | E4: Plant no | F4: Plant no | G4: Root | H4: Sugar | I4: Sugar | J4: Sugar | K4: Economy | L4: Economy | M4: Cleaness | N4: Groove | P4: Amino-N | Q4: Bolters | R4: Height | S4: Aphanomyces | T4: Duplets
A5: Expl. | E5: 0.5 | F5: 1 | K5: Total income | L5: Diff till gns. | Q5: Sum | S5: At factory
A6: no trials | S6: 4
A7: Unit | E7: 1000/ha | F7: 1000/ha | G7: t/ha | H7: % | I7: t/ha | J7: relativ | K7: SEK/ha | L7: SEK/ha | M7: % | N7: Sc. 1-9 | Q7: ‰ | R7: mm | S7: Sc. 1-9 | T7: 1000/ha
A8: Avg for * | E8: 44.85335638 | F8: 104.8109402 | G8: 88.14088305 | H8: 19.10754685 | I8: 16.76711478 | J8: 100 | K8: 27622.86237 | L8: 0 | M8: 91.28179774 | N8: 5.845166623 | O8: 3.617585723 | P8: 10.88386758 | Q8: 0.3336694371 | R8: 5.680555556 | S8: 2.414687662 | T8: 0.4607154523
A9: 1 | B9: * | D9: Orlena KWS | E9: 38.47329769 | F9: 104.7685367 | G9: 93.56844271 | H9: 18.97430694 | I9: 17.67469141 | J9: 105.4128372 | K9: 29226.95857 | L9: 1604.096194 | M9: 91.81557982 | N9: 5.610250176 | O9: 3.933553519 | P9: 11.15441036 | Q9: 2.022700222 | R9: 5.3125 | S9: 2.5 | T9: 0.3255208333
A10: 2 | B10: * | D10: Cartoon | E10: 53.36005679 | F10: 105.879228 | G10: 87.36774487 | H10: 18.74844987 | I10: 16.34756285 | J10: 97.49776906 | K10: 26664.29191 | L10: -958.5704577 | M10: 91.33658735 | N10: 5.876131382 | O10: 3.516491399 | P10: 11.28944533 | Q10: 1.814083687e-15 | R10: 5.9125 | S10: 2.4375 | T10: 0.9765625
A11: 3 | B11: * | D11: Pascalina KWS | E11: 40.16342905 | F11: 104.3917571 | G11: 85.94831388 | H11: 19.65065304 | I11: 16.80414998 | J11: 100.2208799 | K11: 27733.79475 | L11: 110.9323818 | M11: 90.66520945 | N11: 5.445626531 | O11: 3.617612805 | P11: 10.20437907 | Q11: 1.814083687e-15 | R11: 5.5 | S11: 2.1875 | T11: 0.2170138889
A12: 5 | B12: * | D12: Cantona KWS | E12: 43.13895256 | F12: 106.3418506 | G12: 88.96377549 | H12: 19.31472572 | I12: 17.14116125 | J12: 102.2308338 | K12: 28351.44742 | L12: 728.5850471 | M12: 91.28854961 | N12: 5.45629694 | O12: 3.513724281 | P12: 10.2858676 | Q12: 0.4528985507 | R12: 5.5875 | S12: 2.4375 | T12: 0.7595486111
A13: 6 | B13: * | D13: SY Muse | E13: 22.74072034 | F13: 100.6290847 | G13: 86.90226543 | H13: 18.60528604 | I13: 16.10135201 | J13: 96.02935398 | K13: 26319.61339 | L13: -1303.248979 | M13: 91.31984264 | N13: 6.028852095 | O13: 3.619318635 | P13: 11.28929989 | Q13: 4.818160573e-16 | R13: 5.875 | S13: 2.375 | T13: 0.7595486111
A14: 7 | B14: * | D14: Kudu | E14: 48.18883175 | F14: 105.2464536 | G14: 86.17084689 | H14: 19.43594875 | I14: 16.68209361 | J14: 99.492929 | K14: 27877.71995 | L14: 254.8575762 | M14: 91.70156604 | N14: 5.906763008 | O14: 3.489297288 | P14: 9.999361887 | Q14: 4.818160573e-16 | R14: 6.225 | S14: 2.3125 | T14: 0.1085069444
A15: 8 | B15: * | D15: Darnella KWS | E15: 70.85854604 | F15: 105.1171873 | G15: 91.63138854 | H15: 18.75308637 | I15: 17.08556489 | J15: 101.899254 | K15: 27965.53918 | L15: 342.6768123 | M15: 91.3795425 | N15: 5.602805741 | O15: 3.927435159 | P15: 11.84926779 | Q15: 1.369994477e-15 | R15: 5.3375 | S15: 2.5625 | T15: 0.5425347222
A16: 9 | B16: * | D16: Diesel | E16: 43.83491853 | F16: 106.2606898 | G16: 86.30421308 | H16: 19.37167241 | I16: 16.66189665 | J16: 99.37247325 | K16: 27201.81923 | L16: -421.0431421 | M16: 90.50180253 | N16: 6.420834237 | O16: 3.312984672 | P16: 9.687250452 | Q16: 0.5274261603 | R16: 5.35 | S16: 2.755910853 | T16: 0.3255208333
A17: 10 | B17: * | D17: Lombok | E17: 42.92145465 | F17: 104.663674 | G17: 86.41095655 | H17: 19.11379249 | I17: 16.40556041 | J17: 97.8436697 | K17: 27264.57694 | L17: -358.285433 | M17: 91.52749971 | N17: 6.258939495 | O17: 3.627853748 | P17: 12.19552586 | Q17: -1.738629992e-15 | R17: 6.025 | S17: 2.163778109 | T17: 0.1316821267
A18: 11 | D18: Dexter | E18: 88.11598629 | F18: 106.2171057 | G18: 86.7865263 | H18: 18.89024365 | I18: 16.37061096 | J18: 97.63522925 | K18: 26602.46595 | L18: -1020.396423 | M18: 91.10713606 | N18: 6.114557261 | O18: 3.497526203 | P18: 10.93537044 | Q18: 9.259052672e-16 | R18: 6.3875 | S18: 2.5625 | T18: 0.7595486111
A19: 12 | C19: o | D19: Ragna KWS | E19: 52.45000361 | F19: 98.27236318 | G19: 92.76289641 | H19: 18.72612085 | I19: 17.27898723 | J19: 103.0528356 | K19: 28728.30397 | L19: 1105.441595 | M19: 92.20754338 | N19: 6.115946052 | O19: 3.470196428 | P19: 11.14337182 | Q19: -1.738629992e-15 | R19: 6.871354167 | S19: 2.375 | T19: 0.5425347222
A20: 13 | C20: o | D20: Daphna | E20: 62.39048751 | F20: 103.9725399 | G20: 95.56066906 | H20: 18.75440153 | I20: 17.85568369 | J20: 106.4922852 | K20: 29546.98281 | L20: 1924.120441 | M20: 92.19048077 | N20: 5.777084013 | O20: 3.840613046 | P20: 12.16682961 | Q20: 6.773445974 | R20: 5.875520833 | S20: 2.375 | T20: 0.6510416667
A21: 14 | C21: o | D21: Smilla KWS | E21: 57.17763491 | F21: 104.7556816 | G21: 90.92317722 | H21: 19.1583468 | I21: 17.33897807 | J21: 103.4106243 | K21: 28870.12918 | L21: 1247.266808 | M21: 91.96299511 | N21: 5.772924537 | O21: 4.03916123 | P21: 10.78273136 | Q21: 9.259052672e-16 | R21: 6.275 | S21: 2.0625 | T21: 0.1085069444
A22: 15 | C22: o | D22: Kashmir | E22: 66.16373838 | F22: 104.9964691 | G22: 90.56941861 | H22: 18.71830309 | I22: 16.87968077 | J22: 100.6713498 | K22: 27686.71485 | L22: 63.85247786 | M22: 91.44420463 | N22: 5.559408996 | O22: 3.46669737 | P22: 10.93195197 | Q22: 9.259052672e-16 | R22: 6.3125 | S22: 2.125 | T22: 0.6510416667
A23: 16 | D23: Degas | E23: 59.68634927 | F23: 105.9817648 | G23: 86.96199406 | H23: 19.04195285 | I23: 16.47837707 | J23: 98.27795229 | K23: 26974.80024 | L23: -648.0621286 | M23: 90.98402392 | N23: 6.16048921 | O23: 3.48382396 | P23: 10.36695354 | Q23: 1.814083687e-15 | R23: 6.4375 | S23: 2.25 | T23: 0.6010940256
A24: 17 | C24: o | D24: Klimt | E24: 54.55269497 | F24: 102.0411893 | G24: 90.11991294 | H24: 19.34245783 | I24: 17.3668765 | J24: 103.5770121 | K24: 28810.01134 | L24: 1187.148968 | M24: 91.41451129 | N24: 6.888422511 | O24: 3.283644253 | P24: 9.205945989 | Q24: 1.814083687e-15 | R24: 5.4 | S24: 2.75 | T24: 1.085069444
A25: 18 | D25: Landon | E25: 49.74033133 | F25: 105.7410953 | G25: 86.91857696 | H25: 19.43740865 | I25: 16.83153482 | J25: 100.3842047 | K25: 27989.24535 | L25: 366.3829794 | M25: 91.45026454 | N25: 6.519662143 | O25: 3.278323679 | P25: 9.840068287 | Q25: 9.259052672e-16 | R25: 6.7625 | S25: 2.382786373 | T25: 0.3255208333
A26: 19 | D26: Piculet | E26: 42.60167354 | F26: 94.86873463 | G26: 83.80858417 | H26: 19.27540263 | I26: 16.09891884 | J26: 96.0148424 | K26: 26429.35216 | L26: -1193.510218 | M26: 91.04432593 | N26: 6.249162571 | O26: 3.41463747 | P26: 9.905271384 | Q26: 9.259052672e-16 | R26: 6.975 | S26: 2.502660935 | T26: 0.3255208333
A27: 20 | D27: Mustang | E27: 72.71512243 | F27: 106.5718076 | G27: 87.20601193 | H27: 19.19354788 | I27: 16.67562942 | J27: 99.45437623 | K27: 27559.03758 | L27: -63.82478846 | M27: 91.68566243 | N27: 5.681966538 | O27: 3.48237876 | P27: 10.53040137 | Q27: 0.5555555556 | R27: 5.9375 | S27: 2.026744186 | T27: 0.9273997193
A28: 21 | D28: Maxine | E28: 67.22161872 | F28: 107.2652197 | G28: 85.26363383 | H28: 19.32676346 | I28: 16.39386836 | J28: 97.77393767 | K28: 27300.16212 | L28: -322.7002542 | M28: 91.55402906 | N28: 5.909606519 | O28: 3.619450446 | P28: 11.32448161 | Q28: 0.5341880342 | R28: 6.2 | S28: 2.5 | T28: 0.4340277778
A29: 22 | D29: Illusion | E29: 71.44523474 | F29: 108.4963014 | G29: 92.47255003 | H29: 18.96154625 | I29: 17.44397298 | J29: 104.0368197 | K29: 28376.04744 | L29: 753.1850708 | M29: 90.78540741 | N29: 5.687345626 | O29: 3.782348545 | P29: 11.04749942 | Q29: 9.259052672e-16 | R29: 5.4875 | S29: 2.5 | T29: 1.193576389
A30: 23 | D30: Thyra KWS | E30: 28.04314897 | F30: 87.99079173 | G30: 82.97808393 | H30: 20.18564798 | I30: 16.74128473 | J30: 99.84594812 | K30: 28171.56342 | L30: 548.701049 | M30: 92.19517747 | N30: 5.901517708 | O30: 3.986783619 | P30: 12.02896554 | Q30: -1.738629992e-15 | R30: 6.4125 | S30: 2.9375 | T30: 0.3255208333
A31: 24 | D31: Farina KWS | E31: 59.13900929 | F31: 108.3957937 | G31: 90.95358737 | H31: 19.08342302 | I31: 17.30528568 | J31: 103.209681 | K31: 28258.43209 | L31: 635.5697171 | M31: 91.00561214 | N31: 5.302104438 | O31: 3.895838617 | P31: 12.46998205 | Q31: -1.738629992e-15 | R31: 5.575 | S31: 2.5625 | T31: 0.2170138889
A32: 25 | D32: Fuga KWS | E32: 67.74007851 | F32: 107.7914508 | G32: 86.07599663 | H32: 19.82942618 | I32: 16.98730206 | J32: 101.3132091 | K32: 27659.91854 | L32: 37.05616492 | M32: 89.49762264 | N32: 5.411288774 | O32: 3.387948646 | P32: 9.866858135 | Q32: 0.5144032922 | R32: 5.25 | S32: 2.5625 | T32: 1.627604167
A33: 26 | D33: Selma KWS | E33: 52.18947431 | F33: 100.9395315 | G33: 91.32528994 | H33: 19.56061774 | I33: 17.73606393 | J33: 105.7788663 | K33: 29438.55904 | L33: 1815.696663 | M33: 91.08013558 | N33: 5.628103187 | O33: 3.462026989 | P33: 11.15718456 | Q33: 0.496031746 | R33: 6.825 | S33: 2.3125 | T33: 0.7595486111
A34: 27 | D34: Caporal | E34: 63.19745666 | F34: 102.0971197 | G34: 88.5504973 | H34: 18.94985427 | I34: 16.70188455 | J34: 99.6109633 | K34: 27925.20893 | L34: 302.3465585 | M34: 92.45975973 | N34: 6.085132197 | O34: 3.473517306 | P34: 10.48162915 | Q34: -1.738629992e-15 | R34: 6.9625 | S34: 2.125 | T34: 0.5425347222
A35: 28 | D35: Davinci | E35: 75.93026418 | F35: 103.3759239 | G35: 88.10253174 | H35: 19.23502974 | I35: 16.90398035 | J35: 100.8162738 | K35: 27695.36213 | L35: 72.4997619 | M35: 90.82248173 | N35: 5.961812076 | O35: 3.63030938 | P35: 10.91402154 | Q35: -1.738629992e-15 | R35: 6.075 | S35: 1.979166667 | T35: 0.7595486111
A36: 29 | D36: Joker | E36: 68.48900875 | F36: 105.3135422 | G36: 87.05441546 | H36: 19.11337854 | I36: 16.57248097 | J36: 98.83919314 | K36: 27728.76577 | L36: 105.9033959 | M36: 92.17547828 | N36: 5.370418906 | O36: 3.499031633 | P36: 9.283892797 | Q36: -1.738629992e-15 | R36: 6.5375 | S36: 2.1875 | T36: 1.519097222
A37: 30 | D37: Kahn | E37: 66.91602657 | F37: 107.6978643 | G37: 85.12162056 | H37: 19.15831991 | I37: 16.17238369 | J37: 96.45299083 | K37: 26474.71549 | L37: -1148.146882 | M37: 90.69499077 | N37: 6.416118746 | O37: 3.618534718 | P37: 10.3748261 | Q37: 1.5625 | R37: 6.2 | S37: 2.3125 | T37: 0.8680555556
A38: 31 | D38: Einar | E38: 10.95202447 | F38: 98.10717936 | G38: 85.20641414 | H38: 19.55338151 | I38: 16.54326916 | J38: 98.66497233 | K38: 27721.76859 | L38: 98.90622022 | M38: 91.63776458 | N38: 6.788386048 | O38: 3.251709871 | P38: 8.976522202 | Q38: 0.5274261603 | R38: 5.575 | S38: 2.75 | T38: 0.8912307378
A39: 32 | D39: Curie | E39: 62.17226909 | F39: 99.72740871 | G39: 85.35233556 | H39: 19.21560361 | I39: 16.30203021 | J39: 97.22620986 | K39: 28153.78883 | L39: 530.9264551 | M39: 93.91696131 | N39: 6.909950247 | O39: 3.318037324 | P39: 9.650474347 | Q39: 0.6510416667 | R39: 5.9375 | S39: 3.1875 | T39: 0.6510416667
A40: 33 | D40: Bazin | E40: 68.57022939 | F40: 104.3911818 | G40: 87.94902336 | H40: 18.59718735 | I40: 16.30921473 | J40: 97.26905873 | K40: 26167.73558 | L40: -1455.126791 | M40: 90.79703387 | N40: 6.231445554 | O40: 3.925481952 | P40: 11.14703341 | Q40: 1.564583447 | R40: 5.3375 | S40: 2.1875 | T40: 0.4340277778
A41: 34 | D41: Bonola | E41: 51.06914225 | F41: 99.89546238 | G41: 85.03547293 | H41: 19.05295565 | I41: 16.10466564 | J41: 96.04911666 | K41: 26674.8355 | L41: -948.0268737 | M41: 91.66558204 | N41: 6.468539881 | O41: 3.657162218 | P41: 11.47787236 | Q41: -4.063623624e-16 | R41: 6.9125 | S41: 2.1875 | T41: 0.3255208333
A42: 35 | D42: Whisky | E42: 42.47946529 | F42: 101.4195545 | G42: 86.92360446 | H42: 19.5726364 | I42: 16.95008144 | J42: 101.0912232 | K42: 28410.83908 | L42: 787.9767121 | M42: 91.96483659 | N42: 6.165239541 | O42: 3.492185615 | P42: 10.9041824 | Q42: -4.063623624e-16 | R42: 6.475 | S42: 2.812840303 | T42: 0.7595486111
A43: 36 | D43: HI1427 | E43: 68.54525776 | F43: 105.8333622 | G43: 87.50230456 | H43: 19.11959162 | I43: 16.55263728 | J43: 98.72084432 | K43: 27783.9261 | L43: 161.063724 | M43: 91.97688411 | N43: 5.985666974 | O43: 3.770796859 | P43: 10.86200749 | Q43: -4.063623624e-16 | S43: 2.54200697 | T43: 0.6510416667
A44: 37 | D44: HI1469 | E44: 68.73583749 | F44: 107.0839792 | G44: 87.51336168 | H44: 19.32175683 | I44: 16.89152148 | J44: 100.7419684 | K44: 28151.76194 | L44: 528.8995712 | M44: 91.82491166 | N44: 5.370673149 | O44: 3.311998287 | P44: 9.041707227 | Q44: -4.063623624e-16 | S44: 2.3125 | T44: 0.3255208333
A45: 38 | D45: HI1470 | E45: 77.13371139 | F45: 107.6498404 | G45: 89.42444132 | H45: 18.70807844 | I45: 16.58176589 | J45: 98.89456892 | K45: 27113.1387 | L45: -509.7236767 | M45: 90.91544487 | N45: 6.626943394 | O45: 4.079356031 | P45: 13.56517306 | Q45: -4.063623624e-16 | S45: 2.0625 | T45: 0.8680555556
A46: 39 | D46: HI1473 | E46: 51.27430953 | F46: 106.9680392 | G46: 85.73022242 | H46: 19.54076652 | I46: 16.6891444 | J46: 99.53498033 | K46: 27763.59343 | L46: 140.7310596 | M46: 91.3360954 | N46: 6.246200231 | O46: 3.557184748 | P46: 11.36063901 | Q46: -4.063623624e-16 | S46: 2.5625 | T46: 0.5425347222
A47: 40 | D47: HI1474 | E47: 85.12060394 | F47: 108.2620386 | G47: 85.8097937 | H47: 19.29865144 | I47: 16.51142093 | J47: 98.4750277 | K47: 27403.68028 | L47: -219.1820933 | M47: 91.84337096 | N47: 5.319991839 | O47: 3.448234632 | P47: 9.54461126 | Q47: 3.772684747e-17 | S47: 2.0625 | T47: 0.4340277778
A48: 41 | D48: HI1475 | E48: 71.03879781 | F48: 108.345607 | G48: 89.10469389 | H48: 19.40305638 | I48: 17.18065498 | J48: 102.4663766 | K48: 29094.18294 | L48: 1471.320564 | M48: 92.36740284 | N48: 5.757998342 | O48: 3.656542062 | P48: 10.34828554 | Q48: -4.063623624e-16 | S48: 2.1875 | T48: 1.519097222
A49: 42 | D49: HI1476 | E49: 56.01567573 | F49: 106.4968547 | G49: 83.22574038 | H49: 19.68282319 | I49: 16.31400468 | J49: 97.2976263 | K49: 26647.21061 | L49: -975.6517578 | M49: 90.15020208 | N49: 6.417317625 | O49: 3.775325073 | P49: 11.3921394 | Q49: -4.063623624e-16 | S49: 2.4375 | T49: 0.6510416667
A50: 43 | D50: HI1478 | E50: 57.84184088 | F50: 103.2543317 | G50: 83.0124954 | H50: 18.87139181 | I50: 15.59856764 | J50: 93.0307202 | K50: 25694.65879 | L50: -1928.203586 | M50: 91.77225155 | N50: 6.280320628 | O50: 3.23950689 | P50: 10.11270076 | Q50: -4.063623624e-16 | S50: 2.3125 | T50: 0.7595486111
A51: 44 | D51: HI1479 | E51: 78.12521204 | F51: 106.181014 | G51: 86.91809747 | H51: 18.85059679 | I51: 16.27716657 | J51: 97.07792174 | K51: 26468.95995 | L51: -1153.902424 | M51: 90.70815516 | N51: 6.175002517 | O51: 3.729821755 | P51: 10.58040544 | Q51: 3.772684747e-17 | S51: 2.880910853 | T51: 0.3255208333
A52: 45 | D52: HI1482 | E52: 77.2902876 | F52: 107.7199927 | G52: 88.03957336 | H52: 18.82684575 | I52: 16.5317151 | J52: 98.59606324 | K52: 27206.65839 | L52: -416.2039781 | M52: 91.64676307 | N52: 6.213431924 | O52: 3.675594155 | P52: 11.5374187 | Q52: 0.5208333333 | S52: 2.375 | T52: 0.9765625
A53: 46 | D53: HI1483 | E53: 77.13502425 | F53: 105.0488169 | G53: 87.64066466 | H53: 19.16539409 | I53: 16.70184103 | J53: 99.61070374 | K53: 27915.49917 | L53: 292.6367932 | M53: 92.17629641 | N53: 5.471741991 | O53: 3.582810027 | P53: 9.693491116 | Q53: 1.814083687e-15 | S53: 2.3125 | T53: 0.5425347222
A54: 47 | D54: 6K649 | E54: 62.44154426 | F54: 105.728791 | G54: 88.21167411 | H54: 19.81341285 | I54: 17.40960107 | J54: 103.8318238 | K54: 29228.32028 | L54: 1605.457903 | M54: 91.4122212 | N54: 4.970580502 | O54: 3.619419162 | P54: 9.784825313 | Q54: 1.369994477e-15 | S54: 2.172577519 | T54: 0.2170138889
A55: 48 | D55: 6K657 | E55: 46.1934435 | F55: 100.90575 | G55: 90.76484566 | H55: 19.59673525 | I55: 17.69616997 | J55: 105.5409365 | K55: 28940.22377 | L55: 1317.361399 | M55: 90.39473388 | N55: 5.071740484 | O55: 3.868610293 | P55: 11.43506773 | Q55: 1.369994477e-15 | S55: 2.1875 | T55: 0.3255208333
A56: 49 | D56: 6K659 | E56: 36.16648834 | F56: 102.1133612 | G56: 86.54899015 | H56: 19.35727545 | I56: 16.63352291 | J56: 99.20325064 | K56: 27538.61633 | L56: -84.24603778 | M56: 91.19912882 | N56: 4.977367255 | O56: 3.686660174 | P56: 9.686420144 | Q56: 1.01768898 | S56: 2.071071788 | T56: 0.1085069444
A57: 50 | D57: 6K660 | E57: 50.35366839 | F57: 101.1495587 | G57: 90.15410989 | H57: 19.1747224 | I57: 17.20579925 | J57: 102.6163384 | K57: 28265.31678 | L57: 642.4544027 | M57: 91.10287446 | N57: 5.676600671 | O57: 3.860405061 | P57: 9.859964516 | Q57: 1.369994477e-15 | S57: 2.455172236 | T57: 0.2170138889
A58: 51 | D58: 6K664 | E58: 34.77384981 | F58: 96.94275695 | G58: 90.20630201 | H58: 18.90317844 | I58: 16.94664929 | J58: 101.0707537 | K58: 27725.73167 | L58: 102.8692966 | M58: 90.86299568 | N58: 4.83595757 | O58: 3.721348804 | P58: 11.42023085 | Q58: 1.369994477e-15 | S58: 1.9375 | T58: 0.2170138889
A59: 52 | D59: 6K665 | E59: 52.97015216 | F59: 96.64112754 | G59: 88.08069291 | H59: 18.8926514 | I59: 16.57765727 | J59: 98.87006493 | K59: 27131.28478 | L59: -491.5775944 | M59: 91.45304083 | N59: 5.771799604 | O59: 3.976024898 | P59: 9.321844396 | Q59: -8.504515722e-16 | S59: 2.625 | T59: 0.4340277778
A60: 53 | D60: 6K697 | E60: 59.52031265 | F60: 107.0071201 | G60: 87.30589516 | H60: 20.18835269 | I60: 17.54197305 | J60: 104.6212976 | K60: 28593.21087 | L60: 970.3484997 | M60: 89.78258412 | N60: 5.542446162 | O60: 3.421994622 | P60: 9.229030952 | Q60: 0.5208333333 | S60: 2.0625 | T60: 0.6510416667
A61: 54 | D61: 6K683 | E61: 63.88704636 | F61: 105.4193779 | G61: 90.84639143 | H61: 19.35891435 | I61: 17.48855044 | J61: 104.3026822 | K61: 28951.40944 | L61: 1328.547069 | M61: 91.23014063 | N61: 5.327375579 | O61: 3.519018744 | P61: 9.007235916 | Q61: 1.076388889 | S61: 2.172577519 | T61: 0.1085069444
A62: 55 | D62: 6K685 | E62: 66.31778477 | F62: 105.165323 | G62: 85.68172119 | H62: 19.92217535 | I62: 16.99577296 | J62: 101.36373 | K62: 27475.94601 | L62: -146.9163653 | M62: 88.86760462 | N62: 5.127620277 | O62: 3.537525437 | P62: 9.805527364 | Q62: 0.5274261603 | S62: 2 | T62: 0.1085069444
A63: 56 | D63: 6K688 | E63: 40.56234771 | F63: 102.1899607 | G63: 86.01883678 | H63: 19.53896958 | I63: 16.76614091 | J63: 99.99419173 | K63: 27383.95712 | L63: -238.9052488 | M63: 90.29350429 | N63: 5.625822683 | O63: 3.851455135 | P63: 10.41782516 | Q63: -1.738629992e-15 | S63: 2.4375 | T63: -8.674972633e-17
A64: 57 | D64: 6K670 | E64: 49.29284533 | F64: 100.5071079 | G64: 75.43775025 | H64: 19.38693719 | I64: 14.53401155 | J64: 86.68164877 | K64: 22758.46026 | L64: -4864.402109 | M64: 87.85156898 | N64: 5.505354928 | O64: 3.938013718 | P64: 13.16311174 | Q64: 4.818160573e-16 | S64: 2.6875 | T64: 0.4340277778
A65: 58 | D65: MA2206 | E65: 75.48086722 | F65: 104.9660446 | G65: 88.32941542 | H65: 19.20403246 | I65: 16.91289598 | J65: 100.8694471 | K65: 28340.82507 | L65: 717.9627014 | M65: 92.17101456 | N65: 5.80380378 | O65: 3.475705231 | P65: 11.07410785 | Q65: 4.818160573e-16 | S65: 2.375 | T65: 1.410590278
A66: 59 | D66: MA2209 | E66: 57.9871726 | F66: 103.573616 | G66: 85.50096719 | H66: 18.86484198 | I66: 16.08779069 | J66: 95.94847355 | K66: 26464.9095 | L66: -1157.952874 | M66: 91.76997519 | N66: 6.527935924 | O66: 3.264428333 | P66: 10.73697271 | Q66: 1.369994477e-15 | S66: 2.1875 | T66: 0.3362524509
A67: 60 | D67: MA2213 | E67: 84.18403589 | F67: 108.1450831 | G67: 86.75450835 | H67: 19.27108208 | I67: 16.66744036 | J67: 99.40553619 | K67: 27792.13296 | L67: 169.2705909 | M67: 92.02609015 | N67: 5.632033767 | O67: 3.590800806 | P67: 11.04878611 | Q67: 0.5144032922 | S67: 2.3125 | T67: 1.085069444
A68: 61 | D68: MA4073 | E68: 74.83753353 | F68: 105.7269708 | G68: 83.21320292 | H68: 19.26941828 | I68: 15.97663731 | J68: 95.28554863 | K68: 25908.74363 | L68: -1714.118746 | M68: 90.28242284 | N68: 6.355092886 | O68: 3.638094807 | P68: 11.46874215 | Q68: 9.259052672e-16 | S68: 2.9375 | T68: 0.9765625
A69: 62 | D69: MA4074 | E69: 73.09365628 | F69: 106.0777313 | G69: 81.59425411 | H69: 19.11459659 | I69: 15.54747358 | J69: 92.72599242 | K69: 25459.2204 | L69: -2163.641975 | M69: 90.82172946 | N69: 5.892942853 | O69: 3.610826956 | P69: 12.85241815 | Q69: 0.9539072039 | S69: 2.068410853 | T69: 0.5425347222
A70: 63 | D70: MA4079 | E70: 76.68139888 | F70: 106.2310967 | G70: 86.20027971 | H70: 19.34631706 | I70: 16.64191956 | J70: 99.25332874 | K70: 27729.36278 | L70: 106.5004053 | M70: 91.81538252 | N70: 5.954950189 | O70: 3.406443972 | P70: 10.1954814 | Q70: 0.5208333333 | S70: 1.8125 | T70: 0.4340277778
A71: 64 | D71: ST 12604 | E71: 16.12436085 | F71: 100.2574327 | G71: 82.99381575 | H71: 19.2020704 | I71: 15.86362955 | J71: 94.61156406 | K71: 26213.90878 | L71: -1408.953595 | M71: 91.16975416 | N71: 6.05642597 | O71: 3.635643419 | P71: 11.1269249 | Q71: 2.258172897e-15 | S71: 2.693410853 | T71: 0.4340277778
A72: 65 | D72: ST 12615 | E72: 68.75248601 | F72: 104.135102 | G72: 85.81209826 | H72: 19.45222256 | I72: 16.64396261 | J72: 99.26551362 | K72: 27418.41033 | L72: -204.4520404 | M72: 90.91497522 | N72: 5.791164528 | O72: 3.530808163 | P72: 9.612410093 | Q72: 1.118618619 | S72: 2.625 | T72: 1.410590278
A73: 66 | D73: ST 12651 | E73: 46.54426984 | F73: 95.5751792 | G73: 83.4249636 | H73: 19.32886402 | I73: 15.96870892 | J73: 95.23826328 | K73: 26544.59701 | L73: -1078.265362 | M73: 91.18913572 | N73: 6.616856892 | O73: 3.544395492 | P73: 10.61741376 | Q73: 1.814083687e-15 | S73: 2.5625 | T73: 0.3255208333
A74: 67 | D74: ST 12658 | E74: 42.36299885 | F74: 101.9295932 | G74: 86.82729723 | H74: 19.32619824 | I74: 16.69544744 | J74: 99.57257201 | K74: 27627.16956 | L74: 4.307183038 | M74: 91.14307625 | N74: 6.829073832 | O74: 3.452171133 | P74: 9.638711711 | Q74: 2.237544522 | S74: 2.5 | T74: 0.4340277778
A75: 68 | D75: ST 12664 | E75: 68.17277576 | F75: 103.200453 | G75: 81.97964617 | H75: 19.76985917 | I75: 16.13925266 | J75: 96.25539555 | K75: 26890.26308 | L75: -732.5992936 | M75: 91.21624574 | N75: 6.164381622 | O75: 3.467225141 | P75: 11.79805684 | Q75: 0.5341880342 | S75: 2.125 | T75: 0.6474252585
A76: 69 | D76: ST 12668 | E76: 74.84754662 | F76: 98.68167747 | G76: 86.95072692 | H76: 19.07512629 | I76: 16.47275853 | J76: 98.24444299 | K76: 27145.20674 | L76: -477.6556363 | M76: 91.30849478 | N76: 6.370280324 | O76: 3.876735807 | P76: 12.31839864 | Q76: 1.369994477e-15 | S76: 3.4375 | T76: -3.226721191e-16
A77: 70 | D77: ST 12680 | E77: 59.14864677 | F77: 100.5109567 | G77: 87.36406313 | H77: 19.18333448 | I77: 16.67998149 | J77: 99.4803322 | K77: 27565.30324 | L77: -57.55913096 | M77: 91.5159527 | N77: 6.876685205 | O77: 3.188132083 | P77: 10.66426985 | Q77: 2.267892893 | S77: 3.125 | T77: 0.1085069444
A78: 71 | D78: ST 12682 | E78: 56.11780175 | F78: 102.2323797 | G78: 84.11371274 | H78: 19.14611265 | I78: 16.01220344 | J78: 95.49766701 | K78: 26413.5749 | L78: -1209.287475 | M78: 91.24138891 | N78: 6.762853235 | O78: 3.151958049 | P78: 9.675773421 | Q78: 0.5411255411 | S78: 1.776302083 | T78: -3.226721191e-16
A79: 72 | D79: ST 15616 | E79: 49.80704643 | F79: 103.0840209 | G79: 88.17370345 | H79: 18.36491518 | I79: 16.06205115 | J79: 95.7949615 | K79: 25823.42444 | L79: -1799.437929 | M79: 90.74971238 | N79: 6.738897158 | O79: 3.821653211 | P79: 10.55205693 | Q79: 1.814083687e-15 | S79: 2.6875 | T79: 0.4340277778
A80: 73 | D80: ST 15672 | E80: 69.25088529 | F80: 98.13084623 | G80: 87.09384935 | H80: 18.87983111 | I80: 16.39158112 | J80: 97.76029644 | K80: 26348.29355 | L80: -1274.568824 | M80: 90.38752787 | N80: 6.384275516 | O80: 4.009509718 | P80: 11.96559175 | Q80: 1.814083687e-15 | S80: 2.5625 | T80: 0.6510416667
A81: 74 | D81: ST 15678 | E81: 71.58045357 | F81: 103.6228586 | G81: 82.21093535 | H81: 19.70141605 | I81: 16.13156848 | J81: 96.20956668 | K81: 26842.81217 | L81: -780.0501983 | M81: 90.93613248 | N81: 6.399288644 | O81: 3.280436238 | P81: 9.97880859 | Q81: 1.814083687e-15 | S81: 1.9375 | T81: 1.519097222
A82: 75 | D82: 6K674 | E82: 57.51638441 | F82: 101.4483392 | G82: 75.92581478 | H82: 19.75573721 | I82: 14.93109358 | J82: 89.04986797 | K82: 22930.46585 | L82: -4692.396526 | M82: 86.0519442 | N82: 5.098260364 | O82: 3.223084064 | P82: 9.702184218 | Q82: -0.0008295387741 | S82: 2.426691332 | T82: 0.9765625
A83: 76 | D83: SV1724 | E83: 38.34158669 | F83: 102.4115927 | G83: 81.64449676 | H83: 19.64109517 | I83: 15.97862363 | J83: 95.29739513 | K83: 26875.72863 | L83: -747.133738 | M83: 91.94361934 | N83: 6.517258807 | O83: 3.474944297 | P83: 10.99938438 | Q83: 1.814083687e-15 | S83: 2.6875 | T83: 0.2170138889
A84: 77 | D84: SV1731 | E84: 45.05383971 | F84: 98.86491967 | G84: 87.21598118 | H84: 19.01037157 | I84: 16.55467293 | J84: 98.73298505 | K84: 27053.58468 | L84: -569.2776897 | M84: 90.99569157 | N84: 5.566132243 | O84: 3.593566309 | P84: 9.818043224 | Q84: 1.028806584 | S84: 2.8125 | T84: 0.5425347222
A85: 78 | D85: SV1747 | E85: 55.78887797 | F85: 104.7897879 | G85: 82.50749174 | H85: 19.16515042 | I85: 15.71578596 | J85: 93.72981675 | K85: 25867.93207 | L85: -1754.930304 | M85: 91.15599205 | N85: 6.163631336 | O85: 3.278260938 | P85: 10.24755061 | Q85: 1.814083687e-15 | S85: 1.875 | T85: 0.1085069444
A86: 79 | D86: SV1757 | E86: 51.91831707 | F86: 105.3992817 | G86: 87.55690356 | H86: 19.01136073 | I86: 16.58735135 | J86: 98.92788095 | K86: 27422.00634 | L86: -200.856034 | M86: 91.5368941 | N86: 7.031321016 | O86: 3.487240004 | P86: 9.247714568 | Q86: 1.814083687e-15 | S86: 2.755910853 | T86: -4.336944215e-16
A87: 80 | D87: SV1765 | E87: 48.61692017 | F87: 106.2638389 | G87: 86.37382797 | H87: 19.33120701 | I87: 16.66518163 | J87: 99.39206504 | K87: 27482.8823 | L87: -139.9800687 | M87: 91.12176417 | N87: 6.211994789 | O87: 3.397106268 | P87: 10.93586447 | Q87: 1.814083687e-15 | S87: 2.375 | T87: 0.9765625
A88: 81 | D88: SV1771 | E88: 44.99230116 | F88: 102.0785197 | G88: 85.49448571 | H88: 19.56972513 | I88: 16.64193656 | J88: 99.25343012 | K88: 27601.756 | L88: -21.10637467 | M88: 91.12746401 | N88: 6.487583593 | O88: 3.470718625 | P88: 9.850782028 | Q88: 1.814083687e-15 | S88: 2.377660935 | T88: 0.1085069444
A89: 82 | D89: SV1779 | E89: 52.35879681 | F89: 102.8246816 | G89: 84.18314203 | H89: 19.51646562 | I89: 16.37619633 | J89: 97.66854071 | K89: 26925.84139 | L89: -697.0209801 | M89: 90.51642783 | N89: 6.163784004 | O89: 3.533014205 | P89: 10.78644427 | Q89: 1.369994477e-15 | S89: 2.6875 | T89: 0.2170138889
A90: 83 | D90: Nemata | E90: 20.192781 | F90: 100.4283749 | G90: 76.94302299 | H90: 18.5025393 | I90: 14.18760118 | J90: 84.6156382 | K90: 22508.37231 | L90: -5114.490066 | M90: 89.79101544 | N90: 5.582030285 | O90: 4.219181767 | P90: 11.40751393 | Q90: 3.556714763 | S90: 2.945718505 | T90: 0.1085069444
A91: LSD | E91: 11.81706435 | F91: 4.268890503 | G91: 3.653448338 | H91: 0.3673499629 | I91: 0.6979045705 | M91: 1.48034388 | N91: 0.5135020338 | O91: 0.1712380731 | P91: 1.276802647 | Q91: 2.021094788 | R91: 0.4621749715 | S91: 0.681463761 | T91: 0.8636875278
A92: CV | E92: 15.16715895 | F92: 3.018391379 | G92: 3.086586756 | H92: 1.397981744 | I92: 3.080720797 | M92: 1.082831864 | N92: 6.289083417 | O92: 3.491941896 | P92: 8.762735985 | Q92: 366.2021193 | R92: 3.171753353 | S92: 16.86654164 | T92: 79.75728192
A93: PROB | E93: <0.001 | F93: <0.001 | G93: <0.001 | H93: <0.001 | I93: <0.001 | M93: <0.001 | N93: <0.001 | O93: <0.001 | P93: <0.001 | Q93: <0.001 | R93: <0.001 | S93: 4.347744157e-08 | T93: <0.001

Sheet Average 2016 treated
A1: 1 | B1: 2 | C1: 3 | D1: 4 | E1: 6 | F1: 7 | G1: 8 | H1: 9 | I1: 10 | J1: 11 | K1: 12 | L1: 13 | M1: 19 | N1: 20 | O1: 40 | P1: 41 | Q1: 42 | R1: 43 | ALL1: 1
E2: 1 | F2: 1 | G2: 1 | H2: 1 | I2: 1 | L2: 1 | M2: 1 | N2: 1 | O2: 1 | P2: 1 | Q2: 1 | R2: 1
A3: Average 2016 | E3: Plant nr | F3: Rot | G3: Socker | H3: Socker | I3: Socker | J3: Ekonomi | K3: Ekonomi | L3: Renhet | M3: K/N | N3: Blåtal | O3: Mjöldagg | P3: Rost | Q3: Ramularia | R3: Cercospora
A4: Treated | E4: Plant no | F4: Root | G4: Sugar | H4: Sugar | I4: Sugar | J4: Economy | K4: Economy | L4: Cleaness | N4: Amino-N | O4: Mildew | P4: Rust | Q4: Ramularia | R4: Cercospora
A5: Expl. | E5: 1 | J5: Total income | K5: Diff till gns. | O5: Late | P5: Late | Q5: Late | R5: Late
A6: no trials
A7: Unit | E7: 1000/ha | F7: t/ha | G7: % | H7: t/ha | I7: relativ | J7: SEK/ha | K7: SEK/ha | L7: % | O7: Sc. 1-100 | P7: Sc. 1-100 | Q7: Sc. 1-100 | R7: Sc. 1-100
A8: Avg for * | E8: 105.2569733 | F8: 92.56288815 | G8: 19.1350388 | H8: 17.7162246 | I8: 100 | J8: 29202.1203 | K8: 5.659078144e-12 | L8: 91.65585318 | M8: 3.654108133 | N8: 9.525558522 | O8: 1.37037037 | P8: 9.435185185 | Q8: 0.7592592593 | R8: 0.5
A9: 1 | B9: * | D9: Orlena KWS | E9: 105.2562987 | F9: 97.3084819 | G9: 18.94802304 | H9: 18.41656445 | I9: 103.9530987 | J9: 30541.15673 | K9: 1339.036429 | L9: 92.14464039 | M9: 3.909118176 | N9: 9.037334165 | O9: 0.6666666667 | P9: 8.916666667 | Q9: 0.6666666667 | R9: 0.8333333333
A10: 2 | B10: * | D10: Cartoon | E10: 105.0023342 | F10: 93.34560014 | G10: 18.86380931 | H10: 17.57670789 | I10: 99.21249189 | J10: 28846.36714 | K10: -355.753161 | L10: 91.62152956 | M10: 3.647768293 | N10: 9.397145763 | O10: 1.916666667 | P10: 11.66666667 | Q10: 1.083333333 | R10: 0.25
A11: 3 | B11: * | D11: Pascalina KWS | E11: 105.0706232 | F11: 91.68320008 | G11: 19.5888356 | H11: 17.87733745 | I11: 100.9094085 | J11: 29645.61399 | K11: 443.4936921 | L11: 91.23992297 | M11: 3.645856387 | N11: 9.292547875 | O11: 0.6666666667 | P11: 12.5 | Q11: 0.4166666667 | R11: 0.75
A12: 5 | B12: * | D12: Cantona KWS | E12: 105.9284267 | F12: 93.76428204 | G12: 19.40484186 | H12: 18.15791907 | I12: 102.4931636 | J12: 30193.67766 | K12: 991.5573597 | L12: 91.43342804 | M12: 3.533878641 | N12: 9.748397603 | O12: 1.166666667 | P12: 10 | Q12: 0.75 | R12: 0.9166666667
A13: 6 | B13: * | D13: SY Muse | E13: 101.4344136 | F13: 88.80981672 | G13: 18.69511543 | H13: 16.88086956 | I13: 95.28480218 | J13: 27208.17737 | K13: -1993.942929 | L13: 92.00330845 | M13: 3.669947407 | N13: 9.556745122 | O13: 3.583333333 | P13: 11.16666667 | Q13: 0.75 | R13: 0.3333333333
A14: 7 | B14: * | D14: Kudu | E14: 105.4398485 | F14: 89.29028837 | G14: 19.57545045 | H14: 17.44920686 | I14: 98.49280674 | J14: 29229.03102 | K14: 26.91072678 | L14: 92.09554862 | M14: 3.555818887 | N14: 9.379264435 | O14: 1.083333333 | P14: 8.083333333 | Q14: 0.6666666667 | R14: 0.1666666667
A15: 8 | B15: * | D15: Darnella KWS | E15: 104.5747887 | F15: 96.37078941 | G15: 18.63147119 | H15: 18.15768175 | I15: 102.4918241 | J15: 29380.03499 | K15: 177.9146987 | L15: 91.71293746 | M15: 3.987365574 | N15: 10.06234349 | O15: 0.6666666667 | P15: 8.75 | Q15: 0.8333333333 | R15: 0.75
A16: 9 | B16: * | D16: Diesel | E16: 107.6463455 | F16: 90.43249797 | G16: 19.46119369 | H16: 17.52745784 | I16: 98.93449782 | J16: 28804.27334 | K16: -397.8469527 | L16: 90.79497411 | M16: 3.360116696 | N16: 8.934499017 | O16: 0.6666666667 | P16: 6.416666667 | Q16: 0.75 | R16: 0.1666666667
A17: 10 | B17: * | D17: Lombok | E17: 106.9596805 | F17: 92.06103673 | G17: 19.04660861 | H17: 17.40227653 | I17: 98.22790647 | J17: 28970.75043 | K17: -231.3698634 | L17: 91.85638904 | M17: 3.577103137 | N17: 10.32174923 | O17: 1.916666667 | P17: 7.416666667 | Q17: 0.9166666667 | R17: 0.3333333333
A18: 11 | D18: Dexter | E18: 104.9479991 | F18: 90.98149092 | G18: 19.0321962 | H18: 17.17904867 | I18: 96.96788709 | J18: 28312.59221 | K18: -889.5280868 | L18: 91.19321523 | M18: 3.554849663 | N18: 9.667414135 | O18: 1.416666667 | P18: 11.08333333 | Q18: 0.5833333333 | R18: 0.75
A19: 12 | C19: o | D19: Ragna KWS | E19: 98.41163622 | F19: 97.96999217 | G19: 18.61361204 | H19: 18.13479613 | I19: 102.3626452 | J19: 30210.47016 | K19: 1008.349863 | L19: 92.49721723 | M19: 3.555811048 | N19: 10.13774616 | O19: 0.5833333333 | P19: 9.666666667 | Q19: 0.5833333333 | R19: 0.9166666667
A20: 13 | C20: o | D20: Daphna | E20: 103.6624111 | F20: 100.3881559 | G20: 18.65294939 | H20: 18.82811983 | I20: 106.276141 | J20: 30956.14608 | K20: 1754.025785 | L20: 92.43081894 | M20: 3.866066225 | N20: 10.8448965 | O20: 1.833333333 | P20: 10.16666667 | Q20: 0.9166666667 | R20: 0.9166666667
A21: 14 | C21: o | D21: Smilla KWS | E21: 103.1737478 | F21: 94.24275861 | G21: 19.07453513 | H21: 17.89764618 | I21: 101.024042 | J21: 29751.56074 | K21: 549.4404438 | L21: 92.06344307 | M21: 4.036163257 | N21: 9.617113328 | O21: 0.1666666667 | P21: 8.083333333 | Q21: 1.25 | R21: 3.416666667
A22: 15 | C22: o | D22: Kashmir | E22: 103.7796731 | F22: 94.13476976 | G22: 18.82001603 | H22: 17.59630992 | I22: 99.32313635 | J22: 29184.3771 | K22: -17.74319479 | L22: 91.82200118 | M22: 3.547540252 | N22: 10.26427876 | O22: 5.333333333 | P22: 9.583333333 | Q22: 0.5 | R22: 0.1666666667
A23: 16 | D23: Degas | E23: 103.2230987 | F23: 91.8516992 | G23: 19.1514083 | H23: 17.43423898 | I23: 98.40831993 | J23: 28981.25214 | K23: -220.8681541 | L23: 91.50482957 | M23: 3.526994029 | N23: 8.829114122 | O23: 5.25 | P23: 11 | Q23: 0.6666666667 | R23: 0.25
A24: 17 | C24: o | D24: Klimt | E24: 101.5964395 | F24: 93.39258637 | G24: 19.46954855 | H24: 18.18239955 | I24: 102.6313447 | J24: 30214.07427 | K24: 1011.953976 | L24: 91.71331495 | M24: 3.450712567 | N24: 9.030007201 | O24: 0.5833333333 | P24: 7.416666667 | Q24: 0.9166666667 | R24: 3.693334701e-16
A25: 18 | D25: Landon | E25: 105.0691689 | F25: 91.59208674 | G25: 19.53993768 | H25: 17.78220798 | I25: 100.3724461 | J25: 29661.94868 | K25: 459.8283853 | L25: 91.37655888 | M25: 3.388708984 | N25: 8.443231914 | O25: 0.5833333333 | P25: 6.75 | Q25: 0.3333333333 | R25: 0.08333333333
A26: 19 | D26: Piculet | E26: 94.03909254 | F26: 88.147875 | G26: 19.23758713 | H26: 16.84049281 | I26: 95.05689381 | J26: 27665.54202 | K26: -1536.578273 | L26: 90.77398986 | M26: 3.488836322 | N26: 9.243351576 | O26: 0.75 | P26: 10.25 | Q26: 0.9166666667 | R26: 0.3333333333
A27: 20 | D27: Mustang | E27: 105.3240248 | F27: 91.76698892 | G27: 19.2791293 | H27: 17.62978761 | I27: 99.51210267 | J27: 29535.55045 | K27: 333.4301509 | L27: 92.38144336 | M27: 3.453817999 | N27: 9.107502571 | O27: 1.083333333 | P27: 9.25 | Q27: 0.5833333333 | R27: 0.25
A28: 21 | D28: Maxine | E28: 107.4405899 | F28: 91.07350842 | G28: 19.43278747 | H28: 17.5701583 | I28: 99.17552244 | J28: 29372.74 | K28: 170.6197023 | L28: 91.52521854 | M28: 3.701400798 | N28: 10.00805094 | O28: 0.6666666667 | P28: 9.916666667 | Q28: 0.8333333333 | R28: 0.1666666667
A29: 22 | D29: Illusion | E29: 107.9458418 | F29: 94.51982635 | G29: 19.08120229 | H29: 18.1422342 | I29: 102.4046297 | J29: 29460.94914 | K29: 258.8288399 | L29: 91.26940021 | M29: 3.709468125 | N29: 9.337640775 | O29: 0.5833333333 | P29: 10.5 | Q29: 0.8333333333 | R29: 1
A30: 23 | D30: Thyra KWS | E30: 87.21565464 | F30: 86.96361168 | G30: 20.23408191 | H30: 17.61369542 | I30: 99.42126958 | J30: 29698.60152 | K30: 496.4812228 | L30: 92.54090461 | M30: 4.06109071 | N30: 10.63556837 | O30: 3.5 | P30: 5.333333333 | Q30: 0.75 | R30: 0.6666666667
A31: 24 | D31: Farina KWS | E31: 107.3050585 | F31: 95.68143978 | G31: 19.10793195 | H31: 18.23387462 | I31: 102.921898 | J31: 30189.6204 | K31: 987.5000999 | L31: 91.55921145 | M31: 3.913491599 | N31: 11.19782992 | O31: 0.4166666667 | P31: 8.75 | Q31: 1 | R31: 1.416666667
A32: 25 | D32: Fuga KWS | E32: 107.9846944 | F32: 94.44592526 | G32: 19.8005113 | H32: 18.56204585 | I32: 104.7742748 | J32: 30491.20536 | K32: 1289.085061 | L32: 89.71039207 | M32: 3.374609026 | N32: 9.377187234 | O32: 0.3333333333 | P32: 9.416666667 | Q32: 0.75 | R32: 0.3333333333
A33: 26 | D33: Selma KWS | E33: 98.47799942 | F33: 97.00033262 | G33: 19.6724686 | H33: 18.93873577 | I33: 106.9005175 | J33: 31639.5604 | K33: 2437.440109 | L33: 91.31183143 | M33: 3.515012338 | N33: 10.39091253 | O33: 0.9166666667 | P33: 11.16666667 | Q33: 0.5833333333 | R33: 0.5
A34: 27 | D34: Caporal | E34: 102.3794573 | F34: 93.36368095 | G34: 18.98062456 | H34: 17.61433215 | I34: 99.42486363 | J34: 29723.18145 | K34: 521.061149 | L34: 93.01792658 | M34: 3.602857078 | N34: 8.932253423 | O34: 1.083333333 | P34: 9.833333333 | Q34: 1 | R34: 0.4166666667
A35: 28 | D35: Davinci | E35: 102.9364365 | F35: 92.92493311 | G35: 19.47768589 | H35: 18.03528393 | I35: 101.8009442 | J35: 30109.24303 | K35: 907.1227381 | L35: 91.81904929 | M35: 3.696668683 | N35: 9.941766534 | O35: 4.833333333 | P35: 9 | Q35: 0.6666666667 | R35: 1.833333333
A36: 29 | D36: Joker | E36: 103.5781897 | F36: 93.22582546 | G36: 19.14460834 | H36: 17.7832073 | I36: 100.3780867 | J36: 29974.17447 | K36: 772.0541697 | L36: 92.77144425 | M36: 3.555501895 | N36: 8.831638027 | O36: 1.166666667 | P36: 9.416666667 | Q36: 0.6666666667 | R36: 1.916666667
A37: 30 | D37: Kahn | E37: 107.2551636 | F37: 88.16895567 | G37: 19.04335631 | H37: 16.8058794 | I37: 94.86151692 | J37: 27525.5264 | K37: -1676.593894 | L37: 91.32827748 | M37: 3.637254498 | N37: 9.471536152 | O37: 2 | P37: 8.833333333 | Q37: 0.8333333333 | R37: 1
A38: 31 | D38: Einar | E38: 95.74804093 | F38: 86.85692289 | G38: 19.58103637 | H38: 16.84538593 | I38: 95.08451326 | J38: 28215.33048 | K38: -986.7898202 | L38: 91.56482948 | M38: 3.33227634 | N38: 8.085997371 | O38: 0.6666666667 | P38: 8.75 | Q38: 0.5833333333 | R38: 1.083333333
A39: 32 | D39: Curie | E39: 101.3394864 | F39: 89.83256584 | G39: 19.25436094 | H39: 17.26526376 | I39: 97.45453194 | J39: 28643.45141 | K39: -558.6688903 | L39: 91.75873688 | M39: 3.310752358 | N39: 8.571312246 | O39: 0.75 | P39: 7.75 | Q39: 1.166666667 | R39: 0.9166666667
A40: 33 | D40: Bazin | E40: 104.7610904 | F40: 90.55030296 | G40: 18.42687919 | H40: 16.59035957 | I40: 93.64500588 | J40: 26821.1308 | K40: -2380.989497 | L40: 90.99704134 | M40: 3.9539408 | N40: 9.941427661 | O40: 0.8333333333 | P40: 8.25 | Q40: 0.6666666667 | R40: 3.626656267e-17
A41: 34 | D41: Bonola | E41: 98.3068163 | F41: 88.83210594 | G41: 19.28561843 | H41: 17.1681838 | I41: 96.90655987 | J41: 28280.03495 | K41: -922.0853439 | L41: 91.62704711 | M41: 3.668792651 | N41: 9.556057928 | O41: 0.9166666667 | P41: 12.83333333 | Q41: 0.4166666667 | R41: 0.5
A42: 35 | D42: Whisky | E42: 101.8294111 | F42: 90.72829213 | G42: 19.85930277 | H42: 17.8755315 | I42: 100.8992147 | J42: 30515.82549 | K42: 1313.70519 | L42: 92.44578496 | M42: 3.51790194 | N42: 9.561571812 | O42: 0.5 | P42: 10.66666667 | Q42: 0.6666666667 | R42: 0.1666666667
A43: 36 | D43: HI1427 | E43: 105.6243745 | F43: 91.14207327 | G43: 19.23997929 | H43: 17.37271668 | I43: 98.0610546 | J43: 29288.84796 | K43: 86.72766005 | L43: 92.2372661 | M43: 3.731771318 | N43: 9.369583279 | O43: 1 | P43: 8.416666667 | Q43: 0.1666666667 | R43: 0.5
A44: 37 | D44: HI1469 | E44: 106.8311722 | F44: 90.64091214 | G44: 19.34685375 | H44: 17.93843119 | I44: 101.2542548 | J44: 29384.45123 | K44: 182.3309362 | L44: 92.31597507 | M44: 3.349245722 | N44: 7.868091819 | O44: 1 | P44: 10.66666667 | Q44: 0.8333333333 | R44: 4.5
A45: 38 | D45: HI1470 | E45: 106.1971562 | F45: 94.80252376 | G45: 18.68652078 | H45: 17.80609824 | I45: 100.5072957 | J45: 28807.12391 | K45: -394.9963888 | L45: 91.50949972 | M45: 4.254257916 | N45: 12.93536745 | O45: 0.4166666667 | P45: 10.41666667 | Q45: 0.3333333333 | R45: 0.25
A46: 39 | D46: HI1473 | E46: 107.0236957 | F46: 92.62066981 | G46: 19.51800251 | H46: 17.89525596 | I46: 101.0105503 | J46: 30180.29498 | K46: 978.174683 | L46: 91.74445569 | M46: 3.681188067 | N46: 10.07274788 | O46: 1.833333333 | P46: 10.5 | Q46: 1 | R46: 0.08333333333
A47: 40 | D47: HI1474 | E47: 108.1893504 | F47: 89.46901802 | G47: 19.31447504 | H47: 17.15851206 | I47: 96.8519673 | J47: 28959.80587 | K47: -242.3144213 | L47: 92.2361916 | M47: 3.515125123 | N47: 9.000836056 | O47: 4.666666667 | P47: 10.66666667 | Q47: 0.6666666667 | R47: 0.08333333333
A48: 41 | D48: HI1475 | E48: 107.9669112 | F48: 93.37710825 | G48: 19.61855319 | H48: 18.06897224 | I48: 101.9910994 | J48: 31158.06569 | K48: 1955.945395 | L48: 92.86095078 | M48: 3.693084054 | N48: 9.558852035 | O48: 1.25 | P48: 8.166666667 | Q48: 1.25 | R48: 0.1666666667
A49: 42 | D49: HI1476 | E49: 105.3218505 | F49: 88.3213721 | G49: 19.6502951 | H49: 17.28802557 | I49: 97.58301194 | J49: 28632.01504 | K49: -570.1052563 | L49: 90.99587503 | M49: 3.910301774 | N49: 10.05634239 | O49: 0.5833333333 | P49: 10.08333333 | Q49: 1 | R49: 1.472888651e-16
A50: 43 | D50: HI1478 | E50: 102.4051567 | F50: 89.42572581 | G50: 18.71486671 | H50: 16.63669777 | I50: 93.90656385 | J50: 27873.64682 | K50: -1328.473477 | L50: 92.6104634 | M50: 3.252862158 | N50: 8.64727507 | O50: 2.416666667 | P50: 9.333333333 | Q50: 0.5833333333 | R50: 1.083333333
A51: 44 | D51: HI1479 | E51: 105.5828791 | F51: 92.98563998 | G51: 18.87770756 | H51: 17.36353845 | I51: 98.0092477 | J51: 28549.15823 | K51: -652.9620656 | L51: 91.241708 | M51: 3.80877618 | N51: 8.868537865 | O51: 0.9166666667 | P51: 12.16666667 | Q51: 0.8333333333 | R51: 1
A52: 45 | D52: HI1482 | E52: 107.344986 | F52: 93.81767653 | G52: 18.96643124 | H52: 17.75443928 | I52: 100.2157044 | J52: 29351.71787 | K52: 149.5975733 | L52: 91.90228362 | M52: 3.741952688 | N52: 10.23284219 | O52: 4.833333333 | P52: 9.333333333 | Q52: 1.5 | R52: 0.4166666667
A53: 46 | D53: HI1483 | E53: 102.900159 | F53: 88.3253287 | G53: 19.51954442 | H53: 17.04737595 | I53: 96.2246547 | J53: 29133.96637 | K53: -68.15393115 | L53: 92.58296618 | M53: 3.653165039 | N53: 9.434346649 | O53: 0.8333333333 | P53: 9.583333333 | Q53: 0.25 | R53: 3.693334701e-16
A54: 47 | D54: 6K649 | E54: 104.6145542 | F54: 93.81200139 | G54: 19.80058799 | H54: 18.54974473 | I54: 104.7048406 | J54: 31318.47949 | K54: 2116.359196 | L54: 91.90865499 | M54: 3.667356513 | N54: 8.325558122 | O54: 2 | P54: 9.666666667 | Q54: 1.5 | R54: 0.5
A55: 48 | D55: 6K657 | E55: 97.82355988 | F55: 95.18112544 | G55: 19.6145524 | H55: 18.52137594 | I55: 104.5447117 | J55: 30713.03762 | K55: 1510.917323 | L55: 90.6405539 | M55: 3.955773195 | N55: 10.36309734 | O55: 1.25 | P55: 8.416666667 | Q55: 0.9166666667 | R55: 1.333333333
A56: 49 | D56: 6K659 | E56: 101.7700108 | F56: 91.42045966 | G56: 19.42509299 | H56: 17.62672923 | I56: 99.49483949 | J56: 29347.50693 | K56: 145.3866299 | L56: 91.21136005 | M56: 3.735416819 | N56: 9.483217477 | O56: 0.25 | P56: 13.58333333 | Q56: 0.9166666667 | R56: 1.083333333
A57: 50 | D57: 6K660 | E57: 98.78040248 | F57: 97.13079584 | G57: 19.48994016 | H57: 18.85058694 | I57: 106.4029575 | J57: 31374.88258 | K57: 2172.762288 | L57: 91.67717479 | M57: 3.8831222 | N57: 8.389954352 | O57: 1.333333333 | P57: 14.58333333 | Q57: 0.75 | R57: 0.5
A58: 51 | D58: 6K664 | E58: 95.5158283 | F58: 96.06520108 | G58: 18.78023428 | H58: 17.99074104 | I58: 101.54952 | J58: 29030.52572 | K58: -171.5945744 | L58: 90.79460801 | M58: 3.722137428 | N58: 9.645981212 | O58: 1.333333333 | P58: 10.75 | Q58: 0.6666666667 | R58: 1.25
A59: 52 | D59: 6K665 | E59: 95.55737783 | F59: 93.66482227 | G59: 18.91431979 | H59: 17.50987529 | I59: 98.83525235 | J59: 29350.72843 | K59: 148.6081312 | L59: 92.03341401 | M59: 4.066457767 | N59: 8.429906997 | O59: 4.166666667 | P59: 8.916666667 | Q59: 0.4166666667 | R59: 0.9166666667
A60: 53 | D60: 6K697 | E60: 106.1054518 | F60: 92.26270089 | G60: 20.11535058 | H60: 18.40975657 | I60: 103.9146714 | J60: 30631.77701 | K60: 1429.656712 | L60: 90.61017575 | M60: 3.399986795 | N60: 8.413432476 | O60: 0.6666666667 | P60: 8.75 | Q60: 1.166666667 | R60: 2.25
A61: 54 | D61: 6K683 | E61: 104.5740498 | F61: 94.26937417 | G61: 19.60342531 | H61: 18.28490883 | I61: 103.2099628 | J61: 30701.64192 | K61: 1499.52162 | L61: 91.28236612 | M61: 3.521343552 | N61: 8.10692218 | O61: 0.6666666667 | P61: 10.83333333 | Q61: 0.5 | R61: 1.166666667
A62: 55 | D62: 6K685 | E62: 104.6817811 | F62: 90.12577786 | G62: 19.97684864 | H62: 17.91531252 | I62: 101.1237604 | J62: 28991.16758 | K62: -210.9527122 | L62: 89.09416756 | M62: 3.574753246 | N62: 9.148284245 | O62: 0.25 | P62: 10.16666667 | Q62: 0.5 | R62: 0.1666666667
A63: 56 | D63: 6K688 | E63: 101.899029 | F63: 88.95269888 | G63: 19.65132832 | H63: 17.66500536 | I63: 99.71089076 | J63: 28836.6785 | K63: -365.4417934 | L63: 90.97146023 | M63: 3.778288869 | N63: 8.945270991 | O63: 0.25 | P63: 11 | Q63: 0.4166666667 | R63: 0.4166666667
A64: 57 | D64: 6K670 | E64: 97.42807368 | F64: 81.3199802 | G64: 19.4588815 | H64: 15.72641411 | I64: 88.76842818 | J64: 25291.88314 | K64: -3910.237155 | L64: 89.27685243 | M64: 4.037148793 | N64: 12.75056362 | O64: 1.083333333 | P64: 11.25 | Q64: 0.5833333333 | R64: 0.08333333333
A65: 58 | D65: MA2206 | E65: 104.5929939 | F65: 92.52199887 | G65: 19.24011179 | H65: 18.07685735 | I65: 102.0356072 | J65: 29871.07524 | K65: 668.9549388 | L65: 92.54686625 | M65: 3.481162734 | N65: 9.743164845 | O65: 2.916666667 | P65: 10.91666667 | Q65: 0.5833333333 | R65: 2.833333333
A66: 59 | D66: MA2209 | E66: 103.7497666 | F66: 91.21182488 | G66: 19.16539956 | H66: 17.42166292 | I66: 98.33733378 | J66: 29007.38714 | K66: -194.7331589 | L66: 92.03906007 | M66: 3.345536 | N66: 9.302203317 | O66: 3.75 | P66: 11.75 | Q66: 1.25 | R66: 0.5833333333
A67: 60 | D67: MA2213 | E67: 108.5936568 | F67: 91.6937281 | G67: 19.22803308 | H67: 17.63593467 | I67: 99.54679999 | J67: 29511.97118 | K67: 309.8508788 | L67: 92.38721801 | M67: 3.658149701 | N67: 9.606498265 | O67: 1.333333333 | P67: 9.166666667 | Q67: 0.5833333333 | R67: 0.1666666667
A68: 61 | D68: MA4073 | E68: 104.9102839 | F68: 89.26398437 | G68: 19.37471861 | H68: 17.1212639 | I68: 96.64171847 | J68: 28313.2236 | K68: -888.8966965 | L68: 90.96909918 | M68: 3.808461098 | N68: 10.37607736 | O68: 0.75 | P68: 14.16666667 | Q68: 0.8333333333 | R68: 1.333333333
A69: 62 | D69: MA4074 | E69: 105.8412261 | F69: 85.53507089 | G69: 19.37510134 | H69: 16.54512977 | I69: 93.38970431 | J69: 27301.5372 | K69: -1900.583093 | L69: 91.36815316 | M69: 3.645954088 | N69: 10.57120682 | O69: 0.75 | P69: 13.08333333 | Q69: 0.5 | R69: 0.4166666667
A70: 63 | D70: MA4079 | E70: 107.1314219 | F70: 92.08363175 | G70: 19.38985872 | H70: 17.83401837 | I70: 100.664892 | J70: 29760.07609 | K70: 557.9557915 | L70: 92.19463185 | M70: 3.405900473 | N70: 8.757630584 | O70: 0.9166666667 | P70: 11.66666667 | Q70: 0.75 | R70: 8.134226799e-16
A71: 64 | D71: ST 12604 | E71: 100.075718 | F71: 88.87203703 | G71: 19.37900136 | H71: 17.06679232 | I71: 96.33425127 | J71: 28633.26385 | K71: -568.8564452 | L71: 91.95046392 | M71: 3.699848771 | N71: 9.470211183 | O71: 0.3333333333 | P71: 10.33333333 | Q71: 0.4166666667 | R71: 0.3333333333
A72: 65 | D72: ST 12615 | E72: 104.9303833 | F72: 87.17909988 | G72: 19.64308986 | H72: 17.48286685 | I72: 98.68280206 | J72: 28436.07153 | K72: -766.0487689 | L72: 91.3751818 | M72: 3.500257466 | N72: 7.690712581 | O72: 0.4166666667 | P72: 6.666666667 | Q72: 0.4166666667 | R72: 0.08333333333
A73: 66 | D73: ST 12651 | E73: 95.51643169 | F73: 88.33409712 | G73: 19.56786685 | H73: 16.92830371 | I73: 95.55254627 | J73: 28562.68698 | K73: -639.4333149 | L73: 91.27824561 | M73: 3.592564485 | N73: 9.125990224 | O73: 0.5833333333 | P73: 11 | Q73: 0.5833333333 | R73: 0.1666666667
A74: 67 | D74: ST 12658 | E74: 101.400894 | F74: 91.95870161 | G74: 19.24835763 | H74: 17.65022253 | I74: 99.62744847 | J74: 29321.37779 | K74: 119.2574962 | L74: 91.70477239 | M74: 3.490870457 | N74: 8.311227416 | O74: 1.333333333 | P74: 9.083333333 | Q74: 0.4166666667 | R74: 8.134226799e-16
A75: 68 | D75: ST 12664 | E75: 103.1994004 | F75: 86.51579209 | G75: 19.96627772 | H75: 17.17628021 | I75: 96.95226044 | J75: 28911.3745 | K75: -290.7458001 | L75: 91.52932554 | M75: 3.502351371 | N75: 10.63486495 | O75: 0.4166666667 | P75: 9.416666667 | Q75: 0.5833333333 | R75: 0.25
A76: 69 | D76: ST 12668 | E76: 98.33584471 | F76: 91.16544419 | G76: 19.35205889 | H76: 17.92478946 | I76: 101.1772534 | J76: 29372.16592 | K76: 170.0456266 | L76: 91.94481726 | M76: 4.038088538 | N76: 10.42855855 | O76: 5.166666667 | P76: 9 | Q76: 0.5833333333 | R76: 0.08333333333
A77: 70 | D77: ST 12680 | E77: 100.4524959 | F77: 92.32379385 | G77: 19.20708934 | H77: 17.58619859 | I77: 99.26606253 | J77: 29345.46503 | K77: 143.3447355 | L77: 91.54029421 | M77: 3.250562369 | N77: 8.541983362 | O77: 0.3333333333 | P77: 13 | Q77: 0.75 | R77: 0.3333333333
A78: 71 | D78: ST 12682 | E78: 101.5139716 | F78: 86.63628008 | G78: 19.35724084 | H78: 16.64655103 | I78: 93.96218105 | J78: 28042.89025 | K78: -1159.230048 | L78: 92.04331283 | M78: 3.194109783 | N78: 8.709423625 | O78: 0.08333333333 | P78: 9.5 | Q78: 0.5 | R78: 0.9166666667
A79: 72 | D79: ST 15616 | E79: 102.7649516 | F79: 93.54081496 | G79: 18.53290292 | H79: 17.05418935 | I79: 96.26311325 | J79: 27971.78926 | K79: -1230.33104 | L79: 90.65597459 | M79: 3.837050604 | N79: 8.920816329 | O79: 0.9166666667 | P79: 8.5 | Q79: 0.8333333333 | R79: 0.75
A80: 73 | D80: ST 15672 | E80: 98.10031566 | F80: 90.02031252 | G80: 18.94483826 | H80: 16.99596124 | I80: 95.93444217 | J80: 27848.60672 | K80: -1353.513573 | L80: 90.66604472 | M80: 4.07205308 | N80: 10.35282266 | O80: 0.4166666667 | P80: 10.83333333 | Q80: 0.4166666667 | R80: 0.5
A81: 74 | D81: ST 15678 | E81: 101.8535452 | F81: 85.41825366 | G81: 19.75881336 | H81: 16.81981479 | I81: 94.94017587 | J81: 28359.83874 | K81: -842.2815536 | L81: 91.2797541 | M81: 3.366015119 | N81: 8.539544134 | O81: 0.25 | P81: 10.5 | Q81: 0.4166666667 | R81: 7.024003774e-16
A82: 75 | D82: 6K674 | E82: 100.5023851 | F82: 82.37687793 | G82: 19.68903112 | H82: 15.97256653 | I82: 90.1578462 | J82: 25592.84157 | K82: -3609.27873 | L82: 87.29735334 | M82: 3.38422898 | N82: 9.184430167 | O82: 1.166666667 | P82: 10.66666667 | Q82: 0.4166666667 | R82: 0.4166666667
A83: 76 | D83: SV1724 | E83: 100.9782443 | F83: 85.92431937 | G83: 19.78590687 | H83: 16.98430341 | I83: 95.86863904 | J83: 29129.32859 | K83: -72.79170507 | L83: 92.29167638 | M83: 3.608222547 | N83: 9.84799413 | O83: 0.1666666667 | P83: 10.5 | Q83: 1.166666667 | R83: 1.75
A84: 77 | D84: SV1731 | E84: 97.81868319 | F84: 91.8274207 | G84: 18.93276818 | H84: 17.33662009 | I84: 97.85730585 | J84: 29234.09895 | K84: 31.97865286 | L84: 91.61049392 | M84: 3.610518912 | N84: 8.612330363 | O84: 0.4166666667 | P84: 11.16666667 | Q84: 0.6666666667 | R84: 0.3333333333
A85: 78 | D85: SV1747 | E85: 104.779004 | F85: 85.86577603 | G85: 19.24515626 | H85: 16.67565269 | I85: 94.12644663 | J85: 27979.68599 | K85: -1222.434305 | L85: 91.56016293 | M85: 3.335840496 | N85: 9.007556239 | O85: 0.9166666667 | P85: 11.41666667 | Q85: 0.4166666667 | R85: 0.08333333333
A86: 79 | D86: SV1757 | E86: 104.3354058 | F86: 90.69977857 | G86: 19.04732995 | H86: 17.15119052 | I86: 96.81064055 | J86: 29358.67318 | K86: 156.5528847 | L86: 91.87264256 | M86: 3.504453718 | N86: 8.247470074 | O86: 1.333333333 | P86: 8.5 | Q86: 0.9166666667 | R86: 0.1666666667
A87: 80 | D87: SV1765 | E87: 106.5222955 | F87: 90.59204652 | G87: 19.37596631 | H87: 17.43014767 | I87: 98.38522635 | J87: 29821.56995 | K87: 619.4496517 | L87: 91.31417054 | M87: 3.411591236 | N87: 9.900595994 | O87: 0.25 | P87: 11.41666667 | Q87: 0.75 | R87: 1.25
A88: 81 | D88: SV1771 | E88: 101.006308 | F88: 87.55604966 | G88: 19.60914514 | H88: 17.02788678 | I88: 96.11464722 | J88: 29390.80745 | K88: 188.6871511 | L88: 91.02547948 | M88: 3.560960592 | N88: 8.509414217 | O88: 0.4166666667 | P88: 12.33333333 | Q88: 0.4166666667 | R88: 0.1666666667
A89: 82 | D89: SV1779 | E89: 101.1247875 | F89: 88.25802791 | G89: 19.65055882 | H89: 17.26376839 | I89: 97.44609123 | J89: 29979.47956 | K89: 777.3592643 | L89: 91.62305716 | M89: 3.528487742 | N89: 9.800578605 | O89: 0.5 | P89: 9.666666667 | Q89: 0.6666666667 | R89: 1.166666667
A90: 83 | D90: Nemata | E90: 99.67920057 | F90: 83.52390907 | G90: 18.72948172 | H90: 15.56841117 | I90: 87.87657369 | J90: 25867.02595 | K90: -3335.094349 | L90: 89.67730868 | M90: 4.318620926 | N90: 9.931550646 | O90: 4.666666667 | P90: 10.66666667 | Q90: 0.5 | R90: 0.5833333333
A91: LSD | E91: 6.226193518 | F91: 5.184096384 | G91: 0.5039102776 | H91: 1.01780696 | L91: 1.272951388 | M91: 0.2537679379 | N91: 1.582957148 | O91: - | P91: 4.44113745 | Q91: - | R91: -
A92: CV | E92: 4.42734181 | F92: 4.157680155 | G92: 1.906628121 | H92: 4.240559333 | L92: 0.9216843848 | M92: 5.092829895 | N92: 12.25458941 | O92: 243.465185 | P92: 32.47051368 | Q92: 86.40806576 | R92: 253.3741612
A93: PROB | E93: <0.001 | F93: <0.001 | G93: <0.001 | H93: <0.001 | L93: <0.001 | M93: <0.001 | N93: <0.001 | O93: ns | P93: <0.001 | Q93: ns | R93: ns

Sheet Average 2016 untreated
A1: 1 | B1: 2 | C1: 3 | D1: 4 | E1: 6 | F1: 7 | G1: 8 | H1: 9 | I1: 10 | J1: 13 | K1: 19 | L1: 20 | M1: 46 | N1: 40 | O1: 41 | P1: 42 | Q1: 43 | ALL1: 1
E2: 1 | F2: 1 | G2: 1 | H2: 1 | I2: 1 | J2: 1 | K2: 1 | L2: 1 | M2: 1 | N2: 1 | O2: 1 | P2: 1 | Q2: 1
A3: Average 2016 | E3: Plant nr | F3: Rot | G3: Socker | H3: Socker | I3: Socker | J3: Renhet | K3: K/N | L3: Blåtal | M3: Svampresistens | N3: Mjöldagg | O3: Rost | P3: Ramularia | Q3: Cercospora
A4: Untreated | E4: Plant no | F4: Root | G4: Sugar | H4: Sugar | I4: Sugar | J4: Cleaness | L4: Amino-N | M4: untreated/treated | N4: Mildew | O4: Rust | P4: Ramularia | Q4: Cercospora
A5: Expl. | E5: 1 | M5: Leaf diseases | N5: Late | O5: Late | P5: Late | Q5: Late
A6: no trials
A7: Unit | E7: 1000/ha | F7: t/ha | G7: % | H7: t/ha | I7: relativ | J7: % | M7: % | N7: Sc. 1-100 | O7: Sc. 1-100 | P7: Sc. 1-100 | Q7: Sc. 1-100
A8: Avg for * | E8: 104.4876427 | F8: 83.45979975 | G8: 19.0747064 | H8: 15.85585293 | I8: 100 | J8: 90.91285231 | K8: 3.572730576 | L8: 12.19421785 | M8: 89.69610519 | N8: 33.71296296 | O8: 19.7037037 | P8: 9.37037037 | Q8: 0.8055555556
A9: 1 | B9: * | D9: Orlena KWS | E9: 104.2100556 | F9: 90.62780087 | G9: 18.96707436 | H9: 17.07193649 | I9: 107.6696193 | J9: 91.47733423 | K9: 3.942327209 | L9: 13.47538835 | M9: 92.71360865 | N9: 27.41666667 | O9: 18.83333333 | P9: 12.5 | Q9: 1.583333333
A10: 2 | B10: * | D10: Cartoon | E10: 107.0489961 | F10: 81.53637366 | G10: 18.57917777 | H10: 15.10394922 | I10: 95.25787916 | J10: 90.87156687 | K10: 3.379493795 | L10: 12.97651937 | M10: 86.09785502 | N10: 31.91666667 | O10: 22.08333333 | P10: 9.583333333 | Q10: 0.25
A11: 3 | B11: * | D11: Pascalina KWS | E11: 103.6793411 | F11: 80.47782658 | G11: 19.73372623 | H11: 15.75443805 | I11: 99.3603947 | J11: 90.21293794 | K11: 3.55885014 | L11: 11.05492264 | M11: 88.63932083 | N11: 21.08333333 | O11: 19.83333333 | P11: 7.25 | Q11: 1
A12: 5 | B12: * | D12: Cantona KWS | E12: 107.0872085 | F12: 83.96056986 | G12: 19.25256279 | H12: 16.12807541 | I12: 101.716858 | J12: 91.11271328 | K12: 3.502963007 | L12: 10.73037832 | M12: 88.85971743 | N12: 29.16666667 | O12: 17.41666667 | P12: 3.583333333 | Q12: 0.75
A13: 6 | B13: * | D13: SY Muse | E13: 100.2200509 | F13: 83.06510712 | G13: 18.50493128 | H13: 15.31112636 | I13: 96.56450792 | J13: 90.69743133 | K13: 3.569075238 | L13: 13.12322488 | M13: 91.03658664 | N13: 35.83333333 | O13: 19.5 | P13: 10.08333333 | Q13: 0.5
A14: 7 | B14: * | D14: Kudu | E14: 104.7263932 | F14: 81.92857385 | G14: 19.3246725 | H14: 15.81549997 | I14: 99.74550114 | J14: 91.23484573 | K14: 3.408818538 | L14: 10.821434 | M14: 90.86263403 | N14: 38.16666667 | O14: 21 | P14: 10.66666667 | Q14: 1.333333333
A15: 8 | B15: * | D15: Darnella KWS | E15: 105.8574796 | F15: 85.2567936 | G15: 18.77743297 | H15: 15.98350688 | I15: 100.8050904 | J15: 91.10751305 | K15: 3.856560793 | L15: 13.42655929 | M15: 88.19061615 | N15: 29 | O15: 22.83333333 | P15: 10.16666667 | Q15: 1
A16: 9 | B16: * | D16: Diesel | E16: 105.1666017 | F16: 83.26433392 | G16: 19.26788113 | H16: 16.02732898 | I16: 101.0814685 | J16: 90.22702604 | K16: 3.264313276 | L16: 10.15440995 | M16: 91.53081164 | N16: 46.66666667 | O16: 15.08333333 | P16: 9.333333333 | Q16: 0.08333333333
A17: 10 | B17: * | D17: Lombok | E17: 102.3926578 | F17: 81.02081831 | G17: 19.26489858 | H17: 15.50681499 | I17: 97.79868079 | J17: 91.27430233 | K17: 3.67217319 | L17: 13.98512381 | M17: 89.33379637 | N17: 44.16666667 | O17: 20.75 | P17: 11.16666667 | Q17: 0.75
A18: 11 | D18: Dexter | E18: 107.2871513 | F18: 82.23370947 | G18: 18.74692975 | H18: 15.43629132 | I18: 97.35390069 | J18: 91.00109119 | K18: 3.445914988 | L18: 12.07374573 | M18: 89.93843229 | N18: 34.58333333 | O18: 23.5 | P18: 10 | Q18: 0.75
A19: 12 | C19: o | D19: Ragna KWS | E19: 98.3148466 | F19: 87.57079617 | G19: 18.7143516 | H19: 16.35706112 | I19: 103.1610295 | J19: 91.99577981 | K19: 3.412406093 | L19: 12.06847749 | M19: 90.28017291 | N19: 30.83333333 | O19: 20.83333333 | P19: 6.666666667 | Q19: 1.5
A20: 13 | C20: o | D20: Daphna | E20: 104.2953419 | F20: 90.66456784 | G20: 18.73549694 | H20: 16.96798963 | I20: 107.0140452 | J20: 91.70086009 | K20: 3.787992629 | L20: 13.27199787 | M20: 90.12800304 | N20: 24.83333333 | O20: 16.91666667 | P20: 9.916666667 | Q20: 1.833333333
A21: 14 | C21: o | D21: Smilla KWS | E21: 105.7892793 | F21: 87.31275576 | G21: 19.25727982 | H21: 16.77891939 | I21: 105.8216134 | J21: 91.79868851 | K21: 4.028135433 | L21: 11.83262441 | M21: 93.91153145 | N21: 32.16666667 | O21: 17.41666667 | P21: 8.583333333 | Q21: 2.166666667
A22: 15 | C22: o | D22: Kashmir | E22: 106.0338793 | F22: 87.43369223 | G22: 18.74419404 | H22: 16.32721502 | I22: 102.9727956 | J22: 90.9986287 | K22: 3.42140653 | L22: 11.7730282 | M22: 92.85613817 | N22: 39.41666667 | O22: 24.5 | P22: 7.25 | Q22: 0.6666666667
A23: 16 | D23: Degas | E23: 108.6819179 | F23: 82.14037228 | G23: 18.95394599 | H23: 15.46023116 | I23: 97.504885 | J23: 90.57730448 | K23: 3.427847191 | L23: 11.88032242 | M23: 88.87594861 | N23: 47.5 | O23: 23 | P23: 7.916666667 | Q23: 0.3333333333
A24: 17 | C24: o | D24: Klimt | E24: 102.2105061 | F24: 88.12201632 | G24: 19.21669244 | H24: 16.8559007 | I24: 106.3071206 | J24: 90.9528087 | K24: 3.15892431 | L24: 9.680187479 | M24: 93.15902582 | N24: 43.58333333 | O24: 18.08333333 | P24: 8.25 | Q24: 0.5
A25: 18 | D25: Landon | E25: 106.4300753 | F25: 82.21875522 | G25: 19.27668576 | H25: 15.81705947 | I25: 99.75533665 | J25: 91.69680492 | K25: 3.190688394 | L25: 11.13724289 | M25: 89.31149778 | N25: 39.66666667 | O25: 20.25 | P25: 9.166666667 | Q25: 1.75
A26: 19 | D26: Piculet | E26: 95.96114891 | F26: 78.3542702 | G26: 19.28308245 | H26: 15.12035773 | I26: 95.36136467 | J26: 91.27056198 | K26: 3.370790307 | L26: 10.35104098 | M26: 89.80048719 | N26: 37.91666667 | O26: 20.08333333 | P26: 11.41666667 | Q26: 0.3333333333
A27: 20 | D27: Mustang | E27: 107.7478353 | F27: 82.77072538 | G27: 19.15120892 | H27: 15.79888922 | I27: 99.64074016 | J27: 91.10342692 | K27: 3.503715084 | L27: 11.9998891 | M27: 89.61486027 | N27: 40.83333333 | O27: 23.91666667 | P27: 12 | Q27: 0.1666666667
A28: 21 | D28: Maxine | E28: 106.9866602 | F28: 80.19993157 | G28: 19.2841471 | H28: 15.37585339 | I28: 96.97272961 | J28: 91.5127443 | K28: 3.579002474 | L28: 12.49054245 | M28: 87.62933721 | N28: 40.25 | O28: 24.41666667 | P28: 11.5 | Q28: 0.4166666667
A29: 22 | D29: Illusion | E29: 109.0324267 | F29: 90.12904031 | G29: 18.84212094 | H29: 16.90948975 | I29: 106.6450971 | J29: 90.44953796 | K29: 3.843022558 | L29: 12.68165919 | M29: 93.45217753 | N29: 33.33333333 | O29: 21.58333333 | P29: 7.916666667 | Q29: 0.8333333333
A30: 23 | D30: Thyra KWS | E30: 88.61408821 | F30: 79.72629839 | G30: 20.16219446 | H30: 16.07558128 | I30: 101.385787 | J30: 91.79880409 | K30: 3.877311058 | L30: 13.30878334 | M30: 92.0555808 | N30: 41.25 | O30: 14.66666667 | P30: 8.75 | Q30: 2.666666667
A31: 24 | D31: Farina KWS | E31: 109.559709 | F31: 86.23585612 | G31: 19.0500558 | H31: 16.41319964 | I31: 103.515085 | J31: 90.299314 | K31: 3.888733439 | L31: 13.60791907 | M31: 90.34222119 | N31: 13.66666667 | O31: 20.16666667 | P31: 8.833333333 | Q31: 1.916666667
A32: 25 | D32: Fuga KWS | E32: 107.5107065 | F32: 77.99692037 | G32: 19.7972903 | H32: 15.40414031 | I32: 97.15113011 | J32: 89.33288323 | K32: 3.417869258 | L32: 10.27203174 | M32: 83.37732194 | N32: 24.66666667 | O32: 19.91666667 | P32: 5.5 | Q32: 0.8333333333
A33: 26 | D33: Selma KWS | E33: 103.3455243 | F33: 86.86862797 | G33: 19.41627014 | H33: 16.8186118 | I33: 106.0719463 | J33: 91.06105136 | K33: 3.434466174 | L33: 11.96844537 | M33: 90.20029044 | N33: 35.83333333 | O33: 30.33333333 | P33: 3 | Q33: 0.4166666667
A34: 27 | D34: Caporal | E34: 101.7327387 | F34: 85.03673787 | G34: 18.84360367 | H34: 15.91037279 | I34: 100.3438469 | J34: 92.00098598 | K34: 3.375421438 | L34: 12.10553499 | M34: 90.40390065 | N34: 35 | O34: 22 | P34: 10.5 | Q34: 0.3333333333
A35: 28 | D35: Davinci | E35: 103.1996472 | F35: 83.0570666 | G35: 19.03406978 | H35: 15.80778562 | I35: 99.69684818 | J35: 89.9316905 | K35: 3.611574461 | L35: 11.85934516 | M35: 87.84440686 | N35: 44.41666667 | O35: 16 | P35: 13.08333333 | Q35: 3
A36: 29 | D36: Joker | E36: 107.2175148 | F36: 80.57372372 | G36: 19.097734 | H36: 15.38473635 | I36: 97.02875287 | J36: 91.57668158 | K36: 3.393084073 | L36: 9.209216739 | M36: 86.68803892 | N36: 42.91666667 | O36: 20.25 | P36: 8.75 | Q36: 0.1666666667
A37: 30 | D37: Kahn | E37: 107.8831192 | F37: 80.22565262 | G37: 19.18664775 | H37: 15.30678715 | I37: 96.53714132 | J37: 90.18137669 | K37: 3.623339668 | L37: 11.44775274 | M37: 91.36798228 | N37: 43.75 | O37: 20.5 | P37: 9.666666667 | Q37: 0.4166666667
A38: 31 | D38: Einar | E38: 100.7264996 | F38: 83.16928722 | G38: 19.57154895 | H38: 16.23286339 | I38: 102.3777369 | J38: 91.75469805 | K38: 3.161560038 | L38: 10.07384852 | M38: 96.51476514 | N38: 39.83333333 | O38: 18.33333333 | P38: 4.333333333 | Q38: 1.083333333
A39: 32 | D39: Curie | E39: 97.9175303 | F39: 80.28097554 | G39: 19.18392253 | H39: 15.37705812 | I39: 96.98032763 | J39: 96.13985097 | K39: 3.305416362 | L39: 10.79706755 | M39: 89.11373461 | N39: 34.83333333 | O39: 17.5 | P39: 11.08333333 | Q39: 1.916666667
A40: 33 | D40: Bazin | E40: 104.0871693 | F40: 85.65367343 | G40: 18.74570637 | H40: 16.04706904 | I40: 101.2059655 | J40: 90.65671316 | K40: 3.892505121 | L40: 12.39781954 | M40: 96.94586932 | N40: 34 | O40: 19.41666667 | P40: 8.666666667 | Q40: 0.3333333333
A41: 34 | D41: Bonola | E41: 101.7975174 | F41: 80.14456084 | G41: 18.88535295 | H41: 14.89597471 | I41: 93.94622149 | J41: 91.56367133 | K41: 3.601686236 | L41: 13.8155726 | M41: 86.87767947 | N41: 38.25 | O41: 29.33333333 | P41: 10.25 | Q41: 1
A42: 35 | D42: Whisky | E42: 101.2462222 | F42: 83.30804769 | G42: 19.35090209 | H42: 16.02638547 | I42: 101.0755179 | J42: 91.32282743 | K42: 3.475031988 | L42: 12.37462835 | M42: 89.76039437 | N42: 43.16666667 | O42: 21.33333333 | P42: 9.416666667 | Q42: 0.9166666667
A43: 36 | D43: HI1427 | E43: 105.7655901 | F43: 85.44527236 | G43: 19.06837547 | H43: 15.91089789 | I43: 100.3471586 | J43: 91.80097701 | K43: 3.828733672 | L43: 12.60361159 | M43: 91.74666687 | N43: 30.5 | O43: 18.16666667 | P43: 2.75 | Q43: 0.08333333333
A44: 37 | D44: HI1469 | E44: 107.8424596 | F44: 82.64424965 | G44: 19.2683217 | H44: 15.89530956 | I44: 100.2488459 | J44: 91.44236351 | K44: 3.259201597 | L44: 10.13755565 | M44: 88.88972229 | N44: 40.83333333 | O44: 24.83333333 | P44: 8.583333333 | Q44: 0.3333333333
A45: 38 | D45: HI1470 | E45: 109.2269627 | F45: 83.25644482 | G45: 18.75601356 | H45: 15.50688775 | I45: 97.79913966 | J45: 90.41828275 | K45: 3.854679555 | L45: 14.42290169 | M45: 87.06420615 | N45: 36.5 | O45: 22.16666667 | P45: 7.583333333 | Q45: 0.1666666667
A46: 39 | D46: HI1473 | E46: 106.4603368 | F46: 79.37290322 | G46: 19.55357961 | H46: 15.49164415 | I46: 97.703001 | J46: 90.97908948 | K46: 3.472229571 | L46: 12.54643364 | M46: 86.81143365 | N46: 46.66666667 | O46: 24.41666667 | P46: 10.16666667 | Q46: 0.25
A47: 40 | D47: HI1474 | E47: 108.5107565 | F47: 82.59234857 | G47: 19.26519633 | H47: 15.91131448 | I47: 100.3497859 | J47: 91.08541263 | K47: 3.382442929 | L47: 10.1559038 | M47: 93.15415213 | N47: 50.66666667 | O47: 24.16666667 | P47: 7 | Q47: 1
A48: 41 | D48: HI1475 | E48: 108.9429752 | F48: 85.10698151 | G48: 19.16210017 | H48: 16.24262791 | I48: 102.4393199 | J48: 91.90882193 | K48: 3.617020369 | L48: 11.04431941 | M48: 90.02602157 | N48: 43.33333333 | O48: 22.58333333 | P48: 10.5 | Q48: 0.6666666667
A49: 42 | D49: HI1476 | E49: 107.6665065 | F49: 77.72272791 | G49: 19.73525771 | H49: 15.29174551 | I49: 96.44227641 | J49: 89.34814255 | K49: 3.630142616 | L49: 12.73177501 | M49: 88.64373748 | N49: 46.66666667 | O49: 25.41666667 | P49: 12.08333333 | Q49: 0.1666666667
A50: 43 | D50: HI1478 | E50: 103.8943926 | F50: 76.67050085 | G50: 18.89291025 | H50: 14.4136395 | I50: 90.90422042 | J50: 90.9291782 | K50: 3.224638606 | L50: 11.71064693 | M50: 87.13746072 | N50: 47.91666667 | O50: 24.08333333 | P50: 8.833333333 | Q50: 3.5
A51: 44 | D51: HI1479 | E51: 106.3490179 | F51: 81.68075303 | G51: 18.82135903 | H51: 15.23518525 | I51: 96.08556107 | J51: 90.11490855 | K51: 3.672081287 | L51: 12.34810096 | M51: 87.8778144 | N51: 37.75 | O51: 26.83333333 | P51: 9.166666667 | Q51: 0.6666666667
A52: 45 | D52: HI1482 | E52: 108.2277544 | F52: 81.87195288 | G52: 18.67724062 | H52: 15.28968509 | I52: 96.42928169 | J52: 91.61835346 | K52: 3.593199656 | L52: 12.80479693 | M52: 86.10844439 | N52: 44.41666667 | O52: 24.83333333 | P52: 11.08333333 | Q52: 1.083333333
A53: 46 | D53: HI1483 | E53: 107.45602 | F53: 85.37065597 | G53: 18.90078232 | H53: 16.12691328 | I53: 101.7095287 | J53: 92.0761095 | K53: 3.484122527 | L53: 10.48593884 | M53: 95.49255007 | N53: 37.08333333 | O53: 24 | P53: 7.333333333 | Q53: 0.25
A54: 47 | D54: 6K649 | E54: 106.5079766 | F54: 81.8037502 | G54: 19.85692072 | H54: 16.23684492 | I54: 102.4028477 | J54: 91.03154669 | K54: 3.57885227 | L54: 11.20853182 | M54: 87.57139368 | N54: 44.16666667 | O54: 23 | P54: 6.833333333 | Q54: 0.75
A55: 48 | D55: 6K657 | E55: 103.6134134 | F55: 86.91429569 | G55: 19.5390588 | H55: 16.94092181 | I55: 106.8433334 | J55: 90.11502336 | K55: 3.777665789 | L55: 12.39676521 | M55: 91.6937762 | N55: 43.75 | O55: 23 | P55: 9.333333333 | Q55: 0.5833333333
A56: 49 | D56: 6K659 | E56: 102.1964161 | F56: 81.19044569 | G56: 19.16942675 | H56: 15.53449382 | I56: 97.97324615 | J56: 90.89198115 | K56: 3.571461664 | L56: 9.738480657 | M56: 88.23592569 | N56: 47.75 | O56: 31.33333333 | P56: 7.5 | Q56: 0.3333333333
A57: 50 | D57: 6K660 | E57: 102.9850933 | F57: 84.27353863 | G57: 18.91865039 | H57: 15.82952289 | I57: 99.83394121 | J57: 90.23278714 | K57: 3.863349412 | L57: 11.37556134 | M57: 83.89588915 | N57: 31.5 | O57: 34 | P57: 3.833333333 | Q57: 0.6666666667
A58: 51 | D58: 6K664 | E58: 98.34756506 | F58: 84.111227 | G58: 18.97196138 | H58: 15.8798071 | I58: 100.1510746 | J58: 90.89450781 | K58: 3.74950944 | L58: 13.09619177 | M58: 88.19621979 | N58: 28.83333333 | O58: 20.83333333 | P58: 1.083333333 | Q58: 0.5833333333
A59: 52 | D59: 6K665 | E59: 98.11123636 | F59: 82.12560239 | G59: 18.94847024 | H59: 15.57620995 | I59: 98.23634222 | J59: 90.94912793 | K59: 3.83930291 | L59: 10.39967245 | M59: 89.12350693 | N59: 40 | O59: 22.16666667 | P59: 3.083333333 | Q59: 0.9166666667
A60: 53 | D60: 6K697 | E60: 108.0980771 | F60: 82.75873736 | G60: 20.24865787 | H60: 16.66414849 | I60: 105.097774 | J60: 89.09250508 | K60: 3.409155618 | L60: 9.998215167 | M60: 90.63651845 | N60: 25.91666667 | O60: 20.91666667 | P60: 4.333333333 | Q60: 1.416666667
A61: 54 | D61: 6K683 | E61: 106.0657743 | F61: 88.2785748 | G61: 19.13745045 | H61: 16.87289976 | I61: 106.4143306 | J61: 91.12255652 | K61: 3.498180301 | L61: 9.608586654 | M61: 92.89893942 | N61: 23.83333333 | O61: 22.66666667 | P61: 4.083333333 | Q61: 1.166666667
A62: 55 | D62: 6K685 | E62: 106.2498172 | F62: 81.87837573 | G62: 19.81869168 | H62: 16.1568306 | I62: 101.8982118 | J62: 88.52493664 | K62: 3.48980989 | L62: 10.42735277 | M62: 90.23990739 | N62: 35.41666667 | O62: 25 | P62: 1.083333333 | Q62: 0.1666666667
A63: 56 | D63: 6K688 | E63: 102.9157083 | F63: 81.77768264 | G63: 19.38217682 | H63: 15.91074353 | I63: 100.3461851 | J63: 89.45549918 | K63: 3.927433036 | L63: 11.93755592 | M63: 90.56400608 | N63: 34 | O63: 22.25 | P63: 1.916666667 | Q63: 0.75
A64: 57 | D64: 6K670 | E64: 103.2748701 | F64: 69.4794288 | G64: 19.32036085 | H64: 13.33838791 | I64: 84.12280288 | J64: 85.58618219 | K64: 3.866587427 | L64: 12.83783695 | M64: 84.89495436 | N64: 39.83333333 | O64: 24.25 | P64: 9.166666667 | Q64: 1.166666667
A65: 58 | D65: MA2206 | E65: 105.6346124 | F65: 82.70026996 | G65: 19.15201536 | H65: 15.80099578 | I65: 99.65402588 | J65: 91.7098245 | K65: 3.424907579 | L65: 12.27278298 | M65: 87.84298559 | N65: 42.75 | O65: 26.33333333 | P65: 12.75 | Q65: 0.3333333333
A66: 59 | D66: MA2209 | E66: 103.4856841 | F66: 80.18616402 | G66: 18.60404367 | H66: 14.89854912 | I66: 93.96245779 | J66: 91.44812169 | K66: 3.188079163 | L66: 12.1934003 | M66: 85.76522055 | N66: 50.83333333 | O66: 26.75 | P66: 12.08333333 | Q66: 0.1666666667
A67: 60 | D67: MA2213 | E67: 108.3350128 | F67: 81.43942155 | G67: 19.28403856 | H67: 15.7215353 | I67: 99.15288296 | J67: 91.64370911 | K67: 3.486559941 | L67: 12.41957822 | M67: 89.3985687 | N67: 38.41666667 | O67: 21.5 | P67: 13.25 | Q67: 0.25
A68: 61 | D68: MA4073 | E68: 106.5542796 | F68: 77.67444125 | G68: 19.26139227 | H68: 14.90843895 | I68: 94.02483121 | J68: 89.773325 | K68: 3.495168843 | L68: 12.56444857 | M68: 87.28222439 | N68: 46.5 | O68: 28.08333333 | P68: 9 | Q68: 0.1666666667
A69: 62 | D69: MA4074 | E69: 106.5407573 | F69: 77.40107628 | G69: 18.84252328 | H69: 14.74389828 | I69: 92.9871029 | J69: 90.44713683 | K69: 3.603873391 | L69: 15.49460357 | M69: 72.51654604 | N69: 50.83333333 | O69: 31.91666667 | P69: 3.75 | Q69: 0.3333333333
A70: 63 | D70: MA4079 | E70: 105.352058 | F70: 80.16438519 | G70: 19.30612272 | H70: 15.41691216 | I70: 97.23167983 | J70: 91.62119256 | K70: 3.422817487 | L70: 11.76824161 | M70: 86.81468026 | N70: 40.5 | O70: 26.41666667 | P70: 11.66666667 | Q70: -3.682357154e-16
A71: 64 | D71: ST 12604 | E71: 100.244022 | F71: 76.81794358 | G71: 18.98328246 | H71: 14.69691443 | I71: 92.69078425 | J71: 90.39077201 | K71: 3.570948052 | L71: 12.74325011 | M71: 70.03481247 | N71: 39 | O71: 24.33333333 | P71: 9.833333333 | Q71: 0.5
A72: 65 | D72: ST 12615 | E72: 103.5309734 | F72: 81.07678018 | G72: 19.19933773 | H72: 15.62386523 | I72: 98.5368955 | J72: 90.39381082 | K72: 3.529745426 | L72: 11.27384723 | M72: 89.57866966 | N72: 34.16666667 | O72: 20.83333333 | P72: 8.333333333 | Q72: 0.3333333333
A73: 66 | D73: ST 12651 | E73: 95.89898124 | F73: 78.82019024 | G73: 19.19782619 | H73: 15.07509596 | I73: 95.07590684 | J73: 91.08560262 | K73: 3.465096037 | L73: 11.99088821 | M73: 89.08134756 | N73: 29 | O73: 25.25 | P73: 7.5 | Q73: 0.3333333333
A74: 67 | D74: ST 12658 | E74: 102.8713642 | F74: 81.98738818 | G74: 19.4155203 | H74: 15.90045287 | I74: 100.2812838 | J74: 90.72992245 | K74: 3.382504873 | L74: 10.99401302 | M74: 90.21696828 | N74: 42.91666667 | O74: 18.16666667 | P74: 8.833333333 | Q74: 0.4166666667
A75: 68 | D75: ST 12664 | E75: 102.7340453 | F75: 76.90133085 | G75: 19.66587604 | H75: 15.05542004 | I75: 94.95181434 | J75: 91.00371352 | K75: 3.469301805 | L75: 13.12363157 | M75: 87.545166 | N75: 37.91666667 | O75: 22.08333333 | P75: 9.916666667 | Q75: 0.4166666667
A76: 69 | D76: ST 12668 | E76: 98.70214718 | F76: 80.61191878 | G76: 18.88091941 | H76: 15.14430024 | I76: 95.5123657 | J76: 90.85332693 | K76: 3.751932054 | L76: 14.34383225 | M76: 84.52160144 | N76: 45.25 | O76: 29.41666667 | P76: 7.5 | Q76: 0.75
A77: 70 | D77: ST 12680 | E77: 100.5818036 | F77: 82.59993954 | G77: 19.20318283 | H77: 15.80207581 | I77: 99.6608374 | J77: 91.46289681 | K77: 3.10913803 | L77: 12.84811575 | M77: 90.02948308 | N77: 40 | O77: 29 | P77: 9.583333333 | Q77: 4.25
A78: 71 | D78: ST 12682 | E78: 102.9752918 | F78: 80.93962519 | G78: 18.98297263 | H78: 15.306275 | I78: 96.53391126 | J78: 90.67934741 | K78: 3.161325063 | L78: 10.81266293 | M78: 92.3815551 | N78: 39.16666667 | O78: 22 | P78: 9.666666667 | Q78: 0.08333333333
A79: 72 | D79: ST 15616 | E79: 103.5806151 | F79: 82.48750338 | G79: 18.25019219 | H79: 14.96354039 | I79: 94.37234601 | J79: 90.9308157 | K79: 3.825659874 | L79: 12.52051162 | M79: 88.12250191 | N79: 41.5 | O79: 18.08333333 | P79: 11.25 | Q79: 1.166666667
A80: 73 | D80: ST 15672 | E80: 97.63473759 | F80: 83.79779134 | G80: 18.82471068 | H80: 15.73916081 | I80: 99.26404389 | J80: 90.14624387 | K80: 3.968354848 | L80: 13.5942739 | M80: 92.86172783 | N80: 27.5 | O80: 21.5 | P80: 7.75 | Q80: 0.3333333333
A81: 74 | D81: ST 15678 | E81: 105.3330223 | F81: 78.7475671 | G81: 19.60486182 | H81: 15.59892105 | I81: 98.37957706 | J81: 90.55161876 | K81: 3.200386155 | L81: 11.25088628 | M81: 93.16770277 | N81: 28.16666667 | O81: 22.5 | P81: 4.416666667 | Q81: 0.08333333333
A82: 75 | D82: 6K674 | E82: 102.9030353 | F82: 71.03750947 | G82: 19.7669397 | H82: 14.10996034 | I82: 88.98897086 | J82: 84.84372637 | K82: 3.107305695 | L82: 10.21306501 | M82: 88.33700556 | N82: 33.33333333 | O82: 21.41666667 | P82: 6.916666667 | Q82: 1.333333333
A83: 76 | D83: SV1724 | E83: 104.0082716 | F83: 78.17492045 | G83: 19.55886862 | H83: 15.18993262 | I83: 95.80016092 | J83: 91.568919 | K83: 3.363954607 | L83: 12.21021932 | M83: 89.557409 | N83: 39.25 | O83: 27.58333333 | P83: 14.41666667 | Q83: 0.3333333333
A84: 77 | D84: SV1731 | E84: 99.82729943 | F84: 83.08725812 | G84: 19.01852633 | H84: 15.79379937 | I84: 99.60863942 | J84: 90.38956353 | K84: 3.570953422 | L84: 10.88015328 | M84: 91.13517752 | N84: 37.5 | O84: 25.08333333 | P84: 6.583333333 | Q84: 0.25
A85: 78 | D85: SV1747 | E85: 105.1313305 | F85: 77.71049941 | G85: 19.07200115 | H85: 14.73849716 | I85: 92.95303901 | J85: 90.859742 | K85: 3.223005629 | L85: 11.47930638 | M85: 88.37118558 | N85: 42.08333333 | O85: 23.75 | P85: 3.916666667 | Q85: 0.3333333333
A86: 79 | D86: SV1757 | E86: 106.9894991 | F86: 83.69203962 | G86: 19.03162236 | H86: 15.94870159 | I86: 100.5855797 | J86: 91.11776282 | K86: 3.492943674 | L86: 10.29237956 | M86: 93.16312373 | N86: 41.66666667 | O86: 17.58333333 | P86: 9.916666667 | Q86: 0.3333333333
A87: 80 | D87: SV1765 | E87: 106.5168124 | F87: 82.26804218 | G87: 19.27226575 | H87: 15.88558336 | I87: 100.1875045 | J87: 90.90007933 | K87: 3.353305448 | L87: 11.97567848 | M87: 91.32874085 | N87: 35.83333333 | O87: 24.83333333 | P87: 9.833333333 | Q87: 0.4166666667
A88: 81 | D88: SV1771 | E88: 103.3344445 | F88: 82.84498018 | G88: 19.51182757 | H88: 16.1159248 | I88: 101.6402263 | J88: 91.39204356 | K88: 3.381687085 | L88: 11.07490361 | M88: 95.25492404 | N88: 42.08333333 | O88: 27.25 | P88: 7.416666667 | Q88: 0.08333333333
A89: 82 | D89: SV1779 | E89: 104.1358945 | F89: 80.36591623 | G89: 19.35213551 | H89: 15.59851309 | I89: 98.37700409 | J89: 89.86670597 | K89: 3.517908906 | L89: 11.58905464 | M89: 90.34213707 | N89: 47.08333333 | O89: 24 | P89: 8.416666667 | Q89: 2.583333333
A90: 83 | D90: Nemata | E90: 101.4072647 | F90: 70.66993355 | G90: 18.17133025 | H90: 12.81268397 | I90: 80.80728311 | J90: 89.58024806 | K90: 4.197997404 | L90: 13.17256588 | M90: 82.22375286 | N90: 44.99876543 | O90: 30.60452675 | P90: 1.378806584 | Q90: 0.05740740741
A91: LSD | E91: 5.42951104 | F91: 5.41376827 | G91: 0.5248966416 | H91: 1.032499243 | J91: 2.41578696 | K91: 0.2206108744 | L91: 1.99378756 | M91: 11.55123861 | N91: 14.23966478 | O91: 8.28045252 | P91: 8.363603199 | Q91: -
A92: CV | E92: 3.816487357 | F92: 4.832101921 | G92: 1.999987351 | H92: 4.811956976 | J92: 1.774068248 | K92: 4.545200969 | L92: 12.25738903 | M92: 9.452635221 | N92: 27.44425274 | O92: 26.54795976 | P92: 73.54782066 | Q92: 230.3924054
A93: PROB | E93: <0.001 | F93: <0.001 | G93: <0.001 | H93: <0.001 | J93: <0.001 | K93: <0.001 | L93: <0.001 | M93: <0.05 | N93: <0.001 | O93: <0.001 | P93: <0.05 | Q93: ns

Sheet NYBO 110 all
A1: 1 | B1: 2 | C1: 3 | D1: 4 | E1: 5 | F1: 6 | G1: 7 | H1: 8 | I1: 9 | J1: 10 | K1: 13 | L1: 14 | M1: 19 | N1: 20 | O1: 27 | P1: 32 | Q1: 44 | R1: 45 | AKY1: 1
E2: 110 | F2: 110 | G2: 110 | H2: 110 | I2: 110 | J2: 110 | K2: 110 | L2: 110 | M2: 110 | N2: 110 | O2: 110 | P2: 110 | Q2: 110 | R2: 110
A3: Series 102 (trial no 110) | E3: Plant nr | F3: Plant nr | G3: Rot | H3: Socker | I3: Socker | J3: Socker | K3: Renhet | L3: Rotfåra | M3: K/N | N3: Blåtal | O3: Fröstockar | P3: Aphanomyces | Q3: Dubletter | R3: Pellar
A4: Nyboholm | E4: Plant no | F4: Plant no | G4: Root | H4: Sugar | I4: Sugar | J4: Sugar | K4: Cleaness | L4: Groove | N4: Amino-N | O4: Bolters | P4: Aphanomyces | Q4: Duplets | R4: Sec.gen
A5: Expl. | E5: 0.5 | F5: 1 | O5: Sum | P5: At factory
A6: no trials
A7: Unit | E7: 1000/ha | F7: 1000/ha | G7: t/ha | H7: % | I7: t/ha | J7: relativ | K7: % | L7: Sc. 1-9 | O7: ‰ | P7: Sc. 1-9 | Q7: 1000/ha | R7: 1000/ha
A8: Avg for * | E8: 71.65786502 | F8: 99.54024202 | G8: 87.51817731 | H8: 18.4712786 | I8: 16.14441355 | J8: 100 | K8: 90.77692288 | L8: 5.910254092 | M8: 3.54977684 | N8: 11.76213221 | O8: 0.3561253561 | P8: 2.888888889 | Q8: 0.4417528385 | R8: 2.528376951
A9: 1 | B9: * | D9: Orlena KWS | E9: 71.6467148 | F9: 102.3125582 | G9: 95.62822814 | H9: 18.43316629 | I9: 17.59531108 | J9: 108.9869943 | K9: 91.09741187 | L9: 5.67885289 | M9: 3.586742446 | N9: 11.72794526 | O9: 3.205128205 | P9: 3 | Q9: 0.3255208333 | R9: 1.953125
A10: 2 | B10: * | D10: Cartoon | E10: 74.62121997 | F10: 98.67068608 | G10: 86.04542385 | H10: 18.1992199 | I10: 15.66085216 | J10: 97.00477578 | K10: 90.74962016 | L10: 5.75 | M10: 3.541676593 | N10: 13.95487131 | O10: 1.229214213e-17 | P10: 3 | Q10: 0.3255208333 | R10: 2.604166667
A11: 3 | B11: * | D11: Pascalina KWS | E11: 68.31884673 | F11: 102.0794616 | G11: 85.05372745 | H11: 18.71188837 | I11: 15.88513043 | J11: 98.39397624 | K11: 90.29167982 | L11: 5 | M11: 3.529047431 | N11: 9.757061108 | O11: 1.229214213e-17 | P11: 2.5 | Q11: 0.3255208333 | R11: 2.278645833
A12: 5 | B12: * | D12: Cantona KWS | E12: 76.66126118 | F12: 101.1113773 | G12: 87.35964591 | H12: 18.77402779 | I12: 16.41508761 | J12: 101.6765804 | K12: 90.73875347 | L12: 5.5 | M12: 3.598839963 | N12: 10.21345494 | O12: -2.097524628e-16 | P12: 2.75 | Q12: 1.302083333 | R12: 3.580729167
A13: 6 | B13: * | D13: SY Muse | E13: 46.67790654 | F13: 99.8108196 | G13: 87.28915926 | H13: 18.09160802 | I13: 15.7980699 | J13: 97.85471519 | K13: 90.2471648 | L13: 6.26343394 | M13: 3.622654933 | N13: 13.97567345 | O13: -9.873016033e-17 | P13: 2.75 | Q13: 0.3255208333 | R13: 4.557291667
A14: 7 | B14: * | D14: Kudu | E14: 84.8036087 | F14: 101.419281 | G14: 89.29275558 | H14: 18.87652648 | I14: 16.83147598 | J14: 104.2557286 | K14: 91.40903436 | L14: 6.25 | M14: 3.555707313 | N14: 10.81129593 | O14: -9.873016033e-17 | P14: 3.5 | Q14: 0.3255208333 | R14: 0.9765625
A15: 8 | B15: * | D15: Darnella KWS | E15: 84.19332613 | F15: 94.75475938 | G15: 85.34065933 | H15: 18.26176604 | I15: 15.50120213 | J15: 96.01588862 | K15: 90.77027361 | L15: 5.25 | M15: 3.638401034 | N15: 12.90967392 | O15: 1.229214213e-17 | P15: 3 | Q15: 0.3255208333 | R15: 3.255208333
A16: 9 | B16: * | D16: Diesel | E16: 69.36617071 | F16: 95.81687985 | G16: 84.11269215 | H16: 18.58467707 | I16: 15.62032042 | J16: 96.7537184 | K16: 90.71166546 | L16: 6.75 | M16: 3.316586486 | N16: 9.806256269 | O16: 1.229214213e-17 | P16: 2.75 | Q16: 0.6510416667 | R16: 1.627604167
A17: 10 | B17: * | D17: Lombok | E17: 68.63173038 | F17: 99.88635506 | G17: 87.5413041 | H17: 18.30862745 | I17: 15.99227223 | J17: 99.05762248 | K17: 90.9767024 | L17: 6.75 | M17: 3.558335361 | N17: 12.70295772 | O17: 1.229214213e-17 | P17: 2.75 | Q17: 0.06952554668 | R17: 1.922059226
A18: 11 | D18: Dexter | E18: 92.32481936 | F18: 99.79021833 | G18: 80.78754672 | H18: 18.15723013 | I18: 14.68867049 | J18: 90.98299203 | K18: 90.50519532 | L18: 5.75 | M18: 3.501992208 | N18: 11.68065168 | O18: -2.107282447e-16 | P18: 3.25 | Q18: 0.6510416667 | R18: 4.557291667
A19: 12 | C19: o | D19: Ragna KWS | E19: 78.7918177 | F19: 94.79219812 | G19: 93.96659009 | H19: 18.0701982 | I19: 16.99666173 | J19: 105.2789045 | K19: 91.43004046 | L19: 6.5 | M19: 3.444462951 | N19: 11.86080452 | O19: -2.103352215e-16 | P19: 3.25 | Q19: 0.3255208333 | R19: 1.302083333
A20: 13 | C20: o | D20: Daphna | E20: 85.33824862 | F20: 96.20860353 | G20: 100.6493141 | H20: 17.94224356 | I20: 18.09275983 | J20: 112.0682382 | K20: 92.01124656 | L20: 5.75 | M20: 3.828005917 | N20: 12.93926201 | O20: 3.571428571 | P20: 3 | Q20: -2.296475727e-17 | R20: -2.171873792e-15
A21: 14 | C21: o | D21: Smilla KWS | E21: 81.87977028 | F21: 100.0616936 | G21: 92.49734455 | H21: 18.36228286 | I21: 16.96173634 | J21: 105.0625734 | K21: 91.72055715 | L21: 5.25 | M21: 3.747971572 | N21: 11.13506464 | O21: -2.107282447e-16 | P21: 2.5 | Q21: 0.3255208333 | R21: 1.627604167
A22: 15 | C22: o | D22: Kashmir | E22: 80.97110732 | F22: 101.7895584 | G22: 89.64033913 | H22: 18.22030414 | I22: 16.14856468 | J22: 100.0257125 | K22: 90.35480586 | L22: 5 | M22: 3.388646236 | N22: 10.35743215 | O22: -2.107282447e-16 | P22: 2.5 | Q22: 3.27733988e-17 | R22: 0.6510416667
A23: 16 | D23: Degas | E23: 85.46268639 | F23: 107.419351 | G23: 88.87773396 | H23: 18.50663814 | I23: 16.42376998 | J23: 101.7303597 | K23: 90.80035991 | L23: 6.75 | M23: 3.444712858 | N23: 9.687217549 | O23: -2.103352215e-16 | P23: 3 | Q23: 0.8267195767 | R23: 1.389922288
A24: 17 | C24: o | D24: Klimt | E24: 65.33004643 | F24: 93.49805805 | G24: 87.13868691 | H24: 18.91271336 | I24: 16.43561177 | J24: 101.8037089 | K24: 91.0310425 | L24: 7.25 | M24: 3.34844538 | N24: 9.842223077 | O24: -2.107282447e-16 | P24: 3.25 | Q24: 0.3255208333 | R24: 3.255208333
A25: 18 | D25: Landon | E25: 72.09332539 | F25: 100.6312269 | G25: 87.61935533 | H25: 18.75651238 | I25: 16.46370555 | J25: 101.9777243 | K25: 91.01679771 | L25: 7.25 | M25: 3.222832513 | N25: 9.879716052 | O25: -2.107282447e-16 | P25: 3 | Q25: -7.824890367e-17 | R25: 2.9296875
A26: 19 | D26: Piculet | E26: 66.26221826 | F26: 90.09341816 | G26: 84.57018664 | H26: 18.37477859 | I26: 15.48614094 | J26: 95.92259819 | K26: 90.42622699 | L26: 6.5 | M26: 3.310930457 | N26: 10.24124947 | O26: -2.103352215e-16 | P26: 3.25 | Q26: 3.278356319e-17 | R26: 3.255208333
A27: 20 | D27: Mustang | E27: 83.00967076 | F27: 100.8578567 | G27: 89.77973693 | H27: 18.42625945 | I27: 16.52141909 | J27: 102.3352074 | K27: 91.09375072 | L27: 4.930100607 | M27: 3.263350244 | N27: 10.77026895 | O27: -2.107282447e-16 | P27: 2.083333333 | Q27: 0.5035533245 | R27: 3.255208333
A28: 21 | D28: Maxine | E28: 81.59363427 | F28: 102.7879551 | G28: 85.43834777 | H28: 18.79952508 | I28: 16.06160986 | J28: 99.48710627 | K28: 90.65331176 | L28: 6.25 | M28: 3.314222019 | N28: 10.31026703 | O28: -2.107282447e-16 | P28: 2.75 | Q28: 0.9765625 | R28: 1.627604167
A29: 22 | D29: Illusion | E29: 89.42754565 | F29: 98.47455581 | G29: 90.8687535 | H29: 18.35082485 | I29: 16.6846035 | J29: 103.3459868 | K29: 89.69840605 | L29: 5.25 | M29: 3.650577653 | N29: 12.82371065 | O29: -2.103352215e-16 | P29: 3.25 | Q29: 0.6510416667 | R29: 1.627604167
A30: 23 | D30: Thyra KWS | E30: 49.64992858 | F30: 91.7428038 | G30: 86.10796522 | H30: 19.93049146 | I30: 17.18398436 | J30: 106.4391984 | K30: 91.78053927 | L30: 6 | M30: 3.844672775 | N30: 12.82815959 | O30: -2.103352215e-16 | P30: 3.25 | Q30: 0.3255208333 | R30: 2.9296875
A31: 24 | D31: Farina KWS | E31: 86.3743971 | F31: 101.8866261 | G31: 93.10896392 | H31: 18.44305275 | I31: 17.16045135 | J31: 106.2934327 | K31: 90.78290043 | L31: 5.25 | M31: 3.95462585 | N31: 14.35611314 | O31: -2.103352215e-16 | P31: 3.25 | Q31: 3.27632344e-17 | R31: 1.627604167
A32: 25 | D32: Fuga KWS | E32: 86.08713753 | F32: 101.9862598 | G32: 85.57120256 | H32: 19.33019576 | I32: 16.49680917 | J32: 102.1827713 | K32: 89.05321836 | L32: 5.5 | M32: 3.315004377 | N32: 10.65212379 | O32: 1.170938346e-17 | P32: 2.75 | Q32: 0.9765625 | R32: 0.9765625
A33: 26 | D33: Selma KWS | E33: 78.59751261 | F33: 99.67403948 | G33: 92.76245089 | H33: 18.89846663 | I33: 17.56174645 | J33: 108.7790919 | K33: 91.44000046 | L33: 5.75 | M33: 3.326884297 | N33: 10.91356492 | O33: -9.970594229e-17 | P33: 3 | Q33: 0.9765625 | R33: 0.9765625
A34: 27 | D34: Caporal | E34: 82.40612041 | F34: 100.7822749 | G34: 90.30392807 | H34: 18.31898242 | I34: 16.53187002 | J34: 102.3999415 | K34: 92.27497089 | L34: 6.25 | M34: 3.401257524 | N34: 11.76751172 | O34: -9.970594229e-17 | P34: 2.5 | Q34: 0.6510416667 | R34: 2.604166667
A35: 28 | D35: Davinci | E35: 83.23659573 | F35: 98.18789387 | G35: 89.55672325 | H35: 18.59448094 | I35: 16.68630196 | J35: 103.3565072 | K35: 92.87574836 | L35: 6.350401394 | M35: 3.577393986 | N35: 10.83971626 | O35: -9.912318362e-17 | P35: 2.416666667 | Q35: 0.3255208333 | R35: 0.9765625
A36: 29 | D36: Joker | E36: 77.97766938 | F36: 97.39958547 | G36: 89.64513908 | H36: 18.50900048 | I36: 16.58826336 | J36: 102.749247 | K36: 92.473219 | L36: 5.303500323 | M36: 3.25885464 | N36: 9.556607144 | O36: -9.970594229e-17 | P36: 2.5 | Q36: 0.6510416667 | R36: 2.604166667
A37: 30 | D37: Kahn | E37: 86.90754531 | F37: 103.9404375 | G37: 83.73928519 | H37: 18.52991827 | I37: 15.49462185 | J37: 95.97512975 | K37: 90.52600922 | L37: 7 | M37: 3.582103628 | N37: 9.72929984 | O37: -9.9312919e-17 | P37: 3 | Q37: 0.3255208333 | R37: 0.6510416667
A38: 31 | D38: Einar | E38: 24.6145043 | F38: 95.19580619 | G38: 86.20769624 | H38: 18.81130209 | I38: 16.17723653 | J38: 100.2033086 | K38: 91.28779136 | L38: 7.25 | M38: 3.194670408 | N38: 10.19289365 | O38: -9.970594229e-17 | P38: 3.25 | Q38: 0.06952554668 | R38: 1.302083333
A39: 32 | D39: Curie | E39: 74.15080534 | F39: 93.29564941 | G39: 87.62223404 | H39: 18.49725275 | I39: 16.17954185 | J39: 100.217588 | K39: 91.63131818 | L39: 7 | M39: 3.349827969 | N39: 10.69440168 | O39: 1.210240675e-17 | P39: 3.5 | Q39: -2.274791683e-17 | R39: 1.627604167
A40: 33 | D40: Bazin | E40: 89.30903546 | F40: 102.8591689 | G40: 88.96972056 | H40: 18.10874101 | I40: 16.1166926 | J40: 99.82829384 | K40: 89.78432055 | L40: 6.913430245 | M40: 3.899189413 | N40: 11.91697036 | O40: 3.164556962 | P40: 2.75 | Q40: 0.3255208333 | R40: 1.627604167
A41: 34 | D41: Bonola | E41: 61.8593723 | F41: 96.98198427 | G41: 84.660675 | H41: 17.9478931 | I41: 15.17892696 | J41: 94.01968618 | K41: 91.13908947 | L41: 7.25 | M41: 3.692458211 | N41: 13.81812626 | O41: -9.970594229e-17 | P41: 2.25 | Q41: -2.274791683e-17 | R41: 5.859375
A42: 35 | D42: Whisky | E42: 70.93920597 | F42: 89.48864718 | G42: 88.16367253 | H42: 18.955398 | I42: 16.70738783 | J42: 103.4871151 | K42: 90.8701944 | L42: 6.5 | M42: 3.417953097 | N42: 13.2787807 | O42: 1.210240675e-17 | P42: 3.75 | Q42: -2.274791683e-17 | R42: 1.953125
A43: 36 | D43: HI1427 | E43: 80.52563574 | F43: 101.6102182 | G43: 86.18434806 | H43: 18.40339404 | I43: 15.8518377 | J43: 98.18775797 | K43: 91.50859767 | L43: 5.75 | M43: 3.679083044 | N43: 12.77102864 | O43: 1.210240675e-17 | P43: 2.75 | Q43: 0.6510416667 | R43: 1.953125
A44: 37 | D44: HI1469 | E44: 80.31665507 | F44: 99.99001671 | G44: 86.86541819 | H44: 18.71751655 | I44: 16.24256633 | J44: 100.6079674 | K44: 91.10081162 | L44: 5.25 | M44: 3.215626716 | N44: 10.40103024 | O44: 1.170938346e-17 | P44: 3 | Q44: -2.274791683e-17 | R44: 2.604166667
A45: 38 | D45: HI1470 | E45: 88.32137471 | F45: 104.5829173 | G45: 90.43344255 | H45: 17.88810387 | I45: 16.11949514 | J45: 99.84565307 | K45: 90.46893983 | L45: 7.25 | M45: 3.751851648 | N45: 15.21122594 | O45: -9.912318362e-17 | P45: 2.75 | Q45: 1.302083333 | R45: 1.302083333
A46: 39 | D46: HI1473 | E46: 67.93927555 | F46: 103.5493272 | G46: 84.93441196 | H46: 18.76556792 | I46: 15.92105315 | J46: 98.61648489 | K46: 90.98843852 | L46: 6 | M46: 3.468147844 | N46: 13.16813891 | O46: 1.170938346e-17 | P46: 3 | Q46: 0.3255208333 | R46: 1.302083333
A47: 40 | D47: HI1474 | E47: 90.64658914 | F47: 102.9154136 | G47: 88.89333592 | H47: 18.79677919 | I47: 16.74474784 | J47: 103.7185265 | K47: 91.20742461 | L47: 5.67885289 | M47: 3.33985546 | N47: 10.7727229 | O47: -2.103352215e-16 | P47: 2.75 | Q47: 0.3255208333 | R47: 0.6510416667
A48: 41 | D48: HI1475 | E48: 91.10970093 | F48: 105.3743674 | G48: 93.36887032 | H48: 18.7903317 | I48: 17.55035324 | J48: 108.7085213 | K48: 92.13745759 | L48: 5.5 | M48: 3.741682064 | N48: 10.54075547 | O48: -2.099421982e-16 | P48: 2.5 | Q48: 0.6510416667 | R48: 0.3255208333
A49: 42 | D49: HI1476 | E49: 71.61484038 | F49: 100.3337821 | G49: 83.04832188 | H49: 18.76103786 | I49: 15.59146708 | J49: 96.57499811 | K49: 89.93188537 | L49: 6.5 | M49: 3.695018261 | N49: 13.03494168 | O49: -7.155734338e-17 | P49: 2.75 | Q49: 0.3255208333 | R49: 2.604166667
A50: 43 | D50: HI1478 | E50: 72.11237405 | F50: 95.22993206 | G50: 82.27374482 | H50: 18.13389846 | I50: 14.90698422 | J50: 92.33524756 | K50: 91.43909647 | L50: 6.5 | M50: 3.261906612 | N50: 13.01169929 | O50: -7.155734338e-17 | P50: 2.75 | Q50: -2.274791683e-17 | R50: 3.90625
A51: 44 | D51: HI1479 | E51: 87.38716278 | F51: 101.2242082 | G51: 87.11998502 | H51: 18.14057517 | I51: 15.78775752 | J51: 97.79083939 | K51: 89.82743936 | L51: 6.75 | M51: 3.875144878 | N51: 10.40687988 | O51: -2.936019483e-16 | P51: 2.5 | Q51: -2.274791683e-17 | R51: 2.604166667
A52: 45 | D52: HI1482 | E52: 91.38316879 | F52: 104.0147226 | G52: 87.85948551 | H52: 18.46059471 | I52: 16.21117705 | J52: 100.4135394 | K52: 91.30472333 | L52: 6.75 | M52: 3.615065424 | N52: 11.30011355 | O52: -2.931953725e-16 | P52: 3 | Q52: 0.6510416667 | R52: 0.9765625
A53: 46 | D53: HI1483 | E53: 81.21563029 | F53: 101.2043102 | G53: 88.28222539 | H53: 18.79176242 | I53: 16.65100921 | J53: 103.1379007 | K53: 91.79980116 | L53: 5.345519557 | M53: 3.469179891 | N53: 10.79232744 | O53: -7.115076757e-17 | P53: 3.25 | Q53: 3.27632344e-17 | R53: 2.604166667
A54: 47 | D54: 6K649 | E54: 76.25491948 | F54: 102.7687204 | G54: 86.35351791 | H54: 19.29032804 | I54: 16.60824321 | J54: 102.8730041 | K54: 90.85125575 | L54: 5 | M54: 3.4584898 | N54: 11.0359809 | O54: -2.936019483e-16 | P54: 2.75 | Q54: 8.827438563e-17 | R54: 2.9296875
A55: 48 | D55: 6K657 | E55: 52.22993651 | F55: 98.87782979 | G55: 91.11379424 | H55: 18.930899 | I55: 17.26048393 | J55: 106.9130438 | K55: 89.60033734 | L55: 5 | M55: 3.802596956 | N55: 12.81127983 | O55: -7.155734338e-17 | P55: 2.75 | Q55: 0.3255208333 | R55: 1.627604167
A56: 49 | D56: 6K659 | E56: 66.01816583 | F56: 98.33105273 | G56: 86.76490708 | H56: 18.68597671 | I56: 16.1780796 | J56: 100.2085306 | K56: 90.05357866 | L56: 5 | M56: 3.651815831 | N56: 11.30096317 | O56: -0.004977232645 | P56: 2.25 | Q56: 3.27632344e-17 | R56: 1.953125
A57: 50 | D57: 6K660 | E57: 65.33921523 | F57: 98.04400721 | G57: 91.33363195 | H57: 18.48294521 | I57: 16.90017305 | J57: 104.6812447 | K57: 89.58274786 | L57: 5.25 | M57: 3.826339703 | N57: 11.27840307 | O57: -1.25509954e-16 | P57: 3.25 | Q57: 3.27632344e-17 | R57: 3.90625
A58: 51 | D58: 6K664 | E58: 59.29365728 | F58: 95.19118377 | G58: 89.44882182 | H58: 18.42451369 | I58: 16.49276155 | J58: 102.1577 | K58: 89.93168527 | L58: 4 | M58: 3.836606403 | N58: 11.34580032 | O58: -1.25509954e-16 | P58: 2.75 | Q58: 5.007658784e-18 | R58: 3.580729167
A59: 52 | D59: 6K665 | E59: 69.13274236 | F59: 92.44228725 | G59: 90.70040112 | H59: 18.29718023 | I59: 16.61359827 | J59: 102.9061738 | K59: 91.14897847 | L59: 5.75 | M59: 3.952539062 | N59: 9.658154116 | O59: -2.365322565e-16 | P59: 2.75 | Q59: 3.27632344e-17 | R59: 4.231770833
A60: 53 | D60: 6K697 | E60: 82.65866394 | F60: 102.0984391 | G60: 87.68447429 | H60: 19.50809659 | I60: 17.06062131 | J60: 105.6750761 | K60: 89.24526855 | L60: 5 | M60: 3.354302498 | N60: 8.773233774 | O60: 3.125 | P60: 3 | Q60: 0.9765625 | R60: 0.9765625
A61: 54 | D61: 6K683 | E61: 84.38518167 | F61: 96.85308248 | G61: 90.77489686 | H61: 18.34649762 | I61: 16.65217462 | J61: 103.1451193 | K61: 90.91474989 | L61: 5.25 | M61: 3.419566387 | N61: 9.560290137 | O61: -4.203993924e-17 | P61: 3 | Q61: 5.007658784e-18 | R61: 1.627604167
A62: 55 | D62: 6K685 | E62: 86.823991 | F62: 99.44271859 | G62: 87.6087292 | H62: 18.93997137 | I62: 16.61978156 | J62: 102.9444737 | K62: 88.74294631 | L62: 4.75 | M62: 3.463597175 | N62: 10.31890297 | O62: -4.224322715e-17 | P62: 2.5 | Q62: 0.3255208333 | R62: 2.604166667
A63: 56 | D63: 6K688 | E63: 70.45301493 | F63: 98.06735289 | G63: 88.00715295 | H63: 18.8836881 | I63: 16.59038062 | J63: 102.7623615 | K63: 90.14632007 | L63: 5.5 | M63: 3.880453456 | N63: 11.04566162 | O63: -1.25509954e-16 | P63: 2.75 | Q63: 3.27632344e-17 | R63: 0.6510416667
A64: 57 | D64: 6K670 | E64: 77.04528512 | F64: 96.249622 | G64: 71.46795272 | H64: 18.44440137 | I64: 13.23129999 | J64: 81.95590349 | K64: 87.67952389 | L64: 5.5 | M64: 4.010505269 | N64: 13.51051293 | O64: -1.25509954e-16 | P64: 3.25 | Q64: 1.437855369e-16 | R64: 2.278645833
A65: 58 | D65: MA2206 | E65: 76.99216916 | F65: 96.70517158 | G65: 85.82722386 | H65: 18.62851823 | I65: 15.9954443 | J65: 99.07727063 | K65: 91.24943054 | L65: 6 | M65: 3.458537618 | N65: 11.42187309 | O65: -2.365322565e-16 | P65: 2.75 | Q65: 1.302083333 | R65: 2.604166667
A66: 59 | D66: MA2209 | E66: 76.80215537 | F66: 97.26122382 | G66: 85.57161654 | H66: 18.15178436 | I66: 15.59921434 | J66: 96.62298533 | K66: 91.36488092 | L66: 6.25 | M66: 3.170500481 | N66: 12.16407553 | O66: -1.532655296e-16 | P66: 2.5 | Q66: 1.437855369e-16 | R66: 1.302083333
A67: 60 | D67: MA2213 | E67: 92.46396543 | F67: 104.0039973 | G67: 90.55536506 | H67: 18.50023052 | I67: 16.76843534 | J67: 103.8652491 | K67: 91.49245662 | L67: 5.5 | M67: 3.601261846 | N67: 11.73241579 | O67: -1.25509954e-16 | P67: 2.75 | Q67: 0.6510416667 | R67: 1.302083333
A68: 61 | D68: MA4073 | E68: 84.7691193 | F68: 102.3115428 | G68: 80.89126909 | H68: 18.56818632 | I68: 15.04776411 | J68: 93.20725132 | K68: 89.43546831 | L68: 6.5 | M68: 3.675218805 | N68: 14.31077221 | O68: -4.224322715e-17 | P68: 3.25 | Q68: 0.9765625 | R68: 2.604166667
A69: 62 | D69: MA4074 | E69: 83.96817854 | F69: 104.3317932 | G69: 86.39831412 | H69: 18.56450291 | I69: 15.99846111 | J69: 99.09595699 | K69: 90.40611108 | L69: 6.012186223 | M69: 3.649748942 | N69: 15.69194528 | O69: -4.224322715e-17 | P69: 2.75 | Q69: 1.437855369e-16 | R69: 1.953125
A70: 63 | D70: MA4079 | E70: 84.97554342 | F70: 100.5350443 | G70: 87.10188549 | H70: 18.65796732 | I70: 16.24332928 | J70: 100.6126932 | K70: 90.88128591 | L70: 5.75 | M70: 3.372948527 | N70: 11.83688507 | O70: 3.125 | P70: 2.5 | Q70: 1.437855369e-16 | R70: 1.627604167
A71: 64 | D71: ST 12604 | E71: 29.47553296 | F71: 99.3551086 | G71: 82.88929531 | H71: 17.91787595 | I71: 14.9738239 | J71: 92.74925877 | K71: 90.88462243 | L71: 6.25 | M71: 3.403839921 | N71: 10.70296927 | O71: -4.185020386e-17 | P71: 3.5 | Q71: 0.3255208333 | R71: 6.510416667
A72: 65 | D72: ST 12615 | E72: 81.25956736 | F72: 96.37018457 | G72: 82.72672611 | H72: 19.18168189 | I72: 15.84840645 | J72: 98.16650447 | K72: 89.93665782 | L72: 6 | M72: 3.519915097 | N72: 9.264121456 | O72: 3.333333333 | P72: 3.5 | Q72: 0.6510416667 | R72: 2.278645833
A73: 66 | D73: ST 12651 | E73: 69.87259236 | F73: 93.82055665 | G73: 85.56403739 | H73: 18.45693942 | I73: 15.8023626 | J73: 97.88130459 | K73: 90.50404145 | L73: 7 | M73: 3.588387744 | N73: 11.73394177 | O73: -4.185020386e-17 | P73: 3 | Q73: 0.3255208333 | R73: 3.580729167
A74: 67 | D74: ST 12658 | E74: 63.83635222 | F74: 95.11474072 | G74: 87.63739908 | H74: 18.60995045 | I74: 16.31343583 | J74: 101.0469397 | K74: 90.01973564 | L74: 7 | M74: 3.451922027 | N74: 10.8327747 | O74: 3.623188406 | P74: 3.25 | Q74: 1.437855369e-16 | R74: 2.9296875
A75: 68 | D75: ST 12664 | E75: 82.48393896 | F75: 100.7260067 | G75: 81.51239511 | H75: 19.00258152 | I75: 15.4969905 | J75: 95.98980136 | K75: 90.98129109 | L75: 6.5 | M75: 3.396810831 | N75: 14.55468505 | O75: 3.205128205 | P75: 2.75 | Q75: 0.6510416667 | R75: 2.278645833
A76: 69 | D76: ST 12668 | E76: 85.92975824 | F76: 91.97601655 | G76: 83.07302201 | H76: 18.56326326 | I76: 15.22112324 | J76: 94.28105387 | K76: 90.17093716 | L76: 6.25 | M76: 3.708486821 | N76: 13.31846959 | O76: 1.249543004e-17 | P76: 3.75 | Q76: 1.437855369e-16 | R76: 6.510416667
A77: 70 | D77: ST 12680 | E77: 70.69070866 | F77: 96.89745456 | G77: 87.91388589 | H77: 18.7539529 | I77: 16.46323429 | J77: 101.9748054 | K77: 91.33067823 | L77: 7.75 | M77: 3.270793577 | N77: 12.73961764 | O77: 1.210240675e-17 | P77: 3.5 | Q77: 1.437855369e-16 | R77: 2.278645833
A78: 71 | D78: ST 12682 | E78: 68.12184293 | F78: 97.49994766 | G78: 85.79835684 | H78: 18.68281793 | I78: 16.01936358 | J78: 99.22542883 | K78: 91.33074203 | L78: 7 | M78: 3.163796456 | N78: 11.00781859 | O78: 1.210240675e-17 | P78: 2.5 | Q78: 1.437855369e-16 | R78: 0.6510416667
A79: 72 | D79: ST 15616 | E79: 81.0609286 | F79: 101.9408318 | G79: 88.68797797 | H79: 17.87516319 | I79: 15.84958843 | J79: 98.1738258 | K79: 89.94646234 | L79: 7.25 | M79: 3.895727573 | N79: 11.03470367 | O79: 1.249543004e-17 | P79: 3.25 | Q79: 1.437855369e-16 | R79: 4.231770833
A80: 73 | D80: ST 15672 | E80: 69.94912209 | F80: 93.53535456 | G80: 87.34132782 | H80: 18.15136563 | I80: 15.82315663 | J80: 98.01010472 | K80: 89.41427902 | L80: 6.75 | M80: 4.220742469 | N80: 14.07569579 | O80: 1.229214213e-17 | P80: 3.25 | Q80: 0.3255208333 | R80: 3.255208333
A81: 74 | D81: ST 15678 | E81: 82.65662026 | F81: 96.84420627 | G81: 80.88703134 | H81: 19.20910099 | I81: 15.49431086 | J81: 95.97320347 | K81: 89.49555927 | L81: 6.5 | M81: 3.352161649 | N81: 11.20208951 | O81: 1.268516542e-17 | P81: 2.75 | Q81: 0.3255208333 | R81: 0.9765625
A82: 75 | D82: 6K674 | E82: 84.75428744 | F82: 97.61299967 | G82: 78.00075855 | H82: 19.02338155 | I82: 14.72764155 | J82: 91.22438239 | K82: 85.27492489 | L82: 5.087546181 | M82: 3.083696862 | N82: 9.400084798 | O82: -0.004977232645 | P82: 3.5 | Q82: 0.9765625 | R82: 3.580729167
A83: 76 | D83: SV1724 | E83: 60.81221099 | F83: 99.54659104 | G83: 78.51316838 | H83: 18.95085835 | I83: 14.87922246 | J83: 92.16328866 | K83: 91.03933556 | L83: 6.5 | M83: 3.382431961 | N83: 11.26600351 | O83: 1.249543004e-17 | P83: 3.75 | Q83: 6.051881002e-17 | R83: 3.580729167
A84: 77 | D84: SV1731 | E84: 70.25701041 | F84: 98.58830794 | G84: 89.18995782 | H84: 18.28901994 | I84: 16.29627227 | J84: 100.940627 | K84: 90.4667049 | L84: 5.25 | M84: 3.446001043 | N84: 9.315281282 | O84: 1.249543004e-17 | P84: 3.25 | Q84: 8.827438563e-17 | R84: 0.3255208333
A85: 78 | D85: SV1747 | E85: 88.4835321 | F85: 97.4882496 | G85: 85.0089105 | H85: 18.59240895 | I85: 15.71655708 | J85: 97.34981724 | K85: 90.78739564 | L85: 6.25 | M85: 3.3804034 | N85: 12.34524207 | O85: 1.249543004e-17 | P85: 2 | Q85: 0.3255208333 | R85: 1.627604167
A86: 79 | D86: SV1757 | E86: 78.811392 | F86: 96.77999077 | G86: 86.87912736 | H86: 18.3675805 | I86: 15.96146373 | J86: 98.86679181 | K86: 91.44231443 | L86: 7.5 | M86: 3.352438972 | N86: 9.045570326 | O86: 1.249543004e-17 | P86: 3 | Q86: 6.051881002e-17 | R86: 2.9296875
A87: 80 | D87: SV1765 | E87: 83.84200111 | F87: 97.45238476 | G87: 90.57026289 | H87: 18.69451491 | I87: 16.95864284 | J87: 105.043412 | K87: 90.65102128 | L87: 6.75 | M87: 3.456674422 | N87: 12.22116325 | O87: 1.249543004e-17 | P87: 3 | Q87: 6.051881002e-17 | R87: 0.6510416667
A88: 81 | D88: SV1771 | E88: 68.83495921 | F88: 94.37698068 | G88: 90.71656331 | H88: 19.03056244 | I88: 17.18730953 | J88: 106.4597948 | K88: 91.01174802 | L88: 7.25 | M88: 3.380789921 | N88: 10.97059346 | O88: 1.249543004e-17 | P88: 3 | Q88: 0.3255208333 | R88: 1.953125
A89: 82 | D89: SV1779 | E89: 76.12491039 | F89: 94.25771726 | G89: 87.81882039 | H89: 18.86062932 | I89: 16.58142155 | J89: 102.7068683 | K89: 90.84962709 | L89: 6.5 | M89: 3.505115308 | N89: 10.6821172 | O89: 1.249543004e-17 | P89: 3 | Q89: 0.3255208333 | R89: 2.278645833
A90: 83 | D90: Nemata | E90: 46.07174105 | F90: 96.84080076 | G90: 73.9778727 | H90: 17.46277214 | I90: 12.81588271 | J90: 79.38277021 | K90: 87.94065645 | L90: 5.25 | M90: 4.317834641 | N90: 12.13813968 | O90: -2.133709875e-14 | P90: 3.25 | Q90: -2.082188588e-14 | R90: 5.208333333
A91: LSD | E91: 12.35088131 | F91: 6.76358696 | G91: 6.86745839 | H91: 0.5490417893 | I91: 1.320565098 | K91: 1.286139301 | L91: 0.8454948843 | M91: 0.2546592859 | N91: 2.847750079 | O91: - | P91: 0.9805872984 | Q91: - | R91: 3.601969775
A92: CV | E92: 11.83513625 | F92: 4.766683594 | G92: 5.300979038 | H92: 2.017309674 | I92: 5.526207848 | K92: 0.9638607555 | L92: 9.707039563 | M92: 4.816449862 | N92: 16.78588447 | O92: 642.8454164 | P92: 19.78206958 | Q92: 225.1788843 | R92: 92.39208739
A93: P-value | E93: <0.001 | F93: <0.001 | G93: <0.001 | H93: <0.001 | I93: <0.001 | K93: <0.001 | L93: <0.001 | M93: <0.001 | N93: <0.001 | O93: ns | P93: <0.05 | Q93: ns | R93: <0.05

Sheet NYBO 110 treated
A1: 1 | B1: 2 | C1: 3 | D1: 4 | E1: 6 | F1: 7 | G1: 8 | H1: 9 | I1: 10 | J1: 13 | K1: 14 | L1: 19 | M1: 20 | N1: 36 | O1: 37 | P1: 38 | Q1: 39 | ALL1: 1
E2: 110 | F2: 110 | G2: 110 | H2: 110 | I2: 110 | J2: 110 | K2: 110 | L2: 110 | M2: 110 | N2: 110 | O2: 110 | P2: 110 | Q2: 110
A3: Series 102 (trial no 110) | E3: Plant nr | F3: Rot | G3: Socker | H3: Socker | I3: Socker | J3: Renhet | K3: Rotfåra | L3: K/N | M3: Blåtal | N3: Mjöldagg | O3: Rost | P3: Ramularia | Q3: Cercospora
A4: Nyboholm | E4: Plant no | F4: Root | G4: Sugar | H4: Sugar | I4: Sugar | J4: Cleaness | K4: Groove | M4: Amino-N | N4: Mildew | O4: Rust | P4: Ramularia | Q4: Cercospora
A5: Expl. | E5: 1 | N5: Early | O5: Early | P5: Early | Q5: Early
A6: no trials
A7: Unit | E7: 1000/ha | F7: t/ha | G7: % | H7: t/ha | I7: relativ | J7: % | K7: Sc. 1-9 | N7: Sc. 1-100 | O7: Sc. 1-100 | P7: Sc. 1-100 | Q7: Sc. 1-100
A8: Avg for * | E8: 101.2008102 | F8: 93.81421446 | G8: 18.36152212 | H8: 17.20691745 | I8: 100 | J8: 90.90758097 | K8: 5.917027417 | L8: 3.530028807 | M8: 9.348340362 | N8: 1.166666667 | O8: 23.33333333 | P8: 1 | Q8: 0.8333333333
A9: 1 | B9: * | D9: Orlena KWS | E9: 102.8645833 | F9: 100.7409505 | G9: 18.28322066 | H9: 18.37469773 | I9: 106.7866908 | J9: 91.61416216 | K9: 5.5 | L9: 3.578811761 | M9: 8.920434436 | N9: 1.5 | O9: 20 | P9: 1 | Q9: 1.5
A10: 2 | B10: * | D10: Cartoon | E10: 98.95833333 | F10: 94.2172526 | G10: 18.49149428 | H10: 17.40305566 | I10: 101.13988 | J10: 91.36511017 | K10: 6.5 | L10: 3.539632549 | M10: 8.093426681 | N10: 1.5 | O10: 35 | P10: 1 | Q10: 5.551115123e-17
A11: 3 | B11: * | D11: Pascalina KWS | E11: 102.2135417 | F11: 89.82630208 | G11: 18.3727761 | H11: 16.53865314 | I11: 96.11630433 | J11: 90.1311277 | K11: 5 | L11: 3.570158502 | M11: 7.579588293 | N11: 0.5 | O11: 25 | P11: 1 | Q11: 5.551115123e-17
A12: 5 | B12: * | D12: Cantona KWS | E12: 102.2135417 | F12: 89.63811849 | G12: 18.65367217 | H12: 16.77129197 | I12: 97.46831193 | J12: 90.605019 | K12: 5.5 | L12: 3.434486247 | M12: 9.343397762 | N12: 0.5 | O12: 25 | P12: 1 | Q12: 2.5
A13: 6 | B13: * | D13: SY Muse | E13: 100.2604167 | F13: 96.42360069 | G13: 18.10804361 | H13: 17.40621062 | I13: 101.1582154 | J13: 90.00616679 | K13: 5.753246753 | L13: 3.421101639 | M13: 11.77183558 | N13: 1.5 | O13: 35 | P13: 1 | Q13: 5.551115123e-17
A14: 7 | B14: * | D14: Kudu | E14: 105.46875 | F14: 95.59726563 | G14: 18.72472509 | H14: 17.88017007 | I14: 103.9126858 | J14: 91.66264831 | K14: 6.5 | L14: 3.648146165 | M14: 8.429004436 | N14: 2 | O14: 20 | P14: 1 | Q14: 5.551115123e-17
A15: 8 | B15: * | D15: Darnella KWS | E15: 98.95833333 | F15: 94.78180339 | G15: 17.91266306 | H15: 16.90471414 | I15: 98.24371036 | J15: 91.26495634 | K15: 5 | L15: 3.551743207 | M15: 11.51553568 | N15: 1.5 | O15: 20 | P15: 1 | Q15: 2.5
A16: 9 | B16: * | D16: Diesel | E16: 100.9114583 | F16: 89.01083984 | G16: 18.64060984 | H16: 16.60027699 | I16: 96.47443852 | J16: 90.8453577 | K16: 6.5 | L16: 3.351546647 | M16: 7.888413709 | N16: -1.110223025e-16 | O16: 10 | P16: 1 | Q16: 0.5
A17: 10 | B17: * | D17: Lombok | E17: 98.95833333 | F17: 94.09179688 | G17: 18.06649428 | H17: 16.9831867 | I17: 98.69976275 | J17: 90.67368053 | K17: 7 | L17: 3.674632549 | M17: 10.59342668 | N17: 1.5 | O17: 20 | P17: 1 | Q17: 0.5
A18: 11 | D18: Dexter | E18: 97.00520833 | F18: 88.82265625 | G18: 18.2880735 | H18: 16.15657771 | I18: 93.89582862 | J18: 90.88511126 | K18: 6 | L18: 3.528944005 | M18: 9.163631329 | N18: 3 | O18: 30 | P18: 1 | Q18: 3
A19: 12 | C19: o | D19: Ragna KWS | E19: 97.65625 | F19: 100.9291341 | G19: 17.74551148 | H19: 17.99711363 | I19: 104.5923169 | J19: 91.94561185 | K19: 6.5 | L19: 3.39030298 | M19: 11.08766721 | N19: 1.5 | O19: 25 | P19: 1 | Q19: 5.5
A20: 13 | C20: o | D20: Daphna | E20: 97.00520833 | F20: 104.2537109 | G20: 17.61050821 | H20: 18.44769415 | I20: 107.210918 | J20: 92.24291475 | K20: 5.5 | L20: 3.929067823 | M20: 10.7166967 | N20: -1.110223025e-16 | O20: 30 | P20: 1 | Q20: 2
A21: 14 | C21: o | D21: Smilla KWS | E21: 100.9114583 | F21: 100.6782227 | G21: 18.1830754 | H21: 18.37455346 | I21: 106.7858524 | J21: 91.67749226 | K21: 5 | L21: 3.836633825 | M21: 10.61372034 | N21: -5.551115123e-16 | O21: 20 | P21: 1 | Q21: 15
A22: 15 | C22: o | D22: Kashmir | E22: 102.8645833 | F22: 92.77451172 | G22: 18.11187374 | H22: 16.70979357 | I22: 97.11090684 | J22: 90.74449214 | K22: 5 | L22: 3.378759894 | M22: 9.002632174 | N22: 2 | O22: 20 | P22: 1 | Q22: 5.551115123e-17
A23: 16 | D23: Degas | E23: 102.8645833 | F23: 96.28727214 | G23: 18.15115322 | H23: 17.43680952 | I23: 101.3360445 | J23: 91.37229443 | K23: 7 | L23: 3.376103703 | M23: 7.822094638 | N23: 1.5 | O23: 25 | P23: 1 | Q23: -8.326672685e-16
A24: 17 | C24: o | D24: Klimt | E24: 89.84375 | F24: 88.69720052 | G24: 18.89649428 | H24: 16.74143978 | I24: 97.29482245 | J24: 91.16765935 | K24: 7.5 | L24: 3.454632549 | M24: 8.593426681 | N24: 0.5 | O24: 25 | P24: 2 | Q24: -8.326672685e-16
A25: 18 | D25: Landon | E25: 98.95833333 | F25: 94.46816406 | G25: 19.20347855 | H25: 18.13427438 | I25: 105.3894425 | J25: 90.57707529 | K25: 7 | L25: 3.287154468 | M25: 7.447598869 | N25: 0.5 | O25: 15 | P25: 1 | Q25: 0.5
A26: 19 | D26: Piculet | E26: 89.19270833 | F26: 90.20266927 | G26: 18.14119812 | H26: 16.26594375 | I26: 94.53142202 | J26: 89.03163944 | K26: 6.5 | L26: 3.486449875 | M26: 9.88545604 | N26: 1.5 | O26: 30 | P26: 1 | Q26: -8.326672685e-16
A27: 20 | D27: Mustang | E27: 100.2604167 | F27: 96.79996788 | G27: 18.42280892 | H27: 17.74988404 | I27: 103.1555135 | J27: 91.6642198 | K27: 4.753246753 | L27: 3.427158623 | M27: 8.586905709 | N27: 1.5 | O27: 15 | P27: 1 | Q27: 5.551115123e-17
A28: 21 | D28: Maxine | E28: 102.2135417 | F28: 94.71907552 | G28: 18.72853587 | H28: 17.69352331 | I28: 102.8279665 | J28: 90.70347461 | K28: 6.5 | L28: 3.274132195 | M28: 9.229629705 | N28: 0.5 | O28: 25 | P28: 1 | Q28: 5.551115123e-17
A29: 22 | D29: Illusion | E29: 97.65625 | F29: 98.67093099 | G29: 18.33334522 | H29: 18.18793806 | I29: 105.7013153 | J29: 90.17921396 | K29: 5 | L29: 3.546691124 | M29: 10.39649263 | N29: 0.5 | O29: 30 | P29: 0.5 | Q29: 1.5
A30: 23 | D30: Thyra KWS | E30: 93.09895833 | F30: 95.91090495 | G30: 19.6789387 | H30: 18.93480738 | I30: 110.0418331 | J30: 91.66362501 | K30: 6 | L30: 3.829212087 | M30: 11.08148943 | N30: -1.110223025e-16 | O30: 20 | P30: 1 | Q30: 0.5
A31: 24 | D31: Farina KWS | E31: 104.1666667 | F31: 99.3609375 | G31: 18.40134184 | H31: 18.37893187 | I31: 106.811298 | J31: 91.03607699 | K31: 5 | L31: 3.977552233 | M31: 10.61928638 | N31: -1.110223025e-16 | O31: 25 | P31: 1 | Q31: 5
A32: 25 | D32: Fuga KWS | E32: 102.2135417 | F32: 100.3645833 | G32: 18.90029463 | H32: 19.00393976 | I32: 110.443604 | J32: 89.88347232 | K32: 6 | L32: 3.431226213 | M32: 10.07921844 | N32: 1.5 | O32: 30 | P32: 0.5 | Q32: -1.498801083e-15
A33: 26 | D33: Selma KWS | E33: 95.703125 | F33: 101.6191406 | G33: 19.03537297 | H33: 19.32195749 | I33: 112.291801 | J33: 91.51509864 | K33: 5.5 | L33: 3.491818357 | M33: 10.54179135 | N33: 1.5 | O33: 25 | P33: 1 | Q33: 0.5
A34: 27 | D34: Caporal | E34: 101.5625 | F34: 96.60091146 | G34: 18.32101337 | H34: 17.74006738 | I34: 103.0984628 | J34: 92.44671743 | K34: 6 | L34: 3.480230867 | M34: 8.700251585 | N34: 2 | O34: 25 | P34: 1 | Q34: 2.5
A35: 28 | D35: Davinci | E35: 98.30729167 | F35: 91.78173872 | G35: 18.47437516 | H35: 17.06820779 | I35: 99.19387273 | J35: 94.05324367 | K35: 5.753246753 | L35: 3.459001939 | M35: 9.162290241 | N35: 1.5 | O35: 25 | P35: 1 | Q35: 7.5
A36: 29 | D36: Joker | E36: 97.00520833 | F36: 99.73730469 | G36: 18.39473703 | H36: 18.35231643 | I36: 106.6566193 | J36: 92.84621693 | K36: 5.5 | L36: 3.479157659 | M36: 9.174319686 | N36: 1.5 | O36: 25 | P36: 0.5 | Q36: 11.5
A37: 30 | D37: Kahn | E37: 101.5625 | F37: 90.89267578 | G37: 18.20243133 | H37: 16.48266225 | I37: 95.79090676 | J37: 91.05710469 | K37: 7 | L37: 3.530828448 | M37: 7.907530929 | N37: 3 | O37: 25 | P37: 1 | Q37: 5
A38: 31 | D38: Einar | E38: 97.65625 | F38: 90.57903646 | G38: 18.58916887 | H38: 16.832069 | I38: 97.82152469 | J38: 91.11179451 | K38: 7.5 | L38: 3.299959065 | M38: 8.136852555 | N38: 0.5 | O38: 25 | P38: 1 | Q38: 5
A39: 32 | D39: Curie | E39: 95.05208333 | F39: 94.71907552 | G39: 18.15405245 | H39: 17.26698637 | I39: 100.3490976 | J39: 91.7388303 | K39: 7 | L39: 3.381231711 | M39: 10.10552019 | N39: 1.5 | O39: 20 | P39: 1 | Q39: 4
A40: 33 | D40: Bazin | E40: 100.9114583 | F40: 88.64534549 | G40: 17.66804361 | H40: 15.59834338 | I40: 90.65158491 | J40: 89.6059466 | K40: 6.753246753 | L40: 3.711101639 | M40: 10.77183558 | N40: 1.5 | O40: 20 | P40: 0.5 | Q40: -1.498801083e-15
A41: 34 | D41: Bonola | E41: 97.00520833 | F41: 91.26904297 | G41: 18.02187374 | H41: 16.36132146 | I41: 95.08572071 | J41: 91.21507637 | K41: 7 | L41: 3.648759894 | M41: 8.502632174 | N41: 2 | O41: 35 | P41: 1 | Q41: 2.5
A42: 35 | D42: Whisky | E42: 93.75 | F42: 98.23183594 | G42: 19.06243133 | H42: 18.63810458 | I42: 108.3175103 | J42: 90.95875055 | K42: 6.5 | L42: 3.340828448 | M42: 10.90753093 | N42: 1.5 | O42: 25 | P42: 1 | Q42: 1
A43: 36 | D43: HI1427 | E43: 102.2135417 | F43: 96.35 | G43: 18.30354776 | H43: 17.60661385 | I43: 102.3228821 | J43: 91.92103212 | K43: 5.5 | L43: 3.696735347 | M43: 11.12194881 | N43: 1 | O43: 25 | P43: 0.5 | Q43: 1.5
A44: 37 | D44: HI1469 | E44: 100.9114583 | F44: 90.39085286 | G44: 18.67416887 | H44: 16.89129037 | I44: 98.1656966 | J44: 91.00573764 | K44: 5 | L44: 3.139959065 | M44: 9.136852555 | N44: 3 | O44: 25 | P44: 0.5 | Q44: 25
A45: 38 | D45: HI1470 | E45: 104.8177083 | F45: 102.0582357 | G45: 17.73115322 | H45: 18.06320998 | I45: 104.9764435 | J45: 91.08737568 | K45: 7.5 | L45: 3.941101639 | M45: 14.32209464 | N45: 1.5 | O45: 30 | P45: 1 | Q45: 1.5
A46: 39 | D46: HI1473 | E46: 102.8645833 | F46: 95.91090495 | G46: 18.54853366 | H46: 17.75131449 | I46: 103.1638267 | J46: 90.928627 | K46: 6 | L46: 3.661001624 | M46: 12.29752189 | N46: 2 | O46: 25 | P46: 2 | Q46: -6.106226635e-16
A47: 40 | D47: HI1474 | E47: 104.1666667 | F47: 94.2172526 | G47: 18.63634184 | H47: 17.66486922 | I47: 102.6614399 | J47: 91.59397661 | K47: 6 | L47: 3.427552233 | M47: 9.11928638 | N47: 0.5 | O47: 30 | P47: 1 | Q47: -1.498801083e-15
A48: 41 | D48: HI1475 | E48: 106.1197917 | F48: 99.86276042 | G48: 18.84879498 | H48: 18.66602476 | I48: 108.4797717 | J48: 91.96537536 | K48: 5.5 | L48: 3.883109729 | M48: 9.347659094 | N48: -3.330669074e-16 | O48: 20 | P48: 3 | Q48: 0.5
A49: 42 | D49: HI1476 | E49: 100.9114583 | F49: 87.19173177 | G49: 18.81953444 | H49: 16.48747975 | I49: 95.81890422 | J49: 90.09708334 | K49: 6.5 | L49: 3.650705094 | M49: 9.095867362 | N49: 1.5 | O49: 30 | P49: 2 | Q49: -1.498801083e-15
A50: 43 | D50: HI1478 | E50: 96.35416667 | F50: 93.90361328 | G50: 18.28028041 | H50: 17.13269856 | I50: 99.56866833 | J50: 92.16362329 | K50: 7 | L50: 3.138714715 | M50: 9.608000615 | N50: 4 | O50: 30 | P50: 1 | Q50: 5.5
A51: 44 | D51: HI1479 | E51: 102.2135417 | F51: 91.77086589 | G51: 18.1939335 | H51: 16.61077764 | I51: 96.53546423 | J51: 89.65948503 | K51: 6.5 | L51: 3.936594352 | M51: 8.893534962 | N51: 0.5 | O51: 35 | P51: 1 | Q51: 5
A52: 45 | D52: HI1482 | E52: 102.2135417 | F52: 94.46816406 | G52: 18.54038274 | H52: 17.53563727 | I52: 101.9103935 | J52: 91.9602681 | K52: 7 | L52: 3.545876899 | M52: 7.622278621 | N52: 1.5 | O52: 25 | P52: 2 | Q52: 1.5
A53: 46 | D53: HI1483 | E53: 104.1666667 | F53: 91.33177083 | G53: 18.76721313 | H53: 17.17474505 | I53: 99.81302638 | J53: 91.76635361 | K53: 5 | L53: 3.485414978 | M53: 8.361250739 | N53: 0.5 | O53: 20 | P53: 1 | Q53: -8.326672685e-16
A54: 47 | D54: 6K649 | E54: 102.2135417 | F54: 94.46816406 | G54: 19.33562996 | H54: 18.14733432 | I54: 105.4653419 | J54: 91.25995571 | K54: 5 | L54: 3.437251281 | M54: 7.34798891 | N54: 1.5 | O54: 20 | P54: 1 | Q54: 2.5
A55: 48 | D55: 6K657 | E55: 100.2604167 | F55: 97.16546224 | G55: 18.78004168 | H55: 18.25872019 | I55: 106.1126738 | J55: 89.99550146 | K55: 5 | L55: 3.712348053 | M55: 9.850946578 | N55: 2 | O55: 20 | P55: 0.5 | Q55: 6.5
A56: 49 | D56: 6K659 | E56: 98.30729167 | F56: 95.4718099 | G56: 18.73028041 | H56: 17.84314808 | I56: 103.6975283 | J56: 90.12259342 | K56: 5 | L56: 3.778714715 | M56: 11.10800061 | N56: -1.110223025e-16 | O56: 40 | P56: 1 | Q56: 5.5
A57: 50 | D57: 6K660 | E57: 97.00520833 | F57: 100.6782227 | G57: 18.54657097 | H57: 18.720529 | I57: 108.7965294 | J57: 91.45282366 | K57: 5 | L57: 3.842299421 | M57: 8.605150339 | N57: 5 | O57: 25 | P57: 1 | Q57: 1.5
A58: 51 | D58: 6K664 | E58: 93.75 | F58: 98.79638672 | G58: 18.30222724 | H58: 18.13728531 | I58: 105.406941 | J58: 90.33727106 | K58: 4.5 | L58: 3.838163458 | M58: 8.685677651 | N58: 1.5 | O58: 30 | P58: 0.5 | Q58: 5
A59: 52 | D59: 6K665 | E59: 92.44791667 | F59: 99.04729818 | G59: 18.09148526 | H59: 18.00148576 | I59: 104.6177261 | J59: 91.48302828 | K59: 5 | L59: 4.023665708 | M59: 8.708496555 | N59: 5 | O59: 20 | P59: 1 | Q59: 3
A60: 53 | D60: 6K697 | E60: 104.8177083 | F60: 96.09908854 | G60: 19.32953444 | H60: 18.66236772 | I60: 108.4585184 | J60: 90.11753678 | K60: 5 | L60: 3.385705094 | M60: 7.095867362 | N60: 1 | O60: 25 | P60: 1 | Q60: 10
A61: 54 | D61: 6K683 | E61: 91.796875 | F61: 92.89996745 | G61: 18.9380735 | H61: 17.50426707 | I61: 101.7280819 | J61: 90.7429207 | K61: 5 | L61: 3.468944005 | M61: 7.163631329 | N61: 0.5 | O61: 20 | P61: 1 | Q61: 5
A62: 55 | D62: 6K685 | E62: 99.609375 | F62: 94.90725911 | G62: 19.07407722 | H62: 18.26038247 | I62: 106.1223344 | J62: 89.54320282 | K62: 5 | L62: 3.67269671 | M62: 9.627365302 | N62: 1.5 | O62: 25 | P62: 1 | Q62: -1.498801083e-15
A63: 56 | D63: 6K688 | E63: 97.65625 | F63: 93.77815755 | G63: 18.93115322 | H63: 17.72357623 | I63: 103.0026225 | J63: 90.63612841 | K63: 5 | L63: 3.786103703 | M63: 9.322094638 | N63: 1.5 | O63: 30 | P63: 0.5 | Q63: 1.5
A64: 57 | D64: 6K670 | E64: 91.796875 | F64: 81.23258464 | G64: 18.50400378 | H64: 15.08527988 | I64: 87.66985677 | J64: 88.29055705 | K64: 5.5 | L64: 3.899733419 | M64: 12.2081267 | N64: 3 | O64: 30 | P64: 1 | Q64: -1.665334537e-16
A65: 58 | D65: MA2206 | E65: 93.09895833 | F65: 94.53089193 | G65: 18.55900378 | H65: 17.59792604 | I65: 102.2723919 | J65: 90.7088149 | K65: 6.5 | L65: 3.499733419 | M65: 9.208126702 | N65: 1 | O65: 30 | P65: 1 | Q65: 15
A66: 59 | D66: MA2209 | E66: 102.8645833 | F66: 90.89267578 | G66: 18.28334522 | H66: 16.68776982 | I66: 96.98291324 | J66: 91.2533708 | K66: 6 | L66: 3.091691124 | M66: 9.896492631 | N66: 2.5 | O66: 30 | P66: 1 | Q66: 2
A67: 60 | D67: MA2213 | E67: 104.1666667 | F67: 99.04729818 | G67: 18.47439592 | H67: 18.28713591 | I67: 106.2778151 | J67: 91.87643391 | K67: 5.5 | L67: 3.697220471 | M67: 10.04999149 | N67: 0.5 | O67: 20 | P67: 1 | Q67: 5.551115123e-17
A68: 61 | D68: MA4073 | E68: 100.9114583 | F68: 91.64541016 | G68: 18.69221313 | H68: 17.16294594 | I68: 99.74445447 | J68: 89.83467471 | K68: 7 | L68: 3.930414978 | M68: 11.36125074 | N68: 0.5 | O68: 35 | P68: 1 | Q68: 7.5
A69: 62 | D69: MA4074 | E69: 106.1197917 | F69: 91.45722656 | G69: 18.63990727 | H69: 16.96655754 | I69: 98.60312048 | J69: 90.34373578 | K69: 6 | L69: 3.634957081 | M69: 13.0143643 | N69: 2 | O69: 30 | P69: 1 | Q69: 5.551115123e-17
A70: 63 | D70: MA4079 | E70: 96.35416667 | F70: 94.27998047 | G70: 18.7480876 | H70: 17.5973364 | I70: 102.2689651 | J70: 90.96310905 | K70: 6 | L70: 3.379677728 | M70: 8.98805824 | N70: 1.5 | O70: 25 | P70: 1 | Q70: -1.665334537e-16
A71: 64 | D71: ST 12604 | E71: 97.65625 | F71: 90.26539714 | G71: 19.03353366 | H71: 17.1401569 | I71: 99.61201336 | J71: 91.02913544 | K71: 7 | L71: 3.691001624 | M71: 8.297521894 | N71: 0.5 | O71: 25 | P71: 1 | Q71: 1.5
A72: 65 | D72: ST 12615 | E72: 94.40104167 | F72: 87.63082682 | G72: 19.33472509 | H72: 16.92648698 | I72: 98.37024576 | J72: 90.42183181 | K72: 6 | L72: 3.528146165 | M72: 7.429004436 | N72: -1.110223025e-16 | O72: 20 | P72: 1 | Q72: 5.551115123e-17
A73: 66 | D73: ST 12651 | E73: 95.05208333 | F73: 92.58632812 | G73: 18.33148526 | H73: 17.04965941 | I73: 99.08607668 | J73: 90.21222125 | K73: 7 | L73: 3.558665708 | M73: 9.708496555 | N73: 0.5 | O73: 30 | P73: 1 | Q73: 0.5
A74: 67 | D74: ST 12658 | E74: 93.09895833 | F74: 95.1690434 | G74: 18.55220795 | H74: 17.78801004 | I74: 103.3770871 | J74: 91.47503205 | K74: 7 | L74: 3.475959909 | M74: 8.542121162 | N74: 0.5 | O74: 25 | P74: 1 | Q74: 5.551115123e-17
A75: 68 | D75: ST 12664 | E75: 100.2604167 | F75: 89.01083984 | G75: 18.97247446 | H75: 16.80856487 | I75: 97.6849277 | J75: 91.34508118 | K75: 6.5 | L75: 3.457523083 | M75: 12.91138794 | N75: -1.110223025e-16 | O75: 25 | P75: 1 | Q75: 1.5
A76: 69 | D76: ST 12668 | E76: 96.35416667 | F76: 95.14729774 | G76: 18.95900378 | H76: 17.67231527 | I76: 102.7047135 | J76: 90.42279203 | K76: 6.5 | L76: 3.649733419 | M76: 9.208126702 | N76: 5.5 | O76: 25 | P76: 1 | Q76: 5.551115123e-17
A77: 70 | D77: ST 12680 | E77: 98.30729167 | F77: 92.08450521 | G77: 18.68619812 | H77: 17.09035725 | I77: 99.32259689 | J77: 91.42983725 | K77: 7.5 | L77: 3.291449875 | M77: 8.88545604 | N77: 0.5 | O77: 25 | P77: 1 | Q77: 1.5
A78: 71 | D78: ST 12682 | E78: 100.2604167 | F78: 93.96634115 | G78: 18.89879498 | H78: 17.60771159 | I78: 102.3292617 | J78: 91.710651 | K78: 7 | L78: 3.228109729 | M78: 9.347659094 | N78: 0.5 | O78: 25 | P78: 0.5 | Q78: 5.5
A79: 72 | D79: ST 15616 | E79: 98.30729167 | F79: 95.34635417 | G79: 17.87405245 | H79: 17.11128954 | I79: 99.44424732 | J79: 90.05777593 | K79: 7.5 | L79: 4.016231711 | M79: 9.605520192 | N79: 2.5 | O79: 25 | P79: 1 | Q79: 4
A80: 73 | D80: ST 15672 | E80: 95.05208333 | F80: 97.2281901 | G80: 17.99386282 | H80: 17.44354022 | I80: 101.3751608 | J80: 90.05695777 | K80: 7 | L80: 4.501927318 | M80: 13.17653484 | N80: -1.110223025e-16 | O80: 30 | P80: 1 | Q80: 1.5
A81: 74 | D81: ST 15678 | E81: 95.05208333 | F81: 89.01083984 | G81: 19.12562996 | H81: 16.91071092 | I81: 98.27856137 | J81: 89.33940826 | K81: 6.5 | L81: 3.347251281 | M81: 9.84798891 | N81: -1.110223025e-16 | O81: 20 | P81: 1 | Q81: -1.665334537e-16
A82: 75 | D82: 6K674 | E82: 95.703125 | F82: 85.30989583 | G82: 18.65972509 | H82: 15.90325751 | I82: 92.42362879 | J82: 86.70276499 | K82: 5.246753247 | L82: 3.113146165 | M82: 7.929004436 | N82: 0.5 | O82: 30 | P82: 1 | Q82: -1.665334537e-16
A83: 76 | D83: SV1724 | E83: 99.609375 | F83: 86.62718099 | G83: 18.59353366 | H83: 16.06985017 | I83: 93.39180141 | J83: 90.88464156 | K83: 6.5 | L83: 3.546001624 | M83: 10.29752189 | N83: 1 | O83: 30 | P83: 1 | Q83: 10
A84: 77 | D84: SV1731 | E84: 95.05208333 | F84: 94.4054362 | G84: 17.91077368 | H84: 17.01615646 | I84: 98.89137038 | J84: 90.855919 | K84: 5.5 | L84: 3.488353639 | M84: 7.08181925 | N84: 0.5 | O84: 25 | P84: 1 | Q84: 2
A85: 78 | D85: SV1747 | E85: 95.05208333 | F85: 93.16175174 | G85: 18.64243133 | H85: 17.14602798 | I85: 99.6461338 | J85: 90.91931434 | K85: 6.5 | L85: 3.375828448 | M85: 10.90753093 | N85: 3 | O85: 30 | P85: 1 | Q85: 2.775557562e-16
A86: 79 | D86: SV1757 | E86: 98.95833333 | F86: 90.70449219 | G86: 18.56070214 | H86: 16.81683867 | I86: 97.73301188 | J86: 92.02530894 | K86: 7.5 | L86: 3.33274405 | M86: 7.420804289 | N86: 1.5 | O86: 20 | P86: 1 | Q86: 2.775557562e-16
A87: 80 | D87: SV1765 | E87: 102.2135417 | F87: 100.991862 | G87: 18.45303001 | H87: 18.71179728 | I87: 108.745784 | J87: 90.80548146 | K87: 6.5 | L87: 3.54137069 | M87: 8.587297362 | N87: 1.5 | O87: 30 | P87: 2 | Q87: 5
A88: 81 | D88: SV1771 | E88: 95.05208333 | F88: 96.03636068 | G88: 18.67907722 | H88: 18.09918441 | I88: 105.1855131 | J88: 90.83019451 | K88: 7.5 | L88: 3.45769671 | M88: 9.127365302 | N88: 0.5 | O88: 30 | P88: 1 | Q88: 0.5
A89: 82 | D89: SV1779 | E89: 93.75 | F89: 91.26904297 | G89: 18.96926787 | H89: 17.36426475 | I89: 100.9144421 | J89: 91.14928977 | K89: 6.5 | L89: 3.500137781 | M89: 8.460502376 | N89: 1.5 | O89: 20 | P89: 2 | Q89: 5
A90: 83 | D90: Nemata | E90: 100.9114583 | F90: 81.98531901 | G90: 17.30473703 | H90: 14.20091735 | I90: 82.5302812 | J90: 88.38923629 | K90: 5.5 | L90: 4.349157659 | M90: 9.674319686 | N90: 1.5 | O90: 25 | P90: 1 | Q90: 1.5
A91: LSD | E91: 8.352409316 | F91: 8.465844378 | G91: 0.6620455623 | H91: 1.634090974 | J91: 1.620472441 | K91: 1.385188825 | L91: 0.3273290605 | M91: 3.010882701 | N91: - | O91: 12.00540795 | P91: 1.025035541 | Q91: -
A92: CV | E92: 4.246696688 | F92: 4.330813626 | G92: 1.651033244 | H92: 4.513045367 | J92: 0.8533150462 | K92: 11.05238 | L92: 4.167967171 | M92: 15.11268185 | N92: 103.6141115 | O92: 19.79071492 | P92: 41.54806907 | Q92: 184.2105344
A93: P-value | E93: <0.05 | F93: <0.001 | G93: <0.001 | H93: <0.001 | J93: <0.001 | K93: <0.001 | L93: <0.001 | M93: <0.05 | N93: ns | O93: <0.001 | P93: <0.05 | Q93: ns

Sheet NYBO 110 untreated
A1: 1 | B1: 2 | C1: 3 | D1: 4 | E1: 6 | F1: 7 | G1: 8 | H1: 9 | I1: 10 | J1: 14 | K1: 19 | L1: 20 | M1: 46 | N1: 36 | O1: 37 | P1: 38 | Q1: 39 | R1: 44 | S1: 45 | AKU1: 1 | ALL1: 1
E2: 110 | F2: 110 | G2: 110 | H2: 110 | I2: 110 | J2: 110 | K2: 110 | L2: 110 | N2: 110 | O2: 110 | P2: 110 | Q2: 110 | R2: 110 | S2: 110
A3: Series 102 (trial no 110) | E3: Plant nr | F3: Rot | G3: Socker | H3: Socker | I3: Socker | J3: Rotfåra | K3: K/N | L3: Blåtal | M3: Svampresistens | N3: Mjöldagg | O3: Rost | P3: Ramularia | Q3: Cercospora | R3: Dubletter | S3: Pellar
A4: Nyboholm | E4: Plant no | F4: Root | G4: Sugar | H4: Sugar | I4: Sugar | J4: Groove | L4: Amino-N | M4: untreated/treated | N4: Mildew | O4: Rust | P4: Ramularia | Q4: Cercospora | R4: Duplets | S4: Sec.gen
A5: Expl. | E5: 1 | M5: Leaf diseases | N5: Early | O5: Early | P5: Early | Q5: Early
A6: no trials | M6: Leaf diseases
A7: Unit | E7: 1000/ha | F7: t/ha | G7: % | H7: t/ha | I7: relativ | J7: Sc. 1-9 | M7: % | N7: Sc. 1-100 | O7: Sc. 1-100 | P7: Sc. 1-100 | Q7: Sc. 1-100 | R7: 1000/ha | S7: 1000/ha
A8: Avg for * | E8: 98.05332179 | F8: 81.75531684 | G8: 18.59589218 | H8: 15.17725635 | I8: 100 | J8: 5.885349613 | K8: 3.555053851 | L8: 14.27801874 | M8: 88.20650803 | N8: 9.611111111 | O8: 37.22222222 | P8: 35.83333333 | Q8: 0.3888888889 | R8: 0.5260889908 | S8: 2.106079462
A9: 1 | B9: * | D9: Orlena KWS | E9: 101.2819696 | F9: 93.46716827 | G9: 18.77587097 | H9: 17.41726595 | I9: 114.758989 | J9: 6.02097909 | K9: 3.648424643 | L9: 15.40598978 | M9: =(H9/'[1]NYBO 110_beh'!H9)*100 -> 94.78940117 | N9: 3 | O9: 35 | P9: 40 | Q9: 0.5 | R9: 0.6510416667 | S9: 1.953125
A10: 2 | B10: * | D10: Cartoon | E10: 97.57936078 | F10: 77.71982422 | G10: 17.9123082 | H10: 13.8985565 | I10: 91.57489455 | J10: 4.881841746 | K10: 3.529917563 | L10: 19.82991785 | M10: =(H10/'[1]NYBO 110_beh'!H10)*100 -> 79.8627366 | N10: 11.5 | O10: 45 | P10: 40 | Q10: -9.436895709e-16 | R10: 0.6510416667 | S10: 2.604166667
A11: 3 | B11: * | D11: Pascalina KWS | E11: 102.9066849 | F11: 80.60530599 | G11: 18.99105844 | H11: 15.24359246 | I11: 100.4370758 | J11: 5.007532792 | K11: 3.482792378 | L11: 12.29773565 | M11: =(H11/'[1]NYBO 110_beh'!H11)*100 -> 92.16949129 | N11: 4 | O11: 30 | P11: 30 | Q11: -9.436895709e-16 | R11: 0.6510416667 | S11: 0.6510416667
A12: 5 | B12: * | D12: Cantona KWS | E12: 101.7640263 | F12: 85.12171224 | G12: 18.8672827 | H12: 16.06830706 | I12: 105.8709604 | J12: 5.509915281 | K12: 3.799822849 | L12: 11.086373 | M12: =(H12/'[1]NYBO 110_beh'!H12)*100 -> 95.80840339 | N12: 10 | O12: 35 | P12: 7.5 | Q12: -9.436895709e-16 | R12: 0.6510416667 | S12: 2.604166667
A13: 6 | B13: * | D13: SY Muse | E13: 99.07052525 | F13: 78.97438151 | G13: 18.11443282 | H13: 14.33308496 | I13: 94.43791836 | J13: 6.536528258 | K13: 3.661343163 | L13: 15.77834765 | M13: =(H13/'[1]NYBO 110_beh'!H13)*100 -> 82.34466007 | N13: 15 | O13: 45 | P13: 45 | Q13: -9.436895709e-16 | R13: 0.6510416667 | S13: 5.208333333
A14: 7 | B14: * | D14: Kudu | E14: 97.27322696 | F14: 82.54986979 | G14: 18.97182775 | H14: 15.75051516 | I14: 103.7770911 | J14: 6.018449898 | K14: 3.481694353 | L14: 13.64392126 | M14: =(H14/'[1]NYBO 110_beh'!H14)*100 -> 88.08929163 | N14: 11.5 | O14: 40 | P14: 40 | Q14: -9.436895709e-16 | R14: -2.56007238e-17 | S14: 1.302083333
A15: 8 | B15: * | D15: Darnella KWS | E15: 90.92927216 | F15: 75.64980469 | G15: 18.61432285 | H15: 14.06520562 | I15: 92.67291328 | J15: 5.571113444 | K15: 3.69814233 | L15: 14.30622876 | M15: =(H15/'[1]NYBO 110_beh'!H15)*100 -> 83.20285989 | N15: 4 | O15: 40 | P15: 40 | Q15: 1.5 | R15: 0.6510416667 | S15: 2.604166667
A16: 9 | B16: * | D16: Diesel | E16: 91.52547169 | F16: 80.66538381 | G16: 18.51775653 | H16: 14.82478117 | I16: 97.67760937 | J16: 6.999943821 | K16: 3.273680993 | L16: 11.55767276 | M16: =(H16/'[1]NYBO 110_beh'!H16)*100 -> 89.30442053 | N16: 7.5 | O16: 25 | P16: 35 | Q16: 8.326672685e-16 | R16: 0.6510416667 | S16: -4.440892099e-16
A17: 10 | B17: * | D17: Lombok | E17: 100.1493585 | F17: 81.04440104 | G17: 18.59816937 | H17: 14.99399829 | I17: 98.79254815 | J17: 6.421842186 | K17: 3.419666386 | L17: 14.59598192 | M17: =(H17/'[1]NYBO 110_beh'!H17)*100 -> 88.28730767 | N17: 20 | O17: 40 | P17: 45 | Q17: 1.5 | R17: 0.1775092509 | S17: 2.027631826
A18: 11 | D18: Dexter | E18: 103.1002786 | F18: 72.26515004 | G18: 18.06142153 | H18: 13.10037194 | I18: 86.31581123 | J18: 5.469914841 | K18: 3.515074026 | L18: 14.32030893 | M18: =(H18/'[1]NYBO 110_beh'!H18)*100 -> 81.08382961 | N18: 12.5 | O18: 40 | P18: 40 | Q18: -9.436895709e-16 | R18: 1.302083333 | S18: 5.208333333
A19: 12 | C19: o | D19: Ragna KWS | E19: 92.82755502 | F19: 86.94082031 | G19: 18.35775653 | H19: 16.00501465 | I19: 105.4539389 | J19: 6.499943821 | K19: 3.503680993 | L19: 12.55767276 | M19: =(H19/'[1]NYBO 110_beh'!H19)*100 -> 88.9310085 | N19: 7.5 | O19: 35 | P19: 17.5 | Q19: 5 | R19: 0.6510416667 | S19: 1.302083333
A20: 13 | C20: o | D20: Daphna | E20: 94.85075736 | F20: 97.29091797 | G20: 18.2659798 | H20: 17.76811301 | I20: 117.0706523 | J20: 5.946068486 | K20: 3.722851763 | L20: 15.22043585 | M20: =(H20/'[1]NYBO 110_beh'!H20)*100 -> 96.31617299 | N20: 12.5 | O20: 25 | P20: 35 | Q20: 5 | R20: -1.366230263e-16 | S20: -1.33226763e-15
A21: 14 | C21: o | D21: Smilla KWS | E21: 98.64481276 | F21: 84.11806641 | G21: 18.5235098 | H21: 15.53695187 | I21: 102.369964 | J21: 5.564018261 | K21: 3.676368065 | L21: 11.6150192 | M21: =(H21/'[1]NYBO 110_beh'!H21)*100 -> 84.55689496 | N21: 5.5 | O21: 30 | P21: 30 | Q21: 1.5 | R21: -2.499086008e-17 | S21: 1.953125
A22: 15 | C22: o | D22: Kashmir | E22: 100.1244905 | F22: 91.08350942 | G22: 18.45040276 | H22: 16.38304655 | I22: 107.9447179 | J22: 4.99763206 | K22: 3.386102836 | L22: 11.44161814 | M22: =(H22/'[1]NYBO 110_beh'!H22)*100 -> 98.04457778 | N22: 11.5 | O22: 40 | P22: 30 | Q22: -9.436895709e-16 | R22: -2.56007238e-17 | S22: -1.33226763e-15
A23: 16 | D23: Degas | E23: 111.6216247 | F23: 81.46756521 | G23: 18.84734484 | H23: 15.41056886 | I23: 101.5372509 | J23: 6.502792982 | K23: 3.488870922 | L23: 11.65491289 | M23: =(H23/'[1]NYBO 110_beh'!H23)*100 -> 88.37952174 | N23: 15 | O23: 35 | P23: 35 | Q23: -9.436895709e-16 | R23: 1.653439153 | S23: 2.12880291
A24: 17 | C24: o | D24: Klimt | E24: 95.90876316 | F24: 91.58533233 | G24: 18.94918925 | H24: 17.16866288 | I24: 113.1209915 | J24: 6.912950055 | K24: 3.251274241 | L24: 11.08084484 | M24: =(H24/'[1]NYBO 110_beh'!H24)*100 -> 102.5518898 | N24: 4 | O24: 35 | P24: 35 | Q24: -9.436895709e-16 | R24: 0.6510416667 | S24: 1.302083333
A25: 18 | D25: Landon | E25: 102.4150679 | F25: 80.79348958 | G25: 18.3022827 | H25: 14.79839399 | I25: 97.50374934 | J25: 7.509915281 | K25: 3.174822849 | L25: 12.086373 | M25: =(H25/'[1]NYBO 110_beh'!H25)*100 -> 81.60455547 | N25: 11.5 | O25: 40 | P25: 35 | Q25: 6.5 | R25: -2.56007238e-17 | S25: 1.953125
A26: 19 | D26: Piculet | E26: 91.48335443 | F26: 78.84892578 | G26: 18.6735098 | H26: 14.68160725 | I26: 96.73426416 | J26: 6.564018261 | K26: 3.151368065 | L26: 10.6150192 | M26: =(H26/'[1]NYBO 110_beh'!H26)*100 -> 90.2597936 | N26: 12.5 | O26: 40 | P26: 40 | Q26: -9.436895709e-16 | R26: -2.56007238e-17 | S26: 3.255208333
A27: 20 | D27: Mustang | E27: 101.4007878 | F27: 82.3616862 | G27: 18.48540599 | H27: 15.22867578 | I27: 100.3387926 | J27: 4.915341524 | K27: 3.158730535 | L27: 12.79587434 | M27: =(H27/'[1]NYBO 110_beh'!H27)*100 -> 85.79591698 | N27: 20 | O27: 40 | P27: 45 | Q27: -9.436895709e-16 | R27: 1.479592584 | S27: 5.208333333
A28: 21 | D28: Maxine | E28: 104.1763717 | F28: 76.21435547 | G28: 18.87485249 | H28: 14.43386982 | I28: 95.10197026 | J28: 5.954815751 | K28: 3.324055581 | L28: 11.15219958 | M28: =(H28/'[1]NYBO 110_beh'!H28)*100 -> 81.57713743 | N28: 11.5 | O28: 45 | P28: 35 | Q28: -9.436895709e-16 | R28: 0.6510416667 | S28: 1.302083333
A29: 22 | D29: Illusion | E29: 100.0147046 | F29: 82.54986979 | G29: 18.33056893 | H29: 15.14452007 | I29: 99.78430701 | J29: 5.528303449 | K29: 3.710515546 | L29: 15.07141497 | M29: =(H29/'[1]NYBO 110_beh'!H29)*100 -> 83.26683334 | N29: 12.5 | O29: 30 | P29: 35 | Q29: -9.436895709e-16 | R29: 0.6510416667 | S29: 1.953125
A30: 23 | D30: Thyra KWS | E30: 90.0513126 | F30: 76.40253906 | G30: 20.15513721 | H30: 15.46455137 | I30: 101.8929312 | J30: 6.058003834 | K30: 3.896897536 | L30: 14.59922137 | M30: =(H30/'[1]NYBO 110_beh'!H30)*100 -> 81.67260989 | N30: 15 | O30: 25 | P30: 10 | Q30: 5 | R30: 0.6510416667 | S30: 3.255208333
A31: 24 | D31: Farina KWS | E31: 99.42513663 | F31: 86.81536458 | G31: 18.40811002 | H31: 15.93936367 | I31: 105.0213773 | J31: 5.469372912 | K31: 3.969936087 | L31: 18.28793128 | M31: =(H31/'[1]NYBO 110_beh'!H31)*100 -> 86.72627867 | N31: 6.5 | O31: 30 | P31: 30 | Q31: 8.326672685e-16 | R31: -2.56007238e-17 | S31: 1.953125
A32: 25 | D32: Fuga KWS | E32: 102.3954757 | F32: 70.69430339 | G32: 19.75575833 | H32: 13.98679579 | I32: 92.1562861 | J32: 4.960023089 | K32: 3.193810306 | L32: 10.89058356 | M32: =(H32/'[1]NYBO 110_beh'!H32)*100 -> 73.59945339 | N32: 3 | O32: 30 | P32: 20 | Q32: 8.326672685e-16 | R32: 1.953125 | S32: 1.302083333
A33: 26 | D33: Selma KWS | E33: 104.9929476 | F33: 84.43170573 | G33: 18.71973099 | H33: 15.84444386 | I33: 104.3959692 | J33: 6.009468777 | K33: 3.205277208 | L33: 11.27560904 | M33: =(H33/'[1]NYBO 110_beh'!H33)*100 -> 82.00227057 | N33: 10 | O33: 55 | P33: 1 | Q33: 8.326672685e-16 | R33: -2.56007238e-17 | S33: 1.953125
A34: 27 | D34: Caporal | E34: 99.92251686 | F34: 83.99261068 | G34: 18.28888305 | H34: 15.31926109 | I34: 100.9356417 | J34: 6.586356035 | K34: 3.312323864 | L34: 14.85615913 | M34: =(H34/'[1]NYBO 110_beh'!H34)*100 -> 86.3540186 | N34: 5 | O34: 45 | P34: 40 | Q34: 8.326672685e-16 | R34: 1.302083333 | S34: 1.953125
A35: 28 | D35: Davinci | E35: 98.34328374 | F35: 86.68725881 | G35: 18.69422987 | H35: 16.1968403 | I35: 106.717841 | J35: 6.884921901 | K35: 3.653621486 | L35: 12.28782805 | M35: =(H35/'[1]NYBO 110_beh'!H35)*100 -> 94.89479211 | N35: 11.5 | O35: 30 | P35: 50 | Q35: 15 | R35: 0.6510416667 | S35: 0.6510416667
A36: 29 | D36: Joker | E36: 99.78461423 | F36: 76.52534475 | G36: 18.60912646 | H36: 14.29003867 | I36: 94.1542947 | J36: 4.884028891 | K36: 2.844530205 | L36: 7.666300134 | M36: =(H36/'[1]NYBO 110_beh'!H36)*100 -> 77.86504078 | N36: 12.5 | O36: 40 | P36: 35 | Q36: 8.326672685e-16 | R36: -2.591243192e-17 | S36: 0.6510416667
A37: 30 | D37: Kahn | E37: 105.1882196 | F37: 77.09254557 | G37: 18.9815757 | H37: 14.54317313 | I37: 95.82214855 | J37: 6.979993994 | K37: 3.631502325 | L37: 11.3728165 | M37: =(H37/'[1]NYBO 110_beh'!H37)*100 -> 88.23315622 | N37: 10 | O37: 40 | P37: 30 | Q37: -9.436895709e-16 | R37: 0.6510416667 | S37: 0.6510416667
A38: 31 | D38: Einar | E38: 92.24659069 | F38: 85.06163442 | G38: 19.0559798 | H38: 16.23916138 | I38: 106.9966864 | J38: 6.946068486 | K38: 3.067851763 | L38: 12.22043585 | M38: =(H38/'[1]NYBO 110_beh'!H38)*100 -> 96.47751195 | N38: 6.5 | O38: 40 | P38: 20 | Q38: 8.326672685e-16 | R38: 0.1775092509 | S38: 0.6510416667
A39: 32 | D39: Curie | E39: 90.95077528 | F39: 80.60530599 | G39: 18.80333231 | H39: 15.09308323 | I39: 99.44539958 | J39: 7.034804111 | K39: 3.336451398 | L39: 11.37152255 | M39: =(H39/'[1]NYBO 110_beh'!H39)*100 -> 87.41006044 | N39: 11.5 | O39: 35 | P39: 35 | Q39: 6.5 | R39: -1.366230263e-16 | S39: 0.6510416667
A40: 33 | D40: Bazin | E40: 104.9610726 | F40: 89.82895212 | G40: 18.47339314 | H40: 16.70308412 | I40: 110.0533834 | J40: 7.033384828 | K40: 4.055302042 | L40: 13.00480117 | M40: =(H40/'[1]NYBO 110_beh'!H40)*100 -> 107.0824235 | N40: 6.5 | O40: 35 | P40: 35 | Q40: 8.326672685e-16 | R40: 0.6510416667 | S40: 1.953125
A41: 34 | D41: Bonola | E41: 96.90681599 | F41: 77.84527995 | G41: 17.92329874 | H41: 13.97823971 | I41: 92.09991175 | J41: 7.418151079 | K41: 3.691608495 | L41: 19.26462405 | M41: =(H41/'[1]NYBO 110_beh'!H41)*100 -> 85.43466209 | N41: 2 | O41: 50 | P41: 45 | Q41: 8.326672685e-16 | R41: -1.366230263e-16 | S41: 4.557291667
A42: 35 | D42: Whisky | E42: 84.67274657 | F42: 78.15891927 | G42: 18.94693127 | H42: 14.78128183 | I42: 97.39100062 | J42: 6.442385023 | K42: 3.474209796 | L42: 15.32178193 | M42: =(H42/'[1]NYBO 110_beh'!H42)*100 -> 79.30678661 | N42: 11.5 | O42: 45 | P42: 40 | Q42: 8.326672685e-16 | R42: -2.56007238e-17 | S42: 1.953125
A43: 36 | D43: HI1427 | E43: 99.70766401 | F43: 76.3398112 | G43: 18.55999107 | H43: 14.12719329 | I43: 93.08133806 | J43: 6.000481222 | K43: 3.726292765 | L43: 14.53885827 | M43: =(H43/'[1]NYBO 110_beh'!H43)*100 -> 80.23799132 | N43: 3 | O43: 35 | P43: 3 | Q43: 8.326672685e-16 | R43: -2.56007238e-17 | S43: 2.604166667
A44: 37 | D44: HI1469 | E44: 99.47202975 | F44: 83.36533203 | G44: 18.75561767 | H44: 15.58974991 | I44: 102.7178401 | J44: 5.421395681 | K44: 3.245120746 | L44: 11.28521796 | M44: =(H44/'[1]NYBO 110_beh'!H44)*100 -> 92.29460608 | N44: 15 | O44: 45 | P44: 40 | Q44: 8.326672685e-16 | R44: -2.56007238e-17 | S44: -2.664535259e-15
A45: 38 | D45: HI1470 | E45: 104.3393146 | F45: 78.34710286 | G45: 18.03112335 | H45: 14.13611947 | I45: 93.1401509 | J45: 6.996974322 | K45: 3.61113998 | L45: 16.32304754 | M45: =(H45/'[1]NYBO 110_beh'!H45)*100 -> 78.25917701 | N45: 11.5 | O45: 40 | P45: 35 | Q45: 8.326672685e-16 | R45: 1.953125 | S45: 1.953125
A46: 39 | D46: HI1473 | E46: 104.3992547 | F46: 74.08160807 | G46: 19.09852171 | H46: 14.10094796 | I46: 92.90841261 | J46: 5.966523751 | K46: 3.319746158 | L46: 14.19069115 | M46: =(H46/'[1]NYBO 110_beh'!H46)*100 -> 79.43607762 | N46: 12.5 | O46: 45 | P46: 45 | Q46: -5.551115123e-17 | R46: 0.6510416667 | S46: 1.953125
A47: 40 | D47: HI1474 | E47: 102.1920328 | F47: 85.93982452 | G47: 18.83339314 | H47: 16.29353389 | I47: 107.3549363 | J47: 5.033384828 | K47: 3.265302042 | L47: 12.00480117 | M47: =(H47/'[1]NYBO 110_beh'!H47)*100 -> 92.23693473 | N47: 6.5 | O47: 50 | P47: 25 | Q47: 8.326672685e-16 | R47: -2.56007238e-17 | S47: -2.664535259e-15
A48: 41 | D48: HI1475 | E48: 105.1056767 | F48: 87.06627604 | G48: 18.80916385 | H48: 16.44281751 | I48: 108.3385371 | J48: 5.503834929 | K48: 3.624541535 | L48: 11.74102383 | M48: =(H48/'[1]NYBO 110_beh'!H48)*100 -> 88.08955159 | N48: 12.5 | O48: 45 | P48: 45 | Q48: -5.551115123e-17 | R48: 1.302083333 | S48: 0.6510416667
A49: 42 | D49: HI1476 | E49: 100.1868709 | F49: 78.40983073 | G49: 18.64804126 | H49: 14.66984578 | I49: 96.65677008 | J49: 6.603131903 | K49: 3.736522948 | L49: 17.00469455 | M49: =(H49/'[1]NYBO 110_beh'!H49)*100 -> 88.97567126 | N49: 12.5 | O49: 55 | P49: 45 | Q49: 8.326672685e-16 | R49: -2.56007238e-17 | S49: 2.604166667
A50: 43 | D50: HI1478 | E50: 93.46946964 | F50: 70.81975911 | G50: 18.0465757 | H50: 12.68502323 | I50: 83.57915909 | J50: 5.979993994 | K50: 3.386502325 | L50: 16.3728165 | M50: =(H50/'[1]NYBO 110_beh'!H50)*100 -> 74.03984368 | N50: 12.5 | O50: 55 | P50: 25 | Q50: 1.5 | R50: -2.56007238e-17 | S50: 1.953125
A51: 44 | D51: HI1479 | E51: 100.5124281 | F51: 82.29895833 | G51: 18.1689816 | H51: 14.94761104 | I51: 98.48691151 | J51: 6.906147755 | K51: 3.792981076 | L51: 12.05334665 | M51: =(H51/'[1]NYBO 110_beh'!H51)*100 -> 89.9874248 | N51: 11.5 | O51: 60 | P51: 40 | Q51: 8.326672685e-16 | R51: -2.56007238e-17 | S51: 3.255208333
A52: 45 | D52: HI1482 | E52: 104.8830071 | F52: 80.79348958 | G52: 18.35692518 | H52: 14.85396461 | I52: 97.86989335 | J52: 6.584505489 | K52: 3.671158504 | L52: 14.78106097 | M52: =(H52/'[1]NYBO 110_beh'!H52)*100 -> 84.70729849 | N52: 11.5 | O52: 50 | P52: 50 | Q52: 8.326672685e-16 | R52: 0.6510416667 | S52: 1.302083333
A53: 46 | D53: HI1483 | E53: 97.6190619 | F53: 89.95440785 | G53: 18.84057851 | H53: 17.008757 | I53: 112.0674027 | J53: 6.025602611 | K53: 3.593580957 | L53: 13.63809902 | M53: =(H53/'[1]NYBO 110_beh'!H53)*100 -> 99.03353415 | N53: 12.5 | O53: 45 | P53: 35 | Q53: -9.436895709e-16 | R53: -2.56007238e-17 | S53: 3.90625
A54: 47 | D54: 6K649 | E54: 102.9298821 | F54: 77.78255208 | G54: 19.28192518 | H54: 15.01981081 | I54: 98.96262182 | J54: 5.084505489 | K54: 3.461158504 | L54: 14.78106097 | M54: =(H54/'[1]NYBO 110_beh'!H54)*100 -> 82.76593435 | N54: 12.5 | O54: 35 | P54: 35 | Q54: -9.436895709e-16 | R54: 1.409327299e-16 | S54: 5.208333333
A55: 48 | D55: 6K657 | E55: 97.36325406 | F55: 85.30989583 | G55: 19.05738712 | H55: 16.28553366 | I55: 107.3022243 | J55: 4.949959595 | K55: 3.828712305 | L55: 15.90378693 | M55: =(H55/'[1]NYBO 110_beh'!H55)*100 -> 89.19318273 | N55: 12.5 | O55: 50 | P55: 35 | Q55: -9.436895709e-16 | R55: 1.409327299e-16 | S55: 1.302083333
A56: 49 | D56: 6K659 | E56: 98.30515041 | F56: 78.03346354 | G56: 18.65333231 | H56: 14.49545604 | I56: 95.50774991 | J56: 5.034804111 | K56: 3.496451398 | L56: 11.37152255 | M56: =(H56/'[1]NYBO 110_beh'!H56)*100 -> 81.23822083 | N56: 11.5 | O56: 60 | P56: 26.5 | Q56: -9.436895709e-16 | R56: 1.409327299e-16 | S56: 1.302083333
A57: 50 | D57: 6K660 | E57: 97.75453901 | F57: 82.3616862 | G57: 18.40999107 | H57: 15.11614199 | I57: 99.5973293 | J57: 5.500481222 | K57: 3.841292765 | L57: 14.03885827 | M57: =(H57/'[1]NYBO 110_beh'!H57)*100 -> 80.74633997 | N57: 6.5 | O57: 60 | P57: 16.5 | Q57: -9.436895709e-16 | R57: 1.409327299e-16 | S57: 3.90625
A58: 51 | D58: 6K664 | E58: 95.32010196 | F58: 79.78984375 | G58: 18.49182775 | H58: 14.84099876 | I58: 97.78446388 | J58: 3.518449898 | K58: 3.836694353 | L58: 14.14392126 | M58: =(H58/'[1]NYBO 110_beh'!H58)*100 -> 81.82591 | N58: 6.5 | O58: 40 | P58: 2 | Q58: -9.436895709e-16 | R58: 1.409327299e-16 | S58: 3.255208333
A59: 52 | D59: 6K665 | E59: 92.65547926 | F59: 82.1735026 | G59: 18.43513721 | H59: 15.21967433 | I59: 100.2794838 | J59: 6.558003834 | K59: 3.866897536 | L59: 10.59922137 | M59: =(H59/'[1]NYBO 110_beh'!H59)*100 -> 84.5467676 | N59: 15 | O59: 40 | P59: 7.5 | Q59: 8.326672685e-16 | R59: 1.409327299e-16 | S59: 1.953125
A60: 53 | D60: 6K697 | E60: 100.1328734 | F60: 77.40883494 | G60: 19.60954482 | H60: 15.14812308 | I60: 99.80804653 | J60: 4.875341084 | K60: 3.318981711 | L60: 10.52981027 | M60: =(H60/'[1]NYBO 110_beh'!H60)*100 -> 81.16935273 | N60: 3 | O60: 35 | P60: 10 | Q60: -9.436895709e-16 | R60: 1.409327299e-16 | S60: 0.6510416667
A61: 54 | D61: 6K683 | E61: 101.3674419 | F61: 88.63447266 | G61: 17.87333231 | H61: 15.79123181 | I61: 104.0453653 | J61: 5.534804111 | K61: 3.381451398 | L61: 11.87152255 | M61: =(H61/'[1]NYBO 110_beh'!H61)*100 -> 90.21361336 | N61: 3 | O61: 35 | P61: 10 | Q61: 1.5 | R61: 1.409327299e-16 | S61: 2.604166667
A62: 55 | D62: 6K685 | E62: 99.40363351 | F62: 79.91529948 | G62: 18.71410056 | H62: 14.96215135 | I62: 98.58271486 | J62: 4.505682245 | K62: 3.246627019 | L62: 11.22263748 | M62: =(H62/'[1]NYBO 110_beh'!H62)*100 -> 81.93777636 | N62: 7.5 | O62: 45 | P62: 2 | Q62: 8.326672685e-16 | R62: 0.6510416667 | S62: 3.90625
A63: 56 | D63: 6K688 | E63: 99.3345225 | F63: 82.42441406 | G63: 18.77918122 | H63: 15.45053169 | I63: 101.8005582 | J63: 6.059296554 | K63: 3.941257909 | L63: 12.85342053 | M63: =(H63/'[1]NYBO 110_beh'!H63)*100 -> 87.17502321 | N63: 11.5 | O63: 40 | P63: 3 | Q63: 8.326672685e-16 | R63: -2.56007238e-17 | S63: -1.776356839e-15
A64: 57 | D64: 6K670 | E64: 100.0590907 | F64: 62.28876953 | G64: 18.4009798 | H64: 11.43723428 | I64: 75.35771954 | J64: 5.446068486 | K64: 4.097851763 | L64: 13.63809902 | M64: =(H64/'[1]NYBO 110_beh'!H64)*100 -> 75.81718317 | N64: 4 | O64: 50 | P64: 35 | Q64: 5 | R64: 2.991042743e-17 | S64: 3.255208333
A65: 58 | D65: MA2206 | E65: 100.0546752 | F65: 77.09254557 | G65: 18.65910056 | H65: 14.39076324 | I65: 94.81794931 | J65: 5.505682245 | K65: 3.376627019 | L65: 13.72263748 | M65: =(H65/'[1]NYBO 110_beh'!H65)*100 -> 81.77533649 | N65: 6.5 | O65: 50 | P65: 50 | Q65: -9.436895709e-16 | R65: 1.302083333 | S65: 3.90625
A66: 59 | D66: MA2209 | E66: 92.14300707 | F66: 81.66902965 | G66: 18.00694895 | H66: 14.61459265 | I66: 96.2927179 | J66: 6.502331768 | K66: 3.217458124 | L66: 14.61395644 | M66: =(H66/'[1]NYBO 110_beh'!H66)*100 -> 87.57666725 | N66: 12.5 | O66: 45 | P66: 50 | Q66: -9.436895709e-16 | R66: 2.991042743e-17 | S66: -4.440892099e-16
A67: 60 | D67: MA2213 | E67: 104.2788586 | F67: 82.1735026 | G67: 18.53943282 | H67: 15.26663241 | I67: 100.5888815 | J67: 5.536528258 | K67: 3.511343163 | L67: 13.27834765 | M67: =(H67/'[1]NYBO 110_beh'!H67)*100 -> 83.48290561 | N67: 12.5 | O67: 35 | P67: 55 | Q67: -9.436895709e-16 | R67: 2.991042743e-17 | S67: 1.302083333
A68: 61 | D68: MA4073 | E68: 103.2990638 | F68: 70.00429688 | G68: 18.45932285 | H68: 12.92766089 | I68: 85.17785155 | J68: 6.071113444 | K68: 3.44314233 | L68: 17.30622876 | M68: =(H68/'[1]NYBO 110_beh'!H68)*100 -> 75.32308808 | N68: 6.5 | O68: 50 | P68: 40 | Q68: -5.551115123e-17 | R68: 1.953125 | S68: 3.90625
A69: 62 | D69: MA4074 | E69: 102.8287916 | F69: 83.43070994 | G69: 18.36033552 | H69: 15.34453657 | I69: 101.1021769 | J69: 6.134908662 | K69: 3.736024212 | L69: 18.88491795 | M69: =(H69/'[1]NYBO 110_beh'!H69)*100 -> 90.43989353 | N69: 12.5 | O69: 60 | P69: 10 | Q69: -9.436895709e-16 | R69: 2.991042743e-17 | S69: 3.255208333
A70: 63 | D70: MA4079 | E70: 104.2856517 | F70: 80.2289388 | G70: 18.58571003 | H70: 14.9075342 | I70: 98.22285303 | J70: 5.508534637 | K70: 3.355896824 | L70: 14.41336213 | M70: =(H70/'[1]NYBO 110_beh'!H70)*100 -> 84.71471968 | N70: 11.5 | O70: 50 | P70: 50 | Q70: -5.551115123e-17 | R70: 2.991042743e-17 | S70: 2.604166667
A71: 64 | D71: ST 12604 | E71: 101.681485 | F71: 76.1516276 | G71: 16.82071003 | H71: 12.86086826 | I71: 84.73776785 | J71: 5.508534637 | K71: 3.170896824 | L71: 13.41336213 | M71: =(H71/'[1]NYBO 110_beh'!H71)*100 -> 75.03355032 | N71: 6.5 | O71: 40 | P71: 40 | Q71: 8.326672685e-16 | R71: 0.6510416667 | S71: 4.557291667
A72: 65 | D72: ST 12615 | E72: 99.08667944 | F72: 77.65709635 | G72: 18.94222335 | H72: 14.74474912 | I72: 97.15029369 | J72: 6.057446008 | K72: 3.55509255 | L72: 11.27832236 | M72: =(H72/'[1]NYBO 110_beh'!H72)*100 -> 87.11050993 | N72: 7.5 | O72: 40 | P72: 35 | Q72: -9.436895709e-16 | R72: 1.302083333 | S72: -4.440892099e-16
A73: 66 | D73: ST 12651 | E73: 93.21794333 | F73: 78.78619792 | G73: 18.47571003 | H73: 14.56781263 | I73: 95.98449347 | J73: 7.008534637 | K73: 3.605896824 | L73: 13.91336213 | M73: =(H73/'[1]NYBO 110_beh'!H73)*100 -> 85.44342312 | N73: 11.5 | O73: 40 | P73: 35 | Q73: -9.436895709e-16 | R73: 2.991042743e-17 | S73: 3.90625
A74: 67 | D74: ST 12658 | E74: 97.89194526 | F74: 80.16621094 | G74: 18.55142153 | H74: 14.9193835 | I74: 98.30092573 | J74: 6.969914841 | K74: 3.440074026 | L74: 13.32030893 | M74: =(H74/'[1]NYBO 110_beh'!H74)*100 -> 83.87325768 | N74: 12.5 | O74: 40 | P74: 40 | Q74: -9.436895709e-16 | R74: 2.991042743e-17 | S74: 3.255208333
A75: 68 | D75: ST 12664 | E75: 100.6184624 | F75: 74.3952474 | G75: 19.07238712 | H75: 14.21219582 | I75: 93.64140325 | J75: 6.449959595 | K75: 3.343712305 | L75: 16.40378693 | M75: =(H75/'[1]NYBO 110_beh'!H75)*100 -> 84.5532973 | N75: 7.5 | O75: 50 | P75: 40 | Q75: -9.436895709e-16 | R75: 0.6510416667 | S75: 4.557291667
A76: 69 | D76: ST 12668 | E76: 87.02143344 | F76: 73.76796875 | G76: 18.1492142 | H76: 13.3940802 | I76: 88.25099796 | J76: 6.085493837 | K76: 3.756922438 | L76: 17.43589292 | M76: =(H76/'[1]NYBO 110_beh'!H76)*100 -> 75.79131536 | N76: 11.5 | O76: 60 | P76: 25 | Q76: -9.436895709e-16 | R76: 2.991042743e-17 | S76: 3.255208333
A77: 70 | D77: ST 12680 | E77: 95.60428592 | F77: 83.86715495 | G77: 18.90556013 | H77: 15.83389303 | I77: 104.3264518 | J77: 8.027780993 | K77: 3.245139345 | L77: 16.84658393 | M77: =(H77/'[1]NYBO 110_beh'!H77)*100 -> 92.64811028 | N77: 12.5 | O77: 50 | P77: 45 | Q77: 25 | R77: 2.991042743e-17 | S77: 2.604166667
A78: 71 | D78: ST 12682 | E78: 94.12051131 | F78: 78.09619141 | G78: 18.6265757 | H78: 14.45307082 | I78: 95.22848193 | J78: 6.979993994 | K78: 3.156502325 | L78: 12.8728165 | M78: =(H78/'[1]NYBO 110_beh'!H78)*100 -> 82.0837549 | N78: 10 | O78: 40 | P78: 35 | Q78: 0.5 | R78: 2.991042743e-17 | S78: 1.302083333
A79: 72 | D79: ST 15616 | E79: 105.5108516 | F79: 82.23623047 | G79: 17.82605844 | H79: 14.59705009 | I79: 96.17713341 | J79: 7.007532792 | K79: 3.767792378 | L79: 12.79773565 | M79: =(H79/'[1]NYBO 110_beh'!H79)*100 -> 85.30654604 | N79: 11.5 | O79: 35 | P79: 45 | Q79: 3 | R79: 2.991042743e-17 | S79: 3.90625
A80: 73 | D80: ST 15672 | E80: 92.58639563 | F80: 77.15527344 | G80: 18.38198453 | H80: 14.17652876 | I80: 93.40639988 | J80: 6.536974763 | K80: 3.950888804 | L80: 15.08911161 | M80: =(H80/'[1]NYBO 110_beh'!H80)*100 -> 81.27093801 | N80: 7.5 | O80: 45 | P80: 40 | Q80: -5.551115123e-17 | R80: 2.991042743e-17 | S80: 3.255208333
A81: 74 | D81: ST 15678 | E81: 98.23374593 | F81: 72.2625 | G81: 19.34804126 | H81: 14.03072411 | I81: 92.44572131 | J81: 6.603131903 | K81: 3.341522948 | L81: 12.50469455 | M81: =(H81/'[1]NYBO 110_beh'!H81)*100 -> 82.96945159 | N81: 4 | O81: 40 | P81: 16.5 | Q81: 8.326672685e-16 | R81: 0.6510416667 | S81: 1.302083333
A82: 75 | D82: 6K674 | E82: 102.1100924 | F82: 69.88149119 | G82: 19.39540599 | H82: 13.63392262 | I82: 89.83127317 | J82: 4.915341524 | K82: 3.053730535 | L82: 10.79587434 | M82: =(H82/'[1]NYBO 110_beh'!H82)*100 -> 85.730377 | N82: 7.5 | O82: 40 | P82: 20 | Q82: 8.326672685e-16 | R82: -5.335629941e-17 | S82: 3.255208333
A83: 76 | D83: SV1724 | E83: 99.23949564 | F83: 70.88248698 | G83: 19.43273552 | H83: 13.73550796 | I83: 90.50059933 | J83: 6.448957749 | K83: 3.24060786 | L83: 12.78816044 | M83: =(H83/'[1]NYBO 110_beh'!H83)*100 -> 85.4737774 | N83: 3 | O83: 50 | P83: 45 | Q83: 8.326672685e-16 | R83: -5.335629941e-17 | S83: 2.604166667
A84: 77 | D84: SV1731 | E84: 101.3199709 | F84: 83.80442708 | G84: 18.57958744 | H84: 15.57123892 | I84: 102.5958748 | J84: 5.107831611 | K84: 3.402878237 | L84: 11.67703285 | M84: =(H84/'[1]NYBO 110_beh'!H84)*100 -> 91.50855515 | N84: 12.5 | O84: 40 | P84: 30 | Q84: 8.326672685e-16 | R84: -5.335629941e-17 | S84: -4.440892099e-16
A85: 78 | D85: SV1747 | E85: 99.62232567 | F85: 77.28072917 | G85: 18.60730451 | H85: 14.34043667 | I85: 94.48635732 | J85: 5.964722797 | K85: 3.350165595 | L85: 13.56292186 | M85: =(H85/'[1]NYBO 110_beh'!H85)*100 -> 83.63707726 | N85: 12.5 | O85: 40 | P85: 10 | Q85: 8.326672685e-16 | R85: -2.56007238e-17 | S85: 0.6510416667
A86: 79 | D86: SV1757 | E86: 95.54427663 | F86: 82.98896484 | G86: 18.16160821 | H86: 15.09206076 | I86: 99.43866276 | J86: 7.457705014 | K86: 3.341811678 | L86: 10.71992417 | M86: =(H86/'[1]NYBO 110_beh'!H86)*100 -> 89.74374468 | N86: 7.5 | O86: 35 | P86: 40 | Q86: 8.326672685e-16 | R86: -5.335629941e-17 | S86: 2.604166667
A87: 80 | D87: SV1765 | E87: 92.44444826 | F87: 80.47985026 | G87: 18.92626453 | H87: 15.25058035 | I87: 100.4831176 | J87: 7.049256569 | K87: 3.345693718 | L87: 16.16745765 | M87: =(H87/'[1]NYBO 110_beh'!H87)*100 -> 81.50248809 | N87: 5 | O87: 40 | P87: 45 | Q87: 8.326672685e-16 | R87: -2.56007238e-17 | S87: -4.440892099e-16
A88: 81 | D88: SV1771 | E88: 93.89518213 | F88: 87.31983754 | G88: 19.33249871 | H88: 16.72309431 | I88: 110.1852266 | J88: 6.952503991 | K88: 3.311477424 | L88: 12.53614496 | M88: =(H88/'[1]NYBO 110_beh'!H88)*100 -> 92.39694967 | N88: 7.5 | O88: 55 | P88: 17.5 | Q88: -5.551115123e-17 | R88: 0.6510416667 | S88: 1.302083333
A89: 82 | D89: SV1779 | E89: 94.35303389 | F89: 84.24352214 | G89: 18.70756713 | H89: 15.79751715 | I89: 104.0867781 | J89: 6.568224181 | K89: 3.545386233 | L89: 12.73850417 | M89: =(H89/'[1]NYBO 110_beh'!H89)*100 -> 90.97717281 | N89: 12.5 | O89: 45 | P89: 30 | Q89: 10 | R89: -2.56007238e-17 | S89: 1.953125
A90: 83 | D90: Nemata | E90: 93.6389418 | F90: 65.74145212 | G90: 17.62316937 | H90: 11.39605586 | I90: 75.08640296 | J90: 4.921842186 | K90: 4.284666386 | L90: 14.59598192 | M90: =(H90/'[1]NYBO 110_beh'!H90)*100 -> 80.24873028 | N90: 15 | O90: 60 | P90: 3 | Q90: 2.570166302e-14 | R90: -4.718447855e-16 | S90: 3.255208333
A91: LSD | E91: 11.15034018 | F91: 9.852618721 | G91: 0.6782576751 | H91: 1.892953035 | J91: 1.098417114 | K91: 0.3985810888 | L91: 4.595907164 | N91: 11.02814504 | O91: 13.19658133 | P91: 22.64450021 | Q91: - | R91: - | S91: -
A92: CV | E92: 5.348964408 | F92: 5.592603544 | G92: 1.670229241 | H92: 5.777412531 | J92: 8.440922018 | K92: 5.257559062 | L92: 15.55290337 | N92: 47.67327577 | O92: 13.14062999 | P92: 30.14015055 | Q92: 447.610894 | R92: 219.604564 | S92: 90.21500727
A93: P-value | E93: <0.05 | F93: <0.001 | G93: <0.001 | H93: <0.001 | J93: <0.001 | K93: <0.001 | L93: <0.05 | N93: <0.05 | O93: <0.001 | P93: <0.001 | Q93: ns | R93: ns | S93: ns

Sheet ORMA 111 all
A1: 1 | B1: 2 | C1: 3 | D1: 4 | E1: 5 | F1: 6 | G1: 7 | H1: 8 | I1: 9 | J1: 10 | K1: 14 | L1: 19 | M1: 20 | N1: 27 | O1: 32 | P1: 44 | Q1: 45 | ALA1: 1
E2: 111 | F2: 111 | G2: 111 | H2: 111 | I2: 111 | J2: 111 | K2: 111 | L2: 111 | M2: 111 | N2: 111 | O2: 111 | P2: 111 | Q2: 111
A3: Series 102 (trial no 111) | E3: Plant nr | F3: Plant nr | G3: Rot | H3: Socker | I3: Socker | J3: Socker | K3: Rotfåra | L3: K/N | M3: Blåtal | N3: Fröstockar | O3: Aphanomyces | P3: Dubletter | Q3: Pellar
A4: Ormastorp | E4: Plant no | F4: Plant no | G4: Root | H4: Sugar | I4: Sugar | J4: Sugar | K4: Groove | M4: Amino-N | N4: Bolters | O4: Aphanomyces | P4: Duplets | Q4: Sec.gen
A5: Expl. | E5: 0.5 | F5: 1 | N5: Sum | O5: At factory
A6: no trials
A7: Unit | E7: 1000/ha | F7: 1000/ha | G7: t/ha | H7: % | I7: t/ha | J7: relativ | K7: Sc. 1-9 | N7: ‰ | O7: Sc. 1-9 | P7: 1000/ha | Q7: 1000/ha
A8: Avg for * | E8: 59.27032573 | F8: 96.99076738 | G8: 88.65657318 | H8: 19.06737848 | I8: 16.93034052 | J8: 100 | K8: 5.972454139 | L8: 3.623406151 | M8: 8.838161056 | N8: 2.467162277e-17 | O8: 2.40875065 | P8: 0.5787037037 | Q8: 1.822886898
A9: 1 | B9: * | D9: Orlena KWS | E9: 48.51218567 | F9: 96.73589369 | G9: 94.13235695 | H9: 19.0275 | I9: 17.95297432 | J9: 106.0402436 | K9: 6 | L9: 3.87 | M9: 10.24911858 | N9: 0 | O9: 3 | P9: 0.6510416667 | Q9: 2.604166667
A10: 2 | B10: * | D10: Cartoon | E10: 73.99050108 | F10: 98.48726068 | G10: 89.79487388 | H10: 18.8275 | I10: 17.05944279 | J10: 100.7625498 | K10: 5.75 | L10: 3.475 | M10: 9.491093552 | N10: 5.551115123e-17 | O10: 2 | P10: 1.302083333 | Q10: 0.9765625
A11: 3 | B11: * | D11: Pascalina KWS | E11: 44.66086726 | F11: 95.89257671 | G11: 86.94420516 | H11: 19.2825 | I11: 16.80292462 | J11: 99.24741089 | K11: 5.75 | L11: 3.7425 | M11: 8.460595597 | N11: 0 | O11: 2 | P11: 0.3255208333 | Q11: 1.106502915
A12: 5 | B12: * | D12: Cantona KWS | E12: 51.55153666 | F12: 96.17113562 | G12: 86.76439262 | H12: 19.0775 | I12: 16.61293885 | J12: 98.12524933 | K12: 5.25 | L12: 3.5625 | M12: 8.898793261 | N12: 0 | O12: 2.5 | P12: 0.6510416667 | Q12: 1.262878691e-15
A13: 6 | B13: * | D13: SY Muse | E13: 45.24276475 | F13: 94.42937087 | G13: 84.77019853 | H13: 18.5325 | I13: 15.6891015 | J13: 92.66855256 | K13: 6 | L13: 3.535 | M13: 9.257979619 | N13: 0 | O13: 1.5 | P13: 0.9765625 | Q13: 2.604166667
A14: 7 | B14: * | D14: Kudu | E14: 63.82131456 | F14: 98.21656677 | G14: 85.78716184 | H14: 19.675 | I14: 16.87668722 | J14: 99.68309382 | K14: 6.25 | L14: 3.58 | M14: 7.781495229 | N14: 0 | O14: 2.25 | P14: -2.706168623e-16 | Q14: 1.953125
A15: 8 | B15: * | D15: Darnella KWS | E15: 76.34560872 | F15: 98.99273469 | G15: 93.01038784 | H15: 18.4175 | I15: 17.12885166 | J15: 101.1725171 | K15: 5.75 | L15: 3.97 | M15: 9.243897287 | N15: 5.551115123e-17 | O15: 2.75 | P15: 0.6510416667 | Q15: 1.627604167
A16: 9 | B16: * | D16: Diesel | E16: 64.97535672 | F16: 100.9148249 | G16: 87.83146259 | H16: 19.80251349 | I16: 17.43094451 | J16: 102.9568454 | K16: 6.66315797 | L16: 3.300647947 | M16: 7.704109135 | N16: 2.775557562e-17 | O16: 3.273643411 | P16: 0.3255208333 | Q16: 1.953125
A17: 10 | B17: * | D17: Lombok | E17: 64.3327962 | F17: 93.07654249 | G17: 88.87411924 | H17: 18.96389287 | I17: 16.81919918 | J17: 99.34353751 | K17: 6.338929284 | L17: 3.575007413 | M17: 8.456367241 | N17: 8.326672685e-17 | O17: 2.405112435 | P17: 0.3255208333 | Q17: 3.580729167
A18: 11 | D18: Dexter | E18: 91.78308596 | F18: 94.72823208 | G18: 85.98127899 | H18: 19.2425 | I18: 16.58962662 | J18: 97.98755434 | K18: 6.25 | L18: 3.705 | M18: 7.96924175 | N18: 0 | O18: 2.5 | P18: 1.302083333 | Q18: 1.302083333
A19: 12 | C19: o | D19: Ragna KWS | E19: 56.98858024 | F19: 89.98767299 | G19: 91.79846033 | H19: 18.6275 | I19: 17.05037928 | J19: 100.7090156 | K19: 6.25 | L19: 3.6025 | M19: 8.783227453 | N19: 8.326672685e-17 | O19: 2.5 | P19: 0.6510416667 | Q19: 1.953125
A20: 13 | C20: o | D20: Daphna | E20: 61.94044827 | F20: 94.57681237 | G20: 97.16537456 | H20: 18.4925 | I20: 17.92526308 | J20: 105.8765656 | K20: 5.75 | L20: 3.92 | M20: 10.93989026 | N20: 10.19119769 | O20: 2.25 | P20: 0.9765625 | Q20: 1.627604167
A21: 14 | C21: o | D21: Smilla KWS | E21: 57.85561957 | F21: 98.05880941 | G21: 91.05741584 | H21: 19.1225 | I21: 17.35633131 | J21: 102.5161383 | K21: 6 | L21: 4.285 | M21: 9.037481388 | N21: 0 | O21: 2 | P21: -2.706168623e-16 | Q21: 2.604166667
A22: 15 | C22: o | D22: Kashmir | E22: 81.55432034 | F22: 99.84607363 | G22: 92.21961061 | H22: 18.82 | I22: 17.3576511 | J22: 102.5239338 | K22: 5.25 | L22: 3.53 | M22: 9.518371177 | N22: 0 | O22: 1.75 | P22: 0.9765625 | Q22: 2.278645833
A23: 16 | D23: Degas | E23: 72.50855561 | F23: 95.45268728 | G23: 86.73935946 | H23: 18.5425 | I23: 16.15120307 | J23: 95.39798124 | K23: 6.75 | L23: 3.55 | M23: 9.202395381 | N23: 0 | O23: 2 | P23: 0.3255208333 | Q23: 1.953125
A24: 17 | C24: o | D24: Klimt | E24: 66.21243909 | F24: 87.97606079 | G24: 88.75601884 | H24: 19.205 | I24: 16.93474839 | J24: 100.0260353 | K24: 7.25 | L24: 3.39 | M24: 7.750377919 | N24: 0 | O24: 2.75 | P24: 1.953125 | Q24: 0.3255208333
A25: 18 | D25: Landon | E25: 68.07552695 | F25: 94.33289918 | G25: 86.10484751 | H25: 19.30691562 | I25: 16.62819118 | J25: 98.21533812 | K25: 6.325907241 | L25: 3.452323161 | M25: 7.681024957 | N25: 0 | O25: 1.781145493 | P25: 0.3255208333 | Q25: 1.302083333
A26: 19 | D26: Piculet | E26: 60.57706292 | F26: 88.77379255 | G26: 84.26127468 | H26: 19.1625 | I26: 16.18842045 | J26: 95.61780774 | K26: 6.5 | L26: 3.51 | M26: 7.756775905 | N26: 0 | O26: 2.75 | P26: -2.706168623e-16 | Q26: 2.604166667
A27: 20 | D27: Mustang | E27: 78.722352 | F27: 99.83678285 | G27: 88.83018253 | H27: 19.49918016 | I27: 17.31405518 | J27: 102.266432 | K27: 5.66315797 | L27: 3.590647947 | M27: 7.980007886 | N27: 0 | O27: 2.273643411 | P27: 1.302083333 | Q27: 1.953125
A28: 21 | D28: Maxine | E28: 79.59220975 | F28: 97.13763223 | G28: 88.09447117 | H28: 19.495 | I28: 17.2137869 | J28: 101.6741919 | K28: 5.75 | L28: 3.805 | M28: 8.990912664 | N28: 0 | O28: 2.25 | P28: -4.857225733e-17 | Q28: 1.302083333
A29: 22 | D29: Illusion | E29: 75.9554334 | F29: 99.33026451 | G29: 97.79953117 | H29: 18.74024895 | I29: 18.34074113 | J29: 108.3306098 | K29: 5.325907241 | L29: 3.698989827 | M29: 8.048239916 | N29: 0 | O29: 2.75 | P29: 1.627604167 | Q29: 2.278645833
A30: 23 | D30: Thyra KWS | E30: 29.76082309 | F30: 71.0172552 | G30: 80.47420265 | H30: 20.0925 | I30: 16.19584483 | J30: 95.66166025 | K30: 5.75 | L30: 4.11 | M30: 9.767882713 | N30: 2.775557562e-17 | O30: 2.5 | P30: 0.6510416667 | Q30: 1.953125
A31: 24 | D31: Farina KWS | E31: 65.13204422 | F31: 95.78891216 | G31: 91.27356966 | H31: 18.9375 | I31: 17.28695383 | J31: 102.1063564 | K31: 5.25 | L31: 3.96 | M31: 10.4560788 | N31: 2.775557562e-17 | O31: 2.25 | P31: 2.289834988e-16 | Q31: 1.302083333
A32: 25 | D32: Fuga KWS | E32: 72.30859604 | F32: 98.36348927 | G32: 86.31677042 | H32: 19.6025 | I32: 16.93534937 | J32: 100.029585 | K32: 6 | L32: 3.4975 | M32: 8.226543216 | N32: 2.775557562e-17 | O32: 2.25 | P32: 2.604166667 | Q32: 0.6510416667
A33: 26 | D33: Selma KWS | E33: 49.41205462 | F33: 91.25106517 | G33: 95.03657475 | H33: 19.4025 | I33: 18.39193392 | J33: 108.6329829 | K33: 5.75 | L33: 3.4475 | M33: 9.745548382 | N33: 8.326672685e-17 | O33: 2 | P33: 1.302083333 | Q33: 1.953125
A34: 27 | D34: Caporal | E34: 75.45023161 | F34: 96.35681611 | G34: 89.25384188 | H34: 19.17 | I34: 17.01759397 | J34: 100.5153674 | K34: 6 | L34: 3.475 | M34: 8.820633964 | N34: 2.775557562e-17 | O34: 2.5 | P34: 0.9765625 | Q34: 2.9296875
A35: 28 | D35: Davinci | E35: 80.70039895 | F35: 93.22846821 | G35: 88.24783514 | H35: 19.5225 | I35: 17.30306318 | J35: 102.2015072 | K35: 5.996491303 | L35: 3.7 | M35: 9.474709381 | N35: 2.775557562e-17 | O35: 2.25 | P35: 0.6510416667 | Q35: 1.627604167
A36: 29 | D36: Joker | E36: 80.9723485 | F36: 96.95411179 | G36: 89.53884105 | H36: 19.2125 | I36: 17.17799634 | J36: 101.4627929 | K36: 5.25 | L36: 3.6375 | M36: 7.253448191 | N36: 8.326672685e-17 | O36: 1.75 | P36: 2.604166667 | Q36: 1.953125
A37: 30 | D37: Kahn | E37: 75.17926218 | F37: 98.58172931 | G37: 88.15974576 | H37: 19.0775 | I37: 16.81223994 | J37: 99.30243237 | K37: 7 | L37: 3.5225 | M37: 7.247917095 | N37: 0 | O37: 2.25 | P37: 1.953125 | Q37: 0.3255208333
A38: 31 | D38: Einar | E38: 27.27743202 | F38: 84.17437651 | G38: 83.36709692 | H38: 19.2875 | I38: 16.08595876 | J38: 95.01261206 | K38: 7.5 | L38: 3.33 | M38: 7.040919731 | N38: 2.775557562e-17 | O38: 3 | P38: 0.9765625 | Q38: 2.278645833
A39: 32 | D39: Curie | E39: 71.45416582 | F39: 91.10696192 | G39: 84.47148761 | H39: 19.625 | I39: 16.57424412 | J39: 97.8966968 | K39: 7 | L39: 3.4475 | M39: 7.255613789 | N39: 2.775557562e-17 | O39: 3.5 | P39: 1.627604167 | Q39: 1.302083333
A40: 33 | D40: Bazin | E40: 81.26833748 | F40: 98.63201101 | G40: 84.44674348 | H40: 18.785 | I40: 15.84175272 | J40: 93.57019547 | K40: 6.5 | L40: 3.885 | M40: 9.451380568 | N40: 3.246753247 | O40: 2 | P40: 0.3255208333 | Q40: 1.627604167
A41: 34 | D41: Bonola | E41: 62.94157176 | F41: 90.23676062 | G41: 85.76006456 | H41: 19.1 | I41: 16.32749476 | J41: 96.43925793 | K41: 6.75 | L41: 3.6875 | M41: 7.753227875 | N41: 2.775557562e-17 | O41: 2.5 | P41: 2.289834988e-16 | Q41: 5.208333333
A42: 35 | D42: Whisky | E42: 59.32127405 | F42: 99.73329276 | G42: 91.60166794 | H42: 19.5775 | I42: 17.91892686 | J42: 105.8391404 | K42: 6.5 | L42: 3.365 | M42: 10.26115635 | N42: 2.775557562e-17 | O42: 2.75 | P42: 0.6510416667 | Q42: 2.9296875
A43: 36 | D43: HI1427 | E43: 70.59831392 | F43: 95.96072747 | G43: 91.41966673 | H43: 19.0825 | I43: 17.3656108 | J43: 102.5709482 | K43: 6.25 | L43: 3.885 | M43: 10.07237564 | N43: 8.326672685e-17 | O43: 2.25 | P43: 1.302083333 | Q43: 1.627604167
A44: 37 | D44: HI1469 | E44: 74.02026402 | F44: 101.8038939 | G44: 91.08393131 | H44: 19.315 | I44: 17.60538252 | J44: 103.9871732 | K44: 5 | L44: 3.38 | M44: 7.709305666 | N44: 2.775557562e-17 | O44: 2.5 | P44: 0.9765625 | Q44: 1.953125
A45: 38 | D45: HI1470 | E45: 74.91820892 | F45: 98.31190471 | G45: 95.1155748 | H45: 18.68024895 | I45: 17.77984215 | J45: 105.0176287 | K45: 6.992573908 | L45: 4.298056158 | M45: 12.80623636 | N45: 2.775557562e-17 | O45: 2.25 | P45: 0.6510416667 | Q45: 0.6510416667
A46: 39 | D46: HI1473 | E46: 67.06528098 | F46: 98.363111 | G46: 89.56623629 | H46: 20.0275 | I46: 17.90096136 | J46: 105.7330261 | K46: 6.5 | L46: 3.4975 | M46: 9.239535925 | N46: 1.110223025e-16 | O46: 2.5 | P46: 0.9765625 | Q46: 1.627604167
A47: 40 | D47: HI1474 | E47: 85.90509419 | F47: 102.6818158 | G47: 86.68415775 | H47: 19.92 | I47: 17.26898233 | J47: 102.0002067 | K47: 5.25 | L47: 3.47 | M47: 7.306175945 | N47: 8.326672685e-17 | O47: 1.75 | P47: 0.3255208333 | Q47: 1.953125
A48: 41 | D48: HI1475 | E48: 83.8054655 | F48: 101.5101245 | G48: 89.66519613 | H48: 19.3075 | I48: 17.27420434 | J48: 102.0310509 | K48: 5.75 | L48: 3.6225 | M48: 8.276286055 | N48: 1.110223025e-16 | O48: 2 | P48: 2.9296875 | Q48: 0.6510416667
A49: 42 | D49: HI1476 | E49: 60.85743642 | F49: 100.0251961 | G49: 85.34115183 | H49: 19.69 | I49: 16.85178422 | J49: 99.53600287 | K49: 6.5 | L49: 3.8175 | M49: 9.97132214 | N49: 8.326672685e-17 | O49: 2.25 | P49: 0.9765625 | Q49: 0.9765625
A50: 43 | D50: HI1478 | E50: 59.4135329 | F50: 92.54488484 | G50: 85.8004495 | H50: 18.6375 | I50: 15.98859559 | J50: 94.43753108 | K50: 6.75 | L50: 3.33 | M50: 8.784451916 | N50: 2.775557562e-17 | O50: 2.75 | P50: 0.9765625 | Q50: 2.604166667
A51: 44 | D51: HI1479 | E51: 77.53938242 | F51: 98.49103777 | G51: 90.21162227 | H51: 18.89878727 | I51: 16.83578161 | J51: 99.44148252 | K51: 5.996491303 | L51: 3.429004139 | M51: 11.11131551 | N51: 8.326672685e-17 | O51: 2.273643411 | P51: 0.6510416667 | Q51: 0.3255208333
A52: 45 | D52: HI1482 | E52: 82.01164717 | F52: 99.41722869 | G52: 86.36856567 | H52: 18.84 | I52: 16.24336869 | J52: 95.94236263 | K52: 6 | L52: 3.86 | M52: 10.00869327 | N52: 8.326672685e-17 | O52: 1.75 | P52: 0.9765625 | Q52: 1.302083333
A53: 46 | D53: HI1483 | E53: 78.03257728 | F53: 100.050326 | G53: 88.9099034 | H53: 19.3625 | I53: 17.2361429 | J53: 101.8062388 | K53: 5.75 | L53: 3.625 | M53: 7.944175165 | N53: 5.551115123e-17 | O53: 2 | P53: 0.6510416667 | Q53: 2.278645833
A54: 47 | D54: 6K649 | E54: 69.59388921 | F54: 98.17506774 | G54: 89.24336843 | H54: 19.89918016 | I54: 17.74645857 | J54: 104.8204467 | K54: 4.996491303 | L54: 3.603981281 | M54: 6.910571096 | N54: 5.551115123e-17 | O54: 1.940310078 | P54: -1.595945598e-16 | Q54: 1.302083333
A55: 48 | D55: 6K657 | E55: 60.41378916 | F55: 89.75304965 | G55: 93.04970707 | H55: 19.4625 | I55: 17.96002296 | J55: 106.0818767 | K55: 5.25 | L55: 3.945 | M55: 8.716694402 | N55: 0 | O55: 2.25 | P55: 0.6510416667 | Q55: 3.580729167
A56: 49 | D56: 6K659 | E56: 43.63343037 | F56: 92.95199341 | G56: 86.78746297 | H56: 19.71918016 | I56: 17.04295407 | J56: 100.6651582 | K56: 4.996491303 | L56: 3.703981281 | M56: 6.377891943 | N56: 0 | O56: 1.940310078 | P56: 0.3255208333 | Q56: 0.9765625
A57: 50 | D57: 6K660 | E57: 65.02635842 | F57: 100.1931938 | G57: 96.31222995 | H57: 18.7075 | I57: 17.99497792 | J57: 106.2883402 | K57: 5.5 | L57: 3.897314614 | M57: 8.959227491 | N57: 0 | O57: 2.5 | P57: 0.3255208333 | Q57: 3.255208333
A58: 51 | D58: 6K664 | E58: 41.43976808 | F58: 90.36355867 | G58: 93.37349966 | H58: 18.5525 | I58: 17.40261371 | J58: 102.7895079 | K58: 5 | L58: 3.713981281 | M58: 8.495404987 | N58: 5.551115123e-17 | O58: 1.75 | P58: 0.3255208333 | Q58: 2.9296875
A59: 52 | D59: 6K665 | E59: 53.56059993 | F59: 83.53177405 | G59: 91.03139428 | H59: 18.60584683 | I59: 16.97584706 | J59: 100.268787 | K59: 5.996491303 | L59: 4.097314614 | M59: 8.029950205 | N59: 8.326672685e-17 | O59: 3 | P59: 0.3255208333 | Q59: 1.302083333
A60: 53 | D60: 6K697 | E60: 70.99646814 | F60: 100.8571266 | G60: 86.43710791 | H60: 20.3225 | I60: 17.57593075 | J60: 103.8132147 | K60: 5.75 | L60: 3.365 | M60: 6.513935433 | N60: 5.551115123e-17 | O60: 1.5 | P60: 0.9765625 | Q60: 0.6510416667
A61: 54 | D61: 6K683 | E61: 76.6910398 | F61: 97.76012931 | G61: 91.1923678 | H61: 19.44918016 | I61: 17.74897683 | J61: 104.835321 | K61: 4.996491303 | L61: 3.500647947 | M61: 6.544009258 | N61: 3.333333333 | O61: 1.940310078 | P61: 0.3255208333 | Q61: 2.278645833
A62: 55 | D62: 6K685 | E62: 66.40734828 | F62: 101.5771427 | G62: 90.32652045 | H62: 19.9575 | I62: 18.02181019 | J62: 106.4468265 | K62: 5.25 | L62: 3.6125 | M62: 7.833183443 | N62: 3.164556962 | O62: 1.75 | P62: 4.510281038e-16 | Q62: 0.6510416667
A63: 56 | D63: 6K688 | E63: 44.7429655 | F63: 91.74449946 | G63: 86.08970785 | H63: 19.4275 | I63: 16.67462005 | J63: 98.4895728 | K63: 5.25 | L63: 3.82 | M63: 8.526286055 | N63: 1.387778781e-16 | O63: 3 | P63: 4.510281038e-16 | Q63: 2.604166667
A64: 57 | D64: 6K670 | E64: 56.5202962 | F64: 93.40206332 | G64: 79.58755306 | H64: 19.33 | I64: 15.35546818 | J64: 90.69792875 | K64: 6 | L64: 3.585 | M64: 9.949011336 | N64: 8.326672685e-17 | O64: 2.25 | P64: 0.9765625 | Q64: 2.604166667
A65: 58 | D65: MA2206 | E65: 81.70142861 | F65: 96.7465659 | G65: 88.73963234 | H65: 19.275 | I65: 17.08072285 | J65: 100.8882416 | K65: 5.75 | L65: 3.6475 | M65: 9.909646702 | N65: 5.551115123e-17 | O65: 2.5 | P65: 1.302083333 | Q65: 3.580729167
A66: 59 | D66: MA2209 | E66: 58.54593878 | F66: 93.76854276 | G66: 88.02705243 | H66: 19.235 | I66: 16.95714013 | J66: 100.1582934 | K66: 6.75 | L66: 3.35 | M66: 8.925609723 | N66: 5.551115123e-17 | O66: 2.5 | P66: 0.6510416667 | Q66: 2.604166667
A67: 60 | D67: MA2213 | E67: 84.96014388 | F67: 97.96858467 | G67: 86.35364429 | H67: 19.435 | I67: 16.693973 | J67: 98.60388206 | K67: 5.25 | L67: 3.7475 | M67: 8.74181477 | N67: 5.551115123e-17 | O67: 2.5 | P67: 1.302083333 | Q67: 1.627604167
A68: 61 | D68: MA4073 | E68: 81.52008582 | F68: 100.5358272 | G68: 86.09873371 | H68: 19.165 | I68: 16.51179398 | J68: 97.52783155 | K68: 6.5 | L68: 3.53 | M68: 8.226012635 | N68: 5.551115123e-17 | O68: 2.25 | P68: 0.6510416667 | Q68: 1.302083333
A69: 62 | D69: MA4074 | E69: 74.92126885 | F69: 98.98956048 | G69: 81.23121585 | H69: 18.79960954 | I69: 15.34353234 | J69: 90.62742904 | K69: 6.003130881 | L69: 3.608483041 | M69: 10.84269189 | N69: 5.551115123e-17 | O69: 1.273643411 | P69: 0.6510416667 | Q69: 1.302083333
A70: 63 | D70: MA4079 | E70: 83.49390407 | F70: 101.6339004 | G70: 89.47802887 | H70: 19.4725 | I70: 17.40983603 | J70: 102.832167 | K70: 5.75 | L70: 3.5275 | M70: 9.03321003 | N70: 8.326672685e-17 | O70: 1.5 | P70: 0.3255208333 | Q70: 1.627604167
A71: 64 | D71: ST 12604 | E71: 20.75884563 | F71: 91.47364018 | G71: 82.3991448 | H71: 19.13960954 | I71: 15.74071491 | J71: 92.97341005 | K71: 6.003130881 | L71: 3.623483041 | M71: 9.387046216 | N71: 2.775557562e-17 | O71: 2.273643411 | P71: 0.9765625 | Q71: 2.604166667
A72: 65 | D72: ST 12615 | E72: 71.82753848 | F72: 91.29787364 | G72: 84.23087048 | H72: 19.79 | I72: 16.61591828 | J72: 98.14284753 | K72: 6 | L72: 3.6525 | M72: 7.455446109 | N72: 5.551115123e-17 | O72: 2.5 | P72: 1.953125 | Q72: 1.627604167
A73: 66 | D73: ST 12651 | E73: 53.4283324 | F73: 84.70915902 | G73: 82.91044063 | H73: 19.3175 | I73: 16.04520668 | J73: 94.77190764 | K73: 6.5 | L73: 3.4675 | M73: 7.523995427 | N73: 5.551115123e-17 | O73: 2.5 | P73: 0.3255208333 | Q73: 4.231770833
A74: 67 | D74: ST 12658 | E74: 49.02526737 | F74: 93.69917904 | G74: 90.2960605 | H74: 19.0425 | I74: 17.17332293 | J74: 101.4351892 | K74: 6.75 | L74: 3.51 | M74: 8.51345388 | N74: 3.571428571 | O74: 1.75 | P74: 0.9765625 | Q74: 1.953125
A75: 68 | D75: ST 12664 | E75: 69.07068223 | F75: 93.78055206 | G75: 85.33602545 | H75: 19.8275 | I75: 16.93763767 | J75: 100.043101 | K75: 6.5 | L75: 3.5475 | M75: 8.765473224 | N75: 5.551115123e-17 | O75: 2 | P75: 0.9765625 | Q75: 0.9765625
A76: 69 | D76: ST 12668 | E76: 76.91105377 | F76: 91.77589906 | G76: 89.41890026 | H76: 18.97691562 | I76: 16.95789726 | J76: 100.1627654 | K76: 6.659240575 | L76: 3.822323161 | M76: 10.70164455 | N76: 5.551115123e-17 | O76: 3.75 | P76: -4.857225733e-17 | Q76: 6.184895833
A77: 70 | D77: ST 12680 | E77: 61.75369666 | F77: 93.68627785 | G77: 89.99052781 | H77: 19.1025 | I77: 17.23712074 | J77: 101.8120145 | K77: 7.25 | L77: 3.2225 | M77: 7.45671484 | N77: 5.551115123e-17 | O77: 4 | P77: -4.857225733e-17 | Q77: 1.302083333
A78: 71 | D78: ST 12682 | E78: 64.55394175 | F78: 90.28101531 | G78: 80.71497406 | H78: 18.595 | I78: 15.00127108 | J78: 88.60584382 | K78: 7.25 | L78: 3.1425 | M78: 8.259452137 | N78: 5.551115123e-17 | O78: 1.75 | P78: 1.179611964e-16 | Q78: 0.9765625
A79: 72 | D79: ST 15616 | E79: 63.46181804 | F79: 86.58712179 | G79: 85.8244155 | H79: 18.34 | I79: 15.562086 | J79: 91.9183284 | K79: 7.25 | L79: 3.888989827 | M79: 7.496565541 | N79: 5.551115123e-17 | O79: 2.75 | P79: 0.6510416667 | Q79: 0.9765625
A80: 73 | D80: ST 15672 | E80: 74.19359262 | F80: 91.86187357 | G80: 88.88909694 | H80: 18.875 | I80: 16.76836789 | J80: 99.04329964 | K80: 6 | L80: 4.0125 | M80: 10.2597223 | N80: 5.551115123e-17 | O80: 2.25 | P80: 1.302083333 | Q80: 1.302083333
A81: 74 | D81: ST 15678 | E81: 74.18677147 | F81: 93.30129109 | G81: 80.77610504 | H81: 19.49389287 | I81: 15.81954913 | J81: 93.43904875 | K81: 7.005595951 | L81: 3.11167408 | M81: 8.583906069 | N81: 5.551115123e-17 | O81: 2 | P81: 1.627604167 | Q81: 2.278645833
A82: 75 | D82: 6K674 | E82: 58.88127718 | F82: 90.4811662 | G82: 79.41234127 | H82: 19.82001135 | I82: 15.76852476 | J82: 93.13767047 | K82: 5.338672172 | L82: 3.202021479 | M82: 7.068689159 | N82: 5.551115123e-17 | O82: 2.206765328 | P82: 1.302083333 | Q82: 1.627604167
A83: 76 | D83: SV1724 | E83: 55.46756083 | F83: 96.38994053 | G83: 83.21993217 | H83: 19.4775 | I83: 16.20261089 | J83: 95.70162438 | K83: 7 | L83: 3.545 | M83: 10.26982972 | N83: 5.551115123e-17 | O83: 2.5 | P83: 0.3255208333 | Q83: 1.953125
A84: 77 | D84: SV1731 | E84: 56.70560158 | F84: 91.11965114 | G84: 84.69505815 | H84: 18.9525 | I84: 15.99030337 | J84: 94.44761818 | K84: 5.75 | L84: 3.7075 | M84: 8.502937447 | N84: 5.551115123e-17 | O84: 2.75 | P84: 1.302083333 | Q84: 3.580729167
A85: 78 | D85: SV1747 | E85: 61.23060361 | F85: 94.93113052 | G85: 87.04237586 | H85: 19.2725 | I85: 16.78221302 | J85: 99.1250767 | K85: 6.5 | L85: 3.2325 | M85: 6.527161775 | N85: 5.551115123e-17 | O85: 2.5 | P85: 6.938893904e-18 | Q85: 0.6510416667
A86: 79 | D86: SV1757 | E86: 61.01602397 | F86: 100.6950948 | G86: 88.57302115 | H86: 18.91918016 | I86: 16.74575047 | J86: 98.90970862 | K86: 7.996491303 | L86: 3.603981281 | M86: 7.344837706 | N86: 5.551115123e-17 | O86: 3.273643411 | P86: 6.938893904e-18 | Q86: 1.302083333
A87: 80 | D87: SV1765 | E87: 62.40995064 | F87: 100.8719926 | G87: 87.6200256 | H87: 19.52 | I87: 17.15094018 | J87: 101.3029842 | K87: 6 | L87: 3.388989827 | M87: 9.754608324 | N87: 5.551115123e-17 | O87: 2.25 | P87: 1.953125 | Q87: 0.9765625
A88: 81 | D88: SV1771 | E88: 56.64422827 | F88: 92.39472146 | G88: 88.18770714 | H88: 19.265 | I88: 17.0151032 | J88: 100.5006555 | K88: 6.5 | L88: 3.5925 | M88: 8.2462971 | N88: 5.551115123e-17 | O88: 2.5 | P88: -4.857225733e-17 | Q88: 1.302083333
A89: 82 | D89: SV1779 | E89: 74.6168149 | F89: 98.02048837 | G89: 83.82904464 | H89: 19.5875 | I89: 16.41602945 | J89: 96.962193 | K89: 6 | L89: 3.59 | M89: 8.95519938 | N89: 5.551115123e-17 | O89: 2.5 | P89: 0.3255208333 | Q89: 2.278645833
A90: 83 | D90: Nemata | E90: 34.14719755 | F90: 89.13213356 | G90: 80.39407055 | H90: 18.70918016 | I90: 14.99996235 | J90: 88.59811373 | K90: 5.996491303 | L90: 4.190647947 | M90: 9.316330053 | N90: 3.60822483e-15 | O90: 2.606976744 | P90: -1.360508928e-13 | Q90: 3.255208333
A91: LSD | E91: 10.44278553 | F91: 8.637734495 | G91: 6.403045005 | H91: 0.6547572735 | I91: 1.252125558 | K91: 0.8118364297 | L91: 0.2809932878 | M91: 2.441048881 | N91: 3.46840335 | O91: - | P91: 1.885650434 | Q91: 2.526857801
A92: CV | E92: 12.01869235 | F92: 6.59450917 | G92: 4.783500868 | H92: 2.332786455 | I92: 4.864612069 | K92: 9.118931888 | L92: 5.198216051 | M92: 18.99116993 | N92: 722.2401997 | O92: 37.61347416 | P92: 145.4125993 | Q92: 79.42150019
A93: P-value | E93: <0.001 | F93: <0.001 | G93: <0.001 | H93: <0.001 | I93: <0.001 | K93: <0.001 | L93: <0.001 | M93: <0.001 | N93: <0.05 | O93: ns | P93: <0.05 | Q93: <0.001

Sheet ORMA 111 treated
A1: 1 | B1: 2 | C1: 3 | D1: 4 | E1: 6 | F1: 7 | G1: 8 | H1: 9 | I1: 10 | J1: 14 | K1: 19 | L1: 20 | M1: 36 | N1: 37 | O1: 38 | P1: 39 | ALL1: 1
E2: 111 | F2: 111 | G2: 111 | H2: 111 | I2: 111 | J2: 111 | K2: 111 | L2: 111 | M2: 111 | N2: 111 | O2: 111 | P2: 111
A3: Series 102 (trial no 111) | E3: Plant nr | F3: Rot | G3: Socker | H3: Socker | I3: Socker | J3: Rotfåra | K3: K/N | L3: Blåtal | M3: Mjöldagg | N3: Rost | O3: Ramularia | P3: Cercospora
A4: Ormastorp | E4: Plant no | F4: Root | G4: Sugar | H4: Sugar | I4: Sugar | J4: Groove | L4: Amino-N | M4: Mildew | N4: Rust | O4: Ramularia | P4: Cercospora
A5: Expl. | E5: 1 | M5: Early | N5: Early | O5: Early | P5: Early
A6: no trials
A7: Unit | E7: 1000/ha | F7: t/ha | G7: % | H7: t/ha | I7: relativ | J7: Sc. 1-9 | M7: Sc. 1-100 | N7: Sc. 1-100 | O7: Sc. 1-100 | P7: Sc. 1-100
A8: Avg for * | E8: 96.52399807 | F8: 90.88341459 | G8: 18.93555556 | H8: 17.24912834 | I8: 100 | J8: 5.888888889 | K8: 3.684444444 | L8: 9.085683393 | M8: 2.388888889 | N8: 8.777777778 | O8: 1.111111111 | P8: 0.1111111111
A9: 1 | B9: * | D9: Orlena KWS | E9: 97.57784867 | F9: 99.92548828 | G9: 19.005 | H9: 18.99438631 | I9: 110.1179488 | J9: 6 | K9: 3.875 | L9: 8.479797972 | M9: 1.5 | N9: 9.5 | O9: 2.775557562e-16 | P9: 0
A10: 2 | B10: * | D10: Cartoon | E10: 93.41899442 | F10: 93.5693511 | G10: 18.565 | H10: 17.72246499 | I10: 102.7441192 | J10: 5.5 | K10: 3.645 | L10: 8.978702327 | M10: 3.5 | N10: 7.5 | O10: 1 | P10: 0
A11: 3 | B11: * | D11: Pascalina KWS | E11: 95.2180174 | F11: 88.3835612 | G11: 18.705 | H11: 16.52957642 | I11: 95.8284737 | J11: 5.5 | K11: 3.915 | L11: 9.011375457 | M11: 3.5 | N11: 20 | O11: 1 | P11: 0
A12: 5 | B12: * | D12: Cantona KWS | E12: 94.18900978 | F12: 92.89996745 | G12: 19.015 | H12: 17.67621042 | I12: 102.4759632 | J12: 5.5 | K12: 3.555 | L12: 10.75247984 | M12: 5 | N12: 10 | O12: 2 | P12: -1.110223025e-16
A13: 6 | B13: * | D13: SY Muse | E13: 93.80356677 | F13: 82.48714193 | G13: 18.73 | H13: 15.45012396 | I13: 89.57046207 | J13: 6 | K13: 3.66 | L13: 9.601281046 | M13: -7.771561172e-16 | N13: 3 | O13: 2 | P13: 0
A14: 7 | B14: * | D14: Kudu | E14: 95.83414067 | F14: 89.2617513 | G14: 19.39 | H14: 17.29981814 | I14: 100.2938687 | J14: 5.5 | K14: 3.62 | L14: 9.60564534 | M14: -7.771561172e-16 | N14: 6 | O14: 1 | P14: 0
A15: 8 | B15: * | D15: Darnella KWS | E15: 98.69702633 | F15: 89.88902995 | G15: 18.585 | H15: 16.69803837 | I15: 96.80511408 | J15: 5.5 | K15: 4.04 | L15: 7.46080045 | M15: 1.5 | N15: 9 | O15: 1.5 | P15: 0
A16: 9 | B16: * | D16: Diesel | E16: 100.219975 | F16: 90.328125 | G16: 19.71 | H16: 17.7993954 | I16: 103.1901151 | J16: 7 | K16: 3.275 | L16: 9.132706277 | M16: 1.5 | N16: 8 | O16: 1 | P16: 0.5
A17: 10 | B17: * | D17: Lombok | E17: 99.75740354 | F17: 91.2063151 | G17: 18.715 | H17: 17.07214108 | I17: 98.97393505 | J17: 6.5 | K17: 3.575 | L17: 8.748361821 | M17: 5 | N17: 6 | O17: 0.5 | P17: 0.5
A18: 11 | D18: Dexter | E18: 86.89803424 | F18: 87.67293183 | G18: 19.18 | H18: 16.87143605 | I18: 97.81036881 | J18: 6.5 | K18: 3.76 | L18: 8.497376825 | M18: -7.771561172e-16 | N18: 6.5 | O18: 1 | P18: -1.110223025e-16
A19: 12 | C19: o | D19: Ragna KWS | E19: 92.83773943 | F19: 97.66728516 | G19: 18.48 | H19: 18.04951648 | I19: 104.6401657 | J19: 6 | K19: 3.56 | L19: 10.03614728 | M19: -4.996003611e-16 | N19: 10 | O19: 0.5 | P19: 0
A20: 13 | C20: o | D20: Daphna | E20: 93.53796811 | F20: 102.9364258 | G20: 18.265 | H20: 18.79971665 | I20: 108.989372 | J20: 6 | K20: 3.99 | L20: 11.25247984 | M20: 10 | N20: 2 | O20: 1 | P20: -1.110223025e-16
A21: 14 | C21: o | D21: Smilla KWS | E21: 95.74439505 | F21: 91.58268229 | G21: 19.125 | H21: 17.49682127 | I21: 101.4359736 | J21: 6 | K21: 4.345 | L21: 8.536756365 | M21: -7.771561172e-16 | N21: 5.5 | O21: 1 | P21: -1.110223025e-16
A22: 15 | C22: o | D22: Kashmir | E22: 98.85331178 | F22: 96.28727214 | G22: 18.52 | H22: 17.83493073 | I22: 103.3961275 | J22: 5 | K22: 3.34 | L22: 10.03799905 | M22: -7.771561172e-16 | N22: 15 | O22: 2.775557562e-16 | P22: -1.110223025e-16
A23: 16 | D23: Degas | E23: 91.4838584 | F23: 86.81536458 | G23: 18.45 | H23: 16.01822514 | I23: 92.86396866 | J23: 6.5 | K23: 3.665 | L23: 7.270068306 | M23: -7.771561172e-16 | N23: 13.5 | O23: 1 | P23: 0.5
A24: 17 | C24: o | D24: Klimt | E24: 94.35141371 | F24: 88.13264974 | G24: 19.09 | H24: 16.82762159 | I24: 97.55635913 | J24: 7 | K24: 3.425 | L24: 7.373198246 | M24: 1.5 | N24: 1 | O24: 1 | P24: -1.110223025e-16
A25: 18 | D25: Landon | E25: 91.13539379 | F25: 89.68022349 | G25: 18.79065789 | H25: 16.84460107 | I25: 97.65479584 | J25: 6.980519481 | K25: 3.310472973 | L25: 7.913681959 | M25: -7.771561172e-16 | N25: 9 | O25: 2.775557562e-16 | P25: -1.110223025e-16
A26: 19 | D26: Piculet | E26: 81.61410419 | F26: 84.80807292 | G26: 18.905 | H26: 16.03296618 | I26: 92.94942833 | J26: 7 | K26: 3.68 | L26: 8.877601706 | M26: 0.5 | N26: 6.5 | O26: 1 | P26: -1.110223025e-16
A27: 20 | D27: Mustang | E27: 100.1444104 | F27: 92.52360026 | G27: 19.305 | H27: 17.86348446 | I27: 103.5616647 | J27: 5.5 | K27: 3.57 | L27: 8.493015983 | M27: -7.771561172e-16 | N27: 8.5 | O27: 1.5 | P27: -1.110223025e-16
A28: 21 | D28: Maxine | E28: 103.2026084 | F28: 92.2726888 | G28: 19.53 | H28: 18.01854774 | I28: 104.4606277 | J28: 6 | K28: 3.81 | L28: 10.27006831 | M28: -7.771561172e-16 | N28: 4 | O28: 1.5 | P28: 0.5
A29: 22 | D29: Illusion | E29: 99.46516503 | F29: 100.5948719 | G29: 18.82065789 | H29: 18.91191075 | I29: 109.6398054 | J29: 4.980519481 | K29: 3.850472973 | L29: 8.297631626 | M29: 1.5 | N29: 9 | O29: 1 | P29: -1.110223025e-16
A30: 23 | D30: Thyra KWS | E30: 70.05767967 | F30: 77.90800781 | G30: 19.895 | H30: 15.4599346 | I30: 89.62733821 | J30: 6 | K30: 4.21 | L30: 9.962994967 | M30: -7.21644966e-16 | N30: 1.5 | O30: 1.5 | P30: 0
A31: 24 | D31: Farina KWS | E31: 94.2568317 | F31: 88.75992839 | G31: 18.57 | H31: 16.49666311 | I31: 95.63766226 | J31: 5 | K31: 4.02 | L31: 12.06517308 | M31: -7.21644966e-16 | N31: 3.5 | O31: 2 | P31: 0
A32: 25 | D32: Fuga KWS | E32: 97.66970238 | F32: 91.70813802 | G32: 19.475 | H32: 17.85688549 | I32: 103.5234079 | J32: 6 | K32: 3.345 | L32: 8.514099876 | M32: 0.5 | N32: 3.5 | O32: 0.5 | P32: 0
A33: 26 | D33: Selma KWS | E33: 90.38459549 | F33: 95.15817057 | G33: 19.26 | H33: 18.32969049 | I33: 106.264445 | J33: 6 | K33: 3.435 | L33: 9.555346147 | M33: -7.21644966e-16 | N33: 7.5 | O33: 2 | P33: 0
A34: 27 | D34: Caporal | E34: 96.41932864 | F34: 88.25810547 | G34: 19.24 | H34: 16.9716385 | I34: 98.39128193 | J34: 6 | K34: 3.68 | L34: 8.70483202 | M34: -7.21644966e-16 | N34: 10 | O34: 1.5 | P34: 0
A35: 28 | D35: Davinci | E35: 94.56697573 | F35: 89.88902995 | G35: 19.495 | H35: 17.52157368 | I35: 101.5794731 | J35: 6 | K35: 3.655 | L35: 10.01137546 | M35: 2.5 | N35: 7 | O35: 1 | P35: 1.5
A36: 29 | D36: Joker | E36: 88.27756648 | F36: 91.14358724 | G36: 19.02 | H36: 17.33143298 | I36: 100.4771525 | J36: 5.5 | K36: 3.725 | L36: 8.001741118 | M36: -7.21644966e-16 | N36: 5.5 | O36: 1 | P36: 0
A37: 30 | D37: Kahn | E37: 98.91150805 | F37: 86.94082031 | G37: 18.76 | H37: 16.30896879 | I37: 94.54952428 | J37: 7 | K37: 3.465 | L37: 8.230925715 | M37: -7.771561172e-16 | N37: 5.5 | O37: 1.5 | P37: -1.110223025e-16
A38: 31 | D38: Einar | E38: 85.25659234 | F38: 87.81901042 | G38: 19.185 | H38: 16.85191609 | I38: 97.69720394 | J38: 8 | K38: 3.48 | L38: 7.094116604 | M38: -7.21644966e-16 | N38: 5 | O38: 1 | P38: 1.5
A39: 32 | D39: Curie | E39: 95.73064516 | F39: 90.07721354 | G39: 19.575 | H39: 17.63571958 | I39: 102.2412219 | J39: 7 | K39: 3.42 | L39: 7.498932526 | M39: -7.21644966e-16 | N39: 3 | O39: 2 | P39: 0
A40: 33 | D40: Bazin | E40: 98.44660551 | F40: 89.82630208 | G40: 18.145 | H40: 16.29415247 | I40: 94.46362822 | J40: 6.5 | K40: 4.11 | L40: 10.06957654 | M40: 3.5 | N40: 6 | O40: 1 | P40: 0
A41: 34 | D41: Bonola | E41: 91.10201541 | F41: 87.25445964 | G41: 19.065 | H41: 16.62402576 | I41: 96.37603381 | J41: 6.5 | K41: 3.875 | L41: 8.435528411 | M41: -9.436895709e-16 | N41: 10 | O41: 0.5 | P41: 0.5
A42: 35 | D42: Whisky | E42: 98.98809567 | F42: 91.2063151 | G42: 19.735 | H42: 18.00238904 | I42: 104.3669494 | J42: 6.5 | K42: 3.245 | L42: 8.540265304 | M42: -7.21644966e-16 | N42: 9.5 | O42: 1.5 | P42: 0
A43: 36 | D43: HI1427 | E43: 95.82765399 | F43: 89.13629557 | G43: 19.385 | H43: 17.26161687 | I43: 100.0724009 | J43: 6.5 | K43: 3.75 | L43: 7.603450823 | M43: -7.21644966e-16 | N43: 7 | O43: -1.665334537e-16 | P43: 0
A44: 37 | D44: HI1469 | E44: 99.91305754 | F44: 90.70449219 | G44: 19.45 | H44: 17.64849725 | I44: 102.3152991 | J44: 5 | K44: 3.51 | L44: 6.93504666 | M44: -7.21644966e-16 | N44: 7.5 | O44: 0.5 | P44: 0
A45: 38 | D45: HI1470 | E45: 98.92558605 | F45: 101.7239735 | G45: 18.58065789 | H45: 18.87513968 | I45: 109.426629 | J45: 6.980519481 | L45: 14.04707088 | M45: -7.21644966e-16 | N45: 2.5 | O45: 1 | P45: 0
A46: 39 | D46: HI1473 | E46: 99.6047455 | F46: 94.4054362 | G46: 19.69 | H46: 18.58424644 | I46: 107.7402062 | J46: 6.5 | K46: 3.465 | L46: 9.908354385 | M46: 1.5 | N46: 8 | O46: 1 | P46: 0.5
A47: 40 | D47: HI1474 | E47: 99.65713173 | F47: 86.4389974 | G47: 19.56 | H47: 16.90862208 | I47: 98.02595093 | J47: 5 | K47: 3.515 | L47: 7.538950882 | M47: -4.996003611e-16 | N47: 1.5 | O47: 1 | P47: 0
A48: 41 | D48: HI1475 | E48: 101.5990123 | F48: 92.52360026 | G48: 19.625 | H48: 18.15820506 | I48: 105.2702762 | J48: 6 | K48: 3.69 | L48: 8.474298868 | M48: -7.21644966e-16 | N48: 3 | O48: 1 | P48: 0
A49: 42 | D49: HI1476 | E49: 98.2748057 | F49: 88.69720052 | G49: 19.47 | H49: 17.27160314 | I49: 100.1302953 | J49: 6.5 | K49: 3.97 | L49: 11.60724034 | M49: -4.996003611e-16 | N49: 6.5 | O49: 0.5 | P49: 0
A50: 43 | D50: HI1478 | E50: 87.84379972 | F50: 83.92988281 | G50: 18.22 | H50: 15.29227556 | I50: 88.65535265 | J50: 7 | K50: 3.38 | L50: 9.230925715 | M50: 1.5 | N50: 1.5 | O50: 0.5 | P50: 0
A51: 44 | D51: HI1479 | E51: 98.35437176 | F51: 90.328125 | G51: 19.35934211 | H51: 16.92365264 | I51: 98.11308898 | J51: 6 | K51: 3.549527027 | L51: 10.15983077 | M51: -4.996003611e-16 | N51: 1.5 | O51: 1 | P51: 0
A52: 45 | D52: HI1482 | E52: 96.30085471 | F52: 91.08085938 | G52: 18.73 | H52: 17.0576384 | I52: 98.88985728 | J52: 6 | K52: 3.8 | L52: 11.2287312 | M52: -4.996003611e-16 | N52: 1.5 | O52: 1.5 | P52: 0
A53: 46 | D53: HI1483 | E53: 102.8921035 | F53: 91.64541016 | G53: 19.44 | H53: 17.81558546 | I53: 103.2839753 | J53: 5.5 | K53: 3.655 | L53: 7.998932526 | M53: -7.771561172e-16 | N53: 8 | O53: 0.5 | P53: 0
A54: 47 | D54: 6K649 | E54: 99.03657519 | F54: 93.96634115 | G54: 19.615 | H54: 18.42994844 | I54: 106.8456798 | J54: 5 | K54: 3.57 | L54: 6.690916866 | M54: 5 | N54: 9.5 | O54: 2 | P54: 0
A55: 48 | D55: 6K657 | E55: 83.12130145 | F55: 90.93478079 | G55: 19.62 | H55: 17.73517365 | I55: 102.8177964 | J55: 5 | K55: 4.045 | L55: 9.252479843 | M55: 1.5 | N55: 1 | O55: 2 | P55: 0
A56: 49 | D56: 6K659 | E56: 92.39460471 | F56: 88.50901693 | G56: 19.535 | H56: 17.27729883 | I56: 100.1633155 | J56: 4.5 | K56: 3.755 | L56: 6.728731198 | M56: -7.771561172e-16 | N56: 6.5 | O56: 1.5 | P56: 0
A57: 50 | D57: 6K660 | E57: 96.74110814 | F57: 97.91819661 | G57: 19.045 | H57: 18.65426955 | I57: 108.1461578 | J57: 6 | K57: 3.9 | L57: 8.001741118 | M57: -7.771561172e-16 | N57: 20 | O57: 0.5 | P57: 0
A58: 51 | D58: 6K664 | E58: 88.05655907 | F58: 97.29091797 | G58: 18.77 | H58: 18.26169349 | I58: 105.8702395 | J58: 5 | K58: 3.685 | L58: 8.011375457 | M58: 4 | N58: 6.5 | O58: 2 | P58: 0
A59: 52 | D59: 6K665 | E59: 77.87017967 | F59: 89.63811849 | G59: 18.4 | H59: 16.49670701 | I59: 95.63791682 | J59: 6 | K59: 4.17 | L59: 7.962994967 | M59: -4.996003611e-16 | N59: 4.5 | O59: 1 | P59: 0
A60: 53 | D60: 6K697 | E60: 100.3332361 | F60: 90.01448568 | G60: 20.345 | H60: 18.31217687 | I60: 106.1629116 | J60: 5.5 | K60: 3.225 | L60: 7.412718678 | M60: 1.5 | N60: 4 | O60: 1 | P60: 0.5
A61: 54 | D61: 6K683 | E61: 97.54835273 | F61: 89.88902995 | G61: 19.42 | H61: 17.44323285 | I61: 101.1253004 | J61: 5 | K61: 3.625 | L61: 6.852266042 | M61: 3.5 | N61: 10 | O61: 2.775557562e-16 | P61: 0
A62: 55 | D62: 6K685 | E62: 100.819344 | F62: 90.39085286 | G62: 20.025 | H62: 18.09975523 | I62: 104.9314196 | J62: 5.5 | K62: 3.605 | L62: 7.661091638 | M62: -2.775557562e-16 | N62: 6.5 | O62: 1 | P62: 0
A63: 56 | D63: 6K688 | E63: 90.53130394 | F63: 83.36533203 | G63: 19.575 | H63: 16.3186477 | I63: 94.60563674 | J63: 5 | K63: 3.775 | L63: 8.974298868 | M63: -4.996003611e-16 | N63: 5 | O63: -1.665334537e-16 | P63: 0
A64: 57 | D64: 6K670 | E64: 91.29386187 | F64: 80.73076172 | G64: 19.15 | H64: 15.46174743 | I64: 89.63784793 | J64: 5.5 | K64: 3.67 | L64: 12.24836182 | M64: 3.5 | N64: 3 | O64: 2.775557562e-16 | P64: -1.110223025e-16
A65: 58 | D65: MA2206 | E65: 96.2462694 | F65: 88.3835612 | G65: 19 | H65: 16.78948932 | I65: 97.33529133 | J65: 6 | K65: 3.65 | L65: 9.352266042 | M65: 2.5 | N65: 7.5 | O65: 1.5 | P65: 0
A66: 59 | D66: MA2209 | E66: 92.82729812 | F66: 90.13994141 | G66: 19.475 | H66: 17.54993295 | I66: 101.743883 | J66: 6.5 | K66: 3.445 | L66: 7.806331143 | M66: 3.5 | N66: 10 | O66: 0.5 | P66: 1.5
A67: 60 | D67: MA2213 | E67: 100.2969289 | F67: 87.06627604 | G67: 19.105 | H67: 16.61757734 | I67: 96.33864975 | J67: 5.5 | K67: 4.035 | L67: 9.474298868 | M67: -5.551115123e-16 | N67: 7.5 | O67: 0.5 | P67: 0
A68: 61 | D68: MA4073 | E68: 101.4840987 | F68: 88.3835612 | G68: 18.4 | H68: 16.23096042 | I68: 94.09727898 | J68: 6.5 | K68: 3.585 | L68: 8.479797972 | M68: -2.220446049e-16 | N68: 14.5 | O68: 2.5 | P68: -1.110223025e-16
A69: 62 | D69: MA4074 | E69: 100.219975 | F69: 83.17714844 | G69: 18.7 | H69: 15.5582668 | I69: 90.19740876 | J69: 6 | K69: 3.645 | L69: 11.13270628 | M69: -5.551115123e-16 | N69: 6.5 | O69: 0.5 | P69: 1.5
A70: 63 | D70: MA4079 | E70: 103.6292854 | F70: 90.01448568 | G70: 19.185 | H70: 17.2682472 | I70: 100.1108396 | J70: 6 | K70: 3.49 | L70: 9.600033147 | M70: -2.220446049e-16 | N70: 9.5 | O70: 1 | P70: -1.110223025e-16
A71: 64 | D71: ST 12604 | E71: 91.05371904 | F71: 84.61988932 | G71: 19.04 | H71: 16.1117022 | I71: 93.40589207 | J71: 6 | K71: 3.66 | L71: 9.661091638 | M71: -5.551115123e-16 | N71: 8.5 | O71: 0.5 | P71: 0
A72: 65 | D72: ST 12615 | E72: 91.1823456 | F72: 84.87080078 | G72: 19.795 | H72: 16.78161698 | I72: 97.28965223 | J72: 5.5 | K72: 3.705 | L72: 6.474298868 | M72: -5.551115123e-16 | N72: 3 | O72: 1.5 | P72: 0
A73: 66 | D73: ST 12651 | E73: 84.68682875 | F73: 86.75263672 | G73: 19.315 | H73: 16.75528382 | I73: 97.13698853 | J73: 6.5 | K73: 3.395 | L73: 8.167008182 | M73: 3 | N73: 7 | O73: 1 | P73: 0
A74: 67 | D74: ST 12658 | E74: 89.85720238 | F74: 93.3390625 | G74: 19.02 | H74: 17.74641544 | I74: 102.8829695 | J74: 7.5 | K74: 3.59 | L74: 7.514099876 | M74: 3.5 | N74: 6 | O74: 1 | P74: 0
A75: 68 | D75: ST 12664 | E75: 94.43080401 | F75: 89.4499349 | G75: 19.96 | H75: 17.85025515 | I75: 103.4849692 | J75: 6.5 | K75: 3.485 | L75: 8.540265304 | M75: -5.551115123e-16 | N75: 3.5 | O75: 2 | P75: 0
A76: 69 | D76: ST 12668 | E76: 87.93770509 | F76: 88.67657766 | G76: 19.60065789 | H76: 17.38796237 | I76: 100.8048756 | J76: 5.980519481 | K76: 4.060472973 | L76: 10.03834229 | M76: -5.551115123e-16 | N76: 1.5 | O76: 1.5 | P76: 0
A77: 70 | D77: ST 12680 | E77: 93.62566032 | F77: 91.08085938 | G77: 18.875 | H77: 17.19204539 | I77: 99.66906764 | J77: 7 | K77: 3.25 | L77: 8.072938433 | M77: 1.5 | N77: 20 | O77: 1 | P77: 0
A78: 71 | D78: ST 12682 | E78: 91.84828708 | F78: 81.48349609 | G78: 18.36 | H78: 14.96025697 | I78: 86.73050995 | J78: 7 | K78: 3.235 | L78: 8.667008182 | M78: -5.551115123e-16 | N78: 9 | O78: 1 | P78: -1.110223025e-16
A79: 72 | D79: ST 15616 | E79: 78.12610548 | F79: 88.4256662 | G79: 18.33 | H79: 15.72897345 | I79: 91.18706255 | J79: 7 | K79: 3.940472973 | L79: 6.859090745 | M79: -6.661338148e-16 | N79: 3.5 | O79: 1.5 | P79: -1.110223025e-16
A80: 73 | D80: ST 15672 | E80: 86.90569646 | F80: 85.49807943 | G80: 18.65 | H80: 15.94661501 | I80: 92.44881649 | J80: 6 | K80: 3.93 | L80: 8.944296164 | M80: 2.5 | N80: 4.5 | O80: 4.996003611e-16 | P80: 0.5
A81: 74 | D81: ST 15678 | E81: 87.4055174 | F81: 79.28802083 | G81: 19.365 | H81: 15.37395979 | I81: 89.12890832 | J81: 7 | K81: 3.25 | L81: 8.511375457 | M81: 1.5 | N81: 20 | O81: 0.5 | P81: 0
A82: 75 | D82: 6K674 | E82: 86.5560557 | F82: 86.83598744 | G82: 19.59934211 | H82: 17.00613978 | I82: 98.59129948 | J82: 5.019480519 | K82: 3.339527027 | L82: 7.964647405 | M82: 2.5 | N82: 9.5 | O82: 0.5 | P82: 0.5
A83: 76 | D83: SV1724 | E83: 96.46494577 | F83: 82.48714193 | G83: 19.485 | H83: 16.05588695 | I83: 93.08230902 | J83: 7 | K83: 3.655 | L83: 11.06562698 | M83: -5.551115123e-16 | N83: 6.5 | O83: 1 | P83: 0.5
A84: 77 | D84: SV1731 | E84: 91.7047607 | F84: 89.07356771 | G84: 18.69 | H84: 16.6504091 | I84: 96.52898844 | J84: 6 | K84: 3.74 | L84: 9.161091638 | M84: -5.551115123e-16 | N84: 8 | O84: 0.5 | P84: -1.110223025e-16
A85: 78 | D85: SV1747 | E85: 93.71725272 | F85: 90.89267578 | G85: 19.17 | H85: 17.43660252 | I85: 101.0868618 | J85: 7 | K85: 3.225 | L85: 7.05971044 | M85: -5.551115123e-16 | N85: 14.5 | O85: 1.5 | P85: 0
A86: 79 | D86: SV1757 | E86: 100.8847666 | F86: 89.4499349 | G86: 18.685 | H86: 16.71461734 | I86: 96.90122894 | J86: 8 | K86: 3.56 | L86: 7.670530116 | M86: -5.551115123e-16 | N86: 7.5 | O86: 1 | P86: 0
A87: 80 | D87: SV1765 | E87: 99.98535977 | F87: 89.13629557 | G87: 19.295 | H87: 17.19548288 | I87: 99.68899611 | J87: 6 | K87: 3.460472973 | L87: 10.92297661 | M87: -5.551115123e-16 | N87: 9.5 | O87: 0.5 | P87: 0
A88: 81 | D88: SV1771 | E88: 93.68293815 | F88: 87.63082682 | G88: 19.17 | H88: 16.80586757 | I88: 97.43024248 | J88: 6.5 | K88: 3.66 | L88: 8.690907359 | M88: -5.551115123e-16 | N88: 3.5 | O88: 1 | P88: -1.110223025e-16
A89: 82 | D89: SV1779 | E89: 93.69943215 | F89: 88.13264974 | G89: 19.435 | H89: 17.13057836 | I89: 99.312719 | J89: 6 | K89: 3.5 | L89: 8.501494847 | M89: -5.551115123e-16 | N89: 15 | O89: 2.775557562e-16 | P89: 1.5
A90: 83 | D90: Nemata | E90: 87.54907591 | F90: 83.11442057 | G90: 19.135 | H90: 15.87594579 | I90: 92.0391192 | J90: 6 | K90: 4.155 | L90: 7.997376825 | M90: 2.475797345e-14 | N90: 5 | O90: 1 | P90: -2.553512957e-15
A91: LSD | E91: 13.31555566 | F91: 7.319916257 | G91: 0.9172779335 | H91: 1.583597832 | J91: 1.210508361 | K91: 0.3941928564 | L91: 2.579218301 | M91: - | N91: 6.766752185 | O91: - | P91: -
A92: CV | E92: 7.360350788 | F92: 3.891770454 | G92: 2.323400519 | H92: 4.38050887 | J92: 9.678545039 | K92: 5.187760639 | L92: 13.70898451 | M92: 253.7814845 | N92: 39.31483211 | O92: 88.27702693 | P92: 381.1716829
A93: P-value | E93: <0.05 | F93: <0.001 | G93: <0.001 | H93: <0.001 | J93: <0.001 | K93: <0.001 | L93: <0.001 | M93: ns | N93: <0.001 | O93: ns | P93: ns

Sheet ORMA 111 untreated
A1: 1 | B1: 2 | C1: 3 | D1: 4 | E1: 6 | F1: 7 | G1: 8 | H1: 9 | I1: 10 | J1: 14 | K1: 19 | L1: 20 | M1: 46 | N1: 36 | O1: 37 | P1: 38 | Q1: 39 | ALL1: 1
E2: 111 | F2: 111 | G2: 111 | H2: 111 | I2: 111 | J2: 111 | K2: 111 | L2: 111 | N2: 111 | O2: 111 | P2: 111 | Q2: 111
A3: Series 102 (trial no 111) | E3: Plant nr | F3: Rot | G3: Socker | H3: Socker | I3: Socker | J3: Rotfåra | K3: K/N | L3: Blåtal | M3: Svampresistens | N3: Mjöldagg | O3: Rost | P3: Ramularia | Q3: Cercospora
A4: Ormastorp | E4: Plant no | F4: Root | G4: Sugar | H4: Sugar | I4: Sugar | J4: Groove | L4: Amino-N | M4: untreated/treated | N4: Mildew | O4: Rust | P4: Ramularia | Q4: Cercospora
A5: Expl. | E5: 1 | M5: Leaf diseases | N5: Early | O5: Early | P5: Early | Q5: Early
A6: no trials | M6: Leaf diseases
A7: Unit | E7: 1000/ha | F7: t/ha | G7: % | H7: t/ha | I7: relativ | J7: Sc. 1-9 | M7: % | N7: Sc. 1-100 | O7: Sc. 1-100 | P7: Sc. 1-100 | Q7: Sc. 1-100
A8: Avg for * | E8: 97.56909493 | F8: 86.29906136 | G8: 19.25106158 | H8: 16.61518215 | I8: 100 | J8: 6.00070117 | K8: 3.573333333 | L8: 8.269059855 | M8: 96.56317979 | N8: 25 | O8: 27.11111111 | P8: 3.5 | Q8: 0
A9: 1 | B9: * | D9: Orlena KWS | E9: 97.14839234 | F9: 89.57641458 | G9: 19.02149044 | H9: 17.00525436 | I9: 102.3476854 | J9: 5.997447899 | K9: 3.865 | L9: 12.0854645 | M9: =(H9/'ORMA 111 treated'!H9)*100 -> 89.52779038 | N9: 25 | O9: 30 | P9: 2.5 | Q9: 0
A10: 2 | B10: * | D10: Cartoon | E10: 104.2388449 | F10: 86.55327559 | G10: 19.09849924 | H10: 16.52270835 | I10: 99.44343792 | J10: 6.002559131 | K10: 3.305 | L10: 10.02252765 | M10: =(H10/'ORMA 111 treated'!H10)*100 -> 93.23030605 | N10: 25 | O10: 30 | P10: 2.5 | Q10: 0
A11: 3 | B11: * | D11: Pascalina KWS | E11: 95.13907123 | F11: 85.16822203 | G11: 19.92356499 | H11: 17.01041226 | I11: 102.3787287 | J11: 6.00513853 | K11: 3.57 | L11: 7.484017823 | M11: =(H11/'ORMA 111 treated'!H11)*100 -> 102.9089423 | N11: 25 | O11: 35 | P11: 4 | Q11: 0
A12: 5 | B12: * | D12: Cantona KWS | E12: 97.65987188 | F12: 80.60113152 | G12: 19.19175287 | H12: 15.49290167 | I12: 93.24545184 | J12: 5.001280545 | K12: 3.57 | L12: 6.483825001 | M12: =(H12/'ORMA 111 treated'!H12)*100 -> 87.64832113 | N12: 30 | O12: 30 | P12: 5 | Q12: -1.110223025e-16
A13: 6 | B13: * | D13: SY Muse | E13: 95.91575655 | F13: 86.80646711 | G13: 18.30385882 | H13: 15.87100023 | I13: 95.52107277 | J13: 6.00126904 | K13: 3.41 | L13: 9.066339591 | M13: =(H13/'ORMA 111 treated'!H13)*100 -> 102.7240964 | N13: 15 | O13: 4 | P13: 6 | Q13: -1.110223025e-16
A14: 7 | B14: * | D14: Kudu | E14: 100.738685 | F14: 81.53281372 | G14: 20.00981754 | H14: 16.34107055 | I14: 98.35023417 | J14: 6.997494222 | K14: 3.54 | L14: 6.003773332 | M14: =(H14/'ORMA 111 treated'!H14)*100 -> 94.45804818 | N14: 20 | O14: 25 | P14: 1 | Q14: -1.110223025e-16
A15: 8 | B15: * | D15: Darnella KWS | E15: 98.96195521 | F15: 93.77398308 | G15: 18.30175287 | H15: 17.14023576 | I15: 103.1600834 | J15: 6.001280545 | K15: 3.9 | L15: 10.483825 | M15: =(H15/'ORMA 111 treated'!H15)*100 -> 102.6481996 | N15: 25 | O15: 35 | P15: 2.5 | Q15: 1.110223025e-16
A16: 9 | B16: * | D16: Diesel | E16: 102.3860026 | F16: 86.47529277 | G16: 19.90506487 | H16: 17.25031753 | I16: 103.8226206 | J16: 5.995705525 | K16: 3.393409091 | L16: 5.578204424 | M16: =(H16/'ORMA 111 treated'!H16)*100 -> 96.91518809 | N16: 30 | O16: 30 | P16: 4 | Q16: 1.110223025e-16
A17: 10 | B17: * | D17: Lombok | E17: 85.93327464 | F17: 86.20395181 | G17: 19.50375263 | H17: 16.90273864 | I17: 101.7306852 | J17: 6.004135096 | K17: 3.606590909 | L17: 7.213561378 | M17: =(H17/'ORMA 111 treated'!H17)*100 -> 99.00772589 | N17: 30 | O17: 25 | P17: 4 | Q17: 1.110223025e-16
A18: 11 | D18: Dexter | E18: 100.2640385 | F18: 83.23570183 | G18: 19.35675287 | H18: 16.13541691 | I18: 97.11248885 | J18: 6.001280545 | K18: 3.65 | L18: 6.983825001 | M18: =(H18/'ORMA 111 treated'!H18)*100 -> 95.63748378 | N18: 25 | O18: 30 | P18: 4 | Q18: -1.110223025e-16
A19: 12 | C19: o | D19: Ragna KWS | E19: 87.23291068 | F19: 85.54319404 | G19: 18.72369767 | H19: 15.96513386 | I19: 96.08762468 | J19: 6.497474146 | K19: 3.645 | L19: 7.740204842 | M19: =(H19/'ORMA 111 treated'!H19)*100 -> 88.4518645 | N19: 30 | O19: 35 | P19: 3 | Q19: 1.110223025e-16
A20: 13 | C20: o | D20: Daphna | E20: 96.0110239 | F20: 91.66058127 | G20: 18.64911688 | H20: 17.04967522 | I20: 102.6150364 | J20: 5.502517056 | K20: 3.85 | L20: 10.75945001 | M20: =(H20/'ORMA 111 treated'!H20)*100 -> 90.69112866 | N20: 30 | O20: 25 | P20: 5.5 | Q20: -1.110223025e-16
A21: 14 | C21: o | D21: Smilla KWS | E21: 98.96656384 | F21: 88.35958454 | G21: 19.14600394 | H21: 16.90728376 | I21: 101.7580404 | J21: 5.998742892 | K21: 4.225 | L21: 9.480161213 | M21: =(H21/'ORMA 111 treated'!H21)*100 -> 96.63060224 | N21: 25 | O21: 35 | P21: 5 | Q21: -1.110223025e-16
A22: 15 | C22: o | D22: Kashmir | E22: 100.6860688 | F22: 88.82213423 | G22: 19.119706 | H22: 16.97811971 | I22: 102.184373 | J22: 5.498781318 | K22: 3.72 | L22: 9.086133725 | M22: =(H22/'ORMA 111 treated'!H22)*100 -> 95.19588252 | N22: 30 | O22: 50 | P22: 5 | Q22: 1.5
A23: 16 | D23: Degas | E23: 100.762131 | F23: 86.10226838 | G23: 18.67860705 | H23: 16.08396243 | I23: 96.80280531 | J23: 7.002524744 | K23: 3.435 | L23: 10.67934407 | M23: =(H23/'ORMA 111 treated'!H23)*100 -> 100.4103906 | N23: 30 | O23: 45 | P23: 3 | Q23: -1.110223025e-16
A24: 17 | C24: o | D24: Klimt | E24: 81.80586043 | F24: 91.87295526 | G24: 19.319706 | H24: 17.49986135 | I24: 105.324523 | J24: 7.498781318 | K24: 3.355 | L24: 8.086133725 | M24: =(H24/'ORMA 111 treated'!H24)*100 -> 103.994859 | N24: 30 | O24: 20 | P24: 4 | Q24: -1.110223025e-16
A25: 18 | D25: Landon | E25: 97.61869887 | F25: 83.16534046 | G25: 19.68459403 | H25: 16.41344132 | I25: 98.78580429 | J25: 5.993653851 | K25: 3.505 | L25: 7.202704101 | M25: =(H25/'ORMA 111 treated'!H25)*100 -> 97.44036832 | N25: 20 | O25: 30 | P25: 1 | Q25: 1.5
A26: 19 | D26: Piculet | E26: 94.74574229 | F26: 83.18311528 | G26: 19.46558473 | H26: 16.18014697 | I26: 97.38170078 | J26: 5.993699982 | K26: 3.34 | L26: 6.460916046 | M26: =(H26/'ORMA 111 treated'!H26)*100 -> 100.9179885 | N26: 20 | O26: 30 | P26: 6 | Q26: -1.110223025e-16
A27: 20 | D27: Mustang | E27: 100.2909202 | F27: 84.27149303 | G27: 19.73633082 | H27: 16.58750834 | I27: 99.83344263 | J27: 5.993282278 | K27: 3.673409091 | L27: 7.488940364 | M27: =(H27/'ORMA 111 treated'!H27)*100 -> 92.85707041 | N27: 25 | O27: 35 | P27: 11.5 | Q27: -1.110223025e-16
A28: 21 | D28: Maxine | E28: 91.84200825 | F28: 84.77921159 | G28: 19.43840933 | H28: 16.40733594 | I28: 98.7490585 | J28: 5.497465622 | K28: 3.8 | L28: 7.600511824 | M28: =(H28/'ORMA 111 treated'!H28)*100 -> 91.05803741 | N28: 25 | O28: 30 | P28: 11.5 | Q28: -1.110223025e-16
A29: 22 | D29: Illusion | E29: 99.82736111 | F29: 95.54091331 | G29: 18.79712893 | H29: 17.96364843 | I29: 108.1158682 | J29: 5.501316262 | K29: 3.605 | L29: 8.021118312 | M29: =(H29/'ORMA 111 treated'!H29)*100 -> 94.98589892 | N29: 30 | O29: 30 | P29: 4 | Q29: -1.110223025e-16
A30: 23 | D30: Thyra KWS | E30: 71.06589915 | F30: 81.07750074 | G30: 20.33749678 | H30: 16.53778054 | I30: 99.53415131 | J30: 5.502540814 | K30: 4.01 | L30: 9.50818323 | M30: =(H30/'ORMA 111 treated'!H30)*100 -> 106.9718661 | N30: 30 | O30: 25 | P30: 25 | Q30: 1.5
A31: 24 | D31: Farina KWS | E31: 98.03054603 | F31: 93.26078157 | G31: 19.22285701 | H31: 17.88095004 | I31: 107.6181403 | J31: 5.499943477 | K31: 3.9 | L31: 8.826050648 | M31: =(H31/'ORMA 111 treated'!H31)*100 -> 108.3913148 | N31: 30 | O31: 30 | P31: 3 | Q31: 1.110223025e-16
A32: 25 | D32: Fuga KWS | E32: 98.10534814 | F32: 81.28511103 | G32: 19.72349551 | H32: 16.04035153 | I32: 96.54032908 | J32: 6.00381184 | K32: 3.65 | L32: 7.761704461 | M32: =(H32/'ORMA 111 treated'!H32)*100 -> 89.82726321 | N32: 30 | O32: 20 | P32: 3 | Q32: 1.110223025e-16
A33: 26 | D33: Selma KWS | E33: 90.16645855 | F33: 94.41556677 | G33: 19.52918263 | H33: 18.44738481 | I33: 111.02728 | J33: 5.505096455 | K33: 3.46 | L33: 9.720940184 | M33: =(H33/'ORMA 111 treated'!H33)*100 -> 100.6420966 | N33: 30 | O33: 45 | P33: 6.5 | Q33: 1.5
A34: 27 | D34: Caporal | E34: 96.76997407 | F34: 91.41698663 | G34: 18.94451347 | H34: 17.21763425 | I34: 103.6259133 | J34: 5.996128554 | K34: 3.27 | L34: 9.442737471 | M34: =(H34/'ORMA 111 treated'!H34)*100 -> 101.449452 | N34: 30 | O34: 35 | P34: 2 | Q34: 1.110223025e-16
A35: 28 | D35: Davinci | E35: 90.0580136 | F35: 85.8161932 | G35: 19.57989542 | H35: 16.83343789 | I35: 101.3135922 | J35: 5.998333731 | K35: 3.745 | L35: 8.600820137 | M35: =(H35/'ORMA 111 treated'!H35)*100 -> 96.07263704 | N35: 30 | O35: 15 | P35: 4 | Q35: 1.110223025e-16
A36: 29 | D36: Joker | E36: 104.9800121 | F36: 88.56002303 | G36: 19.41078975 | H36: 17.19653213 | I36: 103.4989083 | J36: 4.998764245 | K36: 3.55 | L36: 6.265131041 | M36: =(H36/'ORMA 111 treated'!H36)*100 -> 99.22164051 | N36: 30 | O36: 25 | P36: 2 | Q36: 1.110223025e-16
A37: 30 | D37: Kahn | E37: 97.01334533 | F37: 87.73362876 | G37: 19.39876342 | H37: 17.00750892 | I37: 102.3612547 | J37: 7.000053545 | K37: 3.58 | L37: 6.201695017 | M37: =(H37/'ORMA 111 treated'!H37)*100 -> 104.2831655 | N37: 25 | O37: 25 | P37: 7.5 | Q37: -1.110223025e-16
A38: 31 | D38: Einar | E38: 85.16401273 | F38: 79.21470702 | G38: 19.4028866 | H38: 15.37604824 | I38: 92.54215873 | J38: 6.999999018 | K38: 3.18 | L38: 7.304981882 | M38: =(H38/'ORMA 111 treated'!H38)*100 -> 91.24213622 | N38: 30 | O38: 20 | P38: 1 | Q38: 2.5
A39: 32 | D39: Curie | E39: 86.63000443 | F39: 79.36598351 | G39: 19.68857814 | H39: 15.6443602 | I39: 94.15701894 | J39: 7.006320004 | K39: 3.475 | L39: 6.894873817 | M39: =(H39/'ORMA 111 treated'!H39)*100 -> 88.70837468 | N39: 15 | O39: 20 | P39: 5 | Q39: -1.110223025e-16
A40: 33 | D40: Bazin | E40: 96.63118709 | F40: 77.9289842 | G40: 19.47501324 | H40: 15.22870808 | I40: 91.65537846 | J40: 6.498696761 | K40: 3.66 | L40: 8.721949268 | M40: =(H40/'ORMA 111 treated'!H40)*100 -> 93.46118561 | N40: 15 | O40: 20 | P40: 6.5 | Q40: -1.110223025e-16
A41: 34 | D41: Bonola | E41: 91.03801739 | F41: 85.07393569 | G41: 19.10526351 | H41: 16.19649622 | I41: 97.4801003 | J41: 6.998709821 | K41: 3.5 | L41: 7.296030891 | M41: =(H41/'ORMA 111 treated'!H41)*100 -> 97.42824305 | N41: 15 | O41: 35 | P41: 4 | Q41: 1.5
A42: 35 | D42: Whisky | E42: 101.9073016 | F42: 93.72571613 | G42: 19.30152227 | H42: 17.99564231 | I42: 108.3084263 | J42: 6.501239786 | K42: 3.485 | L42: 12.37980062 | M42: =(H42/'ORMA 111 treated'!H42)*100 -> 99.96252313 | N42: 20 | O42: 30 | P42: 5 | Q42: -1.110223025e-16
A43: 36 | D43: HI1427 | E43: 95.76745811 | F43: 93.71001793 | G43: 18.69168887 | H43: 17.44875387 | I43: 105.016928 | J43: 5.992362914 | K43: 4.02 | L43: 12.80314169 | M43: =(H43/'ORMA 111 treated'!H43)*100 -> 101.0841221 | N43: 20 | O43: 30 | P43: 2 | Q43: -1.110223025e-16
A44: 37 | D44: HI1469 | E44: 104.1213045 | F44: 91.70331383 | G44: 19.23321269 | H44: 17.66698981 | I44: 106.330401 | J44: 5.001299189 | K44: 3.25 | L44: 8.200115628 | M44: =(H44/'ORMA 111 treated'!H44)*100 -> 100.1047827 | N44: 30 | O44: 30 | P44: 1 | Q44: -1.110223025e-16
A45: 38 | D45: HI1470 | E45: 97.59387644 | F45: 91.50973092 | G45: 18.813542 | H45: 17.27353218 | I45: 103.9623401 | J45: 6.997446093 | K45: 4.256590909 | L45: 12.27108998 | M45: =(H45/'ORMA 111 treated'!H45)*100 -> 91.51472505 | N45: 15 | O45: 25 | P45: 2 | Q45: 1
A46: 39 | D46: HI1473 | E46: 95.99777889 | F46: 84.97314087 | G46: 20.38114205 | H46: 17.31742255 | I46: 104.2264983 | J46: 6.502603586 | K46: 3.53 | L46: 8.049033237 | M46: =(H46/'ORMA 111 treated'!H46)*100 -> 93.18334539 | N46: 15 | O46: 25 | P46: 4 | Q46: 1.110223025e-16
A47: 40 | D47: HI1474 | E47: 106.9834649 | F47: 86.55555565 | G47: 20.24885882 | H47: 17.50406373 | I47: 105.3498155 | J47: 5.50126904 | K47: 3.425 | L47: 7.488940364 | M47: =(H47/'ORMA 111 treated'!H47)*100 -> 103.5215267 | N47: 30 | O47: 25 | P47: 1.5 | Q47: -1.110223025e-16
A48: 41 | D48: HI1475 | E48: 102.5643917 | F48: 87.06040243 | G48: 18.9140675 | H48: 16.42523619 | I48: 98.85679277 | J48: 5.494912955 | K48: 3.555 | L48: 8.150479912 | M48: =(H48/'ORMA 111 treated'!H48)*100 -> 90.45627658 | N48: 20 | O48: 30 | P48: 4 | Q48: 1.110223025e-16
A49: 42 | D49: HI1476 | E49: 100.4746803 | F49: 81.86433773 | G49: 19.93989542 | H49: 16.37480938 | I49: 98.55329441 | J49: 6.498760196 | K49: 3.665 | L49: 8.100820137 | M49: =(H49/'ORMA 111 treated'!H49)*100 -> 94.80769818 | N49: 20 | O49: 30 | P49: 7.5 | Q49: 1.110223025e-16
A50: 43 | D50: HI1478 | E50: 96.49330188 | F50: 86.87803228 | G50: 19.04232736 | H50: 16.50223442 | I50: 99.32021373 | J50: 6.496231277 | K50: 3.28 | L50: 8.738795505 | M50: =(H50/'ORMA 111 treated'!H50)*100 -> 107.9122225 | N50: 30 | O50: 20 | P50: 11.5 | Q50: 15.5
A51: 44 | D51: HI1479 | E51: 97.91202497 | F51: 92.47718995 | G51: 18.30108463 | H51: 16.86673292 | I51: 101.5139814 | J51: 5.990703885 | K51: 3.313409091 | L51: 12.47103838 | M51: =(H51/'ORMA 111 treated'!H51)*100 -> 99.66366764 | N51: 20 | O51: 20 | P51: 4 | Q51: 1.110223025e-16
A52: 45 | D52: HI1482 | E52: 104.1213045 | F52: 80.66320966 | G52: 19.00321269 | H52: 15.35883022 | I52: 92.43853049 | J52: 6.001299189 | K52: 3.92 | L52: 8.700115628 | M52: =(H52/'ORMA 111 treated'!H52)*100 -> 90.04077738 | N52: 30 | O52: 20 | P52: 2 | Q52: 1.110223025e-16
A53: 46 | D53: HI1483 | E53: 98.61058194 | F53: 85.53305273 | G53: 19.23986581 | H53: 16.41227182 | I53: 98.77876552 | J53: 6.005054709 | K53: 3.595 | L53: 7.763113798 | M53: =(H53/'ORMA 111 treated'!H53)*100 -> 92.12311239 | N53: 30 | O53: 40 | P53: 1 | Q53: 0
A54: 47 | D54: 6K649 | E54: 96.95461663 | F54: 81.68646356 | G54: 20.36925952 | H54: 16.65647313 | I54: 100.2485135 | J54: 5.000854271 | K54: 3.713409091 | L54: 7.286381192 | M54: =(H54/'ORMA 111 treated'!H54)*100 -> 90.37720959 | N54: 30 | O54: 40 | P54: 1 | Q54: -1.110223025e-16
A55: 48 | D55: 6K657 | E55: 97.06954144 | F55: 94.27456871 | G55: 19.21668887 | H55: 18.05321212 | I55: 108.6549154 | J55: 5.492362914 | K55: 3.845 | L55: 8.303141693 | M55: =(H55/'ORMA 111 treated'!H55)*100 -> 101.7932639 | N55: 30 | O55: 20 | P55: 7.5 | Q55: 0
A56: 49 | D56: 6K659 | E56: 93.00325901 | F56: 82.38493223 | G56: 19.98543542 | H56: 16.44862422 | I56: 98.99755579 | J56: 5.983172606 | K56: 3.643409091 | L56: 6.191846824 | M56: =(H56/'ORMA 111 treated'!H56)*100 -> 95.20367956 | N56: 30 | O56: 25 | P56: 10 | Q56: 1.5
A57: 50 | D57: 6K660 | E57: 101.8764232 | F57: 95.92699667 | G57: 18.37241863 | H57: 17.60361593 | I57: 105.9489795 | J57: 4.997419491 | K57: 3.933409091 | L57: 9.84229988 | M57: =(H57/'ORMA 111 treated'!H57)*100 -> 94.36775788 | N57: 30 | O57: 40 | P57: 4 | Q57: 0
A58: 51 | D58: 6K664 | E58: 93.36956067 | F58: 89.38069437 | G58: 18.43224048 | H58: 16.50777482 | I58: 99.35355914 | J58: 5.000029166 | K58: 3.813409091 | L58: 8.938757918 | M58: =(H58/'ORMA 111 treated'!H58)*100 -> 90.39564067 | N58: 30 | O58: 20 | P58: 1 | Q58: 0
A59: 52 | D59: 6K665 | E59: 91.17248645 | F59: 94.62991516 | G59: 18.93506487 | H59: 18.00995197 | I59: 108.3945503 | J59: 5.995705525 | K59: 3.993409091 | L59: 8.578204424 | M59: =(H59/'ORMA 111 treated'!H59)*100 -> 109.1730122 | N59: 20 | O59: 35 | P59: 3 | Q59: 1.110223025e-16
A60: 53 | D60: 6K697 | E60: 102.206869 | F60: 83.28499091 | G60: 20.24869767 | H60: 16.81956893 | I60: 101.2301206 | J60: 5.997474146 | K60: 3.505 | L60: 5.740204842 | M60: =(H60/'ORMA 111 treated'!H60)*100 -> 91.84909606 | N60: 30 | O60: 25 | P60: 4 | Q60: 0
A61: 54 | D61: 6K683 | E61: 97.87423611 | F61: 93.93973074 | G61: 19.52503857 | H61: 18.42283129 | I61: 110.8795024 | J61: 4.993342576 | K61: 3.293409091 | L61: 5.756492436 | M61: =(H61/'ORMA 111 treated'!H61)*100 -> 105.6159225 | N61: 25 | O61: 35 | P61: 11 | Q61: 0
A62: 55 | D62: 6K685 | E62: 104.3917439 | F62: 91.41943892 | G62: 19.93725363 | H62: 18.25759144 | I62: 109.8849912 | J62: 5.001210641 | K62: 3.62 | L62: 8.349613912 | M62: =(H62/'ORMA 111 treated'!H62)*100 -> 100.872035 | N62: 25 | O62: 25 | P62: 3 | Q62: 1.110223025e-16
A63: 56 | D63: 6K688 | E63: 94.10085 | F63: 89.06769409 | G63: 19.2040675 | H63: 17.06562496 | I63: 102.7110314 | J63: 5.494912955 | K63: 3.865 | L63: 8.150479912 | M63: =(H63/'ORMA 111 treated'!H63)*100 -> 104.5774458 | N63: 25 | O63: 30 | P63: 1 | Q63: 1.110223025e-16
A64: 57 | D64: 6K670 | E64: 95.04785797 | F64: 79.31410146 | G64: 19.58940875 | H64: 15.6073035 | I64: 93.93398974 | J64: 6.49992031 | K64: 3.5 | L64: 7.395882901 | M64: =(H64/'ORMA 111 treated'!H64)*100 -> 100.9413947 | N64: 30 | O64: 15 | P64: 5 | Q64: 0
A65: 58 | D65: MA2206 | E65: 95.98014543 | F65: 87.58907535 | G65: 19.60001324 | H65: 17.21248934 | I65: 103.5949482 | J65: 5.498696761 | K65: 3.645 | L65: 10.22194927 | M65: =(H65/'ORMA 111 treated'!H65)*100 -> 102.5194335 | N65: 30 | O65: 40 | P65: 5 | Q65: 0
A66: 59 | D66: MA2209 | E66: 94.61530527 | F66: 85.69073747 | G66: 19.02489542 | H66: 16.32445145 | I66: 98.25021058 | J66: 6.998760196 | K66: 3.255 | L66: 9.600820137 | M66: =(H66/'ORMA 111 treated'!H66)*100 -> 93.01717274 | N66: 30 | O66: 40 | P66: 1 | Q66: 0
A67: 60 | D67: MA2213 | E67: 97.86888155 | F67: 85.55190982 | G67: 19.73385882 | H67: 16.78179628 | I67: 101.0027825 | J67: 5.00126904 | K67: 3.46 | L67: 8.066339591 | M67: =(H67/'ORMA 111 treated'!H67)*100 -> 100.9882243 | N67: 25 | O67: 35 | P67: 3 | Q67: 0
A68: 61 | D68: MA4073 | E68: 99.85834076 | F68: 84.2312523 | G68: 20.01197266 | H68: 16.9101648 | I68: 101.7753802 | J68: 6.496203892 | K68: 3.475 | L68: 7.550042321 | M68: =(H68/'ORMA 111 treated'!H68)*100 -> 104.1846223 | N68: 30 | O68: 30 | P68: 3 | Q68: 0
A69: 62 | D69: MA4074 | E69: 98.12928163 | M69: =(H69/'ORMA 111 treated'!H69)*100 -> 0 | N69: 30 | O69: 35 | P69: 3 | Q69: 0
A70: 63 | D70: MA4079 | E70: 98.8551254 | F70: 89.1006404 | G70: 19.74923941 | H70: 17.58081189 | I70: 105.8117313 | J70: 5.505072109 | K70: 3.565 | L70: 8.786062689 | M70: =(H70/'ORMA 111 treated'!H70)*100 -> 101.8100545 | N70: 30 | O70: 30 | P70: 5.5 | Q70: 0
A71: 64 | D71: ST 12604 | E71: 90.16645855 | M71: =(H71/'ORMA 111 treated'!H71)*100 -> 0 | N71: 30 | O71: 40 | P71: 3 | Q71: 0
A72: 65 | D72: ST 12615 | E72: 90.77181209 | F72: 82.06902326 | G72: 19.83501324 | H72: 16.33720354 | I72: 98.32696021 | J72: 6.498696761 | K72: 3.6 | L72: 8.221949268 | M72: =(H72/'ORMA 111 treated'!H72)*100 -> 97.35178418 | N72: 15 | O72: 20 | P72: 4 | Q72: 0
A73: 66 | D73: ST 12651 | E73: 84.08673248 | F73: 78.44293042 | G73: 19.36749678 | H73: 15.23692381 | I73: 91.70482559 | J73: 6.502540814 | K73: 3.54 | L73: 7.00818323 | M73: =(H73/'ORMA 111 treated'!H73)*100 -> 90.93802276 | N73: 30 | O73: 35 | P73: 2 | Q73: 0
A74: 67 | D74: ST 12658 | E74: 99.2885053 | F74: 87.74103173 | G74: 18.98914537 | H74: 16.60442094 | I74: 99.93523265 | J74: 6.002528982 | K74: 3.43 | L74: 9.888751612 | M74: =(H74/'ORMA 111 treated'!H74)*100 -> 93.56492859 | N74: 25 | O74: 20 | P74: 2 | Q74: 0
A75: 68 | D75: ST 12664 | E75: 91.36470557 | F75: 80.77816184 | G75: 19.69914649 | H75: 15.93775346 | I75: 95.92283322 | J75: 6.496222544 | K75: 3.61 | L75: 9.097156348 | M75: =(H75/'ORMA 111 treated'!H75)*100 -> 89.28585798 | N75: 15 | O75: 25 | P75: 6.5 | Q75: 0
A76: 69 | D76: ST 12668 | E76: 94.1211474 | F76: 88.58706967 | G76: 18.78650608 | H76: 16.70268271 | I76: 100.5266301 | J76: 7.002494683 | K76: 3.685 | L76: 10.74997128 | M76: =(H76/'ORMA 111 treated'!H76)*100 -> 96.05888456 | N76: 25 | O76: 30 | P76: 6.5 | Q76: 0.5
A77: 70 | D77: ST 12680 | E77: 93.18594623 | F77: 89.30826109 | G77: 19.39356499 | H77: 17.3547506 | I77: 104.4511606 | J77: 7.50513853 | K77: 3.195 | L77: 6.484017823 | M77: =(H77/'ORMA 111 treated'!H77)*100 -> 100.9463982 | N77: 25 | O77: 40 | P77: 2 | Q77: 0
A78: 71 | D78: ST 12682 | E78: 89.47719378 | F78: 80.24481175 | G78: 18.82532317 | H78: 15.11139177 | I78: 90.94929947 | J78: 7.505055037 | K78: 3.05 | L78: 7.965060005 | M78: =(H78/'ORMA 111 treated'!H78)*100 -> 101.010242 | N78: 30 | O78: 35 | P78: 2 | Q78: 1.110223025e-16
A79: 72 | D79: ST 15616 | E79: 96.03329697 | F79: 83.35008121 | G79: 18.27414537 | H79: 15.18293852 | I79: 91.37991018 | J79: 7.502528982 | K79: 3.845 | L79: 8.388751612 | M79: =(H79/'ORMA 111 treated'!H79)*100 -> 96.52847704 | N79: 20 | O79: 20 | P79: 10.5 | Q79: 1.110223025e-16
A80: 73 | D80: ST 15672 | E80: 94.89165117 | F80: 94.24509214 | G80: 19.02015196 | H80: 17.83106897 | I80: 107.3179265 | J80: 5.999996916 | K80: 4.095 | L80: 11.87839128 | M80: =(H80/'ORMA 111 treated'!H80)*100 -> 111.8172663 | N80: 25 | O80: 20 | P80: 0.5 | Q80: 1.110223025e-16
A81: 74 | D81: ST 15678 | E81: 99.83663621 | F81: 86.70687088 | G81: 19.64138681 | H81: 17.01513859 | I81: 102.4071746 | J81: 7.009255803 | K81: 2.866590909 | L81: 8.643738819 | M81: =(H81/'ORMA 111 treated'!H81)*100 -> 110.6750559 | N81: 25 | O81: 25 | P81: 6.5 | Q81: 1.110223025e-16
A82: 75 | D82: 6K674 | E82: 92.76091587 | F82: 75.06427465 | G82: 20.00563933 | H82: 15.05425812 | I82: 90.60543532 | J82: 5.500020466 | K82: 3.115 | L82: 6.625178365 | M82: =(H82/'ORMA 111 treated'!H82)*100 -> 88.52248841 | N82: 15 | O82: 25 | P82: 6.5 | Q82: 1.5
A83: 76 | D83: SV1724 | E83: 96.70501666 | F83: 85.11583862 | G83: 19.3940675 | H83: 16.45824359 | I83: 99.05545085 | J83: 6.994912955 | K83: 3.435 | L83: 9.650479912 | M83: =(H83/'ORMA 111 treated'!H83)*100 -> 102.5059758 | N83: 15 | O83: 35 | P83: 20 | Q83: 1.110223025e-16
A84: 77 | D84: SV1731 | E84: 90.20336129 | F84: 81.67692559 | G84: 19.15158802 | H84: 15.5675418 | I84: 93.69468033 | J84: 5.503819184 | K84: 3.675 | L84: 7.841290796 | M84: =(H84/'ORMA 111 treated'!H84)*100 -> 93.49645229 | N84: 20 | O84: 35 | P84: 1 | Q84: 1.110223025e-16
A85: 78 | D85: SV1747 | E85: 97.53380439 | F85: 83.856569 | G85: 19.3878866 | H85: 16.23966666 | I85: 97.73992553 | J85: 5.999999018 | K85: 3.24 | L85: 6.304981882 | M85: =(H85/'ORMA 111 treated'!H85)*100 -> 93.13549839 | N85: 30 | O85: 40 | P85: 3 | Q85: 1.110223025e-16
A86: 79 | D86: SV1757 | E86: 102.1681795 | F86: 86.53784272 | G86: 19.40503857 | H86: 16.87026646 | I86: 101.5352483 | J86: 7.993342576 | K86: 3.733409091 | L86: 6.756492436 | M86: =(H86/'ORMA 111 treated'!H86)*100 -> 100.9312155 | N86: 15 | O86: 20 | P86: 1.5 | Q86: 1.110223025e-16
A87: 80 | D87: SV1765 | E87: 103.9938933 | F87: 85.86103638 | G87: 19.79481754 | H87: 17.03157888 | I87: 102.506122 | J87: 5.997494222 | K87: 3.335 | L87: 8.503773332 | M87: =(H87/'ORMA 111 treated'!H87)*100 -> 99.04681946 | N87: 30 | O87: 40 | P87: 0.5 | Q87: 1.110223025e-16
A88: 81 | D88: SV1771 | E88: 92.97474525 | F88: 88.87412421 | G88: 19.35341111 | H88: 17.18483931 | I88: 103.428534 | J88: 6.496214204 | K88: 3.525 | L88: 7.917792821 | M88: =(H88/'ORMA 111 treated'!H88)*100 -> 102.2549966 | N88: 30 | O88: 30 | P88: 12.5 | Q88: 1.110223025e-16
A89: 82 | D89: SV1779 | E89: 100.5374371 | F89: 79.55990868 | G89: 19.79001324 | H89: 15.80656972 | I89: 95.13329179 | J89: 5.998696761 | K89: 3.68 | L89: 9.221949268 | M89: =(H89/'ORMA 111 treated'!H89)*100 -> 92.27108031 | N89: 30 | O89: 40 | P89: -2.442490654e-15 | Q89: 1.5
A90: 83 | D90: Nemata | E90: 90.82496364 | F90: 77.12051646 | G90: 17.70633082 | H90: 13.64740314 | I90: 82.13814944 | J90: 5.993282278 | K90: 4.303409091 | L90: 12.48894036 | M90: =(H90/'ORMA 111 treated'!H90)*100 -> 85.96277236 | N90: 30 | O90: 25 | P90: 3.5 | Q90: 8.437694987e-15
A91: LSD | E91: 11.91371445 | F91: 9.48305547 | G91: 0.9273213468 | H91: 1.639473053 | J91: 1.155831118 | K91: 0.4041400104 | L91: 3.862116706 | N91: 9.581656268 | O91: 13.27621849 | P91: 9.853111181 | Q91: -
A92: CV | E92: 6.071062403 | F92: 4.749204902 | G92: 2.166732195 | H92: 4.251504331 | J92: 8.79523797 | K92: 5.206965139 | L92: 20.01475947 | N92: 15.75750329 | O92: 19.06667614 | P92: 90.5259232 | Q92: 622.8039409
A93: P-value | E93: <0.05 | F93: <0.05 | G93: <0.001 | H93: <0.001 | J93: <0.001 | K93: <0.001 | L93: <0.05 | N93: <0.001 | O93: <0.001 | P93: <0.05 | Q93: ns

Sheet VERN 112 all
A1: 1 | B1: 2 | C1: 3 | D1: 4 | E1: 5 | F1: 6 | G1: 7 | H1: 8 | I1: 9 | J1: 10 | K1: 13 | L1: 14 | M1: 19 | N1: 20 | O1: 27 | P1: 28 | Q1: 44 | R1: 45 | ALA1: 1
E2: 112 | F2: 112 | G2: 112 | H2: 112 | I2: 112 | J2: 112 | K2: 112 | L2: 112 | M2: 112 | N2: 112 | O2: 112 | P2: 112 | Q2: 112 | R2: 112
A3: Series 102 (trial no 112) | E3: Plant nr | F3: Plant nr | G3: Rot | H3: Socker | I3: Socker | J3: Socker | K3: Renhet | L3: Rotfåra | M3: K/N | N3: Blåtal | O3: Fröstockar | P3: Nackhöjd | Q3: Dubletter | R3: Pellar
A4: Verntofta | E4: Plant no | F4: Plant no | G4: Root | H4: Sugar | I4: Sugar | J4: Sugar | K4: Cleaness | L4: Groove | N4: Amino-N | O4: Bolters | P4: Height | Q4: Duplets | R4: Sec.gen
A5: Expl. | E5: 0.5 | F5: 1 | O5: Sum
A6: no trials
A7: Unit | E7: 1000/ha | F7: 1000/ha | G7: t/ha | H7: % | I7: t/ha | J7: relativ | K7: % | L7: Sc. 1-9 | O7: ‰ | P7: mm | Q7: 1000/ha | R7: 1000/ha
A8: Avg for * | E8: 60.88474172 | F8: 100.1616198 | G8: 87.62815566 | H8: 18.42649283 | I8: 16.15293453 | J8: 100 | K8: 93.01766546 | L8: 5.459738602 | M8: 3.359517328 | N8: 11.09292552 | O8: 0.3516174402 | P8: 6.875 | Q8: 0.3616898148 | R8: 1.410590278
A9: 1 | B9: * | D9: Orlena KWS | E9: 41.79762964 | F9: 98.01462214 | G9: 86.81934822 | H9: 18.65283582 | I9: 16.16174936 | J9: 100.0545711 | K9: 93.192244 | L9: 5.492465706 | M9: 3.659826285 | N9: 11.5 | O9: -2.060851489e-15 | P9: 6.65 | Q9: -2.428612866e-17 | R9: 2.278645833
A10: 2 | B10: * | D10: Cartoon | E10: 73.9092594 | F10: 102.1919404 | G10: 85.61263853 | H10: 18.06339884 | I10: 15.43563942 | J10: 95.55935107 | K10: 92.28972428 | L10: 5.266527401 | M10: 3.32728232 | N10: 11.33632968 | O10: -2.060851489e-15 | P10: 6.95 | Q10: 1.302083333 | R10: 0.9765625
A11: 3 | B11: * | D11: Pascalina KWS | E11: 58.33326595 | F11: 98.64568571 | G11: 87.38386987 | H11: 18.86616417 | I11: 16.48403407 | J11: 102.0497795 | K11: 92.61050281 | L11: 5.451283779 | M11: 3.329216132 | N11: 9.75 | O11: -2.060851489e-15 | P11: 6.625 | Q11: -2.428612866e-17 | R11: 2.278645833
A12: 5 | B12: * | D12: Cantona KWS | E12: 59.96213379 | F12: 102.2425113 | G12: 90.53413416 | H12: 18.3688813 | I12: 16.63717745 | J12: 102.9978634 | K12: 92.83114559 | L12: 5.231420164 | M12: 3.248640173 | N12: 9.5 | O12: -2.060851489e-15 | P12: 6.7 | Q12: 0.3255208333 | R12: 0.3255208333
A13: 6 | B13: * | D13: SY Muse | E13: 39.69816367 | F13: 97.94794263 | G13: 87.14997712 | H13: 17.99923334 | I13: 15.72365393 | J13: 97.34239867 | K13: 93.59822446 | L13: 6.257609487 | M13: 3.290935012 | N13: 10 | O13: -2.060851489e-15 | P13: 7.075 | Q13: 0.9765625 | R13: 1.302083333
A14: 7 | B14: * | D14: Kudu | E14: 63.67411818 | F14: 99.0173101 | G14: 85.97892865 | H14: 18.66176317 | I14: 16.03557705 | J14: 99.27346034 | K14: 93.46854741 | L14: 5.220313711 | M14: 3.321636813 | N14: 11.75 | O14: -2.060851489e-15 | P14: 7.575 | Q14: -2.428612866e-17 | R14: 2.9296875
A15: 8 | B15: * | D15: Darnella KWS | E15: 80.42812425 | F15: 101.277257 | G15: 87.97263746 | H15: 18.06580557 | I15: 15.86946772 | J15: 98.2451064 | K15: 93.20269599 | L15: 5.223502103 | M15: 3.613958017 | N15: 12.25 | O15: -2.060851489e-15 | P15: 6.3 | Q15: 0.6510416667 | R15: 0.9765625
A16: 9 | B16: * | D16: Diesel | E16: 60.50719039 | F16: 101.5531243 | G16: 88.15119587 | H16: 18.66392756 | I16: 16.54556827 | J16: 102.430727 | K16: 92.55332085 | L16: 5.503659225 | M16: 3.095825374 | N16: 10.5 | O16: 3.164556962 | P16: 6.725 | Q16: -2.428612866e-17 | R16: 0.6510416667
A17: 10 | B17: * | D17: Lombok | E17: 69.65279018 | F17: 100.5641849 | G17: 89.05067104 | H17: 18.49642571 | I17: 16.48354351 | J17: 102.0467425 | K17: 93.41258377 | L17: 5.490865837 | M17: 3.348335823 | N17: 13.25 | O17: -3.837208329e-15 | P17: 7.275 | Q17: -2.428612866e-17 | R17: 0.9765625
A18: 11 | D18: Dexter | E18: 93.05176218 | F18: 102.2094636 | G18: 86.27606222 | H18: 18.28197799 | I18: 15.76737909 | J18: 97.61309351 | K18: 93.03722839 | L18: 5.933004428 | M18: 3.193639041 | N18: 10.5 | O18: -2.060851489e-15 | P18: 7.5 | Q18: 0.3255208333 | R18: 1.627604167
A19: 12 | C19: o | D19: Ragna KWS | E19: 63.66737711 | F19: 94.05883771 | G19: 89.88635226 | H19: 18.15554497 | I19: 16.26691265 | J19: 100.7056187 | K19: 93.26182283 | L19: 4.962891277 | M19: 3.292078264 | N19: 11 | O19: -3.837208329e-15 | P19: 7.825 | Q19: 0.6510416667 | R19: 1.302083333
A20: 13 | C20: o | D20: Daphna | E20: 75.43131 | F20: 97.67585122 | G20: 90.91253039 | H20: 18.34934139 | I20: 16.71569214 | J20: 103.4839342 | K20: 93.68311717 | L20: 5.32915685 | M20: 3.3880261 | N20: 12.5 | O20: 3.205128205 | P20: 7 | Q20: 0.9765625 | R20: 1.627604167
A21: 14 | C21: o | D21: Smilla KWS | E21: 72.55543207 | F21: 101.2461127 | G21: 89.30361451 | H21: 18.64911421 | I21: 16.62266157 | J21: 102.9079982 | K21: 93.89112451 | L21: 5.760133533 | M21: 3.688714515 | N21: 10.75 | O21: -2.060851489e-15 | P21: 7.675 | Q21: -1.353084311e-16 | R21: 0.3255208333
A22: 15 | C22: o | D22: Kashmir | E22: 79.27554939 | F22: 100.572846 | G22: 90.87230255 | H22: 18.16556866 | I22: 16.43937687 | J22: 101.7733145 | K22: 92.83805615 | L22: 5.754369639 | M22: 3.322645921 | N22: 10.5 | O22: -2.060851489e-15 | P22: 7.525 | Q22: 0.9765625 | R22: 1.302083333
A23: 16 | D23: Degas | E23: 67.19511029 | F23: 100.2230452 | G23: 89.38345232 | H23: 18.53018292 | I23: 16.62429636 | J23: 102.9181189 | K23: 93.28976709 | L23: 4.960006901 | M23: 3.34854841 | N23: 10.75 | O23: -2.060851489e-15 | P23: 7.5 | Q23: 0.6510416667 | R23: 1.302083333
A24: 17 | C24: o | D24: Klimt | E24: 62.9286415 | F24: 99.89656302 | G24: 95.88439149 | H24: 18.81427932 | I24: 18.0596479 | J24: 111.8041298 | K24: 93.91579328 | L24: 6.26678705 | M24: 3.045454927 | N24: 9.5 | O24: -2.060851489e-15 | P24: 6.625 | Q24: 0.9765625 | R24: 0.9765625
A25: 18 | D25: Landon | E25: 57.76371624 | F25: 100.2074858 | G25: 86.99013886 | H25: 18.664247 | I25: 16.27885362 | J25: 100.7795431 | K25: 93.48421441 | L25: 6.002947725 | M25: 3.083044369 | N25: 10 | O25: -2.060851489e-15 | P25: 8.125 | Q25: 0.6510416667 | R25: 0.6510416667
A26: 19 | D26: Piculet | E26: 65.49268108 | F26: 90.14418762 | G26: 84.93353944 | H26: 18.61692118 | I26: 15.81367176 | J26: 97.89968337 | K26: 92.4090298 | L26: 5.489394985 | M26: 3.046621403 | N26: 9.5 | O26: -2.060851489e-15 | P26: 7.975 | Q26: 0.9765625 | R26: 3.255208333
A27: 20 | D27: Mustang | E27: 85.98566501 | F27: 102.7767804 | G27: 83.01513427 | H27: 18.25094158 | I27: 15.21353364 | J27: 94.18433295 | K27: 93.13713184 | L27: 5.245175651 | M27: 3.143311992 | N27: 10.25 | O27: 3.333333333 | P27: 7.125 | Q27: 0.9765625 | R27: 2.604166667
A28: 21 | D28: Maxine | E28: 78.40434556 | F28: 102.8597377 | G28: 84.45080763 | H28: 18.57083087 | I28: 15.58714939 | J28: 96.49732289 | K28: 93.19070317 | L28: 4.975064273 | M28: 3.473429718 | N28: 10.5 | O28: 3.205128205 | P28: 7.5 | Q28: 0.3255208333 | R28: 1.627604167
A29: 22 | D29: Illusion | E29: 88.84097489 | F29: 104.4991159 | G29: 87.30037782 | H29: 18.41884493 | I29: 16.00214499 | J29: 99.06648826 | K29: 93.54565408 | L29: 5.741483144 | M29: 3.537843754 | N29: 11.25 | O29: -2.949029909e-15 | P29: 6.65 | Q29: 1.302083333 | R29: 0.6510416667
